Workbook

Sheet Cover
B9: Estimates of the prevalence of opiate use and/or crack cocaine use (2014/15)
B12: September 2017
B15: Gordon Hay1,2
B16: Anderson Rael dos Santos2
B24: 1 | C24: Centre for Public Health, Liverpool John Moores University
B25: 2 | C25: Glasgow Prevalence Estimation Limited

Sheet Introduction
B1: Introduction
B3: This report presents opiate and / or crack use (OCU) prevalence estimates for local authority areas across England, based on data relating to the financial year 1 April 2014 to 31 March 2015. This report also refers to the prevalence estimates of previous periods, for 2011/12 and 2010/11.
B5: ‘OCU’ refers to use of opiates and/or crack cocaine. It does not include the use of cocaine in a powder form, amphetamine, ecstasy or cannabis. Although many opiate and/or crack users also use these drugs it is very difficult to identify exclusive users of these drugs from the available data sources.
B7: All tables contain the estimates for the 2014/15 year along with their associated confidence intervals. The report contains the following information;
B9: > | C9: 2014-15 Prevalence estimates
B10: > | C10: 2014-15 Prevalence estimates by Age
B11: > | C11: OCU
B12: > | C12: Opiate
B13: > | C13: Crack
B14: > | C14: OCU by age
B15: > | C15: Opiate by age
B16: > | C16: Opiate by gender
B18: These tables show the estimated total number and prevalence rate at local authority, regional and national levels. All prevalence rates stated show the number of OCUs in that local authority area per thousand people in the population. It is advisable to look at the prevalence rate as well as the actual numbers, because any significant changes in the number of OCUs may simply reflect fluctuations in the general population for that area. The age range employed within the study is from 15 to 64 and where the estimates have been stratified by age group, these are from 15 to 24, from 25 to 34, and from 35 to 64.
B19: The OCU table shows the estimate total number at a local authority, regional and national level. This is followed by separate tables for each type of OCU – opiate users and crack cocaine users. There are some additional OCU and Opiate tables that show problem drug use by each of three age groups ; 15 to 24, from 25 to 34, and from 35 to 64. Each of these tables also contain the following information;
B21: a) | C21: The difference between 2014/15 and 2011/12 estimates and the confidence intervals around it.
B22: b) | C22: Whether this difference represents a statistically significant change at the 95% level – indicated by * followed by an arrow describing the direction of the change (i.e. ↑ for an increase, ↓ for a decrease).
B24: Please note: It must be stressed that these figures are estimates. They should always be interpreted in conjunction with their associated confidence intervals, which are specified in each table. The confidence intervals show the range within which there is a 95% certainty that the true value exists, though it is most likely to lie near the estimate itself. For a full description of the study’s methodology please refer to the full report of the first sweep[1].
B26: Where significant changes have been marked, this should be interpreted as indicative of some possible change rather than as evidence of a definite change. For the same reasons caution should be used when making inferences from comparisons between areas. The estimates are designed to be used in conjunction with local knowledge as a guide to service planning.
B28: Separate tables for estimated total number and for prevalence rate are shown from each case. All prevalence rates stated show the number of OCUs in that local authority area per thousand people in the population. It is advisable to look at the prevalence rate as well as the actual numbers, because any significant changes in the number of OCUs may simply reflect fluctuations in the general population for that area.
B30: Notes on Table Headings OCU – Opiate and/or crack cocaine use. Prevalence Rate – Rate per thousand population aged 15 to 64 (or in the relevant age group) Sig 95% - Whether or not the difference since the 2011/12 sweep is statistically significant at the 95% level. *↑/*↓ - Whether a significant change shows an increase or a decrease.
B32: Reference
B33: [1] Hay, G., Gannon, M., MacDougall, J., Millar, T., Eastwood, C. and McKeganey, N. (2006) Local and national estimates of the prevalence of opiate use and/or crack cocaine use (2004/05). In Singleton, N., Murray, R. and Tinsley, L. (Eds.) Measuring different aspects of problem drug use: methodological developments. Online Report OLR 16/06. London. Home Office.

Sheet Front sheet
C6: Prevalence Estimates 2014/15
C8: Please select partnership
C10: =VLOOKUP(C8,B96:C249,2,0) -> 
C12: Number of users
C13: OCU | D13: Lower bound 95% CI | E13: Upper bound 95% CI | F13: Opiate users | G13: Lower bound 95% CI | H13: Upper bound 95% CI | I13: Crack users | J13: Lower bound 95% CI | K13: Upper bound 95% CI
B14: =C8 -> Please select partnership | C14: =IF(ISERROR(VLOOKUP($B14,'2014-15 Prevalence Estimates'!$B$7:$U$169,3,0)),"",VLOOKUP($B14,'2014-15 Prevalence Estimates'!$B$7:$U$169,3,0)) ->  | D14: =IF(ISERROR(VLOOKUP($B14,'2014-15 Prevalence Estimates'!$B$7:$U$169,4,0)),"",VLOOKUP($B14,'2014-15 Prevalence Estimates'!$B$7:$U$169,4,0)) ->  | E14: =IF(ISERROR(VLOOKUP($B14,'2014-15 Prevalence Estimates'!$B$7:$U$169,5,0)),"",VLOOKUP($B14,'2014-15 Prevalence Estimates'!$B$7:$U$169,5,0)) ->  | F14: =IF(ISERROR(VLOOKUP($B14,'2014-15 Prevalence Estimates'!$B$7:$U$169,6,0)),"",VLOOKUP($B14,'2014-15 Prevalence Estimates'!$B$7:$U$169,6,0)) ->  | G14: =IF(ISERROR(VLOOKUP($B14,'2014-15 Prevalence Estimates'!$B$7:$U$169,7,0)),"",VLOOKUP($B14,'2014-15 Prevalence Estimates'!$B$7:$U$169,7,0)) ->  | H14: =IF(ISERROR(VLOOKUP($B14,'2014-15 Prevalence Estimates'!$B$7:$U$169,8,0)),"",VLOOKUP($B14,'2014-15 Prevalence Estimates'!$B$7:$U$169,8,0)) ->  | I14: =IF(ISERROR(VLOOKUP($B14,'2014-15 Prevalence Estimates'!$B$7:$U$169,9,0)),"",VLOOKUP($B14,'2014-15 Prevalence Estimates'!$B$7:$U$169,9,0)) ->  | J14: =IF(ISERROR(VLOOKUP($B14,'2014-15 Prevalence Estimates'!$B$7:$U$169,10,0)),"",VLOOKUP($B14,'2014-15 Prevalence Estimates'!$B$7:$U$169,10,0)) ->  | K14: =IF(ISERROR(VLOOKUP($B14,'2014-15 Prevalence Estimates'!$B$7:$U$169,11,0)),"",VLOOKUP($B14,'2014-15 Prevalence Estimates'!$B$7:$U$169,11,0)) -> 
B15: =C10 ->  | C15: =IF(ISERROR(VLOOKUP($B15,'2014-15 Prevalence Estimates'!$B$7:$U$169,3,0)),"",VLOOKUP($B15,'2014-15 Prevalence Estimates'!$B$7:$U$169,3,0)) ->  | D15: =IF(ISERROR(VLOOKUP($B15,'2014-15 Prevalence Estimates'!$B$7:$U$169,4,0)),"",VLOOKUP($B15,'2014-15 Prevalence Estimates'!$B$7:$U$169,4,0)) ->  | E15: =IF(ISERROR(VLOOKUP($B15,'2014-15 Prevalence Estimates'!$B$7:$U$169,5,0)),"",VLOOKUP($B15,'2014-15 Prevalence Estimates'!$B$7:$U$169,5,0)) ->  | F15: =IF(ISERROR(VLOOKUP($B15,'2014-15 Prevalence Estimates'!$B$7:$U$169,6,0)),"",VLOOKUP($B15,'2014-15 Prevalence Estimates'!$B$7:$U$169,6,0)) ->  | G15: =IF(ISERROR(VLOOKUP($B15,'2014-15 Prevalence Estimates'!$B$7:$U$169,7,0)),"",VLOOKUP($B15,'2014-15 Prevalence Estimates'!$B$7:$U$169,7,0)) ->  | H15: =IF(ISERROR(VLOOKUP($B15,'2014-15 Prevalence Estimates'!$B$7:$U$169,8,0)),"",VLOOKUP($B15,'2014-15 Prevalence Estimates'!$B$7:$U$169,8,0)) ->  | I15: =IF(ISERROR(VLOOKUP($B15,'2014-15 Prevalence Estimates'!$B$7:$U$169,9,0)),"",VLOOKUP($B15,'2014-15 Prevalence Estimates'!$B$7:$U$169,9,0)) ->  | J15: =IF(ISERROR(VLOOKUP($B15,'2014-15 Prevalence Estimates'!$B$7:$U$169,10,0)),"",VLOOKUP($B15,'2014-15 Prevalence Estimates'!$B$7:$U$169,10,0)) ->  | K15: =IF(ISERROR(VLOOKUP($B15,'2014-15 Prevalence Estimates'!$B$7:$U$169,11,0)),"",VLOOKUP($B15,'2014-15 Prevalence Estimates'!$B$7:$U$169,11,0)) -> 
B16: England | C16: ='2014-15 Prevalence Estimates'!D169 -> 300783 | D16: ='2014-15 Prevalence Estimates'!E169 -> 297986 | E16: ='2014-15 Prevalence Estimates'!F169 -> 311128 | F16: ='2014-15 Prevalence Estimates'!G169 -> 257476 | G16: ='2014-15 Prevalence Estimates'!H169 -> 255440 | H16: ='2014-15 Prevalence Estimates'!I169 -> 266643 | I16: ='2014-15 Prevalence Estimates'!J169 -> 182828 | J16: ='2014-15 Prevalence Estimates'!K169 -> 176675 | K16: ='2014-15 Prevalence Estimates'!L169 -> 190782
C18: Rate per thousand of the population | L18: 15-64 population
C19: OCU | D19: Lower bound 95% CI | E19: Upper bound 95% CI | F19: Opiate users | G19: Lower bound 95% CI | H19: Upper bound 95% CI | I19: Crack users | J19: Lower bound 95% CI | K19: Upper bound 95% CI
B20: =C8 -> Please select partnership | C20: =IF(ISERROR(VLOOKUP($B20,'2014-15 Prevalence Estimates'!$B$7:$U$169,12,0)),"",VLOOKUP($B20,'2014-15 Prevalence Estimates'!$B$7:$U$169,12,0)) ->  | D20: =IF(ISERROR(VLOOKUP($B20,'2014-15 Prevalence Estimates'!$B$7:$U$169,13,0)),"",VLOOKUP($B20,'2014-15 Prevalence Estimates'!$B$7:$U$169,13,0)) ->  | E20: =IF(ISERROR(VLOOKUP($B20,'2014-15 Prevalence Estimates'!$B$7:$U$169,14,0)),"",VLOOKUP($B20,'2014-15 Prevalence Estimates'!$B$7:$U$169,14,0)) ->  | F20: =IF(ISERROR(VLOOKUP($B20,'2014-15 Prevalence Estimates'!$B$7:$U$169,15,0)),"",VLOOKUP($B20,'2014-15 Prevalence Estimates'!$B$7:$U$169,15,0)) ->  | G20: =IF(ISERROR(VLOOKUP($B20,'2014-15 Prevalence Estimates'!$B$7:$U$169,16,0)),"",VLOOKUP($B20,'2014-15 Prevalence Estimates'!$B$7:$U$169,16,0)) ->  | H20: =IF(ISERROR(VLOOKUP($B20,'2014-15 Prevalence Estimates'!$B$7:$U$169,17,0)),"",VLOOKUP($B20,'2014-15 Prevalence Estimates'!$B$7:$U$169,17,0)) ->  | I20: =IF(ISERROR(VLOOKUP($B20,'2014-15 Prevalence Estimates'!$B$7:$U$169,18,0)),"",VLOOKUP($B20,'2014-15 Prevalence Estimates'!$B$7:$U$169,18,0)) ->  | J20: =IF(ISERROR(VLOOKUP($B20,'2014-15 Prevalence Estimates'!$B$7:$U$169,19,0)),"",VLOOKUP($B20,'2014-15 Prevalence Estimates'!$B$7:$U$169,19,0)) ->  | K20: =IF(ISERROR(VLOOKUP($B20,'2014-15 Prevalence Estimates'!$B$7:$U$169,20,0)),"",VLOOKUP($B20,'2014-15 Prevalence Estimates'!$B$7:$U$169,20,0)) ->  | L20: =IF(ISERROR(VLOOKUP($B20,'2014-15 Prevalence Estimates'!$B$7:$U$169,2,0)),"",VLOOKUP($B20,'2014-15 Prevalence Estimates'!$B$7:$U$169,2,0)) -> 
B21: =C10 ->  | C21: =IF(ISERROR(VLOOKUP($B21,'2014-15 Prevalence Estimates'!$B$7:$U$169,12,0)),"",VLOOKUP($B21,'2014-15 Prevalence Estimates'!$B$7:$U$169,12,0)) ->  | D21: =IF(ISERROR(VLOOKUP($B21,'2014-15 Prevalence Estimates'!$B$7:$U$169,13,0)),"",VLOOKUP($B21,'2014-15 Prevalence Estimates'!$B$7:$U$169,13,0)) ->  | E21: =IF(ISERROR(VLOOKUP($B21,'2014-15 Prevalence Estimates'!$B$7:$U$169,14,0)),"",VLOOKUP($B21,'2014-15 Prevalence Estimates'!$B$7:$U$169,14,0)) ->  | F21: =IF(ISERROR(VLOOKUP($B21,'2014-15 Prevalence Estimates'!$B$7:$U$169,15,0)),"",VLOOKUP($B21,'2014-15 Prevalence Estimates'!$B$7:$U$169,15,0)) ->  | G21: =IF(ISERROR(VLOOKUP($B21,'2014-15 Prevalence Estimates'!$B$7:$U$169,16,0)),"",VLOOKUP($B21,'2014-15 Prevalence Estimates'!$B$7:$U$169,16,0)) ->  | H21: =IF(ISERROR(VLOOKUP($B21,'2014-15 Prevalence Estimates'!$B$7:$U$169,17,0)),"",VLOOKUP($B21,'2014-15 Prevalence Estimates'!$B$7:$U$169,17,0)) ->  | I21: =IF(ISERROR(VLOOKUP($B21,'2014-15 Prevalence Estimates'!$B$7:$U$169,18,0)),"",VLOOKUP($B21,'2014-15 Prevalence Estimates'!$B$7:$U$169,18,0)) ->  | J21: =IF(ISERROR(VLOOKUP($B21,'2014-15 Prevalence Estimates'!$B$7:$U$169,19,0)),"",VLOOKUP($B21,'2014-15 Prevalence Estimates'!$B$7:$U$169,19,0)) ->  | K21: =IF(ISERROR(VLOOKUP($B21,'2014-15 Prevalence Estimates'!$B$7:$U$169,20,0)),"",VLOOKUP($B21,'2014-15 Prevalence Estimates'!$B$7:$U$169,20,0)) ->  | L21: =IF(ISERROR(VLOOKUP($B21,'2014-15 Prevalence Estimates'!$B$7:$U$169,2,0)),"",VLOOKUP($B21,'2014-15 Prevalence Estimates'!$B$7:$U$169,2,0)) -> 
B22: England | C22: ='2014-15 Prevalence Estimates'!M169 -> 8.568697877 | D22: ='2014-15 Prevalence Estimates'!N169 -> 8.489017018 | E22: ='2014-15 Prevalence Estimates'!O169 -> 8.863405954 | F22: ='2014-15 Prevalence Estimates'!P169 -> 7.334969246 | G22: ='2014-15 Prevalence Estimates'!Q169 -> 7.276967733 | H22: ='2014-15 Prevalence Estimates'!R169 -> 7.596118491 | I22: ='2014-15 Prevalence Estimates'!S169 -> 5.208399063 | J22: ='2014-15 Prevalence Estimates'!T169 -> 5.033112568 | K22: ='2014-15 Prevalence Estimates'!U169 -> 5.434992398 | L22: ='2014-15 Prevalence Estimates'!C169 -> 35102533
C24: Difference between 2014/15 and 2011/12 prevalence estimates
C25: OCU Difference | D25: Lower bound 95% CI | E25: Upper bound 95% CI | F25: Significant Change | G25: Opiate Difference | H25: Lower bound 95% CI | I25: Upper bound 95% CI | J25: Significant Change | K25: Crack Difference | L25: Lower bound 95% CI | M25: Upper bound 95% CI | N25: Significant Change
B26: =C8 -> Please select partnership | C26: =IF(ISERROR(VLOOKUP($B26,OCU!$B$7:$O$165,11,0)),"",VLOOKUP($B26,OCU!$B$7:$O$165,11,0)) ->  | D26: =IF(ISERROR(VLOOKUP($B26,OCU!$B$7:$O$165,12,0)),"",VLOOKUP($B26,OCU!$B$7:$O$165,12,0)) ->  | E26: =IF(ISERROR(VLOOKUP($B26,OCU!$B$7:$O$165,13,0)),"",VLOOKUP($B26,OCU!$B$7:$O$165,13,0)) ->  | F26: =IF(ISERROR(VLOOKUP($B26,OCU!$B$7:$O$165,14,0)),"",VLOOKUP($B26,OCU!$B$7:$O$165,14,0)) ->  | G26: =IF(ISERROR(VLOOKUP($B26,Opiate!$B$4:$O$165,11,0)),"",VLOOKUP($B26,Opiate!$B$4:$O$165,11,0)) ->  | H26: =IF(ISERROR(VLOOKUP($B26,Opiate!$B$4:$O$165,12,0)),"",VLOOKUP($B26,Opiate!$B$4:$O$165,12,0)) ->  | I26: =IF(ISERROR(VLOOKUP($B26,Opiate!$B$4:$O$165,13,0)),"",VLOOKUP($B26,Opiate!$B$4:$O$165,13,0)) ->  | J26: =IF(ISERROR(VLOOKUP($B26,Opiate!$B$4:$O$165,14,0)),"",VLOOKUP($B26,Opiate!$B$4:$O$165,14,0)) ->  | K26: =IF(ISERROR(VLOOKUP($B26,Crack!$B$4:$O$165,11,0)),"",VLOOKUP($B26,Crack!$B$4:$O$165,11,0)) ->  | L26: =IF(ISERROR(VLOOKUP($B26,Crack!$B$4:$O$165,12,0)),"",VLOOKUP($B26,Crack!$B$4:$O$165,12,0)) ->  | M26: =IF(ISERROR(VLOOKUP($B26,Crack!$B$4:$O$165,13,0)),"",VLOOKUP($B26,Crack!$B$4:$O$165,13,0)) ->  | N26: =IF(ISERROR(VLOOKUP($B26,Crack!$B$4:$O$165,14,0)),"",VLOOKUP($B26,Crack!$B$4:$O$165,14,0)) -> 
B27: =C10 ->  | C27: =IF(ISERROR(VLOOKUP($B27,OCU!$B$7:$O$165,11,0)),"",VLOOKUP($B27,OCU!$B$7:$O$165,11,0)) ->  | D27: =IF(ISERROR(VLOOKUP($B27,OCU!$B$7:$O$165,12,0)),"",VLOOKUP($B27,OCU!$B$7:$O$165,12,0)) ->  | E27: =IF(ISERROR(VLOOKUP($B27,OCU!$B$7:$O$165,13,0)),"",VLOOKUP($B27,OCU!$B$7:$O$165,13,0)) ->  | F27: =IF(ISERROR(VLOOKUP($B27,OCU!$B$7:$O$165,14,0)),"",VLOOKUP($B27,OCU!$B$7:$O$165,14,0)) ->  | G27: =IF(ISERROR(VLOOKUP($B27,Opiate!$B$4:$O$165,11,0)),"",VLOOKUP($B27,Opiate!$B$4:$O$165,11,0)) ->  | H27: =IF(ISERROR(VLOOKUP($B27,Opiate!$B$4:$O$165,12,0)),"",VLOOKUP($B27,Opiate!$B$4:$O$165,12,0)) ->  | I27: =IF(ISERROR(VLOOKUP($B27,Opiate!$B$4:$O$165,13,0)),"",VLOOKUP($B27,Opiate!$B$4:$O$165,13,0)) ->  | J27: =IF(ISERROR(VLOOKUP($B27,Opiate!$B$4:$O$165,14,0)),"",VLOOKUP($B27,Opiate!$B$4:$O$165,14,0)) ->  | K27: =IF(ISERROR(VLOOKUP($B27,Crack!$B$4:$O$165,11,0)),"",VLOOKUP($B27,Crack!$B$4:$O$165,11,0)) ->  | L27: =IF(ISERROR(VLOOKUP($B27,Crack!$B$4:$O$165,12,0)),"",VLOOKUP($B27,Crack!$B$4:$O$165,12,0)) ->  | M27: =IF(ISERROR(VLOOKUP($B27,Crack!$B$4:$O$165,13,0)),"",VLOOKUP($B27,Crack!$B$4:$O$165,13,0)) ->  | N27: =IF(ISERROR(VLOOKUP($B27,Crack!$B$4:$O$165,14,0)),"",VLOOKUP($B27,Crack!$B$4:$O$165,14,0)) -> 
B28: England | C28: =OCU!L165 -> 6904 | D28: =OCU!M165 -> -593 | E28: =OCU!N165 -> 16618 | G28: =Opiate!L165 -> 1313.177291 | H28: =Opiate!M165 -> -5134 | I28: =Opiate!N165 -> 9419 | K28: =Crack!L165 -> 16188 | L28: =Crack!M165 -> 6635 | M28: =Crack!N165 -> 25832 | N28: =Crack!O165 -> *↑
B96: Please select partnership
B97: Barking and Dagenham | C97: London
B98: Barnet | C98: London
B99: Barnsley | C99: Yorkshire and the Humber
B100: Bath and North East Somerset | C100: South West
B101: Bedfordshire (Bedford UA/Central Bedfordshire UA) | C101: East of England
B102: Bedford | C102: East of England
B103: Central Bedfordshire | C103: East of England
B104: Bexley | C104: London
B105: Birmingham | C105: West Midlands
B106: Blackburn with Darwen | C106: North West
B107: Blackpool | C107: North West
B108: Bolton | C108: North West
B109: Bournemouth | C109: South West
B110: Bracknell Forest | C110: South East
B111: Bradford | C111: Yorkshire and the Humber
B112: Brent | C112: London
B113: Brighton and Hove | C113: South East
B114: Bristol, City of | C114: South West
B115: Bromley | C115: London
B116: Buckinghamshire | C116: South East
B117: Bury | C117: North West
B118: Calderdale | C118: Yorkshire and the Humber
B119: Cambridgeshire | C119: East of England
B120: Camden | C120: London
B121: Cheshire (Cheshire West, Cheshire East and Cheshire UA) | C121: North West
B122: Cheshire East | C122: North West
B123: Cheshire West and Chester | C123: North West
B124: City of London | C124: London
B125: Cornwall (UA) and Isles of Scilly (UA) | C125: South West
B126: County Durham | C126: North East
B127: Coventry | C127: West Midlands
B128: Croydon | C128: London
B129: Cumbria | C129: North West
B130: Darlington | C130: North East
B131: Derby | C131: East Midlands
B132: Derbyshire | C132: East Midlands
B133: Devon | C133: South West
B134: Doncaster | C134: Yorkshire and the Humber
B135: Dorset | C135: South West
B136: Dudley | C136: West Midlands
B137: Ealing | C137: London
B138: East Riding of Yorkshire | C138: Yorkshire and the Humber
B139: East Sussex | C139: South East
B140: Enfield | C140: London
B141: Essex | C141: East of England
B142: Gateshead | C142: North East
B143: Gloucestershire | C143: South West
B144: Greenwich | C144: London
B145: Hackney | C145: London
B146: Halton | C146: North West
B147: Hammersmith and Fulham | C147: London
B148: Hampshire | C148: South East
B149: Haringey | C149: London
B150: Harrow | C150: London
B151: Hartlepool | C151: North East
B152: Havering | C152: London
B153: Herefordshire, County of | C153: West Midlands
B154: Hertfordshire | C154: East of England
B155: Hillingdon | C155: London
B156: Hounslow | C156: London
B157: Isle of Wight | C157: South East
B158: Islington | C158: London
B159: Kensington and Chelsea | C159: London
B160: Kent | C160: South East
B161: Kingston upon Hull, City of | C161: Yorkshire and the Humber
B162: Kingston upon Thames | C162: London
B163: Kirklees | C163: Yorkshire and the Humber
B164: Knowsley | C164: North West
B165: Lambeth | C165: London
B166: Lancashire | C166: North West
B167: Leeds | C167: Yorkshire and the Humber
B168: Leicester | C168: East Midlands
B169: Leicestershire | C169: East Midlands
B170: Lewisham | C170: London
B171: Lincolnshire | C171: East Midlands
B172: Liverpool | C172: North West
B173: Luton | C173: East of England
B174: Manchester | C174: North West
B175: Medway | C175: South East
B176: Merton | C176: London
B177: Middlesbrough | C177: North East
B178: Milton Keynes | C178: South East
B179: Newcastle upon Tyne | C179: North East
B180: Newham | C180: London
B181: Norfolk | C181: East of England
B182: North East Lincolnshire | C182: Yorkshire and the Humber
B183: North Lincolnshire | C183: Yorkshire and the Humber
B184: North Somerset | C184: South West
B185: North Tyneside | C185: North East
B186: North Yorkshire | C186: Yorkshire and the Humber
B187: Northamptonshire | C187: East Midlands
B188: Northumberland | C188: North East
B189: Nottingham | C189: East Midlands
B190: Nottinghamshire | C190: East Midlands
B191: Oldham | C191: North West
B192: Oxfordshire | C192: South East
B193: Peterborough | C193: East of England
B194: Plymouth | C194: South West
B195: Poole | C195: South West
B196: Portsmouth | C196: South East
B197: Reading | C197: South East
B198: Redbridge | C198: London
B199: Redcar and Cleveland | C199: North East
B200: Richmond upon Thames | C200: London
B201: Rochdale | C201: North West
B202: Rotherham | C202: Yorkshire and the Humber
B203: Rutland | C203: East Midlands
B204: Salford | C204: North West
B205: Sandwell | C205: West Midlands
B206: Sefton | C206: North West
B207: Sheffield | C207: Yorkshire and the Humber
B208: Shropshire | C208: West Midlands
B209: Slough | C209: South East
B210: Solihull | C210: West Midlands
B211: Somerset | C211: South West
B212: South Gloucestershire | C212: South West
B213: South Tyneside | C213: North East
B214: Southampton | C214: South East
B215: Southend-on-Sea | C215: East of England
B216: Southwark | C216: London
B217: St. Helens | C217: North West
B218: Staffordshire | C218: West Midlands
B219: Stockport | C219: North West
B220: Stockton-On-Tees | C220: North East
B221: Stoke-on-Trent | C221: West Midlands
B222: Suffolk | C222: East of England
B223: Sunderland | C223: North East
B224: Surrey | C224: South East
B225: Sutton | C225: London
B226: Swindon | C226: South West
B227: Tameside | C227: North West
B228: Telford and Wrekin | C228: West Midlands
B229: Thurrock | C229: East of England
B230: Torbay | C230: South West
B231: Tower Hamlets | C231: London
B232: Trafford | C232: North West
B233: Wakefield | C233: Yorkshire and the Humber
B234: Walsall | C234: West Midlands
B235: Waltham Forest | C235: London
B236: Wandsworth | C236: London
B237: Warrington | C237: North West
B238: Warwickshire | C238: West Midlands
B239: West Berkshire | C239: South East
B240: West Sussex | C240: South East
B241: Westminster | C241: London
B242: Wigan | C242: North West
B243: Wiltshire | C243: South West
B244: Windsor and Maidenhead | C244: South East
B245: Wirral | C245: North West
B246: Wokingham | C246: South East
B247: Wolverhampton | C247: West Midlands
B248: Worcestershire | C248: West Midlands
B249: York | C249: Yorkshire and the Humber

Sheet Lancashire estimates
A1: National and local prevalence estimates and rates per 1,000 population aged 15 to 64 with 95% confidence intervals (CI) - 2014/15
A3: Region | B3: Local authority | C3: 15-64 population | D3: Number of users | M3: Rate per thousand of the population
D4: OCU | E4: Lower bound 95% CI | F4: Upper bound 95% CI | G4: Opiate users | H4: Lower bound 95% CI | I4: Upper bound 95% CI | J4: Crack users | K4: Lower bound 95% CI | L4: Upper bound 95% CI | M4: OCU | N4: Lower bound 95% CI | O4: Upper bound 95% CI | P4: Sig. V England | Q4: Sig. V NW | R4: Opiate users | S4: Lower bound 95% CI | T4: Upper bound 95% CI | U4: Crack users | V4: Lower bound 95% CI | W4: Upper bound 95% CI
A6: ENGLAND | B6: ENGLAND | C6: 35102533 | D6: 300783 | E6: 297986 | F6: 311128 | G6: 257476 | H6: 255440 | I6: 266643 | J6: 182828 | K6: 176675 | L6: 190782 | M6: =D6/$C6*1000 -> 8.568697877 | N6: 8.489017018 | O6: 8.863405954 | P6: - | Q6: - | R6: =G6/$C6*1000 -> 7.334969246 | S6: =H6/$C6*1000 -> 7.276967733 | T6: =I6/$C6*1000 -> 7.596118491 | U6: =J6/$C6*1000 -> 5.208399063 | V6: =K6/$C6*1000 -> 5.033112568 | W6: =L6/$C6*1000 -> 5.434992398
A7: North West | B7: North West | C7: 4592973 | D7: 48814 | E7: 46661 | F7: 52097 | G7: 42647 | H7: 41029 | I7: 45239 | J7: 28685 | K7: 25980 | L7: 31979 | M7: =D7/$C7*1000 -> 10.62797452 | N7: 10.15921496 | O7: 11.34276208 | P7: =IF(N7>$O$6,"High",IF(O7<$N$6,"Low","NoDiff")) -> High | Q7: - | R7: =G7/$C7*1000 -> 9.285271218 | S7: =H7/$C7*1000 -> 8.932993945 | T7: =I7/$C7*1000 -> 9.84961157 | U7: =J7/$C7*1000 -> 6.245410108 | V7: =K7/$C7*1000 -> 5.656466955 | W7: =L7/$C7*1000 -> 6.962592639
A8: North West | B8: Blackburn with Darwen | C8: 94178 | D8: 1363 | E8: 1157 | F8: 1576 | G8: 1210 | H8: 1053 | I8: 1376 | J8: 712 | K8: 536 | L8: 999 | M8: =D8/$C8*1000 -> 14.47259445 | N8: 12.28524709 | O8: 16.73426915 | P8: High | Q8: =IF(N8>$O$7,"High",IF(O8<$N$7,"Low","NoDiff")) -> High | R8: =G8/$C8*1000 -> 12.84801121 | S8: =H8/$C8*1000 -> 11.18095521 | T8: =I8/$C8*1000 -> 14.61063093 | U8: =J8/$C8*1000 -> 7.560152052 | V8: =K8/$C8*1000 -> 5.691350422 | W8: =L8/$C8*1000 -> 10.60757289
A9: North West | B9: Blackpool | C9: 88320 | D9: 1762 | E9: 1548 | F9: 1974 | G9: 1559 | H9: 1406 | I9: 1717 | J9: 964 | K9: 748 | L9: 1298 | M9: 19.95018116 | N9: 17.52717391 | O9: 22.35054348 | P9: High | Q9: High | R9: =G9/$C9*1000 -> 17.65172101 | S9: =H9/$C9*1000 -> 15.91938406 | T9: =I9/$C9*1000 -> 19.44067029 | U9: =J9/$C9*1000 -> 10.91485507 | V9: =K9/$C9*1000 -> 8.469202899 | W9: =L9/$C9*1000 -> 14.69655797
A10: North West | B10: Lancashire | C10: 749332 | D10: 6711 | E10: 5126 | F10: 8342 | G10: 5890 | H10: 4602 | I10: 7163 | J10: 2690 | K10: 817 | L10: 4717 | M10: 8.95597679 | N10: 6.840759503 | O10: 11.13258209 | P10: =IF(N10>$O$6,"High",IF(O10<$N$6,"Low","NoDiff")) -> NoDiff | Q10: =IF(N10>$O$7,"High",IF(O10<$N$7,"Low","NoDiff")) -> NoDiff | R10: =G10/$C10*1000 -> 7.860334271 | S10: =H10/$C10*1000 -> 6.141470003 | T10: =I10/$C10*1000 -> 9.55918071 | U10: =J10/$C10*1000 -> 3.589864039 | V10: =K10/$C10*1000 -> 1.090304431 | W10: =L10/$C10*1000 -> 6.294940027
A13: CIPFA nearest neigbours | D13: Number of users | M13: Rate per thousand of the population
A14: Region | B14: Local authority | C14: 15-64 population | D14: OCU | E14: Lower bound 95% CI | F14: Upper bound 95% CI | G14: Opiate users | H14: Lower bound 95% CI | I14: Upper bound 95% CI | J14: Crack users | K14: Lower bound 95% CI | L14: Upper bound 95% CI | M14: OCU | N14: Lower bound 95% CI | O14: Upper bound 95% CI | P14: Sig. V England | Q14: Opiate users | R14: Lower bound 95% CI | S14: Upper bound 95% CI | T14: Crack users | U14: Lower bound 95% CI | V14: Upper bound 95% CI
A16: East Midlands | B16: Leicester | C16: 229750 | D16: 2798 | E16: 2266 | F16: 3305 | G16: 2298 | H16: 1869 | I16: 2747 | J16: 1526 | K16: 1180 | L16: 2121 | M16: =D16/$C16*1000 -> 12.17845484 | N16: =E16/$C16*1000 -> 9.86289445 | O16: =F16/$C16*1000 -> 14.38520131 | P16: =IF(N16>$O$6,"High",IF(O16<$N$6,"Low","NoDiff")) -> High | Q16: =G16/$C16*1000 -> 10.00217628 | R16: =H16/$C16*1000 -> 8.134929271 | S16: =I16/$C16*1000 -> 11.95647443 | T16: =J16/$C16*1000 -> 6.642002176 | U16: =K16/$C16*1000 -> 5.13601741 | V16: =L16/$C16*1000 -> 9.231773667
A17: North West | B17: Lancashire | C17: 749332 | D17: 6711 | E17: 5126 | F17: 8342 | G17: 5890 | H17: 4602 | I17: 7163 | J17: 2690 | K17: 817 | L17: 4717 | M17: =D17/$C17*1000 -> 8.95597679 | N17: =E17/$C17*1000 -> 6.840759503 | O17: =F17/$C17*1000 -> 11.13258209 | P17: =IF(N17>$O$6,"High",IF(O17<$N$6,"Low","NoDiff")) -> NoDiff | Q17: =G17/$C17*1000 -> 7.860334271 | R17: =H17/$C17*1000 -> 6.141470003 | S17: =I17/$C17*1000 -> 9.55918071 | T17: =J17/$C17*1000 -> 3.589864039 | U17: =K17/$C17*1000 -> 1.090304431 | V17: =L17/$C17*1000 -> 6.294940027
A18: North West | B18: Cumbria | C18: 308487 | D18: 2744 | E18: 2466 | F18: 3261 | G18: 2687 | H18: 2390 | I18: 3295 | J18: 829 | K18: 376 | L18: 2156 | M18: =D18/$C18*1000 -> 8.895026371 | N18: =E18/$C18*1000 -> 7.993853874 | O18: =F18/$C18*1000 -> 10.57094788 | P18: =IF(N18>$O$6,"High",IF(O18<$N$6,"Low","NoDiff")) -> NoDiff | Q18: =G18/$C18*1000 -> 8.710253593 | R18: =H18/$C18*1000 -> 7.74749017 | S18: =I18/$C18*1000 -> 10.68116323 | T18: =J18/$C18*1000 -> 2.687309352 | U18: =K18/$C18*1000 -> 1.21885201 | V18: =L18/$C18*1000 -> 6.988949291
A19: East Midlands | B19: Derbyshire | C19: 494609 | D19: 4043 | E19: 2950 | F19: 5071 | G19: 3481 | H19: 2628 | I19: 4329 | J19: 2342 | K19: 1758 | L19: 3206 | M19: =D19/$C19*1000 -> 8.174133507 | N19: =E19/$C19*1000 -> 5.96430716 | O19: =F19/$C19*1000 -> 10.25254292 | P19: =IF(N19>$O$6,"High",IF(O19<$N$6,"Low","NoDiff")) -> NoDiff | Q19: =G19/$C19*1000 -> 7.037882449 | R19: =H19/$C19*1000 -> 5.31328787 | S19: =I19/$C19*1000 -> 8.752368032 | T19: =J19/$C19*1000 -> 4.735053345 | U19: =K19/$C19*1000 -> 3.554322707 | V19: =L19/$C19*1000 -> 6.481887713
A20: East Midlands | B20: Nottinghamshire | C20: 508409 | D20: 3917 | E20: 3658 | F20: 4246 | G20: 3818 | H20: 3256 | I20: 5214 | J20: 1946 | K20: 1516 | L20: 2429 | M20: =D20/$C20*1000 -> 7.704426948 | N20: =E20/$C20*1000 -> 7.194994581 | O20: =F20/$C20*1000 -> 8.351543737 | P20: =IF(N20>$O$6,"High",IF(O20<$N$6,"Low","NoDiff")) -> Low | Q20: =G20/$C20*1000 -> 7.509701835 | R20: =H20/$C20*1000 -> 6.404292607 | S20: =I20/$C20*1000 -> 10.25552262 | T20: =J20/$C20*1000 -> 3.82762697 | U20: =K20/$C20*1000 -> 2.981851226 | V20: =L20/$C20*1000 -> 4.777649491
A21: East Midlands | B21: Northamptonshire | C21: 458011 | D21: 3415 | E21: 2371 | F21: 4426 | G21: 2908 | H21: 2158 | I21: 3700 | J21: 1146 | K21: 977 | L21: 1368 | M21: =D21/$C21*1000 -> 7.4561528 | N21: =E21/$C21*1000 -> 5.176731563 | O21: =F21/$C21*1000 -> 9.663523365 | P21: =IF(N21>$O$6,"High",IF(O21<$N$6,"Low","NoDiff")) -> NoDiff | Q21: =G21/$C21*1000 -> 6.349192487 | R21: =H21/$C21*1000 -> 4.71167723 | S21: =I21/$C21*1000 -> 8.078408597 | T21: =J21/$C21*1000 -> 2.502123311 | U21: =K21/$C21*1000 -> 2.13313654 | V21: =L21/$C21*1000 -> 2.986827827
A22: East of England | B22: Norfolk | C22: 534602 | D22: 3981 | E22: 3619 | F22: 4461 | G22: 3531 | H22: 3277 | I22: 3965 | J22: 2279 | K22: 1832 | L22: 2857 | M22: =D22/$C22*1000 -> 7.446661255 | N22: =E22/$C22*1000 -> 6.769522 | O22: =F22/$C22*1000 -> 8.34452546 | P22: =IF(N22>$O$6,"High",IF(O22<$N$6,"Low","NoDiff")) -> Low | Q22: =G22/$C22*1000 -> 6.604913562 | R22: =H22/$C22*1000 -> 6.129793753 | S22: =I22/$C22*1000 -> 7.416732448 | T22: =J22/$C22*1000 -> 4.262984426 | U22: =K22/$C22*1000 -> 3.426848384 | V22: =L22/$C22*1000 -> 5.344162573
A23: South West | B23: Gloucestershire | C23: 385736 | D23: 2829 | E23: 1981 | F23: 3658 | G23: 2418 | H23: 1743 | I23: 3070 | J23: 1938 | K23: 900 | L23: 2880 | M23: =D23/$C23*1000 -> 7.334031566 | N23: =E23/$C23*1000 -> 5.135636809 | O23: =F23/$C23*1000 -> 9.483169836 | P23: =IF(N23>$O$6,"High",IF(O23<$N$6,"Low","NoDiff")) -> NoDiff | Q23: =G23/$C23*1000 -> 6.268535994 | R23: =H23/$C23*1000 -> 4.518634507 | S23: =I23/$C23*1000 -> 7.958811208 | T23: =J23/$C23*1000 -> 5.024161603 | U23: =K23/$C23*1000 -> 2.333201983 | V23: =L23/$C23*1000 -> 7.466246345
A24: East Midlands | B24: Lincolnshire | C24: 451696 | D24: 3100 | E24: 2830 | F24: 3571 | G24: 2929 | H24: 2664 | I24: 3403 | J24: 1438 | K24: 348 | L24: 2588 | M24: =D24/$C24*1000 -> 6.863022918 | N24: =E24/$C24*1000 -> 6.265275761 | O24: =F24/$C24*1000 -> 7.905759626 | P24: =IF(N24>$O$6,"High",IF(O24<$N$6,"Low","NoDiff")) -> Low | Q24: =G24/$C24*1000 -> 6.484449718 | R24: =H24/$C24*1000 -> 5.897771953 | S24: =I24/$C24*1000 -> 7.533828061 | T24: =J24/$C24*1000 -> 3.183557083 | U24: =K24/$C24*1000 -> 0.7704296695 | V24: =L24/$C24*1000 -> 5.729517197
A25: East of England | B25: Suffolk | C25: 450636 | D25: 2851 | E25: 1862 | F25: 3822 | G25: 2391 | H25: 1633 | I25: 3148 | J25: 1097 | K25: 930 | L25: 1344 | M25: =D25/$C25*1000 -> 6.326613941 | N25: =E25/$C25*1000 -> 4.131937972 | O25: =F25/$C25*1000 -> 8.481346364 | P25: =IF(N25>$O$6,"High",IF(O25<$N$6,"Low","NoDiff")) -> Low | Q25: =G25/$C25*1000 -> 5.305834421 | R25: =H25/$C25*1000 -> 3.623767298 | S25: =I25/$C25*1000 -> 6.985682458 | T25: =J25/$C25*1000 -> 2.434337248 | U25: =K25/$C25*1000 -> 2.0637499 | V25: =L25/$C25*1000 -> 2.982451469
A26: West Midlands | B26: Staffordshire | C26: 545413 | D26: 3446 | E26: 3143 | F26: 3939 | G26: 2679 | H26: 2506 | I26: 2965 | J26: 1991 | K26: 568 | L26: 3325 | M26: =D26/$C26*1000 -> 6.318147899 | N26: =E26/$C26*1000 -> 5.762605585 | O26: =F26/$C26*1000 -> 7.222050079 | P26: =IF(N26>$O$6,"High",IF(O26<$N$6,"Low","NoDiff")) -> Low | Q26: =G26/$C26*1000 -> 4.911874121 | R26: =H26/$C26*1000 -> 4.594683295 | S26: =I26/$C26*1000 -> 5.436247394 | T26: =J26/$C26*1000 -> 3.650444709 | U26: =K26/$C26*1000 -> 1.041412654 | V26: =L26/$C26*1000 -> 6.096297668
A27: East of England | B27: Essex | C27: 896821 | D27: 5463 | E27: 3370 | F27: 7351 | G27: 4492 | H27: 2879 | I27: 6002 | J27: 4236 | K27: 1859 | L27: 6429 | M27: =D27/$C27*1000 -> 6.09151659 | N27: =E27/$C27*1000 -> 3.757717538 | O27: =F27/$C27*1000 -> 8.196730451 | P27: =IF(N27>$O$6,"High",IF(O27<$N$6,"Low","NoDiff")) -> Low | Q27: =G27/$C27*1000 -> 5.008803317 | R27: =H27/$C27*1000 -> 3.210228128 | S27: =I27/$C27*1000 -> 6.692528386 | T27: =J27/$C27*1000 -> 4.723350591 | U27: =K27/$C27*1000 -> 2.072877419 | V27: =L27/$C27*1000 -> 7.168654614
A28: West Midlands | B28: Warwickshire | C28: 348267 | D28: 2100 | E28: 1843 | F28: 2574 | G28: 2085 | H28: 1766 | I28: 2552 | J28: 1291 | K28: 1024 | L28: 1571 | M28: =D28/$C28*1000 -> 6.029856403 | N28: =E28/$C28*1000 -> 5.291916834 | O28: =F28/$C28*1000 -> 7.390881134 | P28: =IF(N28>$O$6,"High",IF(O28<$N$6,"Low","NoDiff")) -> Low | Q28: =G28/$C28*1000 -> 5.986786 | R28: =H28/$C28*1000 -> 5.070822099 | S28: =I28/$C28*1000 -> 7.32771121 | T28: =J28/$C28*1000 -> 3.706926008 | U28: =K28/$C28*1000 -> 2.940272837 | V28: =L28/$C28*1000 -> 4.510906862
A29: South East | B29: Kent | C29: 945347 | D29: 5198 | E29: 3163 | F29: 7156 | G29: 4401 | H29: 2759 | I29: 6086 | J29: 3398 | K29: 2780 | L29: 4206 | M29: =D29/$C29*1000 -> 5.498510071 | N29: =E29/$C29*1000 -> 3.345861361 | O29: =F29/$C29*1000 -> 7.569707208 | P29: =IF(N29>$O$6,"High",IF(O29<$N$6,"Low","NoDiff")) -> Low | Q29: =G29/$C29*1000 -> 4.655433402 | R29: =H29/$C29*1000 -> 2.918505057 | S29: =I29/$C29*1000 -> 6.43784769 | T29: =J29/$C29*1000 -> 3.59444733 | U29: =K29/$C29*1000 -> 2.940719122 | V29: =L29/$C29*1000 -> 4.449159938
A30: Yorkshire and the Humber | B30: North Yorkshire | C30: 368824 | D30: 1953 | E30: 1735 | F30: 2295 | G30: 1798 | H30: 1622 | I30: 2178 | J30: 1099 | K30: 254 | L30: 2042 | M30: =D30/$C30*1000 -> 5.295208555 | N30: =E30/$C30*1000 -> 4.704140728 | O30: =F30/$C30*1000 -> 6.222480099 | P30: =IF(N30>$O$6,"High",IF(O30<$N$6,"Low","NoDiff")) -> Low | Q30: =G30/$C30*1000 -> 4.874953908 | R30: =H30/$C30*1000 -> 4.397761534 | S30: =I30/$C30*1000 -> 5.905255623 | T30: =J30/$C30*1000 -> 2.979741015 | U30: =K30/$C30*1000 -> 0.6886753574 | V30: =L30/$C30*1000 -> 5.536516062

Sheet 2014-15 Prevalence Estimates
A1: National and local prevalence estimates and rates per 1,000 population aged 15 to 64 with 95% confidence intervals (CI) - 2014/15
A4: Region | B4: Local authority | C4: 15-64 population | D4: Number of users | M4: Rate per thousand of the population
D5: OCU | E5: Lower bound 95% CI | F5: Upper bound 95% CI | G5: Opiate users | H5: Lower bound 95% CI | I5: Upper bound 95% CI | J5: Crack users | K5: Lower bound 95% CI | L5: Upper bound 95% CI | M5: OCU | N5: Lower bound 95% CI | O5: Upper bound 95% CI | P5: Opiate users | Q5: Lower bound 95% CI | R5: Upper bound 95% CI | S5: Crack users | T5: Lower bound 95% CI | U5: Upper bound 95% CI
A7: East Midlands | B7: Derby | C7: 162899 | D7: 2317 | E7: 2092 | F7: 2836 | G7: 1989 | H7: 1828 | I7: 2357 | J7: 1010 | K7: 556 | L7: 1418 | M7: =D7/$C7*1000 -> 14.22353728 | N7: =E7/$C7*1000 -> 12.84231334 | O7: 17.40956053 | P7: 12.21001971 | Q7: 11.22167724 | R7: 14.46908821 | S7: 6.200160836 | T7: 3.413157846 | U7: 8.704780263
A8: East Midlands | B8: Derbyshire | C8: 494609 | D8: 4043 | E8: 2950 | F8: 5071 | G8: 3481 | H8: 2628 | I8: 4329 | J8: 2342 | K8: 1758 | L8: 3206 | M8: =D8/$C8*1000 -> 8.174133507 | N8: =E8/$C8*1000 -> 5.96430716 | O8: =F8/$C8*1000 -> 10.25254292 | P8: =G8/$C8*1000 -> 7.037882449 | Q8: =H8/$C8*1000 -> 5.31328787 | R8: =I8/$C8*1000 -> 8.752368032 | S8: =J8/$C8*1000 -> 4.735053345 | T8: =K8/$C8*1000 -> 3.554322707 | U8: =L8/$C8*1000 -> 6.481887713
A9: East Midlands | B9: Leicester | C9: 229750 | D9: 2798 | E9: 2266 | F9: 3305 | G9: 2298 | H9: 1869 | I9: 2747 | J9: 1526 | K9: 1180 | L9: 2121 | M9: 12.17845484 | N9: 9.86289445 | O9: 14.38520131 | P9: 10.00217628 | Q9: 8.134929271 | R9: 11.95647443 | S9: 6.642002176 | T9: 5.13601741 | U9: 9.231773667
A10: East Midlands | B10: Leicestershire | C10: 426895 | D10: 2700 | E10: 1813 | F10: 3720 | G10: 2285 | H10: 1561 | I10: 3047 | J10: 1478 | K10: 377 | L10: 2541 | M10: 6.324740276 | N10: 4.24694597 | O10: 8.714086602 | P10: 5.35260427 | Q10: 3.656636878 | R10: 7.137586526 | S10: 3.462209677 | T10: 0.8831211422 | U10: 5.952283348
A11: East Midlands | B11: Lincolnshire | C11: 451696 | D11: 3100 | E11: 2830 | F11: 3571 | G11: 2929 | H11: 2664 | I11: 3403 | J11: 1438 | K11: 348 | L11: 2588 | M11: 6.863022918 | N11: 6.265275761 | O11: 7.905759626 | P11: 6.484449718 | Q11: 5.897771953 | R11: 7.533828061 | S11: 3.183557083 | T11: 0.7704296695 | U11: 5.729517197
A12: East Midlands | B12: Northamptonshire | C12: 458011 | D12: 3415 | E12: 2371 | F12: 4426 | G12: 2908 | H12: 2158 | I12: 3700 | J12: 1146 | K12: 977 | L12: 1368 | M12: 7.4561528 | N12: 5.176731563 | O12: 9.663523365 | P12: 6.349192487 | Q12: 4.71167723 | R12: 8.078408597 | S12: 2.502123311 | T12: 2.13313654 | U12: 2.986827827
A13: East Midlands | B13: Nottingham | C13: 222301 | D13: 2700 | E13: 2367 | F13: 3360 | G13: 2400 | H13: 2124 | I13: 2937 | J13: 1391 | K13: 1268 | L13: 1547 | M13: 12.14569435 | N13: 10.64772538 | O13: 15.11464186 | P13: 10.79617276 | Q13: 9.55461289 | R13: 13.21181641 | S13: 6.257281794 | T13: 5.70397794 | U13: 6.959033023
A14: East Midlands | B14: Nottinghamshire | C14: 508409 | D14: 3917 | E14: 3658 | F14: 4246 | G14: 3818 | H14: 3256 | I14: 5214 | J14: 1946 | K14: 1516 | L14: 2429 | M14: 7.704426948 | N14: 7.194994581 | O14: 8.351543737 | P14: 7.509701835 | Q14: 6.404292607 | R14: 10.25552262 | S14: 3.82762697 | T14: 2.981851226 | U14: 4.777649491
A15: East Midlands | B15: Rutland | C15: 23309 | D15: 67 | E15: 17 | F15: 123 | G15: 55 | H15: 17 | I15: 96 | J15: 54 | K15: 5 | L15: 114 | M15: 2.874426187 | N15: 0.7293320177 | O15: 5.276931657 | P15: 2.359603587 | Q15: 0.7293320177 | R15: 4.118580806 | S15: 2.316701703 | T15: 0.214509417 | U15: 4.890814707
A16: East of England | B16: Bedfordshire (Bedford UA/Central Bedfordshire UA) | C16: 279316 | D16: 2195 | E16: 1563 | F16: 2849 | G16: 1829 | H16: 1375 | I16: 2282 | J16: 1690 | K16: 989 | L16: 2470 | M16: 7.858482865 | N16: 5.595812628 | O16: 10.19991694 | P16: 6.548139025 | Q16: 4.922739836 | R16: 8.16995804 | S16: 6.05049478 | T16: 3.540792507 | U16: 8.843030832
A17: East of England | B17: Bedford | C17: 105044 | D17: 1240.466834 | E17: 882 | F17: 1608 | G17: 1035 | H17: 776 | I17: 1288 | J17: 964 | K17: 564 | L17: 1409 | M17: =D17/$C17*1000 -> 11.8090213 | N17: 8.396481474 | O17: 15.30787099 | P17: 9.853013975 | Q17: 7.387380526 | R17: 12.2615285 | S17: 9.177106736 | T17: 5.36917863 | U17: 13.41342675
A18: East of England | B18: Central Bedfordshire | C18: 174272 | D18: 954.5331665 | E18: 681 | F18: 1241 | G18: 794 | H18: 599 | I18: 994 | J18: 726 | K18: 425 | L18: 1061 | M18: 5.477260641 | N18: 3.907684539 | O18: 7.121052148 | P18: 4.556096217 | Q18: 3.437155711 | R18: 5.703727506 | S18: 4.165901579 | T18: 2.438716489 | U18: 6.088183988
A19: East of England | B19: Cambridgeshire | C19: 416607 | D19: 2227 | E19: 1997 | F19: 2579 | G19: 1954 | H19: 1764 | I19: 2440 | J19: 1032 | K19: 764 | L19: 1314 | M19: 5.345565485 | N19: 4.793486427 | O19: 6.190486478 | P19: 4.690271647 | Q19: 4.234206338 | R19: 5.856838699 | S19: 2.477154729 | T19: 1.833862609 | U19: 3.15405166
A20: East of England | B20: Essex | C20: 896821 | D20: 5463 | E20: 3370 | F20: 7351 | G20: 4492 | H20: 2879 | I20: 6002 | J20: 4236 | K20: 1859 | L20: 6429 | M20: 6.09151659 | N20: 3.757717538 | O20: 8.196730451 | P20: 5.008803317 | Q20: 3.210228128 | R20: 6.692528386 | S20: 4.723350591 | T20: 2.072877419 | U20: 7.168654614
A21: East of England | B21: Hertfordshire | C21: 744177 | D21: 4226 | E21: 2589 | F21: 5921 | G21: 3418 | H21: 2957 | I21: 4100 | J21: 3535 | K21: 1585 | L21: 5380 | M21: 5.678756532 | N21: 3.479011042 | O21: 7.95644047 | P21: 4.592993334 | Q21: 3.973517053 | R21: 5.509441974 | S21: 4.750213995 | T21: 2.129869641 | U21: 7.229462883
A22: East of England | B22: Luton | C22: 138867 | D22: 1715 | E22: 1389 | F22: 2038 | G22: 1411 | H22: 1177 | I22: 1652 | J22: 1485 | K22: 1238 | L22: 1803 | M22: 12.34994635 | N22: 10.00237637 | O22: 14.67591292 | P22: 10.16080134 | Q22: 8.475735776 | R22: 11.89627485 | S22: 10.69368532 | T22: 8.915005005 | U22: 12.98364622
A23: East of England | B23: Norfolk | C23: 534602 | D23: 3981 | E23: 3619 | F23: 4461 | G23: 3531 | H23: 3277 | I23: 3965 | J23: 2279 | K23: 1832 | L23: 2857 | M23: 7.446661255 | N23: 6.769522 | O23: 8.34452546 | P23: 6.604913562 | Q23: 6.129793753 | R23: 7.416732448 | S23: 4.262984426 | T23: 3.426848384 | U23: 5.344162573
A24: East of England | B24: Peterborough | C24: 123492 | D24: 1537 | E24: 1279 | F24: 1816 | G24: 1352 | H24: 1160 | I24: 1564 | J24: 855 | K24: 520 | L24: 1041 | M24: 12.44615036 | N24: 10.3569462 | O24: 14.70540602 | P24: 10.94807761 | Q24: 9.393321025 | R24: 12.664788 | S24: 6.923525411 | T24: 4.21079908 | U24: 8.429695851
A25: East of England | B25: Southend-on-Sea | C25: 112473 | D25: 1033 | E25: 933 | F25: 1192 | G25: 931 | H25: 810 | I25: 1203 | J25: 819 | K25: 688 | L25: 1003 | M25: 9.184426485 | N25: 8.295324211 | O25: 10.5980991 | P25: 8.277542166 | Q25: 7.201728415 | R25: 10.69590035 | S25: 7.281747619 | T25: 6.117023641 | U25: 8.917695803
A26: East of England | B26: Suffolk | C26: 450636 | D26: 2851 | E26: 1862 | F26: 3822 | G26: 2391 | H26: 1633 | I26: 3148 | J26: 1097 | K26: 930 | L26: 1344 | M26: 6.326613941 | N26: 4.131937972 | O26: 8.481346364 | P26: 5.305834421 | Q26: 3.623767298 | R26: 6.985682458 | S26: 2.434337248 | T26: 2.0637499 | U26: 2.982451469
A27: East of England | B27: Thurrock | C27: 106999 | D27: 682 | E27: 507 | F27: 972 | G27: 518 | H27: 397 | I27: 767 | J27: 380 | K27: 254 | L27: 633 | M27: 6.373891345 | N27: 4.738362041 | O27: 9.084197049 | P27: 4.84116674 | Q27: 3.71031505 | R27: 7.168291292 | S27: 3.55143506 | T27: 2.373853961 | U27: 5.91594314
A28: London | B28: Barking and Dagenham | C28: 127641 | D28: 1150 | E28: 1002 | F28: 1398 | G28: 861 | H28: 771 | I28: 1088 | J28: 916 | K28: 741 | L28: 1168 | M28: 9.009644237 | N28: 7.850142196 | O28: 10.9525936 | P28: 6.745481468 | Q28: 6.040378875 | R28: 8.523906895 | S28: 7.176377496 | T28: 5.805344678 | U28: 9.150664755
A29: London | B29: Barnet | C29: 248267 | D29: 1668 | E29: 1384 | F29: 2529 | G29: 1390 | H29: 1100 | I29: 1850 | J29: 1030 | K29: 822 | L29: 1360 | M29: 6.718573149 | N29: 5.574643428 | O29: 10.18661361 | P29: 5.598810958 | Q29: 4.430713707 | R29: 7.451654872 | S29: 4.148759199 | T29: 3.310951516 | U29: 5.477973311
A30: London | B30: Bexley | C30: 153764 | D30: 724 | E30: 587 | F30: 1485 | G30: 541 | H30: 411 | I30: 825 | J30: 636 | K30: 459 | L30: 888 | M30: 4.708514347 | N30: 3.817538566 | O30: 9.657657189 | P30: 3.518378814 | Q30: 2.672927343 | R30: 5.365365105 | S30: 4.136208735 | T30: 2.98509404 | U30: 5.775083895
A31: London | B31: Brent | C31: 222206 | D31: 1890 | E31: 1400 | F31: 2431 | G31: 1410 | H31: 1042 | I31: 1809 | J31: 1487 | K31: 974 | L31: 2076 | M31: 8.50562091 | N31: 6.300459934 | O31: 10.94029864 | P31: 6.345463219 | Q31: 4.689342322 | R31: 8.1410943 | S31: 6.691988515 | T31: 4.383319982 | U31: 9.342682016
A32: London | B32: Bromley | C32: 205012 | D32: 1221 | E32: 964 | F32: 1668 | G32: 870 | H32: 687 | I32: 1182 | J32: 837 | K32: 599 | L32: 1223 | M32: 5.955748932 | N32: 4.702163776 | O32: 8.136109106 | P32: 4.24365403 | Q32: 3.351023355 | R32: 5.765516165 | S32: 4.082687843 | T32: 2.921780188 | U32: 5.965504458
A33: London | B33: Camden | C33: 169410 | D33: 2097 | E33: 1721 | F33: 2479 | G33: 1718 | H33: 1425 | I33: 2010 | J33: 1552 | K33: 1094 | L33: 1992 | M33: 12.37825394 | N33: 10.15878638 | O33: 14.63313854 | P33: 10.14107786 | Q33: 8.411545954 | R33: 11.86470692 | S33: 9.16120654 | T33: 6.457706157 | U33: 11.75845582
A34: London | B34: City of London | C34: 5955 | D34: 28 | E34: 14 | F34: 43 | G34: 23 | H34: 13 | I34: 33 | J34: 21 | K34: 12 | L34: 45 | M34: 4.70193115 | N34: 2.350965575 | O34: 7.220822838 | P34: 3.862300588 | Q34: 2.183039463 | R34: 5.541561713 | S34: 3.526448363 | T34: 2.01511335 | U34: 7.556675063
A35: London | B35: Croydon | C35: 249571 | D35: 2028 | E35: 1803 | F35: 2418 | G35: 1486 | H35: 1306 | I35: 1772 | J35: 1231 | K35: 1013 | L35: 1553 | M35: 8.12594412 | N35: 7.224397065 | O35: 9.688625682 | P35: 5.954217437 | Q35: 5.232979793 | R35: 7.100183916 | S35: 4.932464108 | T35: 4.058965184 | U35: 6.222678116
A36: London | B36: Ealing | C36: 233841 | D36: 2464 | E36: 1928 | F36: 2986 | G36: 2029 | H36: 1616 | I36: 2441 | J36: 1525 | K36: 870 | L36: 2104 | M36: 10.53707434 | N36: 8.244918556 | O36: 12.76936038 | P36: 8.67683597 | Q36: 6.910678624 | R36: 10.43871691 | S36: 6.52152531 | T36: 3.720476734 | U36: 8.997566723
A37: London | B37: Enfield | C37: 213689 | D37: 1789 | E37: 1523 | F37: 2294 | G37: 1368 | H37: 1129 | I37: 2009 | J37: 1182 | K37: 965 | L37: 1507 | M37: 8.37197984 | N37: 7.127180154 | O37: 10.73522736 | P37: 6.401826954 | Q37: 5.283379116 | R37: 9.401513414 | S37: 5.531403114 | T37: 4.515908634 | U37: 7.052304985
A38: London | B38: Greenwich | C38: 184827 | D38: 1447 | E38: 1031 | F38: 1885 | G38: 1111 | H38: 804 | I38: 1432 | J38: 1161 | K38: 664 | L38: 1700 | M38: 7.828942741 | N38: 5.578189334 | O38: 10.19872638 | P38: 6.011026528 | Q38: 4.350013797 | R38: 7.747785767 | S38: 6.281549774 | T38: 3.592548708 | U38: 9.197790366
A39: London | B39: Hackney | C39: 192530 | D39: 2553 | E39: 2132 | F39: 2980 | G39: 1989 | H39: 1657 | I39: 2297 | J39: 2151 | K39: 1596 | L39: 2686 | M39: 13.26027113 | N39: 11.07359892 | O39: 15.47810731 | P39: 10.33085753 | Q39: 8.606450943 | R39: 11.93060822 | S39: 11.17228484 | T39: 8.289617203 | U39: 13.95107256
A40: London | B40: Hammersmith and Fulham | C40: 130917 | D40: 1500 | E40: 1181 | F40: 1804 | G40: 1178 | H40: 936 | I40: 1413 | J40: 1240 | K40: 1022 | L40: 1597 | M40: 11.4576411 | N40: 9.02098276 | O40: 13.77972303 | P40: 8.998067478 | Q40: 7.149568047 | R40: 10.79309792 | S40: 9.471649977 | T40: 7.806472803 | U40: 12.19856856
A41: London | B41: Haringey | C41: 192241 | D41: 1856 | E41: 1426 | F41: 2294 | G41: 1406 | H41: 1067 | I41: 1737 | J41: 1555 | K41: 1014 | L41: 2077 | M41: 9.654548197 | N41: 7.417772483 | O41: 11.93293834 | P41: 7.313736404 | Q41: 5.550324853 | R41: 9.035533523 | S41: 8.088805198 | T41: 5.274629241 | U41: 10.80414688
A42: London | B42: Harrow | C42: 162324 | D42: 1193 | E42: 976 | F42: 1508 | G42: 1002 | H42: 792 | I42: 1538 | J42: 760 | K42: 559 | L42: 1069 | M42: 7.349498534 | N42: 6.012666026 | O42: 9.290061852 | P42: 6.172839506 | Q42: 4.879130628 | R42: 9.474877406 | S42: 4.681994037 | T42: 3.443729824 | U42: 6.585594244
A43: London | B43: Havering | C43: 156282 | D43: 894 | E43: 725 | F43: 1149 | G43: 746 | H43: 582 | I43: 1231 | J43: 601 | K43: 479 | L43: 802 | M43: 5.720428456 | N43: 4.639049923 | O43: 7.352094291 | P43: 4.773422403 | Q43: 3.724037317 | R43: 7.876786834 | S43: 3.845612419 | T43: 3.064972294 | U43: 5.131749018
A44: London | B44: Hillingdon | C44: 195572 | D44: 2046 | E44: 1749 | F44: 2625 | G44: 1344 | H44: 1004 | I44: 1689 | J44: 1174 | K44: 928 | L44: 1572 | M44: 10.46162027 | N44: 8.942997975 | O44: 13.42216677 | P44: 6.872149387 | Q44: 5.133659215 | R44: 8.636205592 | S44: 6.002904301 | T44: 4.745055529 | U44: 8.037960444
A45: London | B45: Hounslow | C45: 183243 | D45: 1536 | E45: 1092 | F45: 1961 | G45: 1280 | H45: 967 | I45: 1577 | J45: 1151 | K45: 875 | L45: 1584 | M45: 8.382312012 | N45: 5.959299946 | O45: 10.70163662 | P45: 6.98526001 | Q45: 5.277145648 | R45: 8.606058622 | S45: 6.281276775 | T45: 4.775080085 | U45: 8.644259262
A46: London | B46: Islington | C46: 168008 | D46: 2168 | E46: 1809 | F46: 2548 | G46: 1749 | H46: 1444 | I46: 2019 | J46: 1642 | K46: 1207 | L46: 2091 | M46: 12.90414742 | N46: 10.76734441 | O46: 15.16594448 | P46: 10.41021856 | Q46: 8.594828818 | R46: 12.01728489 | S46: 9.773344126 | T46: 7.184181706 | U46: 12.44583591
A47: London | B47: Kensington and Chelsea | C47: 110224 | D47: 1250 | E47: 1053 | F47: 1982 | G47: 794 | H47: 610 | I47: 972 | J47: 892 | K47: 675 | L47: 1289 | M47: 11.34054289 | N47: 9.553273334 | O47: 17.98156481 | P47: 7.203512847 | Q47: 5.534184933 | R47: 8.818406155 | S47: 8.092611409 | T47: 6.123893163 | U47: 11.69436783
A48: London | B48: Kingston upon Thames | C48: 116054 | D48: 553 | E48: 441 | F48: 877 | G48: 450 | H48: 365 | I48: 722 | J48: 275 | K48: 209 | L48: 395 | M48: 4.765023179 | N48: 3.799955193 | O48: 7.556826994 | P48: 3.877505299 | Q48: 3.145087632 | R48: 6.221241836 | S48: 2.369586572 | T48: 1.800885795 | U48: 3.403587985
A49: London | B49: Lambeth | C49: 239858 | D49: 2387 | E49: 1806 | F49: 2967 | G49: 1818 | H49: 1406 | I49: 2209 | J49: 2000 | K49: 1385 | L49: 2628 | M49: 9.951721435 | N49: 7.529454927 | O49: 12.36981881 | P49: 7.579484528 | Q49: 5.861801566 | R49: 9.209615689 | S49: 8.338266808 | T49: 5.774249764 | U49: 10.95648259
A50: London | B50: Lewisham | C50: 207028 | D50: 1940 | E50: 1445 | F50: 2430 | G50: 1486 | H50: 1107 | I50: 1842 | J50: 1593 | K50: 1076 | L50: 2142 | M50: 9.37071314 | N50: 6.97973221 | O50: 11.73754275 | P50: 7.177773055 | Q50: 5.347102807 | R50: 8.897347219 | S50: 7.694611357 | T50: 5.197364608 | U50: 10.34642657
A51: London | B51: Merton | C51: 139503 | D51: 635 | E51: 339 | F51: 959 | G51: 492 | H51: 248 | I51: 731 | J51: 518 | K51: 322 | L51: 911 | M51: 4.551873436 | N51: 2.430055268 | O51: 6.874404135 | P51: 3.526805875 | Q51: 1.777739547 | R51: 5.24003068 | S51: 3.713181795 | T51: 2.308194089 | U51: 6.530325513
A52: London | B52: Newham | C52: 231356 | D52: 2400 | E52: 1880 | F52: 2951 | G52: 1877 | H52: 1481 | I52: 2322 | J52: 2089 | K52: 1785 | L52: 2460 | M52: 10.37362333 | N52: 8.126004945 | O52: 12.75523436 | P52: 8.113037916 | Q52: 6.401390066 | R52: 10.03648058 | S52: 9.029374643 | T52: 7.715382354 | U52: 10.63296392
A53: London | B53: Redbridge | C53: 194533 | D53: 1133 | E53: 695 | F53: 1570 | G53: 895 | H53: 549 | I53: 1208 | J53: 784 | K53: 262 | L53: 1331 | M53: 5.824204634 | N53: 3.572658623 | O53: 8.070610128 | P53: 4.600761824 | Q53: 2.822143287 | R53: 6.209743334 | S53: 4.030164548 | T53: 1.346815193 | U53: 6.842026803
A54: London | B54: Richmond upon Thames | C54: 127393 | D54: 822 | E54: 586 | F54: 1214 | G54: 628 | H54: 460 | I54: 1000 | J54: 410 | K54: 269 | L54: 730 | M54: 6.452473841 | N54: 4.599938772 | O54: 9.529565989 | P54: 4.929627217 | Q54: 3.610873439 | R54: 7.849724867 | S54: 3.218387196 | T54: 2.111575989 | U54: 5.730299153
A55: London | B55: Southwark | C55: 225235 | D55: 2257 | E55: 1774 | F55: 2728 | G55: 1791 | H55: 1418 | I55: 2195 | J55: 1904 | K55: 1316 | L55: 2508 | M55: 10.0206451 | N55: 7.876218172 | O55: 12.11179435 | P55: 7.951694896 | Q55: 6.295646769 | R55: 9.745377051 | S55: 8.453393123 | T55: 5.842786423 | U55: 11.13503674
A56: London | B56: Sutton | C56: 130208 | D56: 836 | E56: 670 | F56: 1157 | G56: 736 | H56: 561 | I56: 1022 | J56: 506 | K56: 363 | L56: 729 | M56: 6.420496436 | N56: 5.145613173 | O56: 8.885782748 | P56: 5.65249447 | Q56: 4.30849103 | R56: 7.848980093 | S56: 3.886089948 | T56: 2.787847137 | U56: 5.598734333
A57: London | B57: Tower Hamlets | C57: 212492 | D57: 2798 | E57: 2342 | F57: 3245 | G57: 2309 | H57: 1937 | I57: 2672 | J57: 2543 | K57: 1982 | L57: 3169 | M57: 13.16755454 | N57: 11.0215914 | O57: 15.27116315 | P57: 10.86629144 | Q57: 9.115637295 | R57: 12.57459104 | S57: 11.96750937 | T57: 9.327409973 | U57: 14.91350263
A58: London | B58: Waltham Forest | C58: 185135 | D58: 1478 | E58: 1038 | F58: 1959 | G58: 1330 | H58: 1150 | I58: 1703 | J58: 1172 | K58: 651 | L58: 1668 | M58: 7.983363492 | N58: 5.606719421 | O58: 10.58146758 | P58: 7.18394685 | Q58: 6.211683366 | R58: 9.198692846 | S58: 6.33051557 | T58: 3.516352932 | U58: 9.009641613
A59: London | B59: Wandsworth | C59: 230792 | D59: 1497 | E59: 953 | F59: 2007 | G59: 1140 | H59: 729 | I59: 1510 | J59: 1295 | K59: 709 | L59: 1864 | M59: 6.486360012 | N59: 4.129259246 | O59: 8.696141981 | P59: 4.939512635 | Q59: 3.158688343 | R59: 6.542687788 | S59: 5.611113037 | T59: 3.072030226 | U59: 8.076536448
A60: London | B60: Westminster | C60: 170667 | D60: 2249 | E60: 1946 | F60: 2733 | G60: 1503 | H60: 1241 | I60: 1790 | J60: 1393 | K60: 1133 | L60: 1794 | M60: 13.17770864 | N60: 11.40232148 | O60: 16.0136406 | P60: 8.806623425 | Q60: 7.271470173 | R60: 10.48826077 | S60: 8.162093433 | T60: 6.638658909 | U60: 10.51169822
A61: North East | B61: County Durham | C61: 333476 | D61: 2311 | E61: 2168 | F61: 2584 | G61: 2001 | H61: 1886 | I61: 2206 | J61: 815 | K61: 145 | L61: 1696 | M61: 6.930033945 | N61: 6.501217479 | O61: 7.748683563 | P61: 6.000431815 | Q61: 5.655579412 | R61: 6.615168708 | S61: 2.443953988 | T61: 0.4348138997 | U61: 5.085823268
A62: North East | B62: Darlington | C62: 66389 | D62: 806 | E62: 652 | F62: 951 | G62: 656 | H62: 583 | I62: 854 | J62: 200 | K62: 43 | L62: 371 | M62: 12.14056546 | N62: 9.820904065 | O62: 14.32466222 | P62: 9.881155011 | Q62: 8.781575261 | R62: 12.8635768 | S62: 3.012547259 | T62: 0.6476976608 | U62: 5.588275166
A63: North East | B63: Gateshead | C63: 129613 | D63: 1762 | E63: 1591 | F63: 2118 | G63: 1615 | H63: 1436 | I63: 1862 | J63: 376 | K63: 99 | L63: 718 | M63: 13.59431539 | N63: 12.27500328 | O63: 16.34095345 | P63: 12.46016989 | Q63: 11.07913558 | R63: 14.36584293 | S63: 2.900943578 | T63: 0.7638122719 | U63: 5.53956779
A64: North East | B64: Hartlepool | C64: 58929 | D64: 1044 | E64: 931 | F64: 1327 | G64: 918 | H64: 841 | I64: 1125 | J64: 210 | K64: 71 | L64: 359 | M64: 17.71623479 | N64: 15.79867298 | O64: 22.51862411 | P64: 15.57806852 | Q64: 14.27141136 | R64: 19.09077025 | S64: 3.563610446 | T64: 1.204839722 | U64: 6.092076906
A65: North East | B65: Middlesbrough | C65: 90472 | D65: 2174 | E65: 1957 | F65: 2401 | G65: 1936 | H65: 1756 | I65: 2113 | J65: 734 | K65: 481 | L65: 974 | M65: 24.029534 | N65: 21.63100186 | O65: 26.53859758 | P65: 21.39888584 | Q65: 19.40932001 | R65: 23.35529225 | S65: 8.113007339 | T65: 5.31656203 | U65: 10.76576178
A66: North East | B66: Newcastle upon Tyne | C66: 201161 | D66: 2051 | E66: 1582 | F66: 2527 | G66: 1783 | H66: 1447 | I66: 2121 | J66: 1076 | K66: 674 | L66: 1894 | M66: 10.1958133 | N66: 7.864347463 | O66: 12.56207714 | P66: 8.863547109 | Q66: 7.193243223 | R66: 10.54379328 | S66: 5.348949349 | T66: 3.350550057 | U66: 9.415343928
A67: North East | B67: North Tyneside | C67: 130396 | D67: 1108 | E67: 922 | F67: 1490 | G67: 934 | H67: 808 | I67: 1607 | J67: 344 | K67: 71 | L67: 676 | M67: 8.497193165 | N67: 7.070769042 | O67: 11.42673088 | P67: 7.162796405 | Q67: 6.196509095 | R67: 12.32399767 | S67: 2.638117734 | T67: 0.5444952299 | U67: 5.184208105
A68: North East | B68: Northumberland | C68: 195896 | D68: 1256 | E68: 1105 | F68: 1764 | G68: 1092 | H68: 995 | I68: 1414 | J68: 451 | K68: 51 | L68: 949 | M68: 6.41156532 | N68: 5.640748152 | O68: 9.004778045 | P68: 5.574386409 | Q68: 5.079225712 | R68: 7.218115735 | S68: 2.302242006 | T68: 0.2603422224 | U68: 4.844407236
A69: North East | B69: Redcar and Cleveland | C69: 83710 | D69: 1197 | E69: 968 | F69: 1809 | G69: 953 | H69: 826 | I69: 1256 | J69: 517 | K69: 242 | L69: 1267 | M69: 14.29936686 | N69: 11.56373193 | O69: 21.61032135 | P69: 11.38454187 | Q69: 9.867399355 | R69: 15.0041811 | S69: 6.1760841 | T69: 2.890932983 | U69: 15.13558715
A70: North East | B70: South Tyneside | C70: 95844 | D70: 715 | E70: 620 | F70: 884 | G70: 588 | H70: 524 | I70: 699 | J70: 239 | K70: 44 | L70: 491 | M70: 7.46003923 | N70: 6.468845207 | O70: 9.22332123 | P70: 6.134969325 | Q70: 5.467217562 | R70: 7.29310129 | S70: 2.493635491 | T70: 0.4590793373 | U70: 5.122908059
A71: North East | B71: Stockton-On-Tees | C71: 125450 | D71: 1898 | E71: 1665 | F71: 2298 | G71: 1657 | H71: 1491 | I71: 1974 | J71: 917 | K71: 705 | L71: 1248 | M71: 15.12953368 | N71: 13.27222001 | O71: 18.318055 | P71: 13.20844958 | Q71: 11.88521323 | R71: 15.73535273 | S71: 7.309685134 | T71: 5.619768832 | U71: 9.948186528
A72: North East | B72: Sunderland | C72: 181041 | D72: 1353 | E72: 1197 | F72: 1589 | G72: 1281 | H72: 963 | I72: 1574 | J72: 452 | K72: 332 | L72: 627 | M72: =D72/$C72*1000 -> 7.473445242 | N72: =E72/$C72*1000 -> 6.611761977 | O72: =F72/$C72*1000 -> 8.777017361 | P72: =G72/$C72*1000 -> 7.075745273 | Q72: =H72/$C72*1000 -> 5.319237079 | R72: =I72/$C72*1000 -> 8.694163201 | S72: =J72/$C72*1000 -> 2.496672025 | T72: =K72/$C72*1000 -> 1.833838744 | U72: =L72/$C72*1000 -> 3.463303892
A73: North West | B73: Blackburn with Darwen | C73: 94178 | D73: 1363 | E73: 1157 | F73: 1576 | G73: 1210 | H73: 1053 | I73: 1376 | J73: 712 | K73: 536 | L73: 999 | M73: 14.47259445 | N73: 12.28524709 | O73: 16.73426915 | P73: 12.84801121 | Q73: 11.18095521 | R73: 14.61063093 | S73: 7.560152052 | T73: 5.691350422 | U73: 10.60757289
A74: North West | B74: Blackpool | C74: 88320 | D74: 1762 | E74: 1548 | F74: 1974 | G74: 1559 | H74: 1406 | I74: 1717 | J74: 964 | K74: 748 | L74: 1298 | M74: 19.95018116 | N74: 17.52717391 | O74: 22.35054348 | P74: 17.65172101 | Q74: 15.91938406 | R74: 19.44067029 | S74: 10.91485507 | T74: 8.469202899 | U74: 14.69655797
A75: North West | B75: Bolton | C75: 178883 | D75: 2748 | E75: 2373 | F75: 3421 | G75: 2546 | H75: 2192 | I75: 3145 | J75: 1084 | K75: 880 | L75: 1401 | M75: 15.36199639 | N75: 13.26565409 | O75: 19.12423204 | P75: 14.23276667 | Q75: 12.25381954 | R75: 17.58132411 | S75: 6.059826814 | T75: 4.919416602 | U75: 7.83193484
A76: North West | B76: Bury | C76: 119036 | D76: 1168 | E76: 917 | F76: 1646 | G76: 735 | H76: 650 | I76: 871 | J76: 604 | K76: 288 | L76: 916 | M76: 9.812157667 | N76: 7.703551867 | O76: 13.82774959 | P76: 6.174602641 | Q76: 5.460532948 | R76: 7.31711415 | S76: 5.074095232 | T76: 2.419436137 | U76: 7.695151047
A77: North West | B77: Cheshire (Cheshire West, Cheshire East and Cheshire UA) | C77: 442009 | D77: 3284 | E77: 2360 | F77: 4247 | G77: 2885 | H77: 2185 | I77: 3660 | J77: 2023 | K77: 933 | L77: 3240 | M77: 7.42971297 | N77: 5.339257798 | O77: 9.608401639 | P77: 6.527016418 | Q77: 4.943338258 | R77: 8.280374382 | S77: 4.576829884 | T77: 2.110816748 | U77: 7.330167485
A78: North West | B78: Cheshire East | C78: 231871 | D78: 1481.837643 | E78: 1332 | F78: 1289 | G78: 1307 | H78: 997 | I78: 1670 | J78: 988 | K78: 456 | L78: 1582 | M78: =D78/$C78*1000 -> 6.390784718 | N78: =E78/$C78*1000 -> 5.744573491 | O78: =F78/$C78*1000 -> 5.559125548 | P78: =G78/$C78*1000 -> 5.63675492 | Q78: =H78/$C78*1000 -> 4.299804633 | R78: =I78/$C78*1000 -> 7.202280578 | S78: =J78/$C78*1000 -> 4.260989947 | T78: =K78/$C78*1000 -> 1.966610745 | U78: =L78/$C78*1000 -> 6.822759207
A79: North West | B79: Cheshire West and Chester | C79: 210138 | D79: 1802.162357 | E79: 1289 | F79: 2319 | G79: 1578 | H79: 1188 | I79: 1990 | J79: 1035 | K79: 477 | L79: 1658 | M79: 8.576089792 | N79: 6.134064282 | O79: 11.03560517 | P79: 7.509350998 | Q79: 5.653427747 | R79: 9.469967355 | S79: 4.92533478 | T79: 2.269936899 | U79: 7.890053203
A80: North West | B80: Cumbria | C80: 308487 | D80: 2744 | E80: 2466 | F80: 3261 | G80: 2687 | H80: 2390 | I80: 3295 | J80: 829 | K80: 376 | L80: 2156 | M80: 8.895026371 | N80: 7.993853874 | O80: 10.57094788 | P80: 8.710253593 | Q80: 7.74749017 | R80: 10.68116323 | S80: 2.687309352 | T80: 1.21885201 | U80: 6.988949291
A81: North West | B81: Halton | C81: 81709 | D81: 699 | E81: 595 | F81: 878 | G81: 647 | H81: 483 | I81: 1120 | J81: 643 | K81: 451 | L81: 1040 | M81: 8.554749171 | N81: 7.281939566 | O81: 10.74545032 | P81: 7.918344368 | Q81: 5.91122153 | R81: 13.70718036 | S81: 7.869390153 | T81: 5.519587806 | U81: 12.72809605
A82: North West | B82: Knowsley | C82: 95519 | D82: 1090 | E82: 880 | F82: 1317 | G82: 949 | H82: 776 | I82: 1108 | J82: 664 | K82: 432 | L82: 912 | M82: 11.41134225 | N82: 9.212826767 | O82: 13.78783279 | P82: 9.935196139 | Q82: 8.124038149 | R82: 11.59978643 | S82: 6.951496561 | T82: 4.522660413 | U82: 9.54783865
A83: North West | B83: Lancashire | C83: 749332 | D83: 6711 | E83: 5126 | F83: 8342 | G83: 5890 | H83: 4602 | I83: 7163 | J83: 2690 | K83: 817 | L83: 4717 | M83: 8.95597679 | N83: 6.840759503 | O83: 11.13258209 | P83: 7.860334271 | Q83: 6.141470003 | R83: 9.55918071 | S83: 3.589864039 | T83: 1.090304431 | U83: 6.294940027
A84: North West | B84: Liverpool | C84: 328951 | D84: 5257 | E84: 4518 | F84: 5997 | G84: 4594 | H84: 3978 | I84: 5181 | J84: 3649 | K84: 2702 | L84: 4568 | M84: 15.98110357 | N84: 13.73456837 | O84: 18.23067873 | P84: 13.96560582 | Q84: 12.09298649 | R84: 15.75006612 | S84: 11.09283754 | T84: 8.213989318 | U84: 13.88656669
A85: North West | B85: Manchester | C85: 372726 | D85: 4314 | E85: 3489 | F85: 5126 | G85: 3754 | H85: 3092 | I85: 4396 | J85: 4037 | K85: 3499 | L85: 4668 | M85: 11.57418586 | N85: 9.360763671 | O85: 13.75272989 | P85: 10.07174171 | Q85: 8.295638083 | R85: 11.79418661 | S85: 10.83101259 | T85: 9.387593031 | U85: 12.5239452
A86: North West | B86: Oldham | C86: 144418 | D86: 1662 | E86: 1450 | F86: 1999 | G86: 1315 | H86: 1150 | I86: 1834 | J86: 1088 | K86: 825 | L86: 1478 | M86: 11.50826074 | N86: 10.04029969 | O86: 13.84176488 | P86: 9.105513163 | Q86: 7.962996302 | R86: 12.69924802 | S86: 7.533686937 | T86: 5.712584304 | U86: 10.23418133
A87: North West | B87: Rochdale | C87: 137156 | D87: 1830 | E87: 1559 | F87: 2456 | G87: 1412 | H87: 1257 | I87: 1686 | J87: 1373 | K87: 1062 | L87: 1879 | M87: 13.34247135 | N87: 11.36661903 | O87: 17.90661728 | P87: 10.29484674 | Q87: 9.164746712 | R87: 12.29257196 | S87: 10.01049899 | T87: 7.743007962 | U87: 13.69972878
A88: North West | B88: Salford | C88: 161735 | D88: 1399 | E88: 1013 | F88: 1756 | G88: 1207 | H88: 939 | I88: 1471 | J88: 1109 | K88: 772 | L88: 1702 | M88: 8.649952082 | N88: 6.263331994 | O88: 10.85726652 | P88: 7.462824991 | Q88: 5.805793428 | R88: 9.095124741 | S88: 6.856895539 | T88: 4.773240177 | U88: 10.52338702
A89: North West | B89: Sefton | C89: 168662 | D89: 1686 | E89: 1536 | F89: 1978 | G89: 1615 | H89: 1441 | I89: 2218 | J89: 1427 | K89: 1224 | L89: 1759 | M89: 9.996324009 | N89: 9.106971339 | O89: 11.72759721 | P89: 9.575363745 | Q89: 8.543714648 | R89: 13.15056148 | S89: 8.460708399 | T89: 7.257117786 | U89: 10.42914231
A90: North West | B90: St. Helens | C90: 112309 | D90: 1386 | E90: 1209 | F90: 1631 | G90: 1138 | H90: 1019 | I90: 1399 | J90: 704 | K90: 414 | L90: 1002 | M90: 12.34095219 | N90: 10.76494315 | O90: 14.52243364 | P90: 10.13275873 | Q90: 9.073182025 | R90: 12.45670427 | S90: 6.268420162 | T90: 3.686258448 | U90: 8.921813924
A91: North West | B91: Stockport | C91: 179931 | D91: 1518 | E91: 1307 | F91: 2033 | G91: 1243 | H91: 1056 | I91: 1551 | J91: 844 | K91: 412 | L91: 1320 | M91: 8.436567351 | N91: 7.263895604 | O91: 11.29877564 | P91: 6.9082037 | Q91: 5.868916418 | R91: 8.619970989 | S91: 4.690686986 | T91: 2.289766633 | U91: 7.336145522
A92: North West | B92: Tameside | C92: 142298 | D92: 1396 | E92: 1250 | F92: 2003 | G92: 1198 | H92: 1104 | I92: 1327 | J92: 812 | K92: 680 | L92: 1009 | M92: 9.810397897 | N92: 8.784382071 | O92: 14.07609383 | P92: 8.418951777 | Q92: 7.758366245 | R92: 9.325500007 | S92: 5.706334594 | T92: 4.778703847 | U92: 7.090753208
A93: North West | B93: Trafford | C93: 148236 | D93: 858 | E93: 512 | F93: 1174 | G93: 732 | H93: 483 | I93: 988 | J93: 559 | K93: 181 | L93: 975 | M93: 5.788067676 | N93: 3.453951807 | O93: 7.919803556 | P93: 4.938071723 | Q93: 3.258317818 | R93: 6.665047627 | S93: 3.771013789 | T93: 1.221025932 | U93: 6.577349632
A94: North West | B94: Warrington | C94: 133493 | D94: 947 | E94: 814 | F94: 1142 | G94: 802 | H94: 705 | I94: 950 | J94: 869 | K94: 599 | L94: 1367 | M94: 7.094004929 | N94: 6.097698007 | O94: 8.55475568 | P94: 6.007805653 | Q94: 5.281175792 | R94: 7.116478018 | S94: 6.509704629 | T94: 4.487126666 | U94: 10.24023732
A95: North West | B95: Wigan | C95: 206516 | D95: 2155 | E95: 1665 | F95: 2629 | G95: 1867 | H95: 1527 | I95: 2226 | J95: 813 | K95: 280 | L95: 1332 | M95: 10.43502683 | N95: 8.062329311 | O95: 12.7302485 | P95: 9.040461756 | Q95: 7.394100215 | R95: 10.77882585 | S95: 3.936740979 | T95: 1.355827151 | U95: 6.449863449
A96: North West | B96: Wirral | C96: 199069 | D96: 2837 | E96: 2565 | F96: 3404 | G96: 2662 | H96: 2281 | I96: 3020 | J96: 1188 | K96: 1017 | L96: 1474 | M96: 14.25133999 | N96: 12.88497958 | O96: 17.09959863 | P96: 13.37224781 | Q96: 11.45833857 | R96: 15.17061923 | S96: 5.967780016 | T96: 5.108781377 | U96: 7.404467798
A97: South East | B97: Bracknell Forest | C97: 79029 | D97: 372 | E97: 183 | F97: 544 | G97: 236 | H97: 188 | I97: 343 | J97: 291 | K97: 187 | L97: 542 | M97: 4.707132825 | N97: 2.315605664 | O97: 6.883549077 | P97: 2.986245555 | Q97: 2.378873578 | R97: 4.340178922 | S97: 3.682192613 | T97: 2.366219995 | U97: 6.858241911
A98: South East | B98: Brighton and Hove | C98: 200682 | D98: 2128 | E98: 1889 | F98: 2489 | G98: 2098 | H98: 1757 | I98: 3598 | J98: 1210 | K98: 921 | L98: 1680 | M98: 10.6038409 | N98: 9.412902004 | O98: 12.40270677 | P98: 10.45435066 | Q98: 8.755144956 | R98: 17.92886258 | S98: 6.029439611 | T98: 4.589350315 | U98: 8.371453344
A99: South East | B99: Buckinghamshire | C99: 328687 | D99: 1647 | E99: 940 | F99: 2339 | G99: 1394 | H99: 763 | I99: 1914 | J99: 1362 | K99: 956 | L99: 2044 | M99: 5.010846185 | N99: 2.859863639 | O99: 7.116192609 | P99: 4.241116929 | Q99: 2.321357401 | R99: 5.823169155 | S99: 4.143759869 | T99: 2.908542169 | U99: 6.218682211
A100: South East | B100: East Sussex | C100: 320514 | D100: 2296 | E100: 1547 | F100: 2980 | G100: 1981 | H100: 1434 | I100: 2506 | J100: 1232 | K100: 992 | L100: 1564 | M100: 7.163493638 | N100: 4.826622238 | O100: 9.297565785 | P100: 6.180697255 | Q100: 4.474063535 | R100: 7.818691227 | S100: 3.843825855 | T100: 3.09502861 | U100: 4.879662043
A101: South East | B101: Hampshire | C101: 839762 | D101: 3215 | E101: 2955 | F101: 3633 | G101: 2828 | H101: 2616 | I101: 3266 | J101: 1775 | K101: 1430 | L101: 2155 | M101: 3.828465684 | N101: 3.518854152 | O101: 4.326225764 | P101: 3.367620826 | Q101: 3.115168345 | R101: 3.889197177 | S101: 2.113694118 | T101: 1.70286343 | U101: 2.566203281
A102: South East | B102: Isle of Wight | C102: 82208 | D102: 544 | E102: 352 | F102: 733 | G102: 481 | H102: 342 | I102: 610 | J102: 238 | K102: 51 | L102: 459 | M102: 6.617360841 | N102: 4.281821721 | O102: 8.916407162 | P102: 5.851012067 | Q102: 4.160179058 | R102: 7.420202413 | S102: 2.895095368 | T102: 0.6203775788 | U102: 5.583398209
A103: South East | B103: Kent | C103: 945347 | D103: 5198 | E103: 3163 | F103: 7156 | G103: 4401 | H103: 2759 | I103: 6086 | J103: 3398 | K103: 2780 | L103: 4206 | M103: 5.498510071 | N103: 3.345861361 | O103: 7.569707208 | P103: 4.655433402 | Q103: 2.918505057 | R103: 6.43784769 | S103: 3.59444733 | T103: 2.940719122 | U103: 4.449159938
A104: South East | B104: Medway | C104: 180295 | D104: 1259 | E104: 831 | F104: 1648 | G104: 1208 | H104: 1038 | I104: 1516 | J104: 848 | K104: 368 | L104: 1360 | M104: 6.983000083 | N104: 4.609112843 | O104: 9.140575168 | P104: 6.700130342 | Q104: 5.757231204 | R104: 8.408441721 | S104: 4.703402757 | T104: 2.041099309 | U104: 7.5431931
A105: South East | B105: Milton Keynes | C105: 171231 | D105: 1006 | E105: 608 | F105: 1427 | G105: 846 | H105: 550 | I105: 1146 | J105: 774 | K105: 319 | L105: 1204 | M105: 5.875104391 | N105: 3.550758916 | O105: 8.333771338 | P105: 4.94069415 | Q105: 3.212035204 | R105: 6.692713352 | S105: 4.520209541 | T105: 1.862980418 | U105: 7.031437065
A106: South East | B106: Oxfordshire | C106: 439057 | D106: 2933 | E106: 1974 | F106: 3948 | G106: 2811 | H106: 2384 | I106: 4128 | J106: 2416 | K106: 1146 | L106: 3521 | M106: 6.68022603 | N106: 4.49599938 | O106: 8.991998761 | P106: 6.40235778 | Q106: 5.429818907 | R106: 9.401968309 | S106: 5.502702383 | T106: 2.610139458 | U106: 8.019459888
A107: South East | B107: Portsmouth | C107: 142936 | D107: 1427 | E107: 1253 | F107: 1795 | G107: 1315 | H107: 1043 | I107: 1611 | J107: 845 | K107: 456 | L107: 1233 | M107: 9.983489114 | N107: 8.766161079 | O107: 12.55806795 | P107: 9.199921643 | Q107: 7.296972071 | R107: 11.27077853 | S107: 5.911736721 | T107: 3.190238988 | U107: 8.626238316
A108: South East | B108: Reading | C108: 110593 | D108: 1332 | E108: 1113 | F108: 1904 | G108: 1157 | H108: 999 | I108: 1601 | J108: 881 | K108: 595 | L108: 1171 | M108: 12.04416193 | N108: 10.0639281 | O108: 17.21627951 | P108: 10.4617833 | Q108: 9.033121445 | R108: 14.47650394 | S108: 7.966146139 | T108: 5.380087347 | U108: 10.58837359
A109: South East | B109: Slough | C109: 96458 | D109: 887 | E109: 688 | F109: 1103 | G109: 758 | H109: 593 | I109: 924 | J109: 689 | K109: 437 | L109: 940 | M109: 9.195712123 | N109: 7.132638039 | O109: 11.43502872 | P109: 7.858342491 | Q109: 6.147753426 | R109: 9.579298762 | S109: 7.143005246 | T109: 4.53046922 | U109: 9.745174065
A110: South East | B110: Southampton | C110: 171395 | D110: 1483 | E110: 1105 | F110: 1872 | G110: 1273 | H110: 995 | I110: 1592 | J110: 1115 | K110: 666 | L110: 1559 | M110: 8.652527787 | N110: 6.44709589 | O110: 10.92213892 | P110: 7.427287844 | Q110: 5.805303539 | R110: 9.288485662 | S110: 6.505440649 | T110: 3.885760962 | U110: 9.095947956
A111: South East | B111: Surrey | C111: 734879 | D111: 2966 | E111: 2664 | F111: 3468 | G111: 2409 | H111: 2183 | I111: 2824 | J111: 2243 | K111: 1737 | L111: 2741 | M111: 4.036038586 | N111: 3.625086579 | O111: 4.71914424 | P111: 3.278090679 | Q111: 2.970557058 | R111: 3.842809497 | S111: 3.052203152 | T111: 2.363654425 | U111: 3.729865733
A112: South East | B112: West Berkshire | C112: 99340 | D112: 524 | E112: 438 | F112: 716 | G112: 488 | H112: 406 | I112: 643 | J112: 337 | K112: 245 | L112: 510 | M112: 5.274813771 | N112: 4.40910006 | O112: 7.207569962 | P112: 4.912421985 | Q112: 4.086974029 | R112: 6.472719952 | S112: 3.392389772 | T112: 2.466277431 | U112: 5.133883632
A113: South East | B113: West Sussex | C113: 504057 | D113: 2646 | E113: 1524 | F113: 3732 | G113: 2230 | H113: 1336 | I113: 3095 | J113: 1927 | K113: 573 | L113: 3259 | M113: 5.249406317 | N113: 3.023467584 | O113: 7.403924556 | P113: 4.42410283 | Q113: 2.650493893 | R113: 6.140178591 | S113: 3.822980338 | T113: 1.136776198 | U113: 6.46553862
A114: South East | B114: Windsor and Maidenhead | C114: 93244 | D114: 531 | E114: 428 | F114: 687 | G114: 448 | H114: 359 | I114: 701 | J114: 383 | K114: 251 | L114: 647 | M114: 5.694736391 | N114: 4.590107674 | O114: 7.367766291 | P114: 4.804598687 | Q114: 3.85011368 | R114: 7.51791 | S114: 4.107502896 | T114: 2.691862211 | U114: 6.938784265
A115: South East | B115: Wokingham | C115: 101119 | D115: 340 | E115: 253 | F115: 644 | G115: 277 | H115: 203 | I115: 468 | J115: 162 | K115: 102 | L115: 337 | M115: 3.362375023 | N115: 2.502002591 | O115: 6.368733868 | P115: 2.73934671 | Q115: 2.007535676 | R115: 4.628210326 | S115: 1.602072805 | T115: 1.008712507 | U115: 3.332707009
A116: South West | B116: Bath and North East Somerset | C116: 119089 | D116: 1007 | E116: 809 | F116: 1608 | G116: 984 | H116: 782 | I116: 1599 | J116: 449 | K116: 322 | L116: 750 | M116: 8.455860743 | N116: 6.79323867 | O116: 13.50250653 | P116: 8.262727876 | Q116: 6.566517479 | R116: 13.4269328 | S116: 3.770289447 | T116: 2.703860138 | U116: 6.297810881
A117: South West | B117: Bournemouth | C117: 128164 | D117: 1854 | E117: 1638 | F117: 2439 | G117: 1510 | H117: 1393 | I117: 1873 | J117: 1114 | K117: 889 | L117: 1500 | M117: 14.46584064 | N117: 12.78049998 | O117: 19.03030492 | P117: 11.78177959 | Q117: 10.86888674 | R117: 14.6140882 | S117: 8.69198839 | T117: 6.936425205 | U117: 11.70375456
A118: South West | B118: Bristol, City of | C118: 305261 | D118: 4709 | E118: 4006 | F118: 5420 | G118: 4116 | H118: 3598 | I118: 4670 | J118: 3710 | K118: 2824 | L118: 4584 | M118: 15.42614353 | N118: 13.12319622 | O118: 17.75529793 | P118: 13.48354359 | Q118: 11.78663504 | R118: 15.29838401 | S118: 12.15353419 | T118: 9.251099878 | U118: 15.01665788
A119: South West | B119: Cornwall (UA) and Isles of Scilly (UA) | C119: 331779 | D119: 2111 | E119: 1843 | F119: 2665 | G119: 2093 | H119: 1824 | I119: 2608 | J119: 783 | K119: 71 | L119: 1604 | M119: 6.362669126 | N119: 5.55490251 | O119: 8.032455339 | P119: 6.308416144 | Q119: 5.497635474 | R119: 7.860654231 | S119: 2.360004702 | T119: 0.2139978721 | U119: 4.834543476
A120: South West | B120: Devon | C120: 462711 | D120: 2147 | E120: 1949 | F120: 2471 | G120: 2113 | H120: 1918 | I120: 2414 | J120: 996 | K120: 518 | L120: 1229 | M120: 4.640045298 | N120: 4.212132411 | O120: 5.340266387 | P120: 4.566565308 | Q120: 4.145135949 | R120: 5.217079343 | S120: 2.152531494 | T120: 1.119489271 | U120: 2.656085548
A121: South West | B121: Dorset | C121: 240957 | D121: 1647 | E121: 1415 | F121: 2340 | G121: 1389 | H121: 1204 | I121: 1910 | J121: 823 | K121: 205 | L121: 1487 | M121: 6.835244463 | N121: 5.87241707 | O121: 9.711276286 | P121: 5.764514 | Q121: 4.996742157 | R121: 7.926725515 | S121: 3.415547172 | T121: 0.8507742045 | U121: 6.171225571
A122: South West | B122: Gloucestershire | C122: 385736 | D122: 2829 | E122: 1981 | F122: 3658 | G122: 2418 | H122: 1743 | I122: 3070 | J122: 1938 | K122: 900 | L122: 2880 | M122: 7.334031566 | N122: 5.135636809 | O122: 9.483169836 | P122: 6.268535994 | Q122: 4.518634507 | R122: 7.958811208 | S122: 5.024161603 | T122: 2.333201983 | U122: 7.466246345
A123: West Midlands | B123: Staffordshire | C123: 545413 | D123: 3446 | E123: 3143 | F123: 3939 | G123: 2679 | H123: 2506 | I123: 2965 | J123: 1991 | K123: 568 | L123: 3325 | M123: 6.318147899 | N123: 5.762605585 | O123: 7.222050079 | P123: 4.911874121 | Q123: 4.594683295 | R123: 5.436247394 | S123: 3.650444709 | T123: 1.041412654 | U123: 6.096297668
A124: South West | B124: Plymouth | C124: 172792 | D124: 2108 | E124: 1925 | F124: 2530 | G124: 2019 | H124: 1841 | I124: 2404 | J124: 686 | K124: 435 | L124: 1198 | M124: 12.19963887 | N124: 11.14056206 | O124: 14.64188157 | P124: 11.68456873 | Q124: 10.65442845 | R124: 13.91268114 | S124: 3.970091208 | T124: 2.517477661 | U124: 6.933191351
A125: South West | B125: Poole | C125: 92591 | D125: 558 | E125: 421 | F125: 1118 | G125: 432 | H125: 343 | I125: 869 | J125: 446 | K125: 225 | L125: 1033 | M125: 6.026503656 | N125: 4.546878206 | O125: 12.07460768 | P125: 4.66568025 | Q125: 3.704463717 | R125: 9.385361428 | S125: 4.81688285 | T125: 2.430041797 | U125: 11.15659189
A126: South West | B126: Somerset | C126: 328146 | D126: 1929 | E126: 1730 | F126: 2325 | G126: 1647 | H126: 1496 | I126: 1960 | J126: 718 | K126: 534 | L126: 1099 | M126: 5.87848092 | N126: 5.272043542 | O126: 7.085260829 | P126: 5.019107349 | Q126: 4.558946323 | R126: 5.972951064 | S126: 2.188050441 | T126: 1.627324423 | U126: 3.34911899
A127: South West | B127: South Gloucestershire | C127: 174887 | D127: 1043 | E127: 655 | F127: 1429 | G127: 888 | H127: 603 | I127: 1209 | J127: 931 | K127: 548 | L127: 1173 | M127: 5.963850944 | N127: 3.745275521 | O127: 8.170990411 | P127: 5.07756437 | Q127: 3.44794067 | R127: 6.913035274 | S127: 5.32343742 | T127: 3.133451886 | U127: 6.70718807
A128: South West | B128: Swindon | C128: 142703 | D128: 1153 | E128: 828 | F128: 1492 | G128: 912 | H128: 822 | I128: 1099 | J128: 919 | K128: 503 | L128: 1335 | M128: 8.079718016 | N128: 5.802260639 | O128: 10.45528125 | P128: 6.390895777 | Q128: 5.760215272 | R128: 7.701309713 | S128: 6.439948705 | T128: 3.524803263 | U128: 9.355094147
A129: South West | B129: Torbay | C129: 78628 | D129: 775 | E129: 672 | F129: 946 | G129: 740 | H129: 654 | I129: 1024 | J129: 232 | K129: 46 | L129: 437 | M129: 9.856539655 | N129: 8.54657374 | O129: 12.03133744 | P129: 9.411405606 | Q129: 8.317647657 | R129: 13.02335046 | S129: 2.950602839 | T129: 0.5850333215 | U129: 5.557816554
A130: South West | B130: Wiltshire | C130: 300610 | D130: 1485 | E130: 1236 | F130: 3105 | G130: 1141 | H130: 970 | I130: 1491 | J130: 978 | K130: 251 | L130: 1764 | M130: 4.939955424 | N130: 4.111639666 | O130: 10.3289977 | P130: 3.795615582 | Q130: 3.22677223 | R130: 4.95991484 | S130: 3.253384784 | T130: 0.8349688966 | U130: 5.868068261
A131: West Midlands | B131: Birmingham | C131: 720045 | D131: 9705 | E131: 8184 | F131: 11470 | G131: 8234 | H131: 6933 | I131: 9398 | J131: 6689 | K131: 4692 | L131: 8743 | M131: 13.47832427 | N131: 11.36595629 | O131: 15.92955996 | P131: 11.4353964 | Q131: 9.628564881 | R131: 13.05196203 | S131: 9.289697172 | T131: 6.5162594 | U131: 12.14229666
A132: West Midlands | B132: Coventry | C132: 225702 | D132: 1874 | E132: 1698 | F132: 2157 | G132: 1805 | H132: 1605 | I132: 2198 | J132: 1234 | K132: 1064 | L132: 1490 | M132: 8.30298358 | N132: 7.5231943 | O132: 9.556849297 | P132: 7.997270738 | Q132: 7.111146556 | R132: 9.738504754 | S132: 5.4673862 | T132: 4.714180645 | U132: 6.601625152
A133: West Midlands | B133: Dudley | C133: 196837 | D133: 2010 | E133: 1565 | F133: 2450 | G133: 1595 | H133: 1460 | I133: 1846 | J133: 1049 | K133: 896 | L133: 1244 | M133: 10.21149479 | N133: 7.950740968 | O133: 12.44684688 | P133: 8.103151338 | Q133: 7.417304673 | R133: 9.378318101 | S133: 5.329282604 | T133: 4.551989717 | U133: 6.319950009
A134: West Midlands | B134: Herefordshire, County of | C134: 114416 | D134: 942 | E134: 776 | F134: 1468 | G134: 830 | H134: 711 | I134: 1281 | J134: 393 | K134: 113 | L134: 706 | M134: 8.23311425 | N134: 6.782268214 | O134: 12.83037337 | P134: 7.254230178 | Q134: 6.214165851 | R134: 11.19598658 | S134: 3.434834289 | T134: 0.9876241085 | U134: 6.170465669
A135: West Midlands | B135: Sandwell | C135: 202511 | D135: 2151 | E135: 1728 | F135: 2624 | G135: 1807 | H135: 1458 | I135: 2157 | J135: 1766 | K135: 1469 | L135: 2177 | M135: 10.62164524 | N135: 8.532869819 | O135: 12.95732084 | P135: 8.922972085 | Q135: 7.19960891 | R135: 10.65127326 | S135: 8.720513947 | T135: 7.253926947 | U135: 10.75003333
A136: West Midlands | B136: Shropshire | C136: 190920 | D136: 1202 | E136: 1059 | F136: 1460 | G136: 1111 | H136: 995 | I136: 1484 | J136: 556 | K136: 452 | L136: 722 | M136: =D136/$C136*1000 -> 6.295830714 | N136: =E136/$C136*1000 -> 5.546825896 | O136: =F136/$C136*1000 -> 7.647182066 | P136: =G136/$C136*1000 -> 5.819191284 | Q136: =H136/$C136*1000 -> 5.211606956 | R136: =I136/$C136*1000 -> 7.772889168 | S136: =J136/$C136*1000 -> 2.91221454 | T136: =K136/$C136*1000 -> 2.367483763 | U136: =L136/$C136*1000 -> 3.781688665
A137: West Midlands | B137: Solihull | C137: 129403 | D137: 961 | E137: 678 | F137: 1261 | G137: 936 | H137: 736 | I137: 1310 | J137: 377 | K137: 315 | L137: 463 | M137: 7.426412062 | N137: 5.239445762 | O137: 9.744750894 | P137: 7.233217159 | Q137: 5.687657937 | R137: 10.1234129 | S137: 2.913379133 | T137: 2.434255775 | U137: 3.577969599
A138: West Midlands | B138: Staffordshire | C138: 545413 | D138: 3446 | E138: 3143 | F138: 3939 | G138: 2679 | H138: 2506 | I138: 2965 | J138: 1991 | K138: 568 | L138: 3325 | M138: 6.318147899 | N138: 5.762605585 | O138: 7.222050079 | P138: 4.911874121 | Q138: 4.594683295 | R138: 5.436247394 | S138: 3.650444709 | T138: 1.041412654 | U138: 6.096297668
A139: West Midlands | B139: Stoke-on-Trent | C139: 162135 | D139: 2654 | E139: 2282 | F139: 3036 | G139: 2510 | H139: 2258 | I139: 2991 | J139: 1434 | K139: 1100 | L139: 1990 | M139: 16.36907515 | N139: 14.07469084 | O139: 18.72513646 | P139: 15.48092639 | Q139: 13.92666605 | R139: 18.44758997 | S139: 8.844481451 | T139: 6.784469732 | U139: 12.27372252
A140: West Midlands | B140: Telford and Wrekin | C140: 109678 | D140: 929 | E140: 824 | F140: 1202 | G140: 765 | H140: 691 | I140: 1002 | J140: 644 | K140: 361 | L140: 931 | M140: 8.470249275 | N140: 7.512901402 | O140: 10.95935374 | P140: 6.974963074 | Q140: 6.300260763 | R140: 9.135833987 | S140: 5.87173362 | T140: 3.291453163 | U140: 8.488484473
A141: West Midlands | B141: Walsall | C141: 171470 | D141: 1906 | E141: 1740 | F141: 2227 | G141: 1627 | H141: 1491 | I141: 1879 | J141: 1376 | K141: 1186 | L141: 1630 | M141: 11.11564705 | N141: 10.14754768 | O141: 12.98769464 | P141: 9.488540269 | Q141: 8.695398612 | R141: 10.95818511 | S141: 8.024727358 | T141: 6.916661807 | U141: 9.506036041
A142: West Midlands | B142: Warwickshire | C142: 348267 | D142: 2100 | E142: 1843 | F142: 2574 | G142: 2085 | H142: 1766 | I142: 2552 | J142: 1291 | K142: 1024 | L142: 1571 | M142: 6.029856403 | N142: 5.291916834 | O142: 7.390881134 | P142: 5.986786 | Q142: 5.070822099 | R142: 7.32771121 | S142: 3.706926008 | T142: 2.940272837 | U142: 4.510906862
A143: West Midlands | B143: Wolverhampton | C143: 162435 | D143: 2172 | E143: 1951 | F143: 2602 | G143: 1904 | H143: 1708 | I143: 2247 | J143: 1679 | K143: 1264 | L143: 2132 | M143: 13.37150245 | N143: 12.01095823 | O143: 16.01871518 | P143: 11.72161172 | Q143: 10.51497522 | R143: 13.8332256 | S143: 10.33644227 | T143: 7.781574168 | U143: 13.1252501
A144: West Midlands | B144: Worcestershire | C144: 358670 | D144: 2770 | E144: 1906 | F144: 3589 | G144: 2382 | H144: 1752 | I144: 2996 | J144: 1451 | K144: 452 | L144: 2383 | M144: 7.722976552 | N144: 5.314077007 | O144: 10.00641258 | P144: 6.641202219 | Q144: 4.884712967 | R144: 8.35308222 | S144: 4.045501436 | T144: 1.260211336 | U144: 6.643990297
A145: Yorkshire and the Humber | B145: Barnsley | C145: 152786 | D145: 1851 | E145: 1608 | F145: 2247 | G145: 1534 | H145: 1355 | I145: 1930 | J145: 782 | K145: 528 | L145: 1225 | M145: 12.11498436 | N145: 10.5245245 | O145: 14.70684487 | P145: 10.04018693 | Q145: 8.868613616 | R145: 12.63204744 | S145: 5.118269999 | T145: 3.455814014 | U145: 8.017750317
A146: Yorkshire and the Humber | B146: Bradford | C146: 335998 | D146: 4785 | E146: 3963 | F146: 5579 | G146: 4104 | H146: 3512 | I146: 4698 | J146: 3308 | K146: 2354 | L146: 4213 | M146: 14.2411562 | N146: 11.79471306 | O146: 16.6042655 | P146: 12.21435842 | Q146: 10.45244317 | R146: 13.98222608 | S146: 9.845296698 | T146: 7.005994083 | U146: 12.53876511
A147: Yorkshire and the Humber | B147: Calderdale | C147: 133093 | D147: 1556 | E147: 1248 | F147: 1848 | G147: 1352 | H147: 1181 | I147: 1710 | J147: 946 | K147: 608 | L147: 1292 | M147: 11.69107316 | N147: 9.376901866 | O147: 13.88502776 | P147: 10.15831035 | Q147: 8.873494474 | R147: 12.84815881 | S147: 7.107811831 | T147: 4.568234242 | U147: 9.707497765
A148: Yorkshire and the Humber | B148: Doncaster | C148: 194486 | D148: 2337 | E148: 1890 | F148: 2808 | G148: 2116 | H148: 1777 | I148: 2479 | J148: 842 | K148: 337 | L148: 1353 | M148: 12.01628909 | N148: 9.717923141 | O148: 14.43805724 | P148: 10.87996051 | Q148: 9.136904456 | R148: 12.74641877 | S148: 4.329360468 | T148: 1.732772539 | U148: 6.956798947
A149: Yorkshire and the Humber | B149: East Riding of Yorkshire | C149: 205162 | D149: 945 | E149: 817 | F149: 1225 | G149: 859 | H149: 751 | I149: 1027 | J149: 545 | K149: 88 | L149: 1101 | M149: 4.606116142 | N149: 3.982218929 | O149: 5.970891296 | P149: 4.186935202 | Q149: 3.660521929 | R149: 5.005800294 | S149: 2.656437352 | T149: 0.4289293339 | U149: 5.366490871
A150: Yorkshire and the Humber | B150: Kingston upon Hull, City of | C150: 172910 | D150: 3309 | E150: 2832 | F150: 3731 | G150: 2855 | H150: 2499 | I150: 3186 | J150: 902 | K150: 591 | L150: 1429 | M150: 19.13712336 | N150: 16.37846278 | O150: 21.57769938 | P150: 16.51147996 | Q150: 14.4526054 | R150: 18.42577063 | S150: 5.216586664 | T150: 3.417963102 | U150: 8.264415014
A151: Yorkshire and the Humber | B151: Kirklees | C151: 277251 | D151: 2487 | E151: 2227 | F151: 3022 | G151: 2338 | H151: 1875 | I151: 2820 | J151: 1776 | K151: 1016 | L151: 2555 | M151: 8.970211108 | N151: 8.032432705 | O151: 10.89987051 | P151: 8.432791947 | Q151: 6.762825021 | R151: 10.17128883 | S151: 6.40574786 | T151: 3.664549452 | U151: 9.215476229
A152: Yorkshire and the Humber | B152: Leeds | C152: 513431 | D152: 5517 | E152: 4337 | F152: 6703 | G152: 4739 | H152: 3888 | I152: 5655 | J152: 3274 | K152: 1907 | L152: 4623 | M152: 10.74535819 | N152: 8.447094157 | O152: 13.05530831 | P152: 9.230062073 | Q152: 7.572585216 | R152: 11.01413822 | S152: 6.376708847 | T152: 3.714228397 | U152: 9.004131032
A153: Yorkshire and the Humber | B153: North East Lincolnshire | C153: 100541 | D153: 1469 | E153: 1222 | F153: 1693 | G153: 1300 | H153: 1114 | I153: 1482 | J153: 693 | K153: 472 | L153: 1125 | M153: 14.61095473 | N153: 12.15424553 | O153: 16.83890154 | P153: 12.93004844 | Q153: 11.08005689 | R153: 14.74025522 | S153: 6.892710437 | T153: 4.694602202 | U153: 11.18946499
A154: Yorkshire and the Humber | B154: North Lincolnshire | C154: 106441 | D154: 1321 | E154: 1066 | F154: 1558 | G154: 1166 | H154: 979 | I154: 1340 | J154: 579 | K154: 481 | L154: 728 | M154: 12.41063124 | N154: 10.01493785 | O154: 14.63721686 | P154: 10.95442546 | Q154: 9.197583638 | R154: 12.58913389 | S154: 5.439633224 | T154: 4.518935373 | U154: 6.839469753
A155: Yorkshire and the Humber | B155: North Yorkshire | C155: 368824 | D155: 1953 | E155: 1735 | F155: 2295 | G155: 1798 | H155: 1622 | I155: 2178 | J155: 1099 | K155: 254 | L155: 2042 | M155: 5.295208555 | N155: 4.704140728 | O155: 6.222480099 | P155: 4.874953908 | Q155: 4.397761534 | R155: 5.905255623 | S155: 2.979741015 | T155: 0.6886753574 | U155: 5.536516062
A156: Yorkshire and the Humber | B156: Rotherham | C156: 164360 | D156: 1904 | E156: 1699 | F156: 2382 | G156: 1614 | H156: 1466 | I156: 1916 | J156: 830 | K156: 597 | L156: 1246 | M156: 11.58432709 | N156: 10.33706498 | O156: 14.49257727 | P156: 9.81990752 | Q156: 8.91944512 | R156: 11.65733755 | S156: 5.049890484 | T156: 3.632270625 | U156: 7.580919932
A157: Yorkshire and the Humber | B157: Sheffield | C157: 375998 | D157: 3668 | E157: 2812 | F157: 4601 | G157: 3245 | H157: 2553 | I157: 3861 | J157: 2546 | K157: 2018 | L157: 3207 | M157: 9.755371039 | N157: 7.478763185 | O157: 12.23676722 | P157: 8.630365055 | Q157: 6.789929734 | R157: 10.26867164 | S157: 6.771312613 | T157: 5.367049825 | U157: 8.529300688
A158: Yorkshire and the Humber | B158: Wakefield | C158: 212883 | D158: 2634 | E158: 2408 | F158: 3019 | G158: 2343 | H158: 2167 | I158: 2638 | J158: 984 | K158: 457 | L158: 1547 | M158: 12.37299362 | N158: 11.31137761 | O158: 14.18149876 | P158: 11.00604557 | Q158: 10.17930037 | R158: 12.39178328 | S158: 4.622257296 | T158: 2.14671909 | U158: 7.266902477
A159: Yorkshire and the Humber | B159: York | C159: 137590 | D159: 926 | E159: 835 | F159: 1213 | G159: 858 | H159: 780 | I159: 1073 | J159: 305 | K159: 178 | L159: 576 | M159: 6.730140272 | N159: 6.068754997 | O159: 8.816047678 | P159: 6.235918308 | Q159: 5.669016644 | R159: 7.79853187 | S159: 2.216730867 | T159: 1.29369867 | U159: 4.186350752
A160: East of England | B160: East of England | C160: 3803990 | D160: 25910 | E160: 23146 | F160: 28708 | G160: 21827 | H160: 20086 | I160: 23861 | J160: 17408 | K160: 14005 | L160: 20606 | M160: 6.81126922 | N160: 6.084663735 | O160: 7.546812689 | P160: 5.73792255 | Q160: 5.280245216 | R160: 6.272624271 | S160: 4.576247572 | T160: 3.681660572 | U160: 5.416943788
A161: East Midlands | B161: East Midlands | C161: 2977879 | D161: 25057 | E161: 23108 | F161: 27064 | G161: 22163 | H161: 20635 | I161: 24262 | J161: 12331 | K161: 10451 | L161: 14255 | M161: 8.414378153 | N161: 7.759885476 | O161: 9.08834778 | P161: 7.442545516 | Q161: 6.92942863 | R161: 8.147409616 | S161: 4.140866704 | T161: 3.509544881 | U161: 4.786964145
A162: London | B162: London | C162: 5915778 | D162: 52487 | E162: 50955 | F162: 55550 | G162: 40750 | H162: 39407 | I162: 42995 | J162: 39226 | K162: 37364 | L162: 41940 | M162: 8.872374859 | N162: 8.613406385 | O162: 9.390142767 | P162: 6.888358556 | Q162: 6.661338542 | R162: 7.267852174 | S162: 6.630742398 | T162: 6.315990898 | U162: 7.089515529
A163: North East | B163: North East | C163: 1692377 | D163: 17675 | E163: 17116 | F163: 19120 | G163: 15414 | H163: 14945 | I163: 16643 | J163: 6331 | K163: 4965 | L163: 8002 | M163: 10.44389046 | N163: 10.1135858 | O163: 11.29771913 | P163: 9.107899717 | Q163: 8.830774703 | R163: 9.834097249 | S163: 3.740892248 | T163: 2.933743486 | U163: 4.728260902
A164: North West | B164: North West | C164: 4592973 | D164: 48814 | E164: 46661 | F164: 52097 | G164: 42647 | H164: 41029 | I164: 45239 | J164: 28685 | K164: 25980 | L164: 31979 | M164: 10.62797452 | N164: 10.15921496 | O164: 11.34276208 | P164: 9.285271218 | Q164: 8.932993945 | R164: 9.84961157 | S164: 6.245410108 | T164: 5.656466955 | U164: 6.962592639
A165: South East | B165: South East | C165: 5640833 | D165: 32734 | E165: 30175 | F165: 35974 | G165: 28639 | H165: 26645 | I165: 32162 | J165: 22126 | K165: 20015 | L165: 24583 | M165: 5.803043628 | N165: 5.349387227 | O165: 6.37742688 | P165: 5.077087019 | Q165: 4.723593129 | R165: 5.701640166 | S165: 3.922470316 | T165: 3.548234809 | U165: 4.358044282
A166: South West | B166: South West | C166: 3389047 | D166: 26622 | E166: 25586 | F166: 29474 | G166: 23545 | H166: 22834 | I166: 25830 | J166: 15380 | K166: 13116 | L166: 17255 | M166: 7.855305636 | N166: 7.54961498 | O166: 8.696840144 | P166: 6.947380783 | Q166: 6.737587292 | R166: 7.621611621 | S166: 4.538148925 | T166: 3.870114519 | U166: 5.091401801
A167: West Midlands | B167: West Midlands | C167: 3637902 | D167: 34822 | E167: 33090 | F167: 37580 | G167: 30270 | H167: 28991 | I167: 32519 | J167: 21930 | K167: 19184 | L167: 24835 | M167: 9.572000565 | N167: 9.095901979 | O167: 10.33012984 | P167: 8.320729915 | Q167: 7.96915365 | R167: 8.93894338 | S167: 6.02819977 | T167: 5.273369101 | U167: 6.826736949
A168: Yorkshire and the Humber | B168: Yorkshire and the Humber | C168: 3451754 | D168: 36662 | E168: 34971 | F168: 38800 | G168: 32221 | H168: 30834 | I168: 34026 | J168: 19411 | K168: 17130 | L168: 21989 | M168: 10.62126675 | N168: 10.13137089 | O168: 11.24066199 | P168: 9.334674487 | Q168: 8.932849792 | R168: 9.857597036 | S168: 5.623517783 | T168: 4.962694329 | U168: 6.370384448
A169: ENGLAND | B169: ENGLAND | C169: 35102533 | D169: 300783 | E169: 297986 | F169: 311128 | G169: 257476 | H169: 255440 | I169: 266643 | J169: 182828 | K169: 176675 | L169: 190782 | M169: 8.568697877 | N169: 8.489017018 | O169: 8.863405954 | P169: 7.334969246 | Q169: 7.276967733 | R169: 7.596118491 | S169: 5.208399063 | T169: 5.033112568 | U169: 5.434992398

Sheet 2014-15 Prev Estimates by Age
A1: National and local prevalence estimates by age band and rates per 1,000 population with 95% confidence intervals (CI) - 2014/15
A4: Region | B4: Local authority | C4: 15-24 population | D4: 25-34 population | E4: 35-64 population | F4: Number of users | X4: Rate per thousand of the population
F5: 15-24 | L5: 25-34 | R5: 35-64 | X5: 15-24 | AD5: 25-34 | AJ5: 35-64
F6: OCU | G6: Lower bound 95% CI | H6: Upper bound 95% CI | I6: Opiate users | J6: Lower bound 95% CI | K6: Upper bound 95% CI | L6: OCU | M6: Lower bound 95% CI | N6: Upper bound 95% CI | O6: Opiate users | P6: Lower bound 95% CI | Q6: Upper bound 95% CI | R6: OCU | S6: Lower bound 95% CI | T6: Upper bound 95% CI | U6: Opiate users | V6: Lower bound 95% CI | W6: Upper bound 95% CI | X6: OCU | Y6: Lower bound 95% CI | Z6: Upper bound 95% CI | AA6: Opiate users | AB6: Lower bound 95% CI | AC6: Upper bound 95% CI | AD6: OCU | AE6: Lower bound 95% CI | AF6: Upper bound 95% CI | AG6: Opiate users | AH6: Lower bound 95% CI | AI6: Upper bound 95% CI | AJ6: OCU | AK6: Lower bound 95% CI | AL6: Upper bound 95% CI | AM6: Opiate users | AN6: Lower bound 95% CI | AO6: Upper bound 95% CI
A9: East Midlands | B9: Derby | C9: 35502 | D9: 36132 | E9: 91265 | F9: 294 | G9: 189 | H9: 491 | I9: 190 | J9: 128 | K9: 323 | L9: 941 | M9: 799 | N9: 1183 | O9: 803 | P9: 682 | Q9: 991 | R9: 1082 | S9: 910 | T9: 1378 | U9: 996 | V9: 864 | W9: 1204 | X9: 8.281223593 | Y9: 5.323643738 | Z9: 13.83020675 | AA9: 5.351811166 | AB9: 3.60543068 | AC9: 9.098078981 | AD9: 26.04339644 | AE9: 22.11336212 | AF9: 32.74106056 | AG9: 22.22406731 | AH9: 18.87523525 | AI9: 27.42721134 | AJ9: 11.85558538 | AK9: 9.970963677 | AL9: 15.09888785 | AM9: 10.91327453 | AN9: 9.466936942 | AO9: 13.19235194
A10: East Midlands | B10: Derbyshire | C10: 88262 | D10: 85905 | E10: 320442 | F10: 300 | G10: 179 | H10: 529 | I10: 177 | J10: 107 | K10: 289 | L10: 1307 | M10: 847 | N10: 1973 | O10: 1134 | P10: 727 | Q10: 1748 | R10: 2436 | S10: 1549 | T10: 3245 | U10: 2170 | V10: 1486 | W10: 2817 | X10: 3.398971245 | Y10: 2.028052843 | Z10: 5.993519295 | AA10: 2.005393034 | AB10: 1.212299744 | AC10: 3.274342299 | AD10: 15.21448111 | AE10: 9.85972877 | AF10: 22.96723124 | AG10: 13.2006286 | AH10: 8.462836855 | AI10: 20.3480589 | AJ10: 7.601999738 | AK10: 4.833948109 | AL10: 10.12663758 | AM10: 6.771896318 | AN10: 4.637344668 | AO10: 8.790982455
A11: East Midlands | B11: Leicester | C11: 60114 | D11: 55359 | E11: 114277 | F11: 345 | G11: 102 | H11: 563 | I11: 115 | J11: 79 | K11: 190 | L11: 921 | M11: 655 | N11: 1268 | O11: 792 | P11: 609 | Q11: 1057 | R11: 1532 | S11: 1207 | T11: 1830 | U11: 1391 | V11: 1068 | W11: 1687 | X11: 5.739095718 | Y11: 1.696776125 | Z11: 9.36553881 | AA11: 1.913031906 | AB11: 1.314169744 | AC11: 3.16066141 | AD11: 16.63686121 | AE11: 11.83186112 | AF11: 22.90503802 | AG11: 14.30661681 | AH11: 11.00092126 | AI11: 19.09355299 | AJ11: 13.40602221 | AK11: 10.56205536 | AL11: 16.01372105 | AM11: 12.17217813 | AN11: 9.345712611 | AO11: 14.76237563
A12: East Midlands | B12: Leicestershire | C12: 85921 | D12: 74209 | E12: 266765 | F12: 407 | G12: 97 | H12: 687 | I12: 244 | J12: 48 | K12: 557 | L12: 928 | M12: 485 | N12: 1787 | O12: 833 | P12: 479 | Q12: 1365 | R12: 1365 | S12: 856 | T12: 1897 | U12: 1208 | V12: 652 | W12: 1791 | X12: 4.736909487 | Y12: 1.12894403 | Z12: 7.995716996 | AA12: 2.839817972 | AB12: 0.5586527159 | AC12: 6.482699224 | AD12: 12.50522174 | AE12: 6.535595413 | AF12: 24.08063712 | AG12: 11.22505356 | AH12: 6.454742686 | AI12: 18.39399534 | AJ12: 5.116863157 | AK12: 3.208816749 | AL12: 7.111127772 | AM12: 4.528330178 | AN12: 2.444098739 | AO12: 6.713774296
A13: East Midlands | B13: Lincolnshire | C13: 86077 | D13: 81039 | E13: 284580 | F13: 206 | G13: 138 | H13: 340 | I13: 251 | J13: 83 | K13: 561 | L13: 1179 | M13: 853 | N13: 1658 | O13: 1062 | P13: 683 | Q13: 1589 | R13: 1715 | S13: 1252 | T13: 2202 | U13: 1616 | V13: 1120 | W13: 2142 | X13: 2.393206083 | Y13: 1.603215725 | Z13: 3.949951787 | AA13: 2.915993819 | AB13: 0.9642529363 | AC13: 6.517420449 | AD13: 14.5485507 | AE13: 10.52579622 | AF13: 20.45928504 | AG13: 13.10480139 | AH13: 8.42804082 | AI13: 19.60784314 | AJ13: 6.026424907 | AK13: 4.39946588 | AL13: 7.737718743 | AM13: 5.678543819 | AN13: 3.935624429 | AO13: 7.52688172
A14: East Midlands | B14: Northamptonshire | C14: 81586 | D14: 90023 | E14: 286402 | F14: 360 | G14: 115 | H14: 589 | I14: 177 | J14: 43 | K14: 423 | L14: 1159 | M14: 785 | N14: 1556 | O14: 672 | P14: 451 | Q14: 929 | R14: 1896 | S14: 1313 | T14: 2475 | U14: 2059 | V14: 1477 | W14: 2675 | X14: 4.412521756 | Y14: 1.409555561 | Z14: 7.219375873 | AA14: 2.169489863 | AB14: 0.5270512098 | AC14: 5.184713064 | AD14: 12.87448763 | AE14: 8.719993779 | AF14: 17.28447175 | AG14: 7.464759006 | AH14: 5.009830821 | AI14: 10.31958499 | AJ14: 6.620065502 | AK14: 4.584465192 | AL14: 8.641699429 | AM14: 7.189195606 | AN14: 5.157086892 | AO14: 9.340018575
A15: East Midlands | B15: Nottingham | C15: 73083 | D15: 49015 | E15: 100203 | F15: 324 | G15: 89 | H15: 665 | I15: 188 | J15: 54 | K15: 444 | L15: 630 | M15: 450 | N15: 922 | O15: 637 | P15: 435 | Q15: 880 | R15: 1746 | S15: 1489 | T15: 2204 | U15: 1575 | V15: 1296 | W15: 2008 | X15: 4.433315545 | Y15: 1.217793468 | Z15: 9.099243326 | AA15: 2.572417662 | AB15: 0.7388859242 | AC15: 6.075284266 | AD15: 12.8532082 | AE15: 9.180863001 | AF15: 18.81056819 | AG15: 12.99602163 | AH15: 8.874834234 | AI15: 17.95368765 | AJ15: 17.42462801 | AK15: 14.85983454 | AL15: 21.99534944 | AM15: 15.71809227 | AN15: 12.9337445 | AO15: 20.03932018
A16: East Midlands | B16: Nottinghamshire | C16: 92078 | D16: 93339 | E16: 322992 | F16: 941 | G16: 316 | H16: 2421 | I16: 197 | J16: 135 | K16: 356 | L16: 1123 | M16: 617 | N16: 1658 | O16: 1502 | P16: 1232 | Q16: 2043 | R16: 1853 | S16: 852 | T16: 2471 | U16: 2119 | V16: 1778 | W16: 2892 | X16: 10.21959643 | Y16: 3.431872977 | Z16: 26.29292556 | AA16: 2.139490432 | AB16: 1.466148266 | AC16: 3.866287278 | AD16: 12.03141238 | AE16: 6.610312945 | AF16: 17.76320723 | AG16: 16.09188014 | AH16: 13.19919862 | AI16: 21.8879568 | AJ16: 5.736984198 | AK16: 2.637836231 | AL16: 7.650344281 | AM16: 6.560534007 | AN16: 5.504780304 | AO16: 8.953782137
A17: East Midlands | B17: Rutland | C17: 4693 | D17: 3886 | E17: 14730 | F17: 15 | G17: 1 | H17: 28 | I17: 10 | J17: 0 | K17: 32 | L17: 23 | M17: 3 | N17: 53 | O17: 19 | P17: 3 | Q17: 46 | R17: 29 | S17: 4 | T17: 56 | U17: 26 | V17: 5 | W17: 61 | X17: 3.196249734 | Y17: 0.2130833156 | Z17: 5.966332836 | AA17: 2.130833156 | AB17: 0 | AC17: 6.818666098 | AD17: 5.91868245 | AE17: 0.7720020587 | AF17: 13.63870304 | AG17: 4.889346372 | AH17: 0.7720020587 | AI17: 11.8373649 | AJ17: 1.968771215 | AK17: 0.2715546504 | AL17: 3.801765105 | AM17: 1.765105227 | AN17: 0.339443313 | AO17: 4.141208418
A18: East of England | B18: Bedfordshire (Bedford UA / Central Bedfordshire UA) | C18: 49396 | D18: 54868 | E18: 175052 | F18: 120 | G18: 63 | H18: 258 | I18: 146 | J18: 43 | K18: 332 | L18: 761 | M18: 538 | N18: 984 | O18: 601 | P18: 378 | Q18: 956 | R18: 1314 | S18: 906 | T18: 1704 | U18: 1082 | V18: 685 | W18: 1444 | X18: 2.429346506 | Y18: 1.275406916 | Z18: 5.223094987 | AA18: 2.955704915 | AB18: 0.8705158312 | AC18: 6.721191999 | AD18: 13.8696508 | AE18: 9.805351024 | AF18: 17.93395057 | AG18: 10.95356127 | AH18: 6.8892615 | AI18: 17.42363491 | AJ18: 7.506340973 | AK18: 5.175604963 | AL18: 9.734250394 | AM18: 6.181020497 | AN18: 3.913122958 | AO18: 8.248977447
A19: East of England | B19: Cambridgeshire | C19: 82458 | D19: 84559 | E19: 249590 | F19: 353 | G19: 162 | H19: 840 | I19: 191 | J19: 41 | K19: 510 | L19: 634 | M19: 441 | N19: 812 | O19: 593 | P19: 290 | Q19: 984 | R19: 1240 | S19: 873 | T19: 1512 | U19: 1170 | V19: 815 | W19: 1655 | X19: 4.28096728 | Y19: 1.964636542 | Z19: 10.18700429 | AA19: 2.316330738 | AB19: 0.4972228286 | AC19: 6.184966892 | AD19: 7.497723483 | AE19: 5.215293464 | AF19: 9.602762568 | AG19: 7.01285493 | AH19: 3.42955806 | AI19: 11.63684528 | AJ19: 4.968147762 | AK19: 3.497736288 | AL19: 6.057935013 | AM19: 4.687687808 | AN19: 3.265355182 | AO19: 6.630874634
A20: East of England | B20: Essex | C20: 167106 | D20: 166437 | E20: 563278 | F20: 785 | G20: 268 | H20: 1224 | I20: 504 | J20: 109 | K20: 1249 | L20: 1686 | M20: 1044 | N20: 2378 | O20: 998 | P20: 525 | Q20: 1736 | R20: 2992 | S20: 1881 | T20: 4100 | U20: 2990 | V20: 1706 | W20: 4239 | X20: 4.697617081 | Y20: 1.603772456 | Z20: 7.324692112 | AA20: 3.016049693 | AB20: 0.6522805884 | AC20: 7.474297751 | AD20: 10.12995908 | AE20: 6.272643703 | AF20: 14.28768843 | AG20: 5.99626285 | AH20: 3.15434669 | AI20: 10.43037305 | AJ20: 5.311764351 | AK20: 3.339381265 | AL20: 7.27882147 | AM20: 5.308213706 | AN20: 3.02869986 | AO20: 7.525591271
A21: East of England | B21: Hertfordshire | C21: 132353 | D21: 151329 | E21: 460495 | F21: 702 | G21: 190 | H21: 1192 | I21: 264 | J21: 162 | K21: 457 | L21: 1138 | M21: 526 | N21: 2306 | O21: 958 | P21: 753 | Q21: 1228 | R21: 2386 | S21: 1410 | T21: 3455 | U21: 2196 | V21: 1825 | W21: 2709 | X21: 5.303997643 | Y21: 1.435554918 | Z21: 9.006218219 | AA21: 1.99466578 | AB21: 1.223999456 | AC21: 3.452887354 | AD21: 7.52003912 | AE21: 3.475870454 | AF21: 15.2383218 | AG21: 6.330577748 | AH21: 4.975913407 | AI21: 8.114769806 | AJ21: 5.181380905 | AK21: 3.061922496 | AL21: 7.502795904 | AM21: 4.76878142 | AN21: 3.963126635 | AO21: 5.88280003
A22: East of England | B22: Luton | C22: 29070 | D22: 36840 | E22: 72957 | F22: 196 | G22: 70 | H22: 375 | I22: 85 | J22: 37 | K22: 175 | L22: 632 | M22: 468 | N22: 819 | O22: 418 | P22: 309 | Q22: 566 | R22: 887 | S22: 680 | T22: 1113 | U22: 908 | V22: 705 | W22: 1105 | X22: 6.742346061 | Y22: 2.407980736 | Z22: 12.8998968 | AA22: 2.923976608 | AB22: 1.272789818 | AC22: 6.01995184 | AD22: 17.15526602 | AE22: 12.70358306 | AF22: 22.23127036 | AG22: 11.34636265 | AH22: 8.38762215 | AI22: 15.36373507 | AJ22: 12.1578464 | AK22: 9.320558685 | AL22: 15.2555615 | AM22: 12.44568719 | AN22: 9.663226284 | AO22: 15.14590786
A23: East of England | B23: Norfolk | C23: 102071 | D23: 100992 | E23: 331539 | F23: 232 | G23: 177 | H23: 328 | I23: 221 | J23: 148 | K23: 381 | L23: 1181 | M23: 998 | N23: 1404 | O23: 971 | P23: 698 | Q23: 1407 | R23: 2568 | S23: 2281 | T23: 2923 | U23: 2339 | V23: 1838 | W23: 2796 | X23: 2.272927668 | Y23: 1.734087057 | Z23: 3.213449462 | AA23: 2.165159546 | AB23: 1.449971099 | AC23: 3.732695869 | AD23: 11.69399556 | AE23: 9.881970849 | AF23: 13.90209125 | AG23: 9.61462294 | AH23: 6.91143853 | AI23: 13.93179658 | AJ23: 7.745695077 | AK23: 6.88003523 | AL23: 8.816458999 | AM23: 7.054976941 | AN23: 5.543842504 | AO23: 8.433396976
A24: East of England | B24: Peterborough | C24: 22763 | D24: 30167 | E24: 70562 | F24: 104 | G24: 59 | H24: 203 | I24: 81 | J24: 38 | K24: 167 | L24: 802 | M24: 608 | N24: 1049 | O24: 479 | P24: 355 | Q24: 625 | R24: 631 | S24: 453 | T24: 803 | U24: 792 | V24: 611 | W24: 977 | X24: 4.568817818 | Y24: 2.591925493 | Z24: 8.917980934 | AA24: 3.558406185 | AB24: 1.669375741 | AC24: 7.336467074 | AD24: 26.5853416 | AE24: 20.15447343 | AF24: 34.77309643 | AG24: 15.87827759 | AH24: 11.76782577 | AI24: 20.71800312 | AJ24: 8.942490292 | AK24: 6.419886058 | AL24: 11.38006292 | AM24: 11.22417165 | AN24: 8.659051614 | AO24: 13.84597942
A25: East of England | B25: Southend-on-Sea | C25: 20262 | D25: 22796 | E25: 69415 | F25: 93 | G25: 28 | H25: 208 | I25: 50 | J25: 28 | K25: 123 | L25: 262 | M25: 208 | N25: 340 | O25: 240 | P25: 170 | Q25: 365 | R25: 678 | S25: 571 | T25: 829 | U25: 641 | V25: 521 | W25: 835 | X25: 4.589872668 | Y25: 1.381897147 | Z25: 10.26552167 | AA25: 2.467673477 | AB25: 1.381897147 | AC25: 6.070476755 | AD25: 11.49324443 | AE25: 9.124407791 | AF25: 14.91489735 | AG25: 10.52816284 | AH25: 7.457448675 | AI25: 16.01158098 | AJ25: 9.767341353 | AK25: 8.225887776 | AL25: 11.94266369 | AM25: 9.23431535 | AN25: 7.505582367 | AO25: 12.02910034
A26: East of England | B26: Suffolk | C26: 80912 | D26: 85666 | E26: 284058 | F26: 212 | G26: 106 | H26: 394 | I26: 254 | J26: 64 | K26: 621 | L26: 833 | M26: 439 | N26: 1431 | O26: 671 | P26: 362 | Q26: 1082 | R26: 1806 | S26: 1088 | T26: 2571 | U26: 1466 | V26: 903 | W26: 2071 | X26: 2.620130512 | Y26: 1.310065256 | Z26: 4.869487839 | AA26: 3.139212972 | AB26: 0.7909827961 | AC26: 7.675004944 | AD26: 9.72381108 | AE26: 5.124553498 | AF26: 16.70441015 | AG26: 7.83274578 | AH26: 4.225713819 | AI26: 12.63044849 | AJ26: 6.357856494 | AK26: 3.830203691 | AL26: 9.050968464 | AM26: 5.160917841 | AN26: 3.178928247 | AO26: 7.290764562
A27: East of England | B27: Thurrock | C27: 19647 | D27: 23392 | E27: 63960 | F27: 163 | G27: 37 | H27: 560 | I27: 47 | J27: 10 | K27: 114 | L27: 139 | M27: 40 | N27: 264 | O27: 146 | P27: 65 | Q27: 256 | R27: 380 | S27: 111 | T27: 628 | U27: 325 | V27: 210 | W27: 535 | X27: 8.296432025 | Y27: 1.883239171 | Z27: 28.50307935 | AA27: 2.392222731 | AB27: 0.5089835598 | AC27: 5.802412582 | AD27: 5.942202462 | AE27: 1.70998632 | AF27: 11.28590971 | AG27: 6.241450068 | AH27: 2.77872777 | AI27: 10.94391245 | AJ27: 5.941213258 | AK27: 1.735459662 | AL27: 9.818636648 | AM27: 5.081300813 | AN27: 3.283302064 | AO27: 8.364602877
A28: London | B28: Barking and Dagenham | C28: 25945 | D28: 31949 | E28: 69747 | F28: 114 | G28: 75 | H28: 224 | I28: 82 | J28: 53 | K28: 157 | L28: 446 | M28: 347 | N28: 585 | O28: 333 | P28: 263 | Q28: 451 | R28: 590 | S28: 465 | T28: 739 | U28: 446 | V28: 370 | W28: 574 | X28: 4.393910195 | Y28: 2.890730391 | Z28: 8.633648102 | AA28: 3.160531894 | AB28: 2.04278281 | AC28: 6.051262286 | AD28: 13.95974835 | AE28: 10.86105981 | AF28: 18.31043225 | AG28: 10.42286144 | AH28: 8.231869542 | AI28: 14.11624777 | AJ28: 8.459145196 | AK28: 6.666953417 | AL28: 10.5954378 | AM28: 6.394540267 | AN28: 5.304887665 | AO28: 8.229744649
A29: London | B29: Barnet | C29: 43452 | D29: 63758 | E29: 141057 | F29: 334 | G29: 123 | H29: 971 | I29: 112 | J29: 32 | K29: 291 | L29: 352 | M29: 207 | N29: 586 | O29: 327 | P29: 210 | Q29: 550 | R29: 982 | S29: 611 | T29: 1556 | U29: 951 | V29: 691 | W29: 1299 | X29: 7.686642732 | Y29: 2.830709749 | Z29: 22.34649728 | AA29: 2.577556844 | AB29: 0.7364448127 | AC29: 6.697045015 | AD29: 5.520875812 | AE29: 3.246651401 | AF29: 9.191003482 | AG29: 5.128768155 | AH29: 3.293704319 | AI29: 8.626368456 | AJ29: 6.961724693 | AK29: 4.331582268 | AL29: 11.03100165 | AM29: 6.74195538 | AN29: 4.898728883 | AO29: 9.209043153
A30: London | B30: Bexley | C30: 30587 | D30: 31144 | E30: 92033 | F30: 123 | G30: 31 | H30: 347 | I30: 71 | J30: 16 | K30: 188 | L30: 187 | M30: 120 | N30: 403 | O30: 198 | P30: 88 | Q30: 336 | R30: 414 | S30: 286 | T30: 900 | U30: 272 | V30: 174 | W30: 457 | X30: 4.021316245 | Y30: 1.013502468 | Z30: 11.34468892 | AA30: 2.321247589 | AB30: 0.5230980482 | AC30: 6.146402066 | AD30: 6.004366812 | AE30: 3.853069612 | AF30: 12.93989211 | AG30: 6.35756486 | AH30: 2.825584382 | AI30: 10.78859491 | AJ30: 4.498386448 | AK30: 3.107580976 | AL30: 9.779100975 | AM30: 2.955461628 | AN30: 1.890626188 | AO30: 4.965610162
A31: London | B31: Brent | C31: 39590 | D31: 63474 | E31: 119142 | F31: 235 | G31: 136 | H31: 431 | I31: 185 | J31: 94 | K31: 351 | L31: 578 | M31: 391 | N31: 834 | O31: 365 | P31: 227 | Q31: 541 | R31: 1077 | S31: 758 | T31: 1468 | U31: 860 | V31: 599 | W31: 1141 | X31: 5.935842384 | Y31: 3.435210912 | Z31: 10.88658752 | AA31: 4.672897196 | AB31: 2.374336954 | AC31: 8.865875221 | AD31: 9.106090683 | AE31: 6.160002521 | AF31: 13.13923811 | AG31: 5.750385985 | AH31: 3.576267448 | AI31: 8.523174843 | AJ31: 9.039633379 | AK31: 6.362156083 | AL31: 12.32143157 | AM31: 7.21827735 | AN31: 5.027614108 | AO31: 9.576807507
A32: London | B32: Bromley | C32: 33842 | D32: 41109 | E32: 130061 | F32: 248 | G32: 101 | H32: 610 | I32: 87 | J32: 34 | K32: 341 | L32: 274 | M32: 151 | N32: 481 | O32: 167 | P32: 90 | Q32: 283 | R32: 699 | S32: 427 | T32: 1011 | U32: 616 | V32: 387 | W32: 854 | X32: 7.328172094 | Y32: 2.984457183 | Z32: 18.02493942 | AA32: 2.570770049 | AB32: 1.004668755 | AC32: 10.07623663 | AD32: 6.665207132 | AE32: 3.673161595 | AF32: 11.70060084 | AG32: 4.06237077 | AH32: 2.189301613 | AI32: 6.884137294 | AJ32: 5.374401242 | AK32: 3.283074865 | AL32: 7.773275617 | AM32: 4.736239149 | AN32: 2.975526868 | AO32: 6.56614973
A33: London | B33: Camden | C33: 34359 | D33: 51571 | E33: 83480 | F33: 317 | G33: 153 | H33: 657 | I33: 202 | J33: 88 | K33: 441 | L33: 510 | M33: 349 | N33: 725 | O33: 419 | P33: 263 | Q33: 645 | R33: 1270 | S33: 928 | T33: 1563 | U33: 1097 | V33: 802 | W33: 1365 | X33: 9.226112518 | Y33: 4.452981752 | Z33: 19.12162752 | AA33: 5.87910009 | AB33: 2.561192119 | AC33: 12.83506505 | AD33: 9.889278858 | AE33: 6.767369258 | AF33: 14.05828857 | AG33: 8.124721258 | AH33: 5.099765372 | AI33: 12.50702914 | AJ33: 15.21322472 | AK33: 11.11643507 | AL33: 18.72304744 | AM33: 13.14087207 | AN33: 9.607091519 | AO33: 16.35122185
A34: London | B34: City of London | C34: 650 | D34: 1838 | E34: 3467 | F34: 4 | G34: 2 | H34: 7 | I34: 3 | J34: 1 | K34: 7 | L34: 12 | M34: 5 | N34: 18 | O34: 9 | P34: 3 | Q34: 17 | R34: 12 | S34: 6 | T34: 19 | U34: 11 | V34: 4 | W34: 19 | X34: 6.153846154 | Y34: 3.076923077 | Z34: 10.76923077 | AA34: 4.615384615 | AB34: 1.538461538 | AC34: 10.76923077 | AD34: 6.528835691 | AE34: 2.720348205 | AF34: 9.793253536 | AG34: 4.896626768 | AH34: 1.632208923 | AI34: 9.249183896 | AJ34: 3.461205653 | AK34: 1.730602827 | AL34: 5.480242284 | AM34: 3.172771849 | AN34: 1.153735218 | AO34: 5.480242284
A35: London | B35: Croydon | C35: 45432 | D35: 57225 | E35: 146914 | F35: 154 | G35: 99 | H35: 282 | I35: 116 | J35: 44 | K35: 292 | L35: 577 | M35: 417 | N35: 848 | O35: 365 | P35: 249 | Q35: 581 | R35: 1297 | S35: 976 | T35: 1630 | U35: 1005 | V35: 750 | W35: 1265 | X35: 3.389681282 | Y35: 2.179080824 | Z35: 6.207078711 | AA35: 2.55326642 | AB35: 0.9684803663 | AC35: 6.427187885 | AD35: 10.08300568 | AE35: 7.287024902 | AF35: 14.81869812 | AG35: 6.378331149 | AH35: 4.351245085 | AI35: 10.1529052 | AJ35: 8.828294104 | AK35: 6.643342364 | AL35: 11.09492628 | AM35: 6.840736758 | AN35: 5.105027431 | AO35: 8.6104796
A36: London | B36: Ealing | C36: 38826 | D36: 62801 | E36: 132214 | F36: 203 | G36: 126 | H36: 376 | I36: 138 | J36: 66 | K36: 276 | L36: 949 | M36: 681 | N36: 1267 | O36: 688 | P36: 491 | Q36: 959 | R36: 1312 | S36: 954 | T36: 1671 | U36: 1203 | V36: 885 | W36: 1502 | X36: 5.228455159 | Y36: 3.24524803 | Z36: 9.684232216 | AA36: 3.554319271 | AB36: 1.699891825 | AC36: 7.108638541 | AD36: 15.11122434 | AE36: 10.84377637 | AF36: 20.17483798 | AG36: 10.95523957 | AH36: 7.818346842 | AI36: 15.27045748 | AJ36: 9.923306155 | AK36: 7.21557475 | AL36: 12.63860106 | AM36: 9.098885141 | AN36: 6.693693557 | AO36: 11.36037031
A37: London | B37: Enfield | C37: 40867 | D37: 51040 | E37: 121782 | F37: 308 | G37: 170 | H37: 580 | I37: 332 | J37: 143 | K37: 815 | L37: 406 | M37: 295 | N37: 580 | O37: 352 | P37: 205 | Q37: 567 | R37: 1075 | S37: 837 | T37: 1424 | U37: 684 | V37: 418 | W37: 1108 | X37: 7.536643257 | Y37: 4.159835564 | Z37: 14.19238016 | AA37: 8.123914161 | AB37: 3.499155798 | AC37: 19.94274109 | AD37: 7.954545455 | AE37: 5.779780564 | AF37: 11.36363636 | AG37: 6.896551724 | AH37: 4.01645768 | AI37: 11.10893417 | AJ37: 8.82724869 | AK37: 6.872936887 | AL37: 11.69302524 | AM37: 5.616593585 | AN37: 3.432362747 | AO37: 9.098224697
A38: London | B38: Greenwich | C38: 34267 | D38: 50159 | E38: 100401 | F38: 145 | G38: 53 | H38: 251 | I38: 70 | J38: 29 | K38: 156 | L38: 552 | M38: 336 | N38: 861 | O38: 308 | P38: 180 | Q38: 474 | R38: 750 | S38: 480 | T38: 993 | U38: 733 | V38: 507 | W38: 968 | X38: 4.231476348 | Y38: 1.546677562 | Z38: 7.324831471 | AA38: 2.042781685 | AB38: 0.8462952695 | AC38: 4.552484898 | AD38: 11.00500409 | AE38: 6.69869814 | AF38: 17.16541398 | AG38: 6.140473295 | AH38: 3.588588289 | AI38: 9.449949162 | AJ38: 7.470045119 | AK38: 4.780828876 | AL38: 9.890339738 | AM38: 7.300724096 | AN38: 5.0497505 | AO38: 9.641338234
A39: London | B39: Hackney | C39: 30843 | D39: 71765 | E39: 89922 | F39: 197 | G39: 89 | H39: 321 | I39: 103 | J39: 69 | K39: 201 | L39: 906 | M39: 654 | N39: 1244 | O39: 479 | P39: 277 | Q39: 712 | R39: 1450 | S39: 1126 | T39: 1751 | U39: 1407 | V39: 1085 | W39: 1709 | X39: 6.38718672 | Y39: 2.885581818 | Z39: 10.4075479 | AA39: 3.339493564 | AB39: 2.237136465 | AC39: 6.51687579 | AD39: 12.62453842 | AE39: 9.113077405 | AF39: 17.33435519 | AG39: 6.674562809 | AH39: 3.859820247 | AI39: 9.921270814 | AJ39: 16.12508619 | AK39: 12.52196348 | AL39: 19.47243166 | AM39: 15.64689397 | AN39: 12.06601277 | AO39: 19.0053602
A40: London | B40: Hammersmith and Fulham | C40: 20402 | D40: 43798 | E40: 66717 | F40: 177 | G40: 74 | H40: 461 | I40: 116 | J40: 38 | K40: 387 | L40: 317 | M40: 192 | N40: 480 | O40: 160 | P40: 95 | Q40: 264 | R40: 1006 | S40: 711 | T40: 1260 | U40: 902 | V40: 638 | W40: 1113 | X40: 8.675620037 | Y40: 3.627095383 | Z40: 22.59582394 | AA40: 5.685717087 | AB40: 1.862562494 | AC40: 18.96872856 | AD40: 7.237773414 | AE40: 4.383761816 | AF40: 10.95940454 | AG40: 3.653134846 | AH40: 2.169048815 | AI40: 6.027672496 | AJ40: 15.07861565 | AK40: 10.656954 | AL40: 18.88574127 | AM40: 13.51979256 | AN40: 9.562780101 | AO40: 16.68240478
A41: London | B41: Haringey | C41: 32213 | D41: 57553 | E41: 102475 | F41: 136 | G41: 51 | H41: 272 | I41: 84 | J41: 40 | K41: 196 | L41: 494 | M41: 345 | N41: 703 | O41: 372 | P41: 193 | Q41: 593 | R41: 1226 | S41: 889 | T41: 1569 | U41: 950 | V41: 647 | W41: 1237 | X41: 4.221897991 | Y41: 1.583211747 | Z41: 8.443795983 | AA41: 2.607642877 | AB41: 1.241734703 | AC41: 6.084500047 | AD41: 8.583392699 | AE41: 5.994474658 | AF41: 12.21482807 | AG41: 6.463607457 | AH41: 3.353430751 | AI41: 10.3035463 | AJ41: 11.96389363 | AK41: 8.675286655 | AL41: 15.31105148 | AM41: 9.270553794 | AN41: 6.313735057 | AO41: 12.07123689
A42: London | B42: Harrow | C42: 28349 | D42: 39890 | E42: 94085 | F42: 153 | G42: 48 | H42: 329 | I42: 90 | J42: 32 | K42: 220 | L42: 396 | M42: 270 | N42: 586 | O42: 404 | P42: 263 | Q42: 685 | R42: 644 | S42: 479 | T42: 871 | U42: 508 | V42: 349 | W42: 831 | X42: 5.397015768 | Y42: 1.693181417 | Z42: 11.60534763 | AA42: 3.174715158 | AB42: 1.128787612 | AC42: 7.760414829 | AD42: 9.927300075 | AE42: 6.768613688 | AF42: 14.6903986 | AG42: 10.12785159 | AH42: 6.593131111 | AI42: 17.17222361 | AJ42: 6.844874316 | AK42: 5.09114099 | AL42: 9.257586225 | AM42: 5.399372907 | AN42: 3.709411702 | AO42: 8.832438752
A43: London | B43: Havering | C43: 30227 | D43: 32503 | E43: 93552 | F43: 164 | G43: 70 | H43: 389 | I43: 116 | J43: 43 | K43: 416 | L43: 199 | M43: 127 | N43: 309 | O43: 119 | P43: 66 | Q43: 226 | R43: 531 | S43: 357 | T43: 733 | U43: 511 | V43: 304 | W43: 867 | X43: 5.425612863 | Y43: 2.315810368 | Z43: 12.86928905 | AA43: 3.83762861 | AB43: 1.422569226 | AC43: 13.76253019 | AD43: 6.122511768 | AE43: 3.907331631 | AF43: 9.506814756 | AG43: 3.661200505 | AH43: 2.030581792 | AI43: 6.95320432 | AJ43: 5.675987686 | AK43: 3.816059518 | AL43: 7.83521464 | AM43: 5.462202839 | AN43: 3.249529673 | AO43: 9.267573114
A44: London | B44: Hillingdon | C44: 40787 | D44: 46796 | E44: 107989 | F44: 244 | G44: 149 | H44: 460 | I44: 272 | J44: 85 | K44: 696 | L44: 607 | M44: 457 | N44: 835 | O44: 323 | P44: 171 | Q44: 470 | R44: 1195 | S44: 955 | T44: 1582 | U44: 749 | V44: 408 | W44: 1032 | X44: 5.982298281 | Y44: 3.65312477 | Z44: 11.27810332 | AA44: 6.668791527 | AB44: 2.083997352 | AC44: 17.06426067 | AD44: 12.97119412 | AE44: 9.765791948 | AF44: 17.84340542 | AG44: 6.902299342 | AH44: 3.654158475 | AI44: 10.04359347 | AJ44: 11.0659419 | AK44: 8.843493319 | AL44: 14.64964024 | AM44: 6.935891619 | AN44: 3.778162591 | AO44: 9.556528906
A45: London | B45: Hounslow | C45: 31314 | D45: 51276 | E45: 100653 | F45: 204 | G45: 108 | H45: 388 | I45: 130 | J45: 75 | K45: 239 | L45: 592 | M45: 330 | N45: 852 | O45: 476 | P45: 281 | Q45: 642 | R45: 740 | S45: 484 | T45: 1060 | U45: 674 | V45: 476 | W45: 899 | X45: 6.51465798 | Y45: 3.448936578 | Z45: 12.390624 | AA45: 4.151497733 | AB45: 2.395094846 | AC45: 7.632368908 | AD45: 11.54536235 | AE45: 6.43575942 | AF45: 16.61596068 | AG45: 9.283095405 | AH45: 5.480146657 | AI45: 12.52047742 | AJ45: 7.351991496 | AK45: 4.808599843 | AL45: 10.53123106 | AM45: 6.696273335 | AN45: 4.729118854 | AO45: 8.931676155
A46: London | B46: Islington | C46: 32713 | D46: 59329 | E46: 75966 | F46: 219 | G46: 105 | H46: 470 | I46: 99 | J46: 52 | K46: 276 | L46: 486 | M46: 331 | N46: 678 | O46: 289 | P46: 142 | Q46: 454 | R46: 1463 | S46: 1144 | T46: 1768 | U46: 1361 | V46: 1074 | W46: 1628 | X46: 6.69458625 | Y46: 3.209733134 | Z46: 14.36737688 | AA46: 3.026319812 | AB46: 1.589582123 | AC46: 8.437012808 | AD46: 8.1916095 | AE46: 5.579059145 | AF46: 11.42780091 | AG46: 4.871142274 | AH46: 2.393433228 | AI46: 7.652244265 | AJ46: 19.2586157 | AK46: 15.05936866 | AL46: 23.27356975 | AM46: 17.91590975 | AN46: 14.1379038 | AO46: 21.43064002
A47: London | B47: Kensington and Chelsea | C47: 15598 | D47: 30183 | E47: 64443 | F47: 71 | G47: 23 | H47: 215 | I47: 20 | J47: 8 | K47: 142 | L47: 327 | M47: 210 | N47: 582 | O47: 138 | P47: 66 | Q47: 252 | R47: 852 | S47: 660 | T47: 1357 | U47: 636 | V47: 427 | W47: 797 | X47: 4.551865624 | Y47: 1.474548019 | Z47: 13.78381844 | AA47: 1.282215669 | AB47: 0.5128862675 | AC47: 9.103731248 | AD47: 10.83391313 | AE47: 6.957558891 | AF47: 19.2823775 | AG47: 4.572110128 | AH47: 2.186661366 | AI47: 8.349070669 | AJ47: 13.22098599 | AK47: 10.24160886 | AL47: 21.05736853 | AM47: 9.869186723 | AN47: 6.626010583 | AO47: 12.36751858
A48: London | B48: Kingston upon Thames | C48: 22921 | D48: 27620 | E48: 65513 | F48: 80 | G48: 29 | H48: 295 | I48: 43 | J48: 16 | K48: 161 | L48: 184 | M48: 103 | N48: 346 | O48: 156 | P48: 97 | Q48: 286 | R48: 289 | S48: 170 | T48: 483 | U48: 251 | V48: 155 | W48: 408 | X48: 3.490249117 | Y48: 1.265215305 | Z48: 12.87029362 | AA48: 1.8760089 | AB48: 0.6980498233 | AC48: 7.024126347 | AD48: 6.661839247 | AE48: 3.729181752 | AF48: 12.52715424 | AG48: 5.648081101 | AH48: 3.511947864 | AI48: 10.35481535 | AJ48: 4.411338208 | AK48: 2.594904828 | AL48: 7.372582541 | AM48: 3.831300658 | AN48: 2.365942637 | AO48: 6.227771587
A49: London | B49: Lambeth | C49: 36460 | D49: 89522 | E49: 113876 | F49: 176 | G49: 77 | H49: 364 | I49: 68 | J49: 45 | K49: 168 | L49: 581 | M49: 402 | N49: 799 | O49: 437 | P49: 286 | Q49: 640 | R49: 1630 | S49: 1223 | T49: 2069 | U49: 1313 | V49: 985 | W49: 1630 | X49: 4.827207899 | Y49: 2.111903456 | Z49: 9.983543609 | AA49: 1.865057597 | AB49: 1.234229292 | AC49: 4.607789358 | AD49: 6.490024798 | AE49: 4.490516298 | AF49: 8.925180403 | AG49: 4.881481647 | AH49: 3.194745426 | AI49: 7.149080673 | AJ49: 14.31381503 | AK49: 10.73975201 | AL49: 18.16888545 | AM49: 11.53008536 | AN49: 8.649759387 | AO49: 14.31381503
A50: London | B50: Lewisham | C50: 35161 | D50: 58697 | E50: 113170 | F50: 178 | G50: 72 | H50: 343 | I50: 114 | J50: 61 | K50: 239 | L50: 425 | M50: 275 | N50: 619 | O50: 313 | P50: 145 | Q50: 516 | R50: 1337 | S50: 961 | T50: 1720 | U50: 1059 | V50: 734 | W50: 1385 | X50: 5.062427121 | Y50: 2.04772333 | Z50: 9.755126418 | AA50: 3.242228606 | AB50: 1.73487671 | AC50: 6.797303831 | AD50: 7.240574476 | AE50: 4.685077602 | AF50: 10.54568377 | AG50: 5.332470143 | AH50: 2.470313645 | AI50: 8.790909246 | AJ50: 11.814085 | AK50: 8.49164973 | AL50: 15.19837413 | AM50: 9.357603605 | AN50: 6.485817796 | AO50: 12.23822568
A51: London | B51: Merton | C51: 20310 | D51: 39059 | E51: 80134 | F51: 78 | G51: 19 | H51: 162 | I51: 38 | J51: 7 | K51: 130 | L51: 200 | M51: 65 | N51: 359 | O51: 141 | P51: 53 | Q51: 332 | R51: 357 | S51: 168 | T51: 668 | U51: 313 | V51: 117 | W51: 501 | X51: 3.840472674 | Y51: 0.9354997538 | Z51: 7.976366322 | AA51: 1.870999508 | AB51: 0.344657804 | AC51: 6.400787789 | AD51: 5.120458793 | AE51: 1.664149108 | AF51: 9.191223534 | AG51: 3.609923449 | AH51: 1.35692158 | AI51: 8.499961597 | AJ51: 4.455037812 | AK51: 2.096488382 | AL51: 8.336037138 | AM51: 3.905957521 | AN51: 1.460054409 | AO51: 6.252027853
A52: London | B52: Newham | C52: 47979 | D52: 76673 | E52: 106704 | F52: 377 | G52: 163 | H52: 583 | I52: 162 | J52: 109 | K52: 257 | L52: 809 | M52: 536 | N52: 1074 | O52: 854 | P52: 630 | Q52: 1146 | R52: 1214 | S52: 833 | T52: 1773 | U52: 861 | V52: 631 | W52: 1109 | X52: 7.857604369 | Y52: 3.397319661 | Z52: 12.15114946 | AA52: 3.376477209 | AB52: 2.271827258 | AC52: 5.35651014 | AD52: 10.55130228 | AE52: 6.990726853 | AF52: 14.00753851 | AG52: 11.13821032 | AH52: 8.216712532 | AI52: 14.94659137 | AJ52: 11.37726796 | AK52: 7.806642675 | AL52: 16.61605938 | AM52: 8.069050832 | AN52: 5.913555256 | AO52: 10.39323737
A53: London | B53: Redbridge | C53: 36338 | D53: 50419 | E53: 107776 | F53: 168 | G53: 43 | H53: 350 | I53: 90 | J53: 32 | K53: 200 | L53: 370 | M53: 212 | N53: 594 | O53: 346 | P53: 194 | Q53: 537 | R53: 595 | S53: 356 | T53: 900 | U53: 459 | V53: 273 | W53: 670 | X53: 4.623259398 | Y53: 1.183334251 | Z53: 9.631790412 | AA53: 2.476746106 | AB53: 0.8806208377 | AC53: 5.503880236 | AD53: 7.338503342 | AE53: 4.204764077 | AF53: 11.78127293 | AG53: 6.862492314 | AH53: 3.847755806 | AI53: 10.65074674 | AJ53: 5.52070962 | AK53: 3.303147268 | AL53: 8.350653207 | AM53: 4.258833135 | AN53: 2.533031473 | AO53: 6.216597387
A54: London | B54: Richmond upon Thames | C54: 17477 | D54: 26848 | E54: 83068 | F54: 91 | G54: 23 | H54: 516 | I54: 52 | J54: 11 | K54: 137 | L54: 219 | M54: 80 | N54: 401 | O54: 177 | P54: 89 | Q54: 387 | R54: 512 | S54: 221 | T54: 789 | U54: 399 | V54: 252 | W54: 665 | X54: 5.20684328 | Y54: 1.316015334 | Z54: 29.52451794 | AA54: 2.975339017 | AB54: 0.6293986382 | AC54: 7.838873949 | AD54: 8.157032181 | AE54: 2.979737783 | AF54: 14.93593564 | AG54: 6.592669845 | AH54: 3.314958284 | AI54: 14.41448153 | AJ54: 6.163624982 | AK54: 2.660470939 | AL54: 9.498242404 | AM54: 4.803293687 | AN54: 3.033659171 | AO54: 8.005489478
A55: London | B55: Southwark | C55: 41327 | D55: 72493 | E55: 111415 | F55: 164 | G55: 68 | H55: 323 | I55: 144 | J55: 69 | K55: 418 | L55: 478 | M55: 219 | N55: 736 | O55: 341 | P55: 150 | Q55: 573 | R55: 1615 | S55: 1155 | T55: 2157 | U55: 1306 | V55: 960 | W55: 1645 | X55: 3.968349989 | Y55: 1.64541341 | Z55: 7.815713698 | AA55: 3.484404868 | AB55: 1.669610666 | AC55: 10.11445302 | AD55: 6.593740085 | AE55: 3.020981336 | AF55: 10.1527044 | AG55: 4.703902446 | AH55: 2.069165299 | AI55: 7.904211441 | AJ55: 14.4953552 | AK55: 10.36664722 | AL55: 19.36005026 | AM55: 11.72194049 | AN55: 8.616434053 | AO55: 14.76461877
A56: London | B56: Sutton | C56: 21657 | D56: 28189 | E56: 80362 | F56: 133 | G56: 48 | H56: 406 | I56: 69 | J56: 16 | K56: 188 | L56: 267 | M56: 146 | N56: 435 | O56: 215 | P56: 93 | Q56: 389 | R56: 436 | S56: 264 | T56: 670 | U56: 452 | V56: 261 | W56: 697 | X56: 6.141201459 | Y56: 2.216373459 | Z56: 18.74682551 | AA56: 3.186036847 | AB56: 0.738791153 | AC56: 8.680796047 | AD56: 9.471779772 | AE56: 5.179325269 | AF56: 15.43155131 | AG56: 7.627088581 | AH56: 3.299159247 | AI56: 13.79970911 | AJ56: 5.425449839 | AK56: 3.285134765 | AL56: 8.337273836 | AM56: 5.624548916 | AN56: 3.247803688 | AO56: 8.673253528
A57: London | B57: Tower Hamlets | C57: 41993 | D57: 83703 | E57: 86796 | F57: 410 | G57: 201 | H57: 809 | I57: 120 | J57: 55 | K57: 254 | L57: 852 | M57: 583 | N57: 1086 | O57: 697 | P57: 438 | Q57: 932 | R57: 1536 | S57: 1197 | T57: 1863 | U57: 1492 | V57: 1152 | W57: 1856 | X57: 9.763532017 | Y57: 4.786512038 | Z57: 19.26511561 | AA57: 2.857619127 | AB57: 1.3097421 | AC57: 6.048627152 | AD57: 10.17884664 | AE57: 6.965102804 | AF57: 12.97444536 | AG57: 8.327061157 | AH57: 5.232787355 | AI57: 11.13460688 | AJ57: 17.69666805 | AK57: 13.79095811 | AL57: 21.46412277 | AM57: 17.18973225 | AN57: 13.27250104 | AO57: 21.38347389
A58: London | B58: Waltham Forest | C58: 32585 | D58: 51970 | E58: 100580 | F58: 170 | G58: 102 | H58: 292 | I58: 180 | J58: 111 | K58: 351 | L58: 487 | M58: 319 | N58: 682 | O58: 448 | P58: 317 | Q58: 631 | R58: 821 | S58: 550 | T58: 1114 | U58: 702 | V58: 544 | W58: 965 | X58: 5.217124444 | Y58: 3.130274666 | Z58: 8.961178456 | AA58: 5.524014117 | AB58: 3.406475372 | AC58: 10.77182753 | AD58: 9.370790841 | AE58: 6.138156629 | AF58: 13.12295555 | AG58: 8.620357899 | AH58: 6.099672888 | AI58: 12.14162017 | AJ58: 8.162656592 | AK58: 5.468283953 | AL58: 11.07576059 | AM58: 6.979518791 | AN58: 5.408629946 | AO58: 9.594352754
A59: London | B59: Wandsworth | C59: 30592 | D59: 88895 | E59: 111305 | F59: 142 | G59: 61 | H59: 221 | I59: 90 | J59: 27 | K59: 219 | L59: 468 | M59: 227 | N59: 678 | O59: 237 | P59: 134 | Q59: 415 | R59: 887 | S59: 573 | T59: 1375 | U59: 813 | V59: 504 | W59: 1121 | X59: 4.641736402 | Y59: 1.993985356 | Z59: 7.224110879 | AA59: 2.941945607 | AB59: 0.882583682 | AC59: 7.15873431 | AD59: 5.264638056 | AE59: 2.553574442 | AF59: 7.626975645 | AG59: 2.666066708 | AH59: 1.507396366 | AI59: 4.668429046 | AJ59: 7.969093931 | AK59: 5.148016711 | AL59: 12.35344324 | AM59: 7.304254077 | AN59: 4.528098468 | AO59: 10.07142536
A60: London | B60: Westminster | C60: 25626 | D60: 54515 | E60: 90526 | F60: 172 | G60: 62 | H60: 625 | I60: 55 | J60: 18 | K60: 138 | L60: 487 | M60: 335 | N60: 684 | O60: 333 | P60: 238 | Q60: 485 | R60: 1590 | S60: 1231 | T60: 1977 | U60: 1115 | V60: 882 | W60: 1352 | X60: 6.711933193 | Y60: 2.419417779 | Z60: 24.38929213 | AA60: 2.146257707 | AB60: 0.7024116132 | AC60: 5.385155701 | AD60: 8.933321104 | AE60: 6.14509768 | AF60: 12.54700541 | AG60: 6.108410529 | AH60: 4.365770889 | AI60: 8.896633954 | AJ60: 17.56401476 | AK60: 13.59830325 | AL60: 21.83902967 | AM60: 12.31690343 | AN60: 9.743057243 | AO60: 14.93493582
A61: North East | B61: County Durham | C61: 11925 | D61: 12811 | E61: 41653 | F61: 239 | G61: 162 | H61: 386 | I61: 179 | J61: 64 | K61: 397 | L61: 942 | M61: 711 | N61: 1259 | O61: 826 | P61: 568 | Q61: 1105 | R61: 1130 | S61: 811 | T61: 1461 | U61: 996 | V61: 698 | W61: 1322 | X61: 20.04192872 | Y61: 13.58490566 | Z61: 32.36897275 | AA61: 15.01048218 | AB61: 5.36687631 | AC61: 33.29140461 | AD61: 73.53055968 | AE61: 55.49918039 | AF61: 98.27491999 | AG61: 64.47584107 | AH61: 44.33689798 | AI61: 86.25400047 | AJ61: 27.12889828 | AK61: 19.47038629 | AL61: 35.07550477 | AM61: 23.91184308 | AN61: 16.75749646 | AO61: 31.7384102
A62: North East | B62: Darlington | C62: 68825 | D62: 60220 | E62: 204431 | F62: 49 | G62: 30 | H62: 141 | I62: 31 | J62: 21 | K62: 74 | L62: 252 | M62: 179 | N62: 329 | O62: 200 | P62: 154 | Q62: 279 | R62: 505 | S62: 383 | T62: 620 | U62: 425 | V62: 355 | W62: 562 | X62: 0.7119505993 | Y62: 0.435888122 | Z62: 2.048674174 | AA62: 0.4504177261 | AB62: 0.3051216854 | AC62: 1.075190701 | AD62: 4.18465626 | AE62: 2.972434407 | AF62: 5.463301229 | AG62: 3.321155762 | AH62: 2.557289937 | AI62: 4.633012288 | AJ62: 2.470271143 | AK62: 1.873492768 | AL62: 3.032808136 | AM62: 2.078941061 | AN62: 1.736527239 | AO62: 2.749093826
A63: North East | B63: Gateshead | C63: 23624 | D63: 27796 | E63: 78193 | F63: 103 | G63: 65 | H63: 480 | I63: 152 | J63: 83 | K63: 335 | L63: 797 | M63: 615 | N63: 999 | O63: 677 | P63: 517 | Q63: 874 | R63: 862 | S63: 648 | T63: 1072 | U63: 786 | V63: 591 | W63: 993 | X63: 4.359972909 | Y63: 2.751439214 | Z63: 20.31832035 | AA63: 6.434134778 | AB63: 3.513376228 | AC63: 14.18049441 | AD63: 28.67319039 | AE63: 22.12548568 | AF63: 35.94042308 | AG63: 24.35602245 | AH63: 18.59979853 | AI63: 31.44337315 | AJ63: 11.02400471 | AK63: 8.287186833 | AL63: 13.70966711 | AM63: 10.0520507 | AN63: 7.558221324 | AO63: 12.69934649
A64: North East | B64: Hartlepool | C64: 11550 | D64: 11446 | E64: 35933 | F64: 47 | G64: 30 | H64: 129 | I64: 26 | J64: 20 | K64: 55 | L64: 333 | M64: 263 | N64: 444 | O64: 243 | P64: 209 | Q64: 321 | R64: 664 | S64: 562 | T64: 854 | U64: 649 | V64: 571 | W64: 798 | X64: 4.069264069 | Y64: 2.597402597 | Z64: 11.16883117 | AA64: 2.251082251 | AB64: 1.731601732 | AC64: 4.761904762 | AD64: 29.09313297 | AE64: 22.97745937 | AF64: 38.79084396 | AG64: 21.23012406 | AH64: 18.25965403 | AI64: 28.04473178 | AJ64: 18.47883561 | AK64: 15.6402193 | AL64: 23.76645423 | AM64: 18.06139204 | AN64: 15.89068544 | AO64: 22.20799822
A65: North East | B65: Middlesbrough | C65: 21314 | D65: 18877 | E65: 50281 | F65: 128 | G65: 93 | H65: 200 | I65: 105 | J65: 75 | K65: 182 | L65: 782 | M65: 626 | N65: 932 | O65: 647 | P65: 538 | Q65: 761 | R65: 1264 | S65: 1085 | T65: 1469 | U65: 1184 | V65: 1041 | W65: 1313 | X65: 6.005442432 | Y65: 4.363329267 | Z65: 9.3835038 | AA65: 4.926339495 | AB65: 3.518813925 | AC65: 8.538988458 | AD65: 41.42607406 | AE65: 33.16204905 | AF65: 49.37225195 | AG65: 34.27451396 | AH65: 28.50029136 | AI65: 40.31360915 | AJ65: 25.13872039 | AK65: 21.57872755 | AL65: 29.21580716 | AM65: 23.54766214 | AN65: 20.70364551 | AO65: 26.11324357
A66: North East | B66: Newcastle upon Tyne | C66: 60840 | D66: 44518 | E66: 95803 | F66: 255 | G66: 83 | H66: 487 | I66: 162 | J66: 50 | K66: 359 | L66: 729 | M66: 488 | N66: 1059 | O66: 638 | P66: 445 | Q66: 882 | R66: 1067 | S66: 818 | T66: 1319 | U66: 983 | V66: 712 | W66: 1274 | X66: 4.191321499 | Y66: 1.364234057 | Z66: 8.004602235 | AA66: 2.662721893 | AB66: 0.8218277449 | AC66: 5.900723208 | AD66: 16.37539872 | AE66: 10.96185812 | AF66: 23.78813064 | AG66: 14.33128173 | AH66: 9.995956692 | AI66: 19.81221079 | AJ66: 11.13743828 | AK66: 8.538354749 | AL66: 13.76783608 | AM66: 10.26063902 | AN66: 7.431917581 | AO66: 13.29812219
A67: North East | B67: North Tyneside | C67: 21459 | D67: 25791 | E67: 83146 | F67: 72 | G67: 41 | H67: 169 | I67: 44 | J67: 30 | K67: 97 | L67: 407 | M67: 284 | N67: 588 | O67: 375 | P67: 249 | Q67: 652 | R67: 629 | S67: 476 | T67: 882 | U67: 515 | V67: 401 | W67: 921 | X67: 3.355235565 | Y67: 1.910620253 | Z67: 7.87548348 | AA67: 2.050421734 | AB67: 1.398014819 | AC67: 4.520247915 | AD67: 15.78069869 | AE67: 11.01159319 | AF67: 22.79865069 | AG67: 14.5399558 | AH67: 9.65453065 | AI67: 25.28013648 | AJ67: 7.565006134 | AK67: 5.724869507 | AL67: 10.60784644 | AM67: 6.193923941 | AN67: 4.822841748 | AO67: 11.07690087
A68: North East | B68: Northumberland | C68: 33291 | D68: 32511 | E68: 130094 | F68: 168 | G68: 106 | H68: 320 | I68: 106 | J68: 71 | K68: 215 | L68: 441 | M68: 349 | N68: 639 | O68: 387 | P68: 314 | Q68: 520 | R68: 647 | S68: 533 | T68: 933 | U68: 599 | V68: 505 | W68: 782 | X68: 5.046408939 | Y68: 3.184043736 | Z68: 9.612207504 | AA68: 3.184043736 | AB68: 2.13270854 | AC68: 6.458201916 | AD68: 13.56463966 | AE68: 10.73482821 | AF68: 19.65488604 | AG68: 11.90366338 | AH68: 9.658269509 | AI68: 15.99458645 | AJ68: 4.973326979 | AK68: 4.097037527 | AL68: 7.171737359 | AM68: 4.604362999 | AN68: 3.881808538 | AO68: 6.011038172
A69: North East | B69: Redcar and Cleveland | C69: 15935 | D69: 15388 | E69: 52387 | F69: 185 | G69: 89 | H69: 440 | I69: 110 | J69: 60 | K69: 247 | L69: 440 | M69: 276 | N69: 720 | O69: 415 | P69: 309 | Q69: 594 | R69: 572 | S69: 395 | T69: 947 | U69: 428 | V69: 330 | W69: 587 | X69: 11.60966426 | Y69: 5.585189834 | Z69: 27.61217446 | AA69: 6.903043615 | AB69: 3.765296517 | AC69: 15.50047066 | AD69: 28.59370938 | AE69: 17.93605407 | AF69: 46.78970626 | AG69: 26.96906681 | AH69: 20.08058227 | AI69: 38.60150767 | AJ69: 10.91873938 | AK69: 7.540038559 | AL69: 18.07700384 | AM69: 8.169965831 | AN69: 6.29927272 | AO69: 11.20506996
A70: North East | B70: South Tyneside | C70: 17957 | D70: 18377 | E70: 59510 | F70: 153 | G70: 60 | H70: 418 | I70: 48 | J70: 18 | K70: 103 | L70: 232 | M70: 125 | N70: 321 | O70: 224 | P70: 159 | Q70: 291 | R70: 330 | S70: 191 | T70: 448 | U70: 316 | V70: 252 | W70: 415 | X70: 8.520354179 | Y70: 3.341315364 | Z70: 23.27783037 | AA70: 2.673052292 | AB70: 1.002394609 | AC70: 5.735924709 | AD70: 12.62447625 | AE70: 6.801980737 | AF70: 17.46748653 | AG70: 12.18914948 | AH70: 8.652119497 | AI70: 15.83501116 | AJ70: 5.545286506 | AK70: 3.209544614 | AL70: 7.52814653 | AM70: 5.310031927 | AN70: 4.234582423 | AO70: 6.973617879
A71: North East | B71: Stockton-On-Tees | C71: 24338 | D71: 25446 | E71: 75666 | F71: 183 | G71: 106 | H71: 367 | I71: 92 | J71: 57 | K71: 187 | L71: 917 | M71: 738 | N71: 1176 | O71: 802 | P71: 667 | Q71: 1012 | R71: 798 | S71: 618 | T71: 1011 | U71: 763 | V71: 620 | W71: 931 | X71: 7.519105925 | Y71: 4.355329115 | Z71: 15.07929986 | AA71: 3.780096968 | AB71: 2.3420166 | AC71: 7.683457967 | AD71: 36.03709817 | AE71: 29.00259373 | AF71: 46.21551521 | AG71: 31.51772381 | AH71: 26.2123713 | AI71: 39.77049438 | AJ71: 10.54634843 | AK71: 8.167472841 | AL71: 13.3613512 | AM71: 10.08378928 | AN71: 8.193904792 | AO71: 12.30407316
A72: North East | B72: Sunderland | C72: 36664 | D72: 34839 | E72: 109538 | F72: 145 | G72: 49 | H72: 286 | I72: 97 | J72: 28 | K72: 229 | L72: 570 | M72: 450 | N72: 679 | O72: 511 | P72: 311 | Q72: 722 | R72: 638 | S72: 470 | T72: 878 | U72: 673 | V72: 435 | W72: 939 | X72: 3.954833079 | Y72: 1.336460834 | Z72: 7.800567314 | AA72: 2.645646956 | AB72: 0.7636919049 | AC72: 6.245908793 | AD72: 16.36097477 | AE72: 12.91655903 | AF72: 19.4896524 | AG72: 14.66747036 | AH72: 8.926777462 | AI72: 20.72390137 | AJ72: 5.824462744 | AK72: 4.290748416 | AL72: 8.015483211 | AM72: 6.143986562 | AN72: 3.971224598 | AO72: 8.57236758
A73: North West | B73: Blackburn with Darwen | C73: 19113 | D73: 20476 | E73: 54589 | F73: 83 | G73: 34 | H73: 168 | I73: 51 | J73: 22 | K73: 123 | L73: 354 | M73: 262 | N73: 480 | O73: 284 | P73: 200 | Q73: 384 | R73: 926 | S73: 765 | T73: 1069 | U73: 875 | V73: 727 | W73: 1027 | X73: 4.342594046 | Y73: 1.778893947 | Z73: 8.789828912 | AA73: 2.66834092 | AB73: 1.151049024 | AC73: 6.435410454 | AD73: 17.28853292 | AE73: 12.79546786 | AF73: 23.44207853 | AG73: 13.86989646 | AH73: 9.767532721 | AI73: 18.75366282 | AJ73: 16.96312444 | AK73: 14.01381231 | AL73: 19.58269981 | AM73: 16.02887029 | AN73: 13.31770137 | AO73: 18.81331404
A74: North West | B74: Blackpool | C74: 16859 | D74: 16640 | E74: 54821 | F74: 76 | G74: 46 | H74: 148 | I74: 43 | J74: 27 | K74: 95 | L74: 398 | M74: 299 | N74: 501 | O74: 348 | P74: 262 | Q74: 435 | R74: 1288 | S74: 1096 | T74: 1472 | U74: 1168 | V74: 1017 | W74: 1314 | X74: 4.507977935 | Y74: 2.72851296 | Z74: 8.778693873 | AA74: 2.550566463 | AB74: 1.601518477 | AC74: 5.634972418 | AD74: 23.91826923 | AE74: 17.96875 | AF74: 30.10817308 | AG74: 20.91346154 | AH74: 15.74519231 | AI74: 26.14182692 | AJ74: 23.49464621 | AK74: 19.9923387 | AL74: 26.85102424 | AM74: 21.30570402 | AN74: 18.55128509 | AO74: 23.96891702
A75: North West | B75: Bolton | C75: 35574 | D75: 36773 | E75: 106536 | F75: 243 | G75: 129 | H75: 538 | I75: 115 | J75: 40 | K75: 256 | L75: 713 | M75: 532 | N75: 1024 | O75: 652 | P75: 488 | Q75: 923 | R75: 1792 | S75: 1446 | T75: 2296 | U75: 1779 | V75: 1460 | W75: 2256 | X75: 6.830831506 | Y75: 3.626243886 | Z75: 15.12340473 | AA75: 3.232698038 | AB75: 1.124416709 | AC75: 7.196266937 | AD75: 19.38922579 | AE75: 14.46713621 | AF75: 27.84651783 | AG75: 17.73040002 | AH75: 13.27060615 | AI75: 25.09993745 | AJ75: 16.82060524 | AK75: 13.57287677 | AL75: 21.55140047 | AM75: 16.69858076 | AN75: 13.70428775 | AO75: 21.17594053
A76: North West | B76: Bury | C76: 21772 | D76: 23627 | E76: 73637 | F76: 107 | G76: 18 | H76: 272 | I76: 51 | J76: 10 | K76: 125 | L76: 366 | M76: 256 | N76: 565 | O76: 180 | P76: 137 | Q76: 249 | R76: 695 | S76: 505 | T76: 1021 | U76: 504 | V76: 415 | W76: 613 | X76: 4.914569171 | Y76: 0.8267499541 | Z76: 12.49311042 | AA76: 2.342458203 | AB76: 0.45930553 | AC76: 5.741319125 | AD76: 15.49075211 | AE76: 10.83506158 | AF76: 23.91331951 | AG76: 7.618402675 | AH76: 5.798450925 | AI76: 10.53879037 | AJ76: 9.43819004 | AK76: 6.857965425 | AL76: 13.86531228 | AM76: 6.844385295 | AN76: 5.635753765 | AO76: 8.324619417
A77: North West | B77: Cheshire (Cheshire West, Cheshire East and Cheshire UA) | C77: 79403 | D77: 75646 | E77: 286960 | F77: 291 | G77: 67 | H77: 533 | I77: 178 | J77: 59 | K77: 736 | L77: 909 | M77: 644 | N77: 1193 | O77: 747 | P77: 390 | Q77: 1163 | R77: 2084 | S77: 1490 | T77: 2742 | U77: 1960 | V77: 1294 | W77: 2592 | X77: 3.664848935 | Y77: 0.8437968339 | Z77: 6.712592723 | AA77: 2.241728902 | AB77: 0.7430449731 | AC77: 9.26917119 | AD77: 12.0164979 | AE77: 8.513338445 | AF77: 15.77082727 | AG77: 9.874943817 | AH77: 5.155593158 | AI77: 15.37424319 | AJ77: 7.262336214 | AK77: 5.192361305 | AL77: 9.555338723 | AM77: 6.83022024 | AN77: 4.509339281 | AO77: 9.032617786
A78: North West | B78: Cumbria | C78: 54207 | D78: 52072 | E78: 202208 | F78: 146 | G78: 92 | H78: 273 | I78: 114 | J78: 71 | K78: 233 | L78: 702 | M78: 555 | N78: 919 | O78: 642 | P78: 496 | Q78: 843 | R78: 1896 | S78: 1644 | T78: 2312 | U78: 1931 | V78: 1675 | W78: 2412 | X78: 2.693379084 | Y78: 1.697197779 | Z78: 5.036249931 | AA78: 2.103049422 | AB78: 1.309793938 | AC78: 4.298337853 | AD78: 13.48133354 | AE78: 10.65831925 | AF78: 17.64864034 | AG78: 12.32908281 | AH78: 9.525272699 | AI78: 16.18912275 | AJ78: 9.376483621 | AK78: 8.130242127 | AL78: 11.43377117 | AM78: 9.549572717 | AN78: 8.283549612 | AO78: 11.92831144
A79: North West | B79: Halton | C79: 15105 | D79: 16101 | E79: 50503 | F79: 36 | G79: 15 | H79: 228 | I79: 13 | J79: 8 | K79: 39 | L79: 180 | M79: 117 | N79: 265 | O79: 132 | P79: 89 | Q79: 249 | R79: 483 | S79: 328 | T79: 611 | U79: 502 | V79: 360 | W79: 842 | X79: 2.383316783 | Y79: 0.9930486594 | Z79: 15.09433962 | AA79: 0.8606421715 | AB79: 0.5296259517 | AC79: 2.581926514 | AD79: 11.17942985 | AE79: 7.266629402 | AF79: 16.45860506 | AG79: 8.198248556 | AH79: 5.527606981 | AI79: 15.46487796 | AJ79: 9.56378829 | AK79: 6.494663683 | AL79: 12.09829119 | AM79: 9.940003564 | AN79: 7.128289409 | AO79: 16.67227689
A80: North West | B80: Knowsley | C80: 19350 | D80: 18689 | E80: 57480 | F80: 67 | G80: 20 | H80: 144 | I80: 42 | J80: 16 | K80: 192 | L80: 144 | M80: 89 | N80: 275 | O80: 101 | P80: 62 | Q80: 194 | R80: 879 | S80: 671 | T80: 1071 | U80: 806 | V80: 605 | W80: 937 | X80: 3.4625323 | Y80: 1.033591731 | Z80: 7.441860465 | AA80: 2.170542636 | AB80: 0.826873385 | AC80: 9.92248062 | AD80: 7.705067152 | AE80: 4.762159559 | AF80: 14.71453796 | AG80: 5.404248488 | AH80: 3.317459468 | AI80: 10.38043769 | AJ80: 15.29227557 | AK80: 11.67362561 | AL80: 18.63256785 | AM80: 14.02226862 | AN80: 10.52540014 | AO80: 16.3013222
A81: North West | B81: Lancashire | C81: 153660 | D81: 138771 | E81: 456901 | F81: 585 | G81: 173 | H81: 1129 | I81: 353 | J81: 78 | K81: 980 | L81: 1616 | M81: 1209 | N81: 2003 | O81: 1331 | P81: 918 | Q81: 1917 | R81: 4510 | S81: 3397 | T81: 5801 | U81: 4206 | V81: 3064 | W81: 5200 | X81: 3.807106599 | Y81: 1.125862293 | Z81: 7.347390342 | AA81: 2.297279708 | AB81: 0.5076142132 | AC81: 6.377717038 | AD81: 11.64508435 | AE81: 8.712194911 | AF81: 14.43385145 | AG81: 9.59134113 | AH81: 6.615214994 | AI81: 13.81412543 | AJ81: 9.870847295 | AK81: 7.434871011 | AL81: 12.69640469 | AM81: 9.205495282 | AN81: 6.706047918 | AO81: 11.38102127
A82: North West | B82: Liverpool | C82: 82382 | D82: 77643 | E82: 168926 | F82: 331 | G82: 124 | H82: 693 | I82: 189 | J82: 86 | K82: 450 | L82: 828 | M82: 629 | N82: 1085 | O82: 610 | P82: 362 | Q82: 908 | R82: 4098 | S82: 3480 | T82: 4707 | U82: 3795 | V82: 3178 | W82: 4367 | X82: 4.017867981 | Y82: 1.505183171 | Z82: 8.412031755 | AA82: 2.294190479 | AB82: 1.043917361 | AC82: 5.462358282 | AD82: 10.66419381 | AE82: 8.101181047 | AF82: 13.97421532 | AG82: 7.856471285 | AH82: 4.662364927 | AI82: 11.6945507 | AJ82: 24.25914306 | AK82: 20.60073642 | AL82: 27.86427193 | AM82: 22.46545825 | AN82: 18.81297136 | AO82: 25.8515563
A83: North West | B83: Manchester | C83: 102245 | D83: 107760 | E83: 162721 | F83: 332 | G83: 81 | H83: 813 | I83: 206 | J83: 54 | K83: 512 | L83: 808 | M83: 601 | N83: 1051 | O83: 569 | P83: 425 | Q83: 739 | R83: 3174 | S83: 2467 | T83: 3902 | U83: 2979 | V83: 2388 | W83: 3536 | X83: 3.247102548 | Y83: 0.7922147782 | Z83: 7.95148907 | AA83: 2.014768448 | AB83: 0.5281431855 | AC83: 5.007579833 | AD83: 7.498144024 | AE83: 5.577208612 | AF83: 9.75315516 | AG83: 5.280252413 | AH83: 3.943949517 | AI83: 6.85783222 | AJ83: 19.50577983 | AK83: 15.16091961 | AL83: 23.97969531 | AM83: 18.30740962 | AN83: 14.67542604 | AO83: 21.73044659
A84: North West | B84: Oldham | C84: 28996 | D84: 30935 | E84: 84487 | F84: 160 | G84: 43 | H84: 337 | I84: 59 | J84: 13 | K84: 159 | L84: 514 | M84: 384 | N84: 700 | O84: 276 | P84: 187 | Q84: 450 | R84: 988 | S84: 794 | T84: 1250 | U84: 980 | V84: 807 | W84: 1425 | X84: 5.518002483 | Y84: 1.482963167 | Z84: 11.62229273 | AA84: 2.034763416 | AB84: 0.4483377018 | AC84: 5.483514968 | AD84: 16.61548408 | AE84: 12.41312429 | AF84: 22.62809116 | AG84: 8.921933086 | AH84: 6.044932924 | AI84: 14.54663003 | AJ84: 11.69410679 | AK84: 9.397895534 | AL84: 14.79517559 | AM84: 11.59941766 | AN84: 9.55176536 | AO84: 16.86650017
A85: North West | B85: Rochdale | C85: 27260 | D85: 28594 | E85: 81302 | F85: 116 | G85: 56 | H85: 311 | I85: 47 | J85: 29 | K85: 153 | L85: 609 | M85: 402 | N85: 978 | O85: 276 | P85: 205 | Q85: 402 | R85: 1105 | S85: 816 | T85: 1512 | U85: 1089 | V85: 922 | W85: 1315 | X85: 4.255319149 | Y85: 2.054292003 | Z85: 11.40865737 | AA85: 1.724137931 | AB85: 1.063829787 | AC85: 5.612619222 | AD85: 21.29817444 | AE85: 14.05889347 | AF85: 34.20297965 | AG85: 9.652374624 | AH85: 7.169336224 | AI85: 14.05889347 | AJ85: 13.59130157 | AK85: 10.03665346 | AL85: 18.59732848 | AM85: 13.39450444 | AN85: 11.34043443 | AO85: 16.17426386
A86: North West | B86: Salford | C86: 33066 | D86: 42003 | E86: 86666 | F86: 91 | G86: 17 | H86: 250 | I86: 54 | J86: 9 | K86: 150 | L86: 335 | M86: 211 | N86: 504 | O86: 243 | P86: 164 | Q86: 344 | R86: 973 | S86: 689 | T86: 1267 | U86: 910 | V86: 684 | W86: 1142 | X86: 2.752071614 | Y86: 0.5141232686 | Z86: 7.560636303 | AA86: 1.633097441 | AB86: 0.2721829069 | AC86: 4.536381782 | AD86: 7.975620789 | AE86: 5.023450706 | AF86: 11.99914292 | AG86: 5.78530105 | AH86: 3.904483013 | AI86: 8.189891198 | AJ86: 11.22700944 | AK86: 7.950061154 | AL86: 14.61934323 | AM86: 10.50008077 | AN86: 7.892368403 | AO86: 13.17702444
A87: North West | B87: Sefton | C87: 30980 | D87: 29840 | E87: 107842 | F87: 83 | G87: 54 | H87: 162 | I87: 62 | J87: 37 | K87: 156 | L87: 316 | M87: 238 | N87: 459 | O87: 238 | P87: 166 | Q87: 388 | R87: 1287 | S87: 1123 | T87: 1531 | U87: 1315 | V87: 1140 | W87: 1789 | X87: 2.679147837 | Y87: 1.743060039 | Z87: 5.229180116 | AA87: 2.001291156 | AB87: 1.194318915 | AC87: 5.035506779 | AD87: 10.58981233 | AE87: 7.975871314 | AF87: 15.38203753 | AG87: 7.975871314 | AH87: 5.563002681 | AI87: 13.00268097 | AJ87: 11.93412585 | AK87: 10.41338254 | AL87: 14.19669517 | AM87: 12.19376495 | AN87: 10.57102057 | AO87: 16.58908403
A88: North West | B88: St. Helens | C88: 20777 | D88: 21669 | E88: 69863 | F88: 131 | G88: 56 | H88: 448 | I88: 57 | J88: 34 | K88: 116 | L88: 264 | M88: 177 | N88: 357 | O88: 206 | P88: 159 | Q88: 286 | R88: 991 | S88: 715 | T88: 1187 | U88: 875 | V88: 757 | W88: 1082 | X88: 6.305048852 | Y88: 2.695288059 | Z88: 21.56230447 | AA88: 2.743418203 | AB88: 1.636424893 | AC88: 5.583096693 | AD88: 12.18330334 | AE88: 8.168351101 | AF88: 16.47514883 | AG88: 9.506668513 | AH88: 7.337671328 | AI88: 13.19857861 | AJ88: 14.18490474 | AK88: 10.23431573 | AL88: 16.99039549 | AM88: 12.52451226 | AN88: 10.83549232 | AO88: 15.48745402
A89: North West | B89: Stockport | C89: 31090 | D89: 33861 | E89: 114980 | F89: 108 | G89: 40 | H89: 397 | I89: 53 | J89: 23 | K89: 292 | L89: 397 | M89: 260 | N89: 646 | O89: 277 | P89: 181 | Q89: 404 | R89: 1013 | S89: 780 | T89: 1373 | U89: 913 | V89: 689 | W89: 1138 | X89: 3.473785783 | Y89: 1.286587327 | Z89: 12.76937922 | AA89: 1.704728208 | AB89: 0.7397877131 | AC89: 9.392087488 | AD89: 11.72440271 | AE89: 7.678450134 | AF89: 19.07799533 | AG89: 8.180502643 | AH89: 5.345382594 | AI89: 11.93113021 | AJ89: 8.810227866 | AK89: 6.783788485 | AL89: 11.94120717 | AM89: 7.940511393 | AN89: 5.992346495 | AO89: 9.897373456
A90: North West | B90: Tameside | C90: 26334 | D90: 28856 | E90: 87108 | F90: 153 | G90: 59 | H90: 531 | I90: 49 | J90: 20 | K90: 227 | L90: 335 | M90: 234 | N90: 500 | O90: 318 | P90: 238 | Q90: 434 | R90: 908 | S90: 643 | T90: 1313 | U90: 831 | V90: 668 | W90: 942 | X90: 5.809979494 | Y90: 2.240449609 | Z90: 20.16404648 | AA90: 1.860712387 | AB90: 0.7594744437 | AC90: 8.620034936 | AD90: 11.60937067 | AE90: 8.109232049 | AF90: 17.32741891 | AG90: 11.02023843 | AH90: 8.2478514 | AI90: 15.04019961 | AJ90: 10.42384167 | AK90: 7.381641181 | AL90: 15.07324241 | AM90: 9.539881526 | AN90: 7.668641227 | AO90: 10.81416173
A91: North West | B91: Trafford | C91: 25082 | D91: 28915 | E91: 94239 | F91: 97 | G91: 24 | H91: 162 | I91: 60 | J91: 11 | K91: 153 | L91: 194 | M91: 108 | N91: 267 | O91: 148 | P91: 49 | Q91: 277 | R91: 567 | S91: 335 | T91: 845 | U91: 524 | V91: 313 | W91: 768 | X91: 3.867315206 | Y91: 0.9568614943 | Z91: 6.458815087 | AA91: 2.392153736 | AB91: 0.4385615182 | AC91: 6.099992026 | AD91: 6.709320422 | AE91: 3.735085596 | AF91: 9.233961612 | AG91: 5.118450631 | AH91: 1.694622168 | AI91: 9.57980287 | AJ91: 6.016617324 | AK91: 3.554791541 | AL91: 8.966563737 | AM91: 5.560330649 | AN91: 3.321342544 | AO91: 8.149492248
A92: North West | B92: Warrington | C92: 23742 | D92: 26142 | E92: 83609 | F92: 41 | G92: 26 | H92: 154 | I92: 39 | J92: 19 | K92: 179 | L92: 225 | M92: 161 | N92: 305 | O92: 130 | P92: 85 | Q92: 186 | R92: 681 | S92: 552 | T92: 833 | U92: 633 | V92: 490 | W92: 742 | X92: 1.726897481 | Y92: 1.09510572 | Z92: 6.486395417 | AA92: 1.64265858 | AB92: 0.8002695645 | AC92: 7.539381686 | AD92: 8.606839569 | AE92: 6.158671869 | AF92: 11.66704919 | AG92: 4.97284064 | AH92: 3.251472726 | AI92: 7.114987377 | AJ92: 8.145056154 | AK92: 6.602160055 | AL92: 9.963042256 | AM92: 7.57095528 | AN92: 5.860613092 | AO92: 8.874642682
A93: North West | B93: Wigan | C93: 37339 | D93: 40791 | E93: 128386 | F93: 175 | G93: 52 | H93: 329 | I93: 100 | J93: 29 | K93: 241 | L93: 540 | M93: 353 | N93: 819 | O93: 490 | P93: 317 | Q93: 717 | R93: 1440 | S93: 1094 | T93: 1769 | U93: 1277 | V93: 983 | W93: 1585 | X93: 4.686788612 | Y93: 1.392645759 | Z93: 8.811162591 | AA93: 2.678164921 | AB93: 0.7766678272 | AC93: 6.454377461 | AD93: 13.23821431 | AE93: 8.653869726 | AF93: 20.07795837 | AG93: 12.01245373 | AH93: 7.771322105 | AI93: 17.57740678 | AJ93: 11.21617622 | AK93: 8.521178322 | AL93: 13.77876092 | AM93: 9.946567383 | AN93: 7.656598071 | AO93: 12.34558285
A94: North West | B94: Wirral | C94: 36038 | D94: 36557 | E94: 126474 | F94: 128 | G94: 60 | H94: 411 | I94: 107 | J94: 47 | K94: 324 | L94: 288 | M94: 223 | N94: 391 | O94: 297 | P94: 212 | Q94: 439 | R94: 2421 | S94: 2097 | T94: 2881 | U94: 2258 | V94: 1891 | W94: 2587 | X94: 3.551806427 | Y94: 1.664909262 | Z94: 11.40462845 | AA94: 2.969088185 | AB94: 1.304178922 | AC94: 8.990510017 | AD94: 7.87810816 | AE94: 6.100062915 | AF94: 10.69562601 | AG94: 8.12429904 | AH94: 5.799162951 | AI94: 12.00864404 | AJ94: 19.1422743 | AK94: 16.58048295 | AL94: 22.77938549 | AM94: 17.85347186 | AN94: 14.95168968 | AO94: 20.45479703
A95: South East | B95: Bracknell Forest | C95: 13519 | D95: 16548 | E95: 48962 | F95: 15 | G95: 5 | H95: 68 | I95: 28 | J95: 3 | K95: 68 | L95: 146 | M95: 60 | N95: 250 | O95: 86 | P95: 44 | Q95: 145 | R95: 211 | S95: 98 | T95: 340 | U95: 122 | V95: 75 | W95: 212 | X95: 1.109549523 | Y95: 0.369849841 | Z95: 5.029957837 | AA95: 2.071159109 | AB95: 0.2219099046 | AC95: 5.029957837 | AD95: 8.822818467 | AE95: 3.625815809 | AF95: 15.10756587 | AG95: 5.197002659 | AH95: 2.658931593 | AI95: 8.762388204 | AJ95: 4.309464483 | AK95: 2.001552224 | AL95: 6.944160778 | AM95: 2.491728279 | AN95: 1.531800172 | AO95: 4.329888485
A96: South East | B96: Brighton and Hove | C96: 48400 | D96: 45905 | E96: 106377 | F96: 160 | G96: 87 | H96: 356 | I96: 148 | J96: 78 | K96: 415 | L96: 587 | M96: 458 | N96: 744 | O96: 556 | P96: 355 | Q96: 999 | R96: 1381 | S96: 1158 | T96: 1646 | U96: 1394 | V96: 1107 | W96: 2414 | X96: 3.305785124 | Y96: 1.797520661 | Z96: 7.355371901 | AA96: 3.05785124 | AB96: 1.611570248 | AC96: 8.574380165 | AD96: 12.78727807 | AE96: 9.977126675 | AF96: 16.20738482 | AG96: 12.11197037 | AH96: 7.733362379 | AI96: 21.76233526 | AJ96: 12.9821296 | AK96: 10.88581178 | AL96: 15.4732696 | AM96: 13.10433646 | AN96: 10.40638484 | AO96: 22.69287534
A97: South East | B97: Buckinghamshire | C97: 58180 | D97: 58400 | E97: 212107 | F97: 213 | G97: 42 | H97: 455 | I97: 132 | J97: 27 | K97: 338 | L97: 590 | M97: 306 | N97: 874 | O97: 479 | P97: 226 | Q97: 743 | R97: 844 | S97: 417 | T97: 1452 | U97: 783 | V97: 389 | W97: 1210 | X97: 3.661051908 | Y97: 0.7218975593 | Z97: 7.820556892 | AA97: 2.268820901 | AB97: 0.4640770024 | AC97: 5.809556549 | AD97: 10.10273973 | AE97: 5.239726027 | AF97: 14.96575342 | AG97: 8.202054795 | AH97: 3.869863014 | AI97: 12.72260274 | AJ97: 3.979123744 | AK97: 1.965988864 | AL97: 6.845601512 | AM97: 3.691533047 | AN97: 1.83398002 | AO97: 5.704667927
A98: South East | B98: East Sussex | C98: 57798 | D98: 52963 | E98: 209753 | F98: 270 | G98: 74 | H98: 459 | I98: 106 | J98: 51 | K98: 273 | L98: 511 | M98: 283 | N98: 951 | O98: 467 | P98: 282 | Q98: 742 | R98: 1515 | S98: 1003 | T98: 1969 | U98: 1408 | V98: 967 | W98: 1832 | X98: 4.671441918 | Y98: 1.280321118 | Z98: 7.941451261 | AA98: 1.833973494 | AB98: 0.8823834735 | AC98: 4.723346829 | AD98: 9.648245001 | AE98: 5.343352907 | AF98: 17.9559315 | AG98: 8.817476351 | AH98: 5.324471801 | AI98: 14.00978041 | AJ98: 7.222781081 | AK98: 4.781814801 | AL98: 9.387231649 | AM98: 6.712657268 | AN98: 4.61018436 | AO98: 8.734082468
A99: South East | B99: Hampshire | C99: 150115 | D99: 149558 | E99: 540089 | F99: 336 | G99: 230 | H99: 521 | I99: 308 | J99: 67 | K99: 776 | L99: 980 | M99: 836 | N99: 1168 | O99: 1021 | P99: 503 | Q99: 1603 | R99: 1899 | S99: 1671 | T99: 2201 | U99: 1499 | V99: 963 | W99: 2221 | X99: 2.238283982 | Y99: 1.532158678 | Z99: 3.470672484 | AA99: 2.051760317 | AB99: 0.4463244846 | AC99: 5.16937015 | AD99: 6.552641784 | AE99: 5.589804624 | AF99: 7.809679188 | AG99: 6.82678292 | AH99: 3.363243691 | AI99: 10.71824978 | AJ99: 3.516087163 | AK99: 3.093934518 | AL99: 4.075254264 | AM99: 2.775468488 | AN99: 1.783039462 | AO99: 4.112285197
A100: South East | B100: Isle of Wight | C100: 14814 | D100: 13205 | E100: 54189 | F100: 40 | G100: 7 | H100: 97 | I100: 24 | J100: 4 | K100: 63 | L100: 129 | M100: 68 | N100: 198 | O100: 120 | P100: 60 | Q100: 229 | R100: 375 | S100: 225 | T100: 552 | U100: 337 | V100: 200 | W100: 454 | X100: 2.700148508 | Y100: 0.4725259889 | Z100: 6.547860132 | AA100: 1.620089105 | AB100: 0.2700148508 | AC100: 4.2527339 | AD100: 9.769026884 | AE100: 5.149564559 | AF100: 14.99432033 | AG100: 9.087466869 | AH100: 4.543733434 | AI100: 17.34191594 | AJ100: 6.920223662 | AK100: 4.152134197 | AL100: 10.18656923 | AM100: 6.218974331 | AN100: 3.690785953 | AO100: 8.378084113
A101: South East | B101: Kent | C101: 187791 | D101: 174639 | E101: 582917 | F101: 870 | G101: 303 | H101: 1474 | I101: 685 | J101: 306 | K101: 1365 | L101: 1539 | M101: 706 | N101: 2866 | O101: 1406 | P101: 585 | Q101: 2385 | R101: 2789 | S101: 1627 | T101: 3864 | U101: 2310 | V101: 1202 | W101: 3706 | X101: 4.632809879 | Y101: 1.613495854 | Z101: 7.84915145 | AA101: 3.647672146 | AB101: 1.629471061 | AC101: 7.268718948 | AD101: 8.81246457 | AE101: 4.042625072 | AF101: 16.4109964 | AG101: 8.050893558 | AH101: 3.349767234 | AI101: 13.65674334 | AJ101: 4.784557664 | AK101: 2.79113493 | AL101: 6.62873102 | AM101: 3.962828327 | AN101: 2.062043138 | AO101: 6.357680424
A102: South East | B102: Medway | C102: 37895 | D102: 37677 | E102: 104723 | F102: 530 | G102: 128 | H102: 1189 | I102: 107 | J102: 36 | K102: 266 | L102: 225 | M102: 50 | N102: 420 | O102: 392 | P102: 223 | Q102: 607 | R102: 504 | S102: 111 | T102: 899 | U102: 709 | V102: 490 | W102: 994 | X102: 13.98601399 | Y102: 3.377754321 | Z102: 31.376171 | AA102: 2.823591503 | AB102: 0.9499934028 | AC102: 7.019395699 | AD102: 5.971813042 | AE102: 1.327069565 | AF102: 11.14738435 | AG102: 10.40422539 | AH102: 5.91873026 | AI102: 16.11062452 | AJ102: 4.812696351 | AK102: 1.059939077 | AL102: 8.584551627 | AM102: 6.770241494 | AN102: 4.679010342 | AO102: 9.491706693
A103: South East | B103: Milton Keynes | C103: 27958 | D103: 39527 | E103: 103746 | F103: 112 | G103: 51 | H103: 249 | I103: 70 | J103: 19 | K103: 195 | L103: 314 | M103: 163 | N103: 517 | O103: 332 | P103: 163 | Q103: 550 | R103: 580 | S103: 286 | T103: 871 | U103: 444 | V103: 240 | W103: 709 | X103: 4.006009014 | Y103: 1.824164819 | Z103: 8.906216468 | AA103: 2.503755633 | AB103: 0.6795908148 | AC103: 6.974747836 | AD103: 7.943937056 | AE103: 4.123763503 | AF103: 13.07966706 | AG103: 8.399321982 | AH103: 4.123763503 | AI103: 13.91453943 | AJ103: 5.590576986 | AK103: 2.75673279 | AL103: 8.395504405 | AM103: 4.279683072 | AN103: 2.313342201 | AO103: 6.833998419
A104: South East | B104: Oxfordshire | C104: 91033 | D104: 91590 | E104: 256434 | F104: 507 | G104: 211 | H104: 1174 | I104: 259 | J104: 63 | K104: 675 | L104: 1109 | M104: 585 | N104: 1643 | O104: 987 | P104: 551 | Q104: 1681 | R104: 1317 | S104: 811 | T104: 1960 | U104: 1565 | V104: 1101 | W104: 2466 | X104: 5.569408896 | Y104: 2.317840783 | Z104: 12.89642218 | AA104: 2.845122099 | AB104: 0.6920567267 | AC104: 7.4148935 | AD104: 12.10830877 | AE104: 6.38716017 | AF104: 17.93863959 | AG104: 10.77628562 | AH104: 6.015940605 | AI104: 18.35353204 | AJ104: 5.135824423 | AK104: 3.162607143 | AL104: 7.643292231 | AM104: 6.102934868 | AN104: 4.293502422 | AO104: 9.616509511
A105: South East | B105: Portsmouth | C105: 37945 | D105: 32550 | E105: 72441 | F105: 114 | G105: 68 | H105: 222 | I105: 70 | J105: 39 | K105: 199 | L105: 551 | M105: 411 | N105: 782 | O105: 447 | P105: 298 | Q105: 612 | R105: 762 | S105: 590 | T105: 1006 | U105: 798 | V105: 557 | W105: 999 | X105: 3.004348399 | Y105: 1.792067466 | Z105: 5.850573198 | AA105: 1.844775333 | AB105: 1.0278034 | AC105: 5.244432732 | AD105: 16.92780338 | AE105: 12.62672811 | AF105: 24.02457757 | AG105: 13.73271889 | AH105: 9.155145929 | AI105: 18.80184332 | AJ105: 10.51890504 | AK105: 8.14455902 | AL105: 13.88716335 | AM105: 11.01586118 | AN105: 7.689015889 | AO105: 13.79053299
A106: South East | B106: Reading | C106: 24303 | D106: 29165 | E106: 57125 | F106: 114 | G106: 71 | H106: 261 | I106: 100 | J106: 42 | K106: 210 | L106: 457 | M106: 342 | N106: 679 | O106: 382 | P106: 294 | Q106: 572 | R106: 761 | S106: 599 | T106: 1107 | U106: 675 | V106: 545 | W106: 956 | X106: 4.690778916 | Y106: 2.921450027 | Z106: 10.73941489 | AA106: 4.114718348 | AB106: 1.728181706 | AC106: 8.64090853 | AD106: 15.66946683 | AE106: 11.72638436 | AF106: 23.28133036 | AG106: 13.09789131 | AH106: 10.08057603 | AI106: 19.61254929 | AJ106: 13.32166302 | AK106: 10.48577681 | AL106: 19.3785558 | AM106: 11.81619256 | AN106: 9.5404814 | AO106: 16.73522976
A107: South East | B107: Slough | C107: 16682 | D107: 26014 | E107: 53762 | F107: 52 | G107: 15 | H107: 124 | I107: 39 | J107: 17 | K107: 97 | L107: 390 | M107: 205 | N107: 602 | O107: 272 | P107: 188 | Q107: 390 | R107: 445 | S107: 259 | T107: 696 | U107: 447 | V107: 305 | W107: 568 | X107: 3.117132238 | Y107: 0.8991727611 | Z107: 7.433161491 | AA107: 2.337849179 | AB107: 1.019062463 | AC107: 5.814650522 | AD107: 14.99192742 | AE107: 7.880372107 | AF107: 23.14138541 | AG107: 10.45590836 | AH107: 7.226877835 | AI107: 14.99192742 | AJ107: 8.27722183 | AK107: 4.81752911 | AL107: 12.94594695 | AM107: 8.314422827 | AN107: 5.67315204 | AO107: 10.56508314
A108: South East | B108: Southampton | C108: 49147 | D108: 41277 | E108: 80971 | F108: 170 | G108: 46 | H108: 345 | I108: 96 | J108: 30 | K108: 226 | L108: 614 | M108: 373 | N108: 943 | O108: 356 | P108: 217 | Q108: 517 | R108: 699 | S108: 450 | T108: 932 | U108: 821 | V108: 598 | W108: 1084 | X108: 3.459010723 | Y108: 0.9359676074 | Z108: 7.019757055 | AA108: 1.953323702 | AB108: 0.610413657 | AC108: 4.598449549 | AD108: 14.87511205 | AE108: 9.036509436 | AF108: 22.84565254 | AG108: 8.6246578 | AH108: 5.257165007 | AI108: 12.52513506 | AJ108: 8.632720357 | AK108: 5.557545294 | AL108: 11.51029381 | AM108: 10.13943264 | AN108: 7.385360191 | AO108: 13.38750911
A109: South East | B109: Surrey | C109: 131117 | D109: 131861 | E109: 471901 | F109: 268 | G109: 178 | H109: 427 | I109: 291 | J109: 51 | K109: 727 | L109: 1007 | M109: 816 | N109: 1254 | O109: 814 | P109: 359 | Q109: 1392 | R109: 1691 | S109: 1437 | T109: 2027 | U109: 1304 | V109: 793 | W109: 1931 | X109: 2.043975991 | Y109: 1.357566143 | Z109: 3.256633389 | AA109: 2.219391841 | AB109: 0.3889655804 | AC109: 5.544666214 | AD109: 7.636829692 | AE109: 6.188334686 | AF109: 9.510014333 | AG109: 6.173167199 | AH109: 2.722563912 | AI109: 10.55657093 | AJ109: 3.583378717 | AK109: 3.045130229 | AL109: 4.295392466 | AM109: 2.763291453 | AN109: 1.68043721 | AO109: 4.091959966
A110: South East | B110: West Berkshire | C110: 16751 | D110: 17109 | E110: 65480 | F110: 12 | G110: 9 | H110: 23 | I110: 9 | J110: 6 | K110: 13 | L110: 220 | M110: 159 | N110: 329 | O110: 197 | P110: 138 | Q110: 289 | R110: 292 | S110: 214 | T110: 418 | U110: 282 | V110: 214 | W110: 386 | X110: 0.7163751418 | Y110: 0.5372813563 | Z110: 1.373052355 | AA110: 0.5372813563 | AB110: 0.3581875709 | AC110: 0.7760730703 | AD110: 12.85872932 | AE110: 9.293354375 | AF110: 19.22964522 | AG110: 11.51440762 | AH110: 8.065930212 | AI110: 16.89169443 | AJ110: 4.459376909 | AK110: 3.268173488 | AL110: 6.383628589 | AM110: 4.306658522 | AN110: 3.268173488 | AO110: 5.89492975
A111: South East | B111: West Sussex | C111: 86125 | D111: 90896 | E111: 327036 | F111: 363 | G111: 102 | H111: 673 | I111: 239 | J111: 50 | K111: 626 | L111: 721 | M111: 328 | N111: 1455 | O111: 495 | P111: 243 | Q111: 899 | R111: 1562 | S111: 863 | T111: 2260 | U111: 1496 | V111: 815 | W111: 2247 | X111: 4.214804064 | Y111: 1.184325109 | Z111: 7.814223512 | AA111: 2.775036284 | AB111: 0.5805515239 | AC111: 7.26850508 | AD111: 7.932142228 | AE111: 3.608519627 | AF111: 16.00730505 | AG111: 5.445784193 | AH111: 2.673384967 | AI111: 9.890424221 | AJ111: 4.776232586 | AK111: 2.638853215 | AL111: 6.91055419 | AM111: 4.574419942 | AN111: 2.492080383 | AO111: 6.870803214
A112: South East | B112: Windsor and Maidenhead | C112: 15060 | D112: 18211 | E112: 59973 | F112: 29 | G112: 14 | H112: 108 | I112: 18 | J112: 10 | K112: 37 | L112: 166 | M112: 99 | N112: 250 | O112: 136 | P112: 82 | Q112: 245 | R112: 336 | S112: 239 | T112: 472 | U112: 294 | V112: 214 | W112: 477 | X112: 1.92563081 | Y112: 0.9296148738 | Z112: 7.171314741 | AA112: 1.195219124 | AB112: 0.6640106242 | AC112: 2.456839309 | AD112: 9.115369831 | AE112: 5.436274779 | AF112: 13.72796661 | AG112: 7.468013838 | AH112: 4.502773049 | AI112: 13.45340728 | AJ112: 5.602521135 | AK112: 3.98512664 | AL112: 7.87020826 | AM112: 4.902205993 | AN112: 3.568272389 | AO112: 7.953579111
A113: South East | B113: Wokingham | C113: 16514 | D113: 17640 | E113: 66965 | F113: 21 | G113: 8 | H113: 119 | I113: 12 | J113: 4 | K113: 49 | L113: 134 | M113: 66 | N113: 292 | O113: 86 | P113: 39 | Q113: 196 | R113: 185 | S113: 104 | T113: 373 | U113: 179 | V113: 88 | W113: 310 | X113: 1.271648298 | Y113: 0.484437447 | Z113: 7.206007024 | AA113: 0.7266561705 | AB113: 0.2422187235 | AC113: 2.967179363 | AD113: 7.596371882 | AE113: 3.741496599 | AF113: 16.55328798 | AG113: 4.875283447 | AH113: 2.210884354 | AI113: 11.11111111 | AJ113: 2.762637199 | AK113: 1.553050101 | AL113: 5.570073919 | AM113: 2.673038154 | AN113: 1.314119316 | AO113: 4.629283954
A114: South West | B114: Bath and North East Somerset | C114: 32113 | D114: 20832 | E114: 66144 | F114: 33 | G114: 18 | H114: 132 | I114: 23 | J114: 13 | K114: 52 | L114: 436 | M114: 285 | N114: 755 | O114: 442 | P114: 283 | Q114: 810 | R114: 538 | S114: 350 | T114: 909 | U114: 519 | V114: 294 | W114: 921 | X114: 1.027621213 | Y114: 0.5605206614 | Z114: 4.11048485 | AA114: 0.7162208451 | AB114: 0.4048204777 | AC114: 1.619281911 | AD114: 20.92933948 | AE114: 13.68087558 | AF114: 36.24231951 | AG114: 21.21735791 | AH114: 13.58486943 | AI114: 38.88248848 | AJ114: 8.133768747 | AK114: 5.291485244 | AL114: 13.74274311 | AM114: 7.846516691 | AN114: 4.444847605 | AO114: 13.92416546
A115: South West | B115: Bournemouth | C115: 28704 | D115: 29889 | E115: 69571 | F115: 239 | G115: 107 | H115: 680 | I115: 83 | J115: 37 | K115: 185 | L115: 480 | M115: 343 | N115: 660 | O115: 405 | P115: 337 | Q115: 539 | R115: 1135 | S115: 841 | T115: 1514 | U115: 1022 | V115: 898 | W115: 1268 | X115: 8.326365663 | Y115: 3.727703456 | Z115: 23.69007804 | AA115: 2.891583055 | AB115: 1.289018952 | AC115: 6.44509476 | AD115: 16.05941985 | AE115: 11.47579377 | AF115: 22.0817023 | AG115: 13.5501355 | AH115: 11.27505102 | AI115: 18.03339021 | AJ115: 16.31426888 | AK115: 12.08837015 | AL115: 21.76194104 | AM115: 14.69002889 | AN115: 12.90767705 | AO115: 18.22598496
A116: South West | B116: Bristol, City of | C116: 72746 | D116: 82418 | E116: 150097 | F116: 531 | G116: 330 | H116: 934 | I116: 213 | J116: 92 | K116: 466 | L116: 1396 | M116: 1097 | N116: 1643 | O116: 1196 | P116: 869 | Q116: 1559 | R116: 2782 | S116: 2307 | T116: 3239 | U116: 2707 | V116: 2222 | W116: 3204 | X116: 7.299370412 | Y116: 4.536331895 | Z116: 12.83919391 | AA116: 2.927996041 | AB116: 1.264674346 | AC116: 6.405850493 | AD116: 16.93804751 | AE116: 13.31019923 | AF116: 19.93496566 | AG116: 14.51139314 | AH116: 10.54381324 | AI116: 18.91577083 | AJ116: 18.53468091 | AK116: 15.37006069 | AL116: 21.57937867 | AM116: 18.03500403 | AN116: 14.80376024 | AO116: 21.34619613
A117: South West | B117: Cornwall (UA) and Isles of Scilly (UA) | C117: 61742 | D117: 54715 | E117: 215322 | F117: 213 | G117: 124 | H117: 436 | I117: 176 | J117: 106 | K117: 354 | L117: 592 | M117: 452 | N117: 817 | O117: 614 | P117: 452 | Q117: 846 | R117: 1306 | S117: 1064 | T117: 1654 | U117: 1303 | V117: 1064 | W117: 1619 | X117: 3.449839655 | Y117: 2.008357358 | Z117: 7.061643614 | AA117: 2.850571734 | AB117: 1.716821613 | AC117: 5.733536329 | AD117: 10.81970209 | AE117: 8.26098876 | AF117: 14.93191995 | AG117: 11.22178562 | AH117: 8.26098876 | AI117: 15.46193914 | AJ117: 6.065334708 | AK117: 4.941436546 | AL117: 7.681518842 | AM117: 6.051402086 | AN117: 4.941436546 | AO117: 7.518971587
A118: South West | B118: Devon | C118: 89425 | D118: 77627 | E118: 295659 | F118: 96 | G118: 65 | H118: 180 | I118: 209 | J118: 41 | K118: 511 | L118: 538 | M118: 427 | N118: 703 | O118: 629 | P118: 344 | Q118: 1033 | R118: 1513 | S118: 1320 | T118: 1785 | U118: 1275 | V118: 892 | W118: 1719 | X118: 1.073525301 | Y118: 0.7268660889 | Z118: 2.012859938 | AA118: 2.33715404 | AB118: 0.4584847638 | AC118: 5.714285714 | AD118: 6.930578278 | AE118: 5.500663429 | AF118: 9.056127378 | AG118: 8.102850812 | AH118: 4.431447821 | AI118: 13.30722558 | AJ118: 5.117381849 | AK118: 4.464602803 | AL118: 6.037360608 | AM118: 4.312400434 | AN118: 3.016989167 | AO118: 5.814130468
A119: South West | B119: Dorset | C119: 42387 | D119: 36482 | E119: 162088 | F119: 121 | G119: 62 | H119: 329 | I119: 108 | J119: 25 | K119: 294 | L119: 520 | M119: 376 | N119: 796 | O119: 384 | P119: 211 | Q119: 681 | R119: 1006 | S119: 796 | T119: 1476 | U119: 897 | V119: 653 | W119: 1320 | X119: 2.854648831 | Y119: 1.462712624 | Z119: 7.761813764 | AA119: 2.547951023 | AB119: 0.5898034775 | AC119: 6.936088895 | AD119: 14.25360452 | AE119: 10.3064525 | AF119: 21.81897922 | AG119: 10.52573872 | AH119: 5.783674141 | AI119: 18.66673976 | AJ119: 6.206505108 | AK119: 4.910912591 | AL119: 9.106164553 | AM119: 5.534030897 | AN119: 4.028675781 | AO119: 8.143724397
A120: South West | B120: Gloucestershire | C120: 71058 | D120: 69891 | E120: 244787 | F120: 352 | G120: 109 | H120: 578 | I120: 186 | J120: 82 | K120: 453 | L120: 907 | M120: 528 | N120: 1589 | O120: 645 | P120: 420 | Q120: 928 | R120: 1570 | S120: 1043 | T120: 2043 | U120: 1587 | V120: 1073 | W120: 2072 | X120: 4.953699795 | Y120: 1.533958175 | Z120: 8.134200231 | AA120: 2.617580005 | AB120: 1.153986884 | AC120: 6.375073883 | AD120: 12.97735045 | AE120: 7.554620767 | AF120: 22.73540227 | AG120: 9.22865605 | AH120: 6.009357428 | AI120: 13.27781832 | AJ120: 6.413739292 | AK120: 4.260847186 | AL120: 8.346031448 | AM120: 6.483187424 | AN120: 4.383402713 | AO120: 8.464501791
A121: South West | B121: North Somerset | C121: 20748 | D121: 21569 | E121: 82676 | F121: 122 | G121: 21 | H121: 281 | I121: 64 | J121: 16 | K121: 547 | L121: 322 | M121: 218 | N121: 494 | O121: 226 | P121: 125 | Q121: 437 | R121: 823 | S121: 630 | T121: 1173 | U121: 853 | V121: 506 | W121: 1412 | X121: 5.880084827 | Y121: 1.012145749 | Z121: 13.54347407 | AA121: 3.084634664 | AB121: 0.7711586659 | AC121: 26.36398689 | AD121: 14.92883305 | AE121: 10.10709815 | AF121: 22.90324076 | AG121: 10.47800083 | AH121: 5.795354444 | AI121: 20.26055914 | AJ121: 9.954521264 | AK121: 7.620107407 | AL121: 14.18791427 | AM121: 10.31738352 | AN121: 6.120276743 | AO121: 17.07871692
A122: South West | B122: Plymouth | C122: 42980 | D122: 35882 | E122: 93930 | F122: 137 | G122: 74 | H122: 395 | I122: 145 | J122: 59 | K122: 307 | L122: 662 | M122: 531 | N122: 852 | O122: 629 | P122: 526 | Q122: 778 | R122: 1309 | S122: 1109 | T122: 1598 | U122: 1245 | V122: 1071 | W122: 1526 | X122: 3.187529083 | Y122: 1.721731038 | Z122: 9.19032108 | AA122: 3.373662168 | AB122: 1.372731503 | AC122: 7.142857143 | AD122: 18.4493618 | AE122: 14.79850621 | AF122: 23.74449585 | AG122: 17.52968062 | AH122: 14.65916058 | AI122: 21.68218048 | AJ122: 13.93590972 | AK122: 11.80666454 | AL122: 17.01266901 | AM122: 13.25455126 | AN122: 11.40210795 | AO122: 16.24614074
A123: South West | B123: Poole | C123: 16010 | D123: 18171 | E123: 58410 | F123: 18 | G123: 9 | H123: 56 | I123: 13 | J123: 7 | K123: 29 | L123: 166 | M123: 88 | N123: 380 | O123: 117 | P123: 62 | Q123: 282 | R123: 374 | S123: 245 | T123: 775 | U123: 302 | V123: 219 | W123: 599 | X123: 1.124297314 | Y123: 0.5621486571 | Z123: 3.497813866 | AA123: 0.8119925047 | AB123: 0.4372267333 | AC123: 1.811367895 | AD123: 9.135435584 | AE123: 4.842881515 | AF123: 20.9124429 | AG123: 6.438831105 | AH123: 3.412030158 | AI123: 15.51923394 | AJ123: 6.403013183 | AK123: 4.194487245 | AL123: 13.26827598 | AM123: 5.170347543 | AN123: 3.749357987 | AO123: 10.25509331
A124: South West | B124: Somerset | C124: 59372 | D124: 56110 | E124: 212664 | F124: 124 | G124: 80 | H124: 221 | I124: 118 | J124: 76 | K124: 255 | L124: 657 | M124: 449 | N124: 974 | O124: 492 | P124: 396 | Q124: 639 | R124: 1148 | S124: 851 | T124: 1482 | U124: 1037 | V124: 875 | W124: 1255 | X124: 2.088526578 | Y124: 1.347436502 | Z124: 3.722293337 | AA124: 1.987468841 | AB124: 1.280064677 | AC124: 4.29495385 | AD124: 11.70914276 | AE124: 8.002138656 | AF124: 17.35875958 | AG124: 8.768490465 | AH124: 7.057565496 | AI124: 11.38834432 | AJ124: 5.398186811 | AK124: 4.001617575 | AL124: 6.96873942 | AM124: 4.876236693 | AN124: 4.114471655 | AO124: 5.901327916
A125: South West | B125: South Gloucestershire | C125: 33691 | D125: 33742 | E125: 107454 | F125: 121 | G125: 25 | H125: 301 | I125: 84 | J125: 19 | K125: 230 | L125: 346 | M125: 179 | N125: 557 | O125: 312 | P125: 154 | Q125: 508 | R125: 576 | S125: 326 | T125: 869 | U125: 492 | V125: 273 | W125: 752 | X125: 3.591463596 | Y125: 0.742037933 | Z125: 8.934136713 | AA125: 2.493247455 | AB125: 0.5639488291 | AC125: 6.826748983 | AD125: 10.2542825 | AE125: 5.304961176 | AF125: 16.50761662 | AG125: 9.24663624 | AH125: 4.564044811 | AI125: 15.05542054 | AJ125: 5.360433302 | AK125: 3.033856348 | AL125: 8.087181492 | AM125: 4.578703445 | AN125: 2.540622034 | AO125: 6.998343477
A126: South West | B126: Swindon | C126: 24264 | D126: 30676 | E126: 87763 | F126: 92 | G126: 41 | H126: 283 | I126: 68 | J126: 42 | K126: 159 | L126: 401 | M126: 216 | N126: 580 | O126: 376 | P126: 298 | Q126: 476 | R126: 660 | S126: 417 | T126: 930 | U126: 468 | V126: 383 | W126: 589 | X126: 3.791625453 | Y126: 1.689746126 | Z126: 11.6633696 | AA126: 2.80250577 | AB126: 1.730959446 | AC126: 6.552917903 | AD126: 13.07210849 | AE126: 7.041335246 | AF126: 18.90728909 | AG126: 12.25713913 | AH126: 9.714434737 | AI126: 15.51701656 | AJ126: 7.52025341 | AK126: 4.751432836 | AL126: 10.59672071 | AM126: 5.332543327 | AN126: 4.364025842 | AO126: 6.711256452
A127: South West | B127: Torbay | C127: 14115 | D127: 13450 | E127: 51063 | F127: 85 | G127: 25 | H127: 487 | I127: 66 | J127: 22 | K127: 458 | L127: 210 | M127: 90 | N127: 298 | O127: 202 | P127: 89 | Q127: 312 | R127: 480 | S127: 212 | T127: 613 | U127: 472 | V127: 211 | W127: 674 | X127: 6.021962451 | Y127: 1.771165427 | Z127: 34.50230252 | AA127: 4.675876727 | AB127: 1.558625576 | AC127: 32.44775062 | AD127: 15.6133829 | AE127: 6.691449814 | AF127: 22.15613383 | AG127: 15.01858736 | AH127: 6.617100372 | AI127: 23.19702602 | AJ127: 9.400152752 | AK127: 4.151734132 | AL127: 12.00477841 | AM127: 9.24348354 | AN127: 4.132150481 | AO127: 13.19938116
A128: South West | B128: Wiltshire | C128: 52954 | D128: 53888 | E128: 193768 | F128: 121 | G128: 57 | H128: 426 | I128: 131 | J128: 20 | K128: 325 | L128: 651 | M128: 462 | N128: 1340 | O128: 443 | P128: 203 | Q128: 692 | R128: 713 | S128: 523 | T128: 1433 | U128: 567 | V128: 367 | W128: 941 | X128: 2.285002077 | Y128: 1.076405937 | Z128: 8.044718057 | AA128: 2.473845224 | AB128: 0.3776862938 | AC128: 6.137402274 | AD128: 12.08061164 | AE128: 8.573337292 | AF128: 24.86638955 | AG128: 8.220754157 | AH128: 3.767072447 | AI128: 12.84144893 | AJ128: 3.679658148 | AK128: 2.699104083 | AL128: 7.395441972 | AM128: 2.926179761 | AN128: 1.894017588 | AO128: 4.856323025
A129: West Midlands | B129: Birmingham | C129: 179065 | D129: 168941 | E129: 372039 | F129: 851 | G129: 246 | H129: 1587 | I129: 523 | J129: 177 | K129: 1084 | L129: 2961 | M129: 2239 | N129: 3629 | O129: 2600 | P129: 1874 | Q129: 3488 | R129: 5893 | S129: 4618 | T129: 7520 | U129: 5111 | V129: 4018 | W129: 6140 | X129: 4.752464189 | Y129: 1.373802809 | Z129: 8.862703488 | AA129: 2.92072711 | AB129: 0.9884678748 | AC129: 6.053667663 | AD129: 17.52682889 | AE129: 13.25314755 | AF129: 21.48087202 | AG129: 15.38998822 | AH129: 11.09262997 | AI129: 20.64626112 | AJ129: 15.83973723 | AK129: 12.41267717 | AL129: 20.21293467 | AM129: 13.73780706 | AN129: 10.79994302 | AO129: 16.50364612
A130: West Midlands | B130: Coventry | C130: 58601 | D130: 54352 | E130: 112749 | F130: 167 | G130: 109 | H130: 293 | I130: 128 | J130: 59 | K130: 399 | L130: 536 | M130: 453 | N130: 659 | O130: 585 | P130: 446 | Q130: 789 | R130: 1171 | S130: 1020 | T130: 1365 | U130: 1092 | V130: 876 | W130: 1368 | X130: 2.84978072 | Y130: 1.860036518 | Z130: 4.999914677 | AA130: 2.184263067 | AB130: 1.006808758 | AC130: 6.80875753 | AD130: 9.861642626 | AE130: 8.334559906 | AF130: 12.12466883 | AG130: 10.76317339 | AH130: 8.205769797 | AI130: 14.51648513 | AJ130: 10.38590143 | AK130: 9.046643429 | AL130: 12.10653753 | AM130: 9.685230024 | AN130: 7.769470239 | AO130: 12.13314531
A131: West Midlands | B131: Dudley | C131: 36904 | D131: 38676 | E131: 121257 | F131: 136 | G131: 82 | H131: 263 | I131: 76 | J131: 51 | K131: 151 | L131: 1005 | M131: 730 | N131: 1258 | O131: 811 | P131: 689 | Q131: 988 | R131: 869 | S131: 654 | T131: 1123 | U131: 708 | V131: 588 | W131: 857 | X131: 3.685237373 | Y131: 2.221981357 | Z131: 7.126598743 | AA131: 2.059397355 | AB131: 1.381964015 | AC131: 4.091697377 | AD131: 25.98510704 | AE131: 18.87475437 | AF131: 32.5266315 | AG131: 20.96907643 | AH131: 17.81466543 | AI131: 25.54555797 | AJ131: 7.166596568 | AK131: 5.393503055 | AL131: 9.261320996 | AM131: 5.83883817 | AN131: 4.849204582 | AO131: 7.067633209
A132: West Midlands | B132: Herefordshire, County of | C132: 19900 | D132: 20731 | E132: 73785 | F132: 81 | G132: 23 | H132: 176 | I132: 43 | J132: 15 | K132: 395 | L132: 346 | M132: 217 | N132: 666 | O132: 309 | P132: 169 | Q132: 537 | R132: 515 | S132: 354 | T132: 829 | U132: 478 | V132: 277 | W132: 762 | X132: 4.070351759 | Y132: 1.155778894 | Z132: 8.844221106 | AA132: 2.16080402 | AB132: 0.7537688442 | AC132: 19.84924623 | AD132: 16.68998119 | AE132: 10.46741595 | AF132: 32.12580194 | AG132: 14.90521441 | AH132: 8.152042834 | AI132: 25.9032367 | AJ132: 6.979738429 | AK132: 4.797723114 | AL132: 11.23534594 | AM132: 6.478281494 | AN132: 3.754150573 | AO132: 10.3273023
A133: West Midlands | B133: Sandwell | C133: 40307 | D133: 46602 | E133: 115602 | F133: 194 | G133: 105 | H133: 397 | I133: 128 | J133: 42 | K133: 275 | L133: 981 | M133: 706 | N133: 1289 | O133: 754 | P133: 536 | Q133: 1048 | R133: 976 | S133: 669 | T133: 1297 | U133: 925 | V133: 618 | W133: 1208 | X133: 4.813059766 | Y133: 2.605006575 | Z133: 9.84940581 | AA133: 3.175627062 | AB133: 1.04200263 | AC133: 6.822636267 | AD133: 21.05059869 | AE133: 15.1495644 | AF133: 27.65975709 | AG133: 16.17956311 | AH133: 11.50165229 | AI133: 22.48830522 | AJ133: 8.442760506 | AK133: 5.787097109 | AL133: 11.21952907 | AM133: 8.001591668 | AN133: 5.345928271 | AO133: 10.4496462
A134: West Midlands | B134: Shropshire | C134: 34300 | D134: 32684 | E134: 123936 | F134: 106 | G134: 70 | H134: 236 | I134: 110 | J134: 40 | K134: 249 | L134: 462 | M134: 364 | N134: 599 | O134: 441 | P134: 352 | Q134: 633 | R134: 634 | S134: 524 | T134: 795 | U134: 560 | V134: 460 | W134: 796 | X134: 3.090379009 | Y134: 2.040816327 | Z134: 6.880466472 | AA134: 3.206997085 | AB134: 1.166180758 | AC134: 7.259475219 | AD134: 14.13535675 | AE134: 11.13694774 | AF134: 18.32701016 | AG134: 13.49284053 | AH134: 10.76979562 | AI134: 19.36727451 | AJ134: 5.115543506 | AK134: 4.227988639 | AL134: 6.414601084 | AM134: 4.518461141 | AN134: 3.71159308 | AO134: 6.422669765
A135: West Midlands | B135: Solihull | C135: 24310 | D135: 22875 | E135: 82218 | F135: 105 | G135: 19 | H135: 256 | I135: 71 | J135: 14 | K135: 172 | L135: 360 | M135: 210 | N135: 545 | O135: 335 | P135: 216 | Q135: 526 | R135: 496 | S135: 318 | T135: 708 | U135: 530 | V135: 377 | W135: 763 | X135: 4.319210202 | Y135: 0.7815713698 | Z135: 10.53064582 | AA135: 2.920608803 | AB135: 0.5758946935 | AC135: 7.075277664 | AD135: 15.73770492 | AE135: 9.180327869 | AF135: 23.82513661 | AG135: 14.64480874 | AH135: 9.442622951 | AI135: 22.99453552 | AJ135: 6.032742222 | AK135: 3.867766183 | AL135: 8.61125301 | AM135: 6.446276971 | AN135: 4.5853706 | AO135: 9.280206281
A136: West Midlands | B136: Staffordshire | C136: 102514 | D136: 97889 | E136: 345010 | F136: 248 | G136: 142 | H136: 442 | I136: 195 | J136: 130 | K136: 343 | L136: 1455 | M136: 1036 | N136: 2062 | O136: 1022 | P136: 891 | Q136: 1184 | R136: 1743 | S136: 1155 | T136: 2277 | U136: 1462 | V136: 1304 | W136: 1653 | X136: 2.41918177 | Y136: 1.385176659 | Z136: 4.31160622 | AA136: 1.902179215 | AB136: 1.268119476 | AC136: 3.345884465 | AD136: 14.86377427 | AE136: 10.58341591 | AF136: 21.0646753 | AG136: 10.44039678 | AH136: 9.102146309 | AI136: 12.09533247 | AJ136: 5.052027477 | AK136: 3.347729051 | AL136: 6.599808701 | AM136: 4.237558332 | AN136: 3.779600591 | AO136: 4.791165473
A137: West Midlands | B137: Stoke-on-Trent | C137: 33770 | D137: 35419 | E137: 92946 | F137: 207 | G137: 121 | H137: 400 | I137: 119 | J137: 53 | K137: 267 | L137: 897 | M137: 680 | N137: 1115 | O137: 800 | P137: 640 | Q137: 1007 | R137: 1550 | S137: 1273 | T137: 1852 | U137: 1591 | V137: 1382 | W137: 1944 | X137: 6.129700918 | Y137: 3.583061889 | Z137: 11.84483269 | AA137: 3.523837726 | AB137: 1.569440332 | AC137: 7.906425822 | AD137: 25.32539033 | AE137: 19.19873514 | AF137: 31.48027895 | AG137: 22.58674723 | AH137: 18.06939778 | AI137: 28.43106807 | AJ137: 16.67634971 | AK137: 13.69612463 | AL137: 19.92554817 | AM137: 17.11746606 | AN137: 14.86884858 | AO137: 20.91537021
A138: West Midlands | B138: Telford and Wrekin | C138: 21949 | D138: 21598 | E138: 66131 | F138: 85 | G138: 51 | H138: 181 | I138: 44 | J138: 27 | K138: 131 | L138: 292 | M138: 220 | N138: 403 | O138: 250 | P138: 190 | Q138: 342 | R138: 552 | S138: 455 | T138: 743 | U138: 471 | V138: 383 | W138: 634 | X138: 3.872613787 | Y138: 2.323568272 | Z138: 8.246389357 | AA138: 2.004647137 | AB138: 1.230124379 | AC138: 5.968381247 | AD138: 13.51977035 | AE138: 10.18612835 | AF138: 18.65913511 | AG138: 11.57514585 | AH138: 8.797110844 | AI138: 15.83479952 | AJ138: 8.347068697 | AK138: 6.880283075 | AL138: 11.23527544 | AM138: 7.122227095 | AN138: 5.791534984 | AO138: 9.587031801
A139: West Midlands | B139: Walsall | C139: 34603 | D139: 36257 | E139: 100610 | F139: 171 | G139: 110 | H139: 308 | I139: 82 | J139: 63 | K139: 131 | L139: 864 | M139: 730 | N139: 1070 | O139: 798 | P139: 688 | Q139: 980 | R139: 871 | S139: 724 | T139: 1039 | U139: 747 | V139: 638 | W139: 891 | X139: 4.941768055 | Y139: 3.178915123 | Z139: 8.900962344 | AA139: 2.369736728 | AB139: 1.820651389 | AC139: 3.785798919 | AD139: 23.82988113 | AE139: 20.13404308 | AF139: 29.5115426 | AG139: 22.00954298 | AH139: 18.97564608 | AI139: 27.02926331 | AJ139: 8.657191134 | AK139: 7.196103767 | AL139: 10.32700527 | AM139: 7.424709273 | AN139: 6.34131796 | AO139: 8.855978531
A140: West Midlands | B140: Warwickshire | C140: 64901 | D140: 64010 | E140: 219356 | F140: 189 | G140: 111 | H140: 384 | I140: 185 | J140: 44 | K140: 444 | L140: 655 | M140: 503 | N140: 862 | O140: 663 | P140: 364 | Q140: 1051 | R140: 1256 | S140: 1033 | T140: 1579 | U140: 1237 | V140: 823 | W140: 1711 | X140: 2.912127702 | Y140: 1.710297222 | Z140: 5.916703903 | AA140: 2.85049537 | AB140: 0.6779556555 | AC140: 6.841188888 | AD140: 10.23277613 | AE140: 7.858147165 | AF140: 13.46664584 | AG140: 10.3577566 | AH140: 5.686611467 | AI140: 16.41930948 | AJ140: 5.72585204 | AK140: 4.709239775 | AL140: 7.198344244 | AM140: 5.639234851 | AN140: 3.751891902 | AO140: 7.800105764
A141: West Midlands | B141: Wolverhampton | C141: 33249 | D141: 35752 | E141: 93434 | F141: 201 | G141: 136 | H141: 329 | I141: 141 | J141: 90 | K141: 251 | L141: 713 | M141: 520 | N141: 938 | O141: 698 | P141: 545 | Q141: 922 | R141: 1258 | S141: 1037 | T141: 1601 | U141: 1065 | V141: 869 | W141: 1314 | X141: 6.045294595 | Y141: 4.090348582 | Z141: 9.895034437 | AA141: 4.240729044 | AB141: 2.706848326 | AC141: 7.549099221 | AD141: 19.94294026 | AE141: 14.54464086 | AF141: 26.23629447 | AG141: 19.52338331 | AH141: 15.24390244 | AI141: 25.78876706 | AJ141: 13.46404949 | AK141: 11.0987435 | AL141: 17.13509001 | AM141: 11.39842028 | AN141: 9.300682835 | AO141: 14.06340304
A142: West Midlands | B142: Worcestershire | C142: 65882 | D142: 63280 | E142: 229508 | F142: 208 | G142: 111 | H142: 422 | I142: 100 | J142: 58 | K142: 202 | L142: 887 | M142: 559 | N142: 1342 | O142: 849 | P142: 594 | Q142: 1117 | R142: 1675 | S142: 1035 | T142: 2262 | U142: 1433 | V142: 1040 | W142: 1813 | X142: 3.15715977 | Y142: 1.684830454 | Z142: 6.405391457 | AA142: 1.517865274 | AB142: 0.8803618591 | AC142: 3.066087854 | AD142: 14.017067 | AE142: 8.833754741 | AF142: 21.20733249 | AG142: 13.41656131 | AH142: 9.386852086 | AI142: 17.6517067 | AJ142: 7.298220541 | AK142: 4.509646723 | AL142: 9.855865591 | AM142: 6.243791066 | AN142: 4.531432456 | AO142: 7.899506771
A143: Yorkshire and the Humber | B143: Barnsley | C143: 28025 | D143: 29954 | E143: 94807 | F143: 161 | G143: 76 | H143: 490 | I143: 90 | J143: 44 | K143: 490 | L143: 775 | M143: 577 | N143: 1003 | O143: 586 | P143: 421 | Q143: 781 | R143: 915 | S143: 683 | T143: 1154 | U143: 858 | V143: 626 | W143: 1090 | X143: 5.744870651 | Y143: 2.711864407 | Z143: 17.48438894 | AA143: 3.211418376 | AB143: 1.570026762 | AC143: 17.48438894 | AD143: 25.87300527 | AE143: 19.26286973 | AF143: 33.4846765 | AG143: 19.56333044 | AH143: 14.05488416 | AI143: 26.07331241 | AJ143: 9.651186094 | AK143: 7.204109401 | AL143: 12.172097 | AM143: 9.049964665 | AN143: 6.602887972 | AO143: 11.49704136
A144: Yorkshire and the Humber | B144: Bradford | C144: 68992 | D144: 74949 | E144: 192057 | F144: 404 | G144: 187 | H144: 762 | I144: 216 | J144: 108 | K144: 441 | L144: 1285 | M144: 913 | N144: 1617 | O144: 1074 | P144: 817 | Q144: 1398 | R144: 3096 | S144: 2406 | T144: 3899 | U144: 2814 | V144: 2309 | W144: 3296 | X144: 5.855751391 | Y144: 2.710459184 | Z144: 11.04475881 | AA144: 3.130797774 | AB144: 1.565398887 | AC144: 6.392045455 | AD144: 17.14499193 | AE144: 12.18161683 | AF144: 21.57467078 | AG144: 14.32974423 | AH144: 10.90074584 | AI144: 18.65268383 | AJ144: 16.12021431 | AK144: 12.52753089 | AL144: 20.30126473 | AM144: 14.65190022 | AN144: 12.0224725 | AO144: 17.16157183
A145: Yorkshire and the Humber | B145: Calderdale | C145: 23670 | D145: 25154 | E145: 84269 | F145: 75 | G145: 47 | H145: 166 | I145: 49 | J145: 33 | K145: 137 | L145: 433 | M145: 314 | N145: 565 | O145: 380 | P145: 281 | Q145: 554 | R145: 1048 | S145: 811 | T145: 1262 | U145: 923 | V145: 749 | W145: 1170 | X145: 3.168567807 | Y145: 1.985635826 | Z145: 7.013096747 | AA145: 2.070130967 | AB145: 1.394169835 | AC145: 5.787917195 | AD145: 17.21396199 | AE145: 12.48310408 | AF145: 22.46163632 | AG145: 15.10694124 | AH145: 11.1711855 | AI145: 22.02433013 | AJ145: 12.4363645 | AK145: 9.623942375 | AL145: 14.97585114 | AM145: 10.9530195 | AN145: 8.888203254 | AO145: 13.88410922
A146: Yorkshire and the Humber | B146: Doncaster | C146: 36079 | D146: 40159 | E146: 118248 | F146: 264 | G146: 112 | H146: 580 | I146: 102 | J146: 40 | K146: 242 | L146: 669 | M146: 430 | N146: 969 | O146: 800 | P146: 571 | Q146: 1042 | R146: 1404 | S146: 1009 | T146: 1830 | U146: 1214 | V146: 935 | W146: 1500 | X146: 7.317275978 | Y146: 3.1042989 | Z146: 16.07583359 | AA146: 2.827129355 | AB146: 1.108678178 | AC146: 6.70750298 | AD146: 16.65878134 | AE146: 10.70743793 | AF146: 24.12908688 | AG146: 19.92081476 | AH146: 14.21848154 | AI146: 25.94686123 | AJ146: 11.87335092 | AK146: 8.532913876 | AL146: 15.47594885 | AM146: 10.26655842 | AN146: 7.90711048 | AO146: 12.68520398
A147: Yorkshire and the Humber | B147: East Riding of Yorkshire | C147: 35795 | D147: 31241 | E147: 138126 | F147: 52 | G147: 31 | H147: 123 | I147: 30 | J147: 18 | K147: 72 | L147: 284 | M147: 208 | N147: 391 | O147: 225 | P147: 141 | Q147: 309 | R147: 609 | S147: 497 | T147: 799 | U147: 604 | V147: 487 | W147: 742 | X147: 1.45271686 | Y147: 0.8660427434 | Z147: 3.436234111 | AA147: 0.8381058807 | AB147: 0.5028635284 | AC147: 2.011454114 | AD147: 9.090618098 | AE147: 6.65791748 | AF147: 12.51560449 | AG147: 7.202074197 | AH147: 4.51329983 | AI147: 9.890848564 | AJ147: 4.409017853 | AK147: 3.598163995 | AL147: 5.784573505 | AM147: 4.37281902 | AN147: 3.525766329 | AO147: 5.37190681
A148: Yorkshire and the Humber | B148: Kingston upon Hull, City of | C148: 39033 | D148: 39821 | E148: 94056 | F148: 137 | G148: 102 | H148: 200 | I148: 97 | J148: 73 | K148: 142 | L148: 913 | M148: 748 | N148: 1106 | O148: 749 | P148: 619 | Q148: 912 | R148: 2259 | S148: 1889 | T148: 2580 | U148: 2009 | V148: 1731 | W148: 2282 | X148: 3.509850639 | Y148: 2.613173469 | Z148: 5.123869546 | AA148: 2.48507673 | AB148: 1.870212384 | AC148: 3.637947378 | AD148: 22.92760101 | AE148: 18.78405866 | AF148: 27.77428995 | AG148: 18.80917104 | AH148: 15.54456191 | AI148: 22.90248864 | AJ148: 24.01760653 | AK148: 20.08377988 | AL148: 27.43046696 | AM148: 21.35961555 | AN148: 18.40392957 | AO148: 24.2621417
A149: Yorkshire and the Humber | B149: Kirklees | C149: 56516 | D149: 55629 | E149: 165106 | F149: 198 | G149: 39 | H149: 468 | I149: 126 | J149: 30 | K149: 307 | L149: 742 | M149: 542 | N149: 1018 | O149: 729 | P149: 508 | Q149: 1106 | R149: 1547 | S149: 1281 | T149: 1984 | U149: 1483 | V149: 1071 | W149: 1877 | X149: 3.503432656 | Y149: 0.6900700687 | Z149: 8.280840824 | AA149: 2.229457145 | AB149: 0.5308231297 | AC149: 5.432090028 | AD149: 13.33836668 | AE149: 9.743119596 | AF149: 18.29980765 | AG149: 13.10467562 | AH149: 9.131927592 | AI149: 19.88171637 | AJ149: 9.369738229 | AK149: 7.758652017 | AL149: 12.01652272 | AM149: 8.982108464 | AN149: 6.486741851 | AO149: 11.36845421
A150: Yorkshire and the Humber | B150: Leeds | C150: 126147 | D150: 114091 | E150: 273193 | F150: 551 | G150: 169 | H150: 1138 | I150: 300 | J150: 91 | K150: 736 | L150: 1760 | M150: 1238 | N150: 2194 | O150: 1372 | P150: 889 | Q150: 1930 | R150: 3206 | S150: 2314 | T150: 4331 | U150: 3067 | V150: 2342 | W150: 3839 | X150: 4.367919966 | Y150: 1.33970685 | Z150: 9.021221274 | AA150: 2.37817784 | AB150: 0.7213806115 | AC150: 5.834462968 | AD150: 15.42628253 | AE150: 10.85098737 | AF150: 19.23026356 | AG150: 12.02548843 | AH150: 7.792025664 | AI150: 16.91632118 | AJ150: 11.73529336 | AK150: 8.470202384 | AL150: 15.85326125 | AM150: 11.22649555 | AN150: 8.572694029 | AO150: 14.05233663
A151: Yorkshire and the Humber | B151: North East Lincolnshire | C151: 19264 | D151: 20127 | E151: 61150 | F151: 114 | G151: 41 | H151: 422 | I151: 76 | J151: 31 | K151: 326 | L151: 445 | M151: 300 | N151: 571 | O151: 359 | P151: 249 | Q151: 461 | R151: 910 | S151: 650 | T151: 1106 | U151: 865 | V151: 633 | W151: 1019 | X151: 5.917774086 | Y151: 2.128322259 | Z151: 21.90614618 | AA151: 3.945182724 | AB151: 1.609219269 | AC151: 16.92275748 | AD151: 22.10960401 | AE151: 14.90535102 | AF151: 28.36985144 | AG151: 17.83673672 | AH151: 12.37144135 | AI151: 22.90455607 | AJ151: 14.88143908 | AK151: 10.62959935 | AL151: 18.08667212 | AM151: 14.14554374 | AN151: 10.35159444 | AO151: 16.66394113
A152: Yorkshire and the Humber | B152: North Lincolnshire | C152: 18770 | D152: 20241 | E152: 67430 | F152: 153 | G152: 89 | H152: 299 | I152: 93 | J152: 46 | K152: 172 | L152: 554 | M152: 413 | N152: 692 | O152: 447 | P152: 354 | Q152: 557 | R152: 614 | S152: 471 | T152: 764 | U152: 626 | V152: 510 | W152: 744 | X152: 8.151305274 | Y152: 4.74160895 | Z152: 15.92967501 | AA152: 4.954714971 | AB152: 2.450719233 | AC152: 9.163558871 | AD152: 27.37018922 | AE152: 20.40413023 | AF152: 34.18803419 | AG152: 22.08388914 | AH152: 17.48925448 | AI152: 27.51840324 | AJ152: 9.105739285 | AK152: 6.985021504 | AL152: 11.33026843 | AM152: 9.283701616 | AN152: 7.563399081 | AO152: 11.03366454
A153: Yorkshire and the Humber | B153: North Yorkshire | C153: 63864 | D153: 60970 | E153: 243990 | F153: 172 | G153: 110 | H153: 315 | I153: 92 | J153: 56 | K153: 192 | L153: 573 | M153: 451 | N153: 729 | O153: 483 | P153: 324 | Q153: 758 | R153: 1208 | S153: 1031 | T153: 1460 | U153: 1223 | V153: 914 | W153: 1572 | X153: 2.693223099 | Y153: 1.722410122 | Z153: 4.932356257 | AA153: 1.440561193 | AB153: 0.8768633346 | AC153: 3.006388576 | AD153: 9.398064622 | AE153: 7.397080531 | AF153: 11.95670002 | AG153: 7.921928817 | AH153: 5.314088896 | AI153: 12.43234378 | AJ153: 4.951022583 | AK153: 4.225583016 | AL153: 5.983851797 | AM153: 5.012500512 | AN153: 3.746055166 | AO153: 6.442887004
A154: Yorkshire and the Humber | B154: Rotherham | C154: 30833 | D154: 31600 | E154: 101927 | F154: 86 | G154: 58 | H154: 181 | I154: 65 | J154: 47 | K154: 144 | L154: 803 | M154: 629 | N154: 1090 | O154: 625 | P154: 500 | Q154: 857 | R154: 1015 | S154: 816 | T154: 1323 | U154: 924 | V154: 738 | W154: 1145 | X154: 2.789219343 | Y154: 1.881101417 | Z154: 5.870333733 | AA154: 2.108130899 | AB154: 1.524340804 | AC154: 4.67032076 | AD154: 25.41139241 | AE154: 19.90506329 | AF154: 34.49367089 | AG154: 19.77848101 | AH154: 15.82278481 | AI154: 27.12025316 | AJ154: 9.958107273 | AK154: 8.005729591 | AL154: 12.97987776 | AM154: 9.065311448 | AN154: 7.240476027 | AO154: 11.23352988
A155: Yorkshire and the Humber | B155: Sheffield | C155: 100056 | D155: 78084 | E155: 197858 | F155: 379 | G155: 68 | H155: 950 | I155: 233 | J155: 47 | K155: 594 | L155: 1088 | M155: 798 | N155: 1443 | O155: 931 | P155: 552 | Q155: 1385 | R155: 2201 | S155: 1599 | T155: 2833 | U155: 2081 | V155: 1541 | W155: 2632 | X155: 3.787878788 | Y155: 0.6796194131 | Z155: 9.494682978 | AA155: 2.32869593 | AB155: 0.4697369473 | AC155: 5.936675462 | AD155: 13.93371241 | AE155: 10.21976333 | AF155: 18.48009836 | AG155: 11.92305722 | AH155: 7.069309974 | AI155: 17.73730854 | AJ155: 11.12413953 | AK155: 8.081553437 | AL155: 14.31834952 | AM155: 10.51764397 | AN155: 7.788413913 | AO155: 13.30246945
A156: Yorkshire and the Humber | B156: Wakefield | C156: 38103 | D156: 42556 | E156: 132224 | F156: 221 | G156: 134 | H156: 425 | I156: 95 | J156: 64 | K156: 184 | L156: 921 | M156: 774 | N156: 1114 | O156: 831 | P156: 710 | Q156: 979 | R156: 1492 | S156: 1285 | T156: 1737 | U156: 1417 | V156: 1264 | W156: 1616 | X156: 5.800068236 | Y156: 3.516783455 | Z156: 11.15397738 | AA156: 2.493242002 | AB156: 1.67965777 | AC156: 4.829016088 | AD156: 21.64207162 | AE156: 18.18779961 | AF156: 26.1772723 | AG156: 19.5272112 | AH156: 16.68389886 | AI156: 23.00498167 | AJ156: 11.2838819 | AK156: 9.718356728 | AL156: 13.13679816 | AM156: 10.71666263 | AN156: 9.559535334 | AO156: 12.22168441
A157: Yorkshire and the Humber | B157: York | C157: 36374 | D157: 27774 | E157: 73442 | F157: 125 | G157: 72 | H157: 285 | I157: 61 | J157: 40 | K157: 163 | L157: 325 | M157: 261 | N157: 442 | O157: 355 | P157: 292 | Q157: 471 | R157: 476 | S157: 384 | T157: 637 | U157: 442 | V157: 361 | W157: 568 | X157: 3.436520592 | Y157: 1.979435861 | Z157: 7.835266949 | AA157: 1.677022049 | AB157: 1.099686589 | AC157: 4.481222851 | AD157: 11.70159142 | AE157: 9.39727803 | AF157: 15.91416433 | AG157: 12.78173832 | AH157: 10.51342983 | AI157: 16.95830633 | AJ157: 6.481304975 | AK157: 5.228615778 | AL157: 8.67351107 | AM157: 6.01835462 | AN157: 4.915443479 | AO157: 7.733994172
A158: East of England | B158: East of England | C158: 706038 | D158: 757046 | E158: 2340906 | F158: 2960 | G158: 2129 | H158: 3955 | I158: 1843 | J158: 1252 | K158: 2887 | L158: 8068 | M158: 7038 | N158: 9633 | O158: 6075 | P158: 5349 | Q158: 7204 | R158: 14882 | S158: 13143 | T158: 16589 | U158: 13909 | V158: 12256 | W158: 15574 | X158: 4.192408907 | Y158: 3.015418434 | Z158: 5.601681496 | AA158: 2.610341086 | AB158: 1.773275659 | AC158: 4.089015039 | AD158: 10.65721238 | AE158: 9.296660969 | AF158: 12.72445796 | AG158: 8.02461145 | AH158: 7.065620847 | AI158: 9.515934303 | AJ158: 6.357367617 | AK158: 5.61449285 | AL158: 7.086572464 | AM158: 5.941716583 | AN158: 5.235579729 | AO158: 6.652979658
A159: East Midlands | B159: East Midlands | C159: 607316 | D159: 568907 | E159: 1801656 | F159: 3192 | G159: 2256 | H159: 4765 | I159: 1549 | J159: 1115 | K159: 2190 | L159: 8211 | M159: 7259 | N159: 9674 | O159: 7454 | P159: 6680 | Q159: 8747 | R159: 13654 | S159: 11951 | T159: 15092 | U159: 13160 | V159: 11777 | W159: 14644 | X159: 5.255912902 | Y159: 3.714705359 | Z159: 7.8459978 | AA159: 2.550566756 | AB159: 1.835947019 | AC159: 3.606030468 | AD159: 14.43293895 | AE159: 12.75955473 | AF159: 17.00453677 | AG159: 13.10231725 | AH159: 11.74181369 | AI159: 15.37509646 | AJ159: 7.578583259 | AK159: 6.63334177 | AL159: 8.376737846 | AM159: 7.304391071 | AN159: 6.536763955 | AO159: 8.128077724
A160: London | B160: London | C160: 1040689 | D160: 1687764 | E160: 3187325 | F160: 6089 | G160: 5553 | H160: 7645 | I160: 3653 | J160: 3316 | K160: 4932 | L160: 14994 | M160: 14113 | N160: 16314 | O160: 10986 | P160: 10220 | Q160: 12114 | R160: 31404 | S160: 29887 | T160: 33359 | U160: 26111 | V160: 24528 | W160: 27467 | X160: 5.85093145 | Y160: 5.335888051 | Z160: 7.346094751 | AA160: 3.510174509 | AB160: 3.186350581 | AC160: 4.739167994 | AD160: 8.88394349 | AE160: 8.361951078 | AF160: 9.666043357 | AG160: 6.509203893 | AH160: 6.055348971 | AI160: 7.17754378 | AJ160: 9.852776231 | AK160: 9.376828532 | AL160: 10.46614324 | AM160: 8.192136039 | AN160: 7.695481321 | AO160: 8.617571161
A161: North East | B161: North East | C161: 347722 | D161: 328020 | E161: 1016635 | F161: 1727 | G161: 1470 | H161: 2422 | I161: 1152 | J161: 929 | K161: 1627 | L161: 6842 | M161: 6336 | N161: 7611 | O161: 5945 | P161: 5470 | Q161: 6667 | R161: 9106 | S161: 8479 | T161: 9975 | U161: 8317 | V161: 7795 | W161: 9146 | X161: 4.966611258 | Y161: 4.227515084 | Z161: 6.965334376 | AA161: 3.312991413 | AB161: 2.671674499 | AC161: 4.679025198 | AD161: 20.85848424 | AE161: 19.31589537 | AF161: 23.20285348 | AG161: 18.12389488 | AH161: 16.67581245 | AI161: 20.32498018 | AJ161: 8.9570003 | AK161: 8.340259779 | AL161: 9.811781023 | AM161: 8.180910553 | AN161: 7.667451937 | AO161: 8.996345788
A162: North West | B162: North West | C162: 920374 | D162: 932361 | E162: 2740238 | F162: 3580 | G162: 2923 | H162: 4920 | I162: 2042 | J162: 1705 | K162: 3246 | L162: 11035 | M162: 10317 | N162: 12182 | O162: 8495 | P162: 7783 | Q162: 9559 | R162: 34199 | S162: 32301 | T162: 36418 | U162: 32110 | V162: 30295 | W162: 34027 | X162: 3.889723091 | Y162: 3.175882848 | Z162: 5.345652963 | AA162: 2.218663283 | AB162: 1.852507785 | AC162: 3.526827138 | AD162: 11.83554439 | AE162: 11.06545641 | AF162: 13.06575457 | AG162: 9.111277713 | AH162: 8.347625008 | AI162: 10.25246659 | AJ162: 12.48030281 | AK162: 11.78766224 | AL162: 13.29008648 | AM162: 11.71796026 | AN162: 11.05560904 | AO162: 12.41753454
A163: South East | B163: South East | C163: 1081147 | D163: 1084735 | E163: 3474951 | F163: 4196 | G163: 3181 | H163: 5433 | I163: 2741 | J163: 2033 | K163: 3935 | L163: 10390 | M163: 9153 | N163: 12356 | O163: 9031 | P163: 7593 | Q163: 10762 | R163: 18148 | S163: 16510 | T163: 20110 | U163: 16867 | V163: 15012 | W163: 19522 | X163: 3.881063352 | Y163: 2.942245597 | Z163: 5.025218587 | AA163: 2.535270412 | AB163: 1.880410342 | AC163: 3.639653072 | AD163: 9.578376285 | AE163: 8.438005596 | AF163: 11.39080052 | AG163: 8.32553573 | AH163: 6.999866327 | AI163: 9.921317188 | AJ163: 5.222519684 | AK163: 4.751146131 | AL163: 5.787131962 | AM163: 4.853881393 | AN163: 4.320060916 | AO163: 5.617920943
A164: South West | B164: South West | C164: 662309 | D164: 635342 | E164: 2091396 | F164: 2405 | G164: 2033 | H164: 3435 | I164: 1687 | J164: 1375 | K164: 2648 | L164: 8284 | M164: 7678 | N164: 9619 | O164: 7112 | P164: 6491 | Q164: 8166 | R164: 15933 | S164: 14983 | T164: 17607 | U164: 14746 | V164: 13811 | W164: 16343 | X164: 3.631235571 | Y164: 3.069564206 | Z164: 5.18640091 | AA164: 2.547149442 | AB164: 2.076070233 | AC164: 3.998133802 | AD164: 13.0386469 | AE164: 12.0848299 | AF164: 15.13987742 | AG164: 11.19397112 | AH164: 10.21654479 | AI164: 12.85292016 | AJ164: 7.618356351 | AK164: 7.164114305 | AL164: 8.418778653 | AM164: 7.050792868 | AN164: 6.603723063 | AO164: 7.814397656
A165: West Midlands | B165: West Midlands | C165: 750255 | D165: 739066 | E165: 2148581 | F165: 2949 | G165: 2301 | H165: 3948 | I165: 1945 | J165: 1498 | K165: 2886 | L165: 12414 | M165: 11412 | N165: 13768 | O165: 10915 | P165: 10058 | Q165: 12213 | R165: 19459 | S165: 17724 | T165: 21581 | U165: 17410 | V165: 16139 | W165: 18953 | X165: 3.930663574 | Y165: 3.066957235 | Z165: 5.262210848 | AA165: 2.5924519 | AB165: 1.996654471 | AC165: 3.846692125 | AD165: 16.79687606 | AE165: 15.44111081 | AF165: 18.62891812 | AG165: 14.76864042 | AH165: 13.60906874 | AI165: 16.52491117 | AJ165: 9.05667508 | AK165: 8.249165379 | AL165: 10.04430366 | AM165: 8.103022413 | AN165: 7.511469198 | AO165: 8.82117081
A166: Yorkshire and the Humber | B166: Yorkshire and the Humber | C166: 721521 | D166: 692350 | E166: 2037883 | F166: 3092 | G166: 2403 | H166: 4311 | I166: 1725 | J166: 1363 | K166: 2616 | L166: 11570 | M166: 10639 | N166: 12441 | O166: 9946 | P166: 9187 | Q166: 10984 | R166: 22000 | S166: 20413 | T166: 23649 | U166: 20550 | V166: 19160 | W166: 21879 | X166: 4.285391555 | Y166: 3.330464394 | Z166: 5.97487807 | AA166: 2.390782805 | AB166: 1.889064906 | AC166: 3.625674097 | AD166: 16.71120098 | AE166: 15.36650538 | AF166: 17.96923521 | AG166: 14.36556655 | AH166: 13.26930021 | AI166: 15.86480826 | AJ166: 10.79551672 | AK166: 10.0167674 | AL166: 11.60468977 | AM166: 10.08399403 | AN166: 9.401913653 | AO166: 10.73614138
A167: ENGLAND | B167: ENGLAND | C167: 6837371 | D167: 7425591 | E167: 20839571 | F167: 30190 | G167: 28906 | H167: 34829 | I167: 18337 | J167: 17992 | K167: 22522 | L167: 91808 | M167: 89650 | N167: 96413 | O167: 75959 | P167: 74042 | Q167: 80381 | R167: 178785 | S167: 174685 | T167: 184519 | U167: 163180 | V167: 159605 | W167: 168569 | X167: 4.415439794 | Y167: 4.227648317 | Z167: 5.093916946 | AA167: 2.681878751 | AB167: 2.631420761 | AC167: 3.293956113 | AD167: 12.3637297 | AE167: 12.0731131 | AF167: 12.98388236 | AG167: 10.22935413 | AH167: 9.971192865 | AI167: 10.82486229 | AJ167: 8.579111345 | AK167: 8.382370251 | AL167: 8.854260963 | AM167: 7.830295547 | AN167: 7.65874691 | AO167: 8.088890122

Sheet OCU
A1: National and local estimated number of OCU users with 95% confidence intervals (CI) - 2010 - 2015
A4: Region | B4: Local authority | C4: 2010/11 | F4: 2011/12 | I4: 2014/15 | L4: Difference between 2014/15 and 2011/12
C5: OCU | D5: Lower bound 95% CI | E5: Upper bound 95% CI | F5: OCU | G5: Lower bound 95% CI | H5: Upper bound 95% CI | I5: OCU | J5: Lower bound 95% CI | K5: Upper bound 95% CI | L5: Difference | M5: Lower bound 95% CI | N5: Upper bound 95% CI | O5: Significance
A7: East Midlands | B7: Derby | C7: 2528 | D7: 2247.773667 | E7: 2967.600102 | F7: 2374 | G7: 2124.54836 | H7: 2713.636719 | I7: 2317 | J7: 2092 | K7: 2836 | L7: -57 | M7: -477 | N7: 491
A8: East Midlands | B8: Derbyshire | C8: 3607.225669 | D8: 2569.287878 | E8: 4570.115664 | F8: 3715.381733 | G8: 2772.603198 | H8: 4696.053678 | I8: 4043 | J8: 2950 | K8: 5071 | L8: 328 | M8: -1105 | N8: 1638
A9: East Midlands | B9: Leicester | C9: 2704 | D9: 2393.007454 | E9: 3191.967283 | F9: 2859.034775 | G9: 2423.741397 | H9: 3281.240747 | I9: 2798 | J9: 2266 | K9: 3305 | L9: -61 | M9: -754 | N9: 608
A10: East Midlands | B10: Leicestershire | C10: 2089 | D10: 1959.232706 | E10: 2266.038532 | F10: 1851 | G10: 1697.06444 | H10: 2053.673626 | I10: 2700 | J10: 1813 | K10: 3720 | L10: 849 | M10: -42 | N10: 1863
A11: East Midlands | B11: Lincolnshire | C11: 3039.18381 | D11: 2127.306731 | E11: 3953.520217 | F11: 3066.966141 | G11: 2177.039027 | H11: 3864.580662 | I11: 3100 | J11: 2830 | K11: 3571 | L11: 33 | M11: -806 | N11: 1071
A12: East Midlands | B12: Northamptonshire | C12: 2929 | D12: 2756.926385 | E12: 3166.534525 | F12: 3123.693736 | G12: 2283.35001 | H12: 3945.193703 | I12: 3415 | J12: 2371 | K12: 4426 | L12: 291 | M12: -1149 | N12: 1545
A13: East Midlands | B13: Nottingham | C13: 2706.160881 | D13: 2260.281398 | E13: 3167.755038 | F13: 2614.518092 | G13: 2216.493413 | H13: 3010.655937 | I13: 2700 | J13: 2367 | K13: 3360 | L13: 85 | M13: -480 | N13: 844
A14: East Midlands | B14: Nottinghamshire | C14: 4546.633495 | D14: 3495.647113 | E14: 5627.627554 | F14: 4435.967406 | G14: 3488.001401 | H14: 5381.436884 | I14: 3917 | J14: 3658 | K14: 4246 | L14: -519 | M14: -1454 | N14: 482
A15: East Midlands | B15: Rutland | C15: 58.69971514 | D15: 8.488576885 | E15: 106.4900593 | F15: 44.81517822 | G15: 15 | H15: 91.09588197 | I15: 67 | J15: 17 | K15: 123 | L15: 22 | M15: -50 | N15: 93
A16: East of England | B16: Bedfordshire (Bedford UA/Central Bedfordshire UA) | C16: 2065 | D16: 1802.537268 | E16: 2486.325985 | F16: 1710 | G16: 1528.830993 | H16: 1970.735622 | I16: 2195 | J16: 1563 | K16: 2849 | L16: 485 | M16: -204 | N16: 1155
A17: East of England | B17: Cambridgeshire | C17: 2172 | D17: 2019.650722 | E17: 2422.129583 | F17: 1779 | G17: 1619.293548 | H17: 2047.094563 | I17: 2227 | J17: 1997 | K17: 2579 | L17: 448 | M17: 91 | N17: 812 | O17: *↑
A18: East of England | B18: Essex | C18: 4556.17357 | D18: 2650.251117 | E18: 6488.356078 | F18: 4329.483584 | G18: 2660.689659 | H18: 5952.734503 | I18: 5463 | J18: 3370 | K18: 7351 | L18: 1134 | M18: -1575 | N18: 3703
A19: East of England | B19: Hertfordshire | C19: 3752.957023 | D19: 2250.886354 | E19: 5214.761524 | F19: 3355 | G19: 2972.543453 | H19: 4069.277217 | I19: 4226 | J19: 2589 | K19: 5921 | L19: 871 | M19: -968 | N19: 2589
A20: East of England | B20: Luton | C20: 1793 | D20: 1610.33619 | E20: 2051.73207 | F20: 1604 | G20: 1407.126849 | H20: 1996.786821 | I20: 1715 | J20: 1389 | K20: 2038 | L20: 111 | M20: -370 | N20: 469
A21: East of England | B21: Norfolk | C21: 4201.249598 | D21: 3064.313445 | E21: 5367.0274 | F21: 3926.042368 | G21: 2912.627144 | H21: 4870.650262 | I21: 3981 | J21: 3619 | K21: 4461 | L21: 55 | M21: -961 | N21: 1208
A22: East of England | B22: Peterborough | C22: 1445 | D22: 1348.87464 | E22: 1593.117213 | F22: 1291 | G22: 1186.882007 | H22: 1437.473484 | I22: 1537 | J22: 1279 | K22: 1816 | L22: 246 | M22: -54 | N22: 529
A23: East of England | B23: Southend-on-Sea | C23: 1192 | D23: 1016.689498 | E23: 1637.534164 | F23: 1052 | G23: 918.1512075 | H23: 1289.770175 | I23: 1033 | J23: 933 | K23: 1192 | L23: -19 | M23: -271 | N23: 196
A24: East of England | B24: Suffolk | C24: 2275 | D24: 2105.616019 | E24: 2498.205949 | F24: 2398 | G24: 2168.048936 | H24: 2844.550368 | I24: 2851 | J24: 1862 | K24: 3822 | L24: 453 | M24: -672 | N24: 1482
A25: East of England | B25: Thurrock | C25: 399 | D25: 350.315493 | E25: 516.8656851 | F25: 507.1936207 | G25: 320.992045 | H25: 705.8298959 | I25: 682 | J25: 507 | K25: 972 | L25: 175 | M25: -97 | N25: 521
A26: London | B26: Barking and Dagenham | C26: 993.6016355 | D26: 745.0685421 | E26: 1266.418234 | F26: 1079 | G26: 915.1039419 | H26: 1327.020741 | I26: 1150 | J26: 1002 | K26: 1398 | L26: 71 | M26: -198 | N26: 361
A27: London | B27: Barnet | C27: 1456 | D27: 1279.284091 | E27: 1789.730238 | F27: 1492 | G27: 1267.108578 | H27: 1840.653059 | I27: 1668 | J27: 1384 | K27: 2529 | L27: 176 | M27: -252 | N27: 1027
A28: London | B28: Bexley | C28: 715 | D28: 596.3475082 | E28: 945.9598226 | F28: 605 | G28: 492.7199162 | H28: 807.748854 | I28: 724 | J28: 587 | K28: 1485 | L28: 119 | M28: -113 | N28: 829
A29: London | B29: Brent | C29: 1857.706241 | D29: 1491.220853 | E29: 2226.641939 | F29: 1833.8074 | G29: 1396.07272 | H29: 2233.390238 | I29: 1890 | J29: 1400 | K29: 2431 | L29: 56 | M29: -585 | N29: 828
A30: London | B30: Bromley | C30: 1012.465755 | D30: 595.0051206 | E30: 1414.568571 | F30: 1117 | G30: 912.564564 | H30: 1417.950646 | I30: 1221 | J30: 964 | K30: 1668 | L30: 104 | M30: -271 | N30: 599
A31: London | B31: Camden | C31: 2344.507727 | D31: 1971.082283 | E31: 2730.383608 | F31: 2211.653417 | G31: 1924.329166 | H31: 2514.25492 | I31: 2097 | J31: 1721 | K31: 2479 | L31: -115 | M31: -576 | N31: 390
A32: London | B32: City of London | C32: 45.92917156 | D32: 24.51098048 | E32: 67.26708465 | F32: 30.018222 | G32: 20.16932175 | H32: 40.98042332 | I32: 28 | J32: 14 | K32: 43 | L32: -2 | M32: -21 | N32: 16
A33: London | B33: Croydon | C33: 1675.792592 | D33: 1185.32354 | E33: 2193.824642 | F33: 1913.878254 | G33: 1463.797562 | H33: 2407.962003 | I33: 2028 | J33: 1803 | K33: 2418 | L33: 114 | M33: -409 | N33: 746
A34: London | B34: Ealing | C34: 2385.398225 | D34: 1890.341615 | E34: 2869.947468 | F34: 2583 | G34: 2329.060353 | H34: 2988.496939 | I34: 2464 | J34: 1928 | K34: 2986 | L34: -119 | M34: -781 | N34: 437
A35: London | B35: Enfield | C35: 1497.898033 | D35: 1062.612061 | E35: 1903.98622 | F35: 1545.12733 | G35: 1107.725066 | H35: 1956.163759 | I35: 1789 | J35: 1523 | K35: 2294 | L35: 244 | M35: -237 | N35: 912
A36: London | B36: Greenwich | C36: 1746 | D36: 1603.451818 | E36: 1956.41204 | F36: 1887.812398 | G36: 1535.412613 | H36: 2264.869341 | I36: 1447 | J36: 1031 | K36: 1885 | L36: -441 | M36: -1015 | N36: 92
A37: London | B37: Hackney | C37: 2246.259531 | D37: 1907.224985 | E37: 2570.254118 | F37: 2616.605617 | G37: 2239.575025 | H37: 2996.64415 | I37: 2553 | J37: 2132 | K37: 2980 | L37: -64 | M37: -632 | N37: 504
A38: London | B38: Hammersmith and Fulham | C38: 1548.229314 | D38: 1301.864024 | E38: 1807.200128 | F38: 1390.012866 | G38: 1135.592224 | H38: 1639.210435 | I38: 1500 | J38: 1181 | K38: 1804 | L38: 110 | M38: -306 | N38: 529
A39: London | B39: Haringey | C39: 1866.207122 | D39: 1529.620602 | E39: 2191.692896 | F39: 1846.897065 | G39: 1505.943247 | H39: 2184.17407 | I39: 1856 | J39: 1426 | K39: 2294 | L39: 9 | M39: -525 | N39: 539
A40: London | B40: Harrow | C40: 854.9604958 | D40: 549.338078 | E40: 1159.57385 | F40: 898.3037297 | G40: 568.8756123 | H40: 1206.451745 | I40: 1193 | J40: 976 | K40: 1508 | L40: 295 | M40: -86 | N40: 754
A41: London | B41: Havering | C41: 871 | D41: 728.9255051 | E41: 1082.470437 | F41: 852 | G41: 676.4254012 | H41: 1475.475395 | I41: 894 | J41: 725 | K41: 1149 | L41: 42 | M41: -583 | N41: 321
A42: London | B42: Hillingdon | C42: 1362.301088 | D42: 993.5013004 | E42: 1725.053431 | F42: 1225.631264 | G42: 852.5091641 | H42: 1590.90542 | I42: 2046 | J42: 1749 | K42: 2625 | L42: 820 | M42: 356 | N42: 1499 | O42: *↑
A43: London | B43: Hounslow | C43: 1557.98137 | D43: 1215.877101 | E43: 1887.145907 | F43: 1280 | G43: 1150.489068 | H43: 1496.697999 | I43: 1536 | J43: 1092 | K43: 1961 | L43: 256 | M43: -239 | N43: 672
A44: London | B44: Islington | C44: 2329.829898 | D44: 2029.682647 | E44: 2644.946432 | F44: 2623 | G44: 2316.536716 | H44: 3229.120721 | I44: 2168 | J44: 1809 | K44: 2548 | L44: -455 | M44: -1177 | N44: 28
A45: London | B45: Kensington and Chelsea | C45: 1563 | D45: 1372.855002 | E45: 1853.041389 | F45: 1065.059567 | G45: 832.6849826 | H45: 1282.776306 | I45: 1250 | J45: 1053 | K45: 1982 | L45: 185 | M45: -82 | N45: 920
A46: London | B46: Kingston upon Thames | C46: 544 | D46: 471.2606494 | E46: 683.2382797 | F46: 522 | G46: 429.2438523 | H46: 766.2884426 | I46: 553 | J46: 441 | K46: 877 | L46: 31 | M46: -213 | N46: 363
A47: London | B47: Lambeth | C47: 2671.698331 | D47: 2215.959707 | E47: 3131.478792 | F47: 3074.087548 | G47: 2593.635817 | H47: 3495.433925 | I47: 2387 | J47: 1806 | K47: 2967 | L47: -687 | M47: -1428 | N47: 82
A48: London | B48: Lewisham | C48: 2084.538721 | D48: 1679.213849 | E48: 2508.770629 | F48: 2438 | G48: 2188.477974 | H48: 2867.270226 | I48: 1940 | J48: 1445 | K48: 2430 | L48: -498 | M48: -1135 | N48: 52
A49: London | B49: Merton | C49: 842 | D49: 717.0026897 | E49: 1020.916512 | F49: 795 | G49: 642.5404714 | H49: 1161.305124 | I49: 635 | J49: 339 | K49: 959 | L49: -160 | M49: -612 | N49: 190
A50: London | B50: Newham | C50: 2464.592319 | D50: 2066.893194 | E50: 2841.079642 | F50: 2924 | G50: 2568.39411 | H50: 3775.795343 | I50: 2400 | J50: 1880 | K50: 2951 | L50: -524 | M50: -1612 | N50: 174
A51: London | B51: Redbridge | C51: 1432 | D51: 1259.847943 | E51: 1671.638691 | F51: 1504 | G51: 1239.936115 | H51: 2300.003046 | I51: 1133 | J51: 695 | K51: 1570 | L51: -371 | M51: -1269 | N51: 116
A52: London | B52: Richmond upon Thames | C52: 630.9598847 | D52: 361.1718058 | E52: 909.0400602 | F52: 649 | G52: 505.6937964 | H52: 929.6133223 | I52: 822 | J52: 586 | K52: 1214 | L52: 173 | M52: -209 | N52: 606
A53: London | B53: Southwark | C53: 2545.706065 | D53: 2055.937247 | E53: 2989.80169 | F53: 2828.765172 | G53: 2419.55736 | H53: 3258.556936 | I53: 2257 | J53: 1774 | K53: 2728 | L53: -572 | M53: -1213 | N53: 34
A54: London | B54: Sutton | C54: 1044 | D54: 871.6904917 | E54: 1398.556606 | F54: 807 | G54: 667.830134 | H54: 1121.154649 | I54: 836 | J54: 670 | K54: 1157 | L54: 29 | M54: -333 | N54: 395
A55: London | B55: Tower Hamlets | C55: 3026.634432 | D55: 2611.452654 | E55: 3395.952773 | F55: 3560.569866 | G55: 3173.645301 | H55: 3966.776955 | I55: 2798 | J55: 2342 | K55: 3245 | L55: -763 | M55: -1369 | N55: -153 | O55: *↓
A56: London | B56: Waltham Forest | C56: 1463.301269 | D56: 1145.417372 | E56: 1769.11361 | F56: 1602.914315 | G56: 1286.381225 | H56: 1935.399817 | I56: 1478 | J56: 1038 | K56: 1959 | L56: -125 | M56: -647 | N56: 446
A57: London | B57: Wandsworth | C57: 1687.992463 | D57: 1262.452426 | E57: 2094.177951 | F57: 1633.553615 | G57: 1197.737719 | H57: 2084.222993 | I57: 1497 | J57: 953 | K57: 2007 | L57: -137 | M57: -829 | N57: 573
A58: London | B58: Westminster | C58: 2255.292317 | D58: 1836.829567 | E58: 2623.515481 | F58: 2550 | G58: 2280.043408 | H58: 3004.901929 | I58: 2249 | J58: 1946 | K58: 2733 | L58: -301 | M58: -852 | N58: 229
A59: North East | B59: County Durham | C59: 2376 | D59: 2241.861038 | E59: 2614.002505 | F59: 2155 | G59: 2013.895084 | H59: 2350.792716 | I59: 2311 | J59: 2168 | K59: 2584 | L59: 156 | M59: -96 | N59: 464
A60: North East | B60: Darlington | C60: 779 | D60: 678.7509556 | E60: 1374.150553 | F60: 717 | G60: 644.4523768 | H60: 837.5002945 | I60: 806 | J60: 652 | K60: 951 | L60: 89 | M60: -101 | N60: 258
A61: North East | B61: Gateshead | C61: 1565 | D61: 1462.889458 | E61: 1746.232566 | F61: 1749 | G61: 1596.856471 | H61: 1967.421833 | I61: 1762 | J61: 1591 | K61: 2118 | L61: 13 | M61: -243 | N61: 396
A62: North East | B62: Hartlepool | C62: 1101 | D62: 1014.712805 | E62: 1305.240232 | F62: 1018 | G62: 943.6734857 | H62: 1132.132206 | I62: 1044 | J62: 931 | K62: 1327 | L62: 26 | M62: -138 | N62: 323
A63: North East | B63: Middlesbrough | C63: 2392 | D63: 2126.479904 | E63: 2996.187716 | F63: 1895 | G63: 1762.086839 | H63: 2080.06176 | I63: 2174 | J63: 1957 | K63: 2401 | L63: 279 | M63: -1 | N63: 545
A64: North East | B64: Newcastle upon Tyne | C64: 2238.143727 | D64: 1823.854038 | E64: 2668.121373 | F64: 2221 | G64: 2007.975846 | H64: 2563.755654 | I64: 2051 | J64: 1582 | K64: 2527 | L64: -170 | M64: -718 | N64: 314
A65: North East | B65: North Tyneside | C65: 1133 | D65: 1002.655786 | E65: 1365.644316 | F65: 975 | G65: 848.779896 | H65: 1256.632671 | I65: 1108 | J65: 922 | K65: 1490 | L65: 133 | M65: -184 | N65: 498
A66: North East | B66: Northumberland | C66: 1302 | D66: 1184.860522 | E66: 1498.706637 | F66: 1324 | G66: 1159.297975 | H66: 1660.973258 | I66: 1256 | J66: 1105 | K66: 1764 | L66: -68 | M66: -415 | N66: 491
A67: North East | B67: Redcar and Cleveland | C67: 1055 | D67: 969.1205461 | E67: 1197.381337 | F67: 1054 | G67: 935.5625928 | H67: 1232.432797 | I67: 1197 | J67: 968 | K67: 1809 | L67: 143 | M67: -131 | N67: 766
A68: North East | B68: South Tyneside | C68: 829 | D68: 733.5963069 | E68: 975.6658353 | F68: 816.5710654 | G68: 627.9615447 | H68: 1003.384322 | I68: 715 | J68: 620 | K68: 884 | L68: -102 | M68: -325 | N68: 160
A69: North East | B69: Stockton-On-Tees | C69: 1971 | D69: 1738.735077 | E69: 2494.446637 | F69: 1739.327881 | G69: 1476.753703 | H69: 1977.338236 | I69: 1898 | J69: 1665 | K69: 2298 | L69: 159 | M69: -155 | N69: 617
A70: North East | B70: Sunderland | C70: 1549 | D70: 1418.743814 | E70: 1770.467183 | F70: 1271 | G70: 1158.636094 | H70: 1479.84627 | I70: 1353 | J70: 1197 | K70: 1589 | L70: 82 | M70: -166 | N70: 335
A71: North West | B71: Blackburn with Darwen | C71: 1297 | D71: 1214.690704 | E71: 1442.815399 | F71: 1417 | G71: 1212.433272 | H71: 1906.531598 | I71: 1363 | J71: 1157 | K71: 1576 | L71: -54 | M71: -529 | N71: 254
A72: North West | B72: Blackpool | C72: 1945.625426 | D72: 1732.288357 | E72: 2136.712626 | F72: 1822.421063 | G72: 1638.630815 | H72: 2013.859601 | I72: 1762 | J72: 1548 | K72: 1974 | L72: -60 | M72: -349 | N72: 222
A73: North West | B73: Bolton | C73: 2406 | D73: 2257.68962 | E73: 2634.149245 | F73: 2126 | G73: 1985.213754 | H73: 2379.561322 | I73: 2748 | J73: 2373 | K73: 3421 | L73: 622 | M73: 153 | N73: 1302 | O73: *↑
A74: North West | B74: Bury | C74: 1107 | D74: 987.6302264 | E74: 1273.682541 | F74: 856.2866961 | G74: 616.8034936 | H74: 1077.333681 | I74: 1168 | J74: 917 | K74: 1646 | L74: 312 | M74: -11 | N74: 824
A75: North West | B75: Cheshire (Cheshire West, Cheshire East and Cheshire UA) | C75: 3388.993495 | D75: 2482.633975 | E75: 4241.864673 | F75: 3116 | G75: 2857.719352 | H75: 3581.615599 | I75: 3284 | J75: 2360 | K75: 4247 | L75: 168 | M75: -934 | N75: 1114
A76: North West | B76: Cumbria | C76: 2599.266552 | D76: 1985.445682 | E76: 3263.56907 | F76: 2386 | G76: 2203.150965 | H76: 2686.122181 | I76: 2744 | J76: 2466 | K76: 3261 | L76: 358 | M76: -49 | N76: 915
A77: North West | B77: Halton | C77: 818 | D77: 711.4838368 | E77: 1025.922387 | F77: 701 | G77: 595.7657881 | H77: 876.2698756 | I77: 699 | J77: 595 | K77: 878 | L77: -2 | M77: -208 | N77: 204
A78: North West | B78: Knowsley | C78: 1354 | D78: 1176.827357 | E78: 1587.586662 | F78: 923.4067183 | G78: 747.8978687 | H78: 1106.174871 | I78: 1090 | J78: 880 | K78: 1317 | L78: 167 | M78: -94 | N78: 446
A79: North West | B79: Lancashire | C79: 6523.36561 | D79: 4955.380628 | E79: 8040.066621 | F79: 6393.669118 | G79: 4994.833625 | H79: 7735.348151 | I79: 6711 | J79: 5126 | K79: 8342 | L79: 317 | M79: -1774 | N79: 2519
A80: North West | B80: Liverpool | C80: 5430.901134 | D80: 4801.68222 | E80: 6114.173107 | F80: 5406.695706 | G80: 4769.23741 | H80: 6045.668618 | I80: 5257 | J80: 4518 | K80: 5997 | L80: -150 | M80: -1131 | N80: 849
A81: North West | B81: Manchester | C81: 4847.743019 | D81: 4135.622539 | E81: 5572.682828 | F81: 4708.726455 | G81: 3982.998179 | H81: 5440.870722 | I81: 4314 | J81: 3489 | K81: 5126 | L81: -395 | M81: -1500 | N81: 692
A82: North West | B82: Oldham | C82: 1537 | D82: 1393.67582 | E82: 1824.345026 | F82: 1249.778949 | G82: 971.317745 | H82: 1521.116619 | I82: 1662 | J82: 1450 | K82: 1999 | L82: 412 | M82: 71 | N82: 830 | O82: *↑
A83: North West | B83: Rochdale | C83: 1683.1679 | D83: 1417.523351 | E83: 1981.588689 | F83: 1447.744086 | G83: 1162.933883 | H83: 1714.502805 | I83: 1830 | J83: 1559 | K83: 2456 | L83: 382 | M83: 20 | N83: 1045 | O83: *↑
A84: North West | B84: Salford | C84: 1745 | D84: 1590.182694 | E84: 2040.320593 | F84: 1562 | G84: 1399.587339 | H84: 1790.642283 | I84: 1399 | J84: 1013 | K84: 1756 | L84: -163 | M84: -592 | N84: 222
A85: North West | B85: Sefton | C85: 1915.135017 | D85: 1569.990794 | E85: 2312.864727 | F85: 1894.976998 | G85: 1538.477605 | H85: 2224.789502 | I85: 1686 | J85: 1536 | K85: 1978 | L85: -209 | M85: -567 | N85: 254
A86: North West | B86: St. Helens | C86: 1150 | D86: 1073.438016 | E86: 1321.324367 | F86: 1232 | G86: 1090.719242 | H86: 1452.663058 | I86: 1386 | J86: 1209 | K86: 1631 | L86: 154 | M86: -147 | N86: 441
A87: North West | B87: Stockport | C87: 1489 | D87: 1320.508341 | E87: 1774.117844 | F87: 1251 | G87: 1113.317564 | H87: 1535.218895 | I87: 1518 | J87: 1307 | K87: 2033 | L87: 267 | M87: -87 | N87: 815
A88: North West | B88: Tameside | C88: 1436 | D88: 1315.741057 | E88: 1697.241557 | F88: 1439.053403 | G88: 1155.880154 | H88: 1707.770412 | I88: 1396 | J88: 1250 | K88: 2003 | L88: -43 | M88: -348 | N88: 582
A89: North West | B89: Trafford | C89: 883 | D89: 755.0375477 | E89: 1124.032774 | F89: 821 | G89: 678.8558515 | H89: 1093.525265 | I89: 858 | J89: 512 | K89: 1174 | L89: 37 | M89: -415 | N89: 417
A90: North West | B90: Warrington | C90: 967 | D90: 853.3279746 | E90: 1125.642594 | F90: 821 | G90: 712.8955099 | H90: 1018.105223 | I90: 947 | J90: 814 | K90: 1142 | L90: 126 | M90: -123 | N90: 355
A91: North West | B91: Wigan | C91: 1844 | D91: 1723.763709 | E91: 2027.226113 | F91: 1869.239594 | G91: 1472.096003 | H91: 2285.250392 | I91: 2155 | J91: 1665 | K91: 2629 | L91: 286 | M91: -324 | N91: 919
A92: North West | B92: Wirral | C92: 3059 | D92: 2859.490669 | E92: 3452.113394 | F92: 2892 | G92: 2671.280419 | H92: 3197.447628 | I92: 2837 | J92: 2565 | K92: 3404 | L92: -55 | M92: -462 | N92: 528
A93: South East | B93: Bracknell Forest | C93: 305 | D93: 251.3141632 | E93: 436.7048089 | F93: 227 | G93: 181.7286715 | H93: 331.5345286 | I93: 372 | J93: 183 | K93: 544 | L93: 145 | M93: -64 | N93: 323
A94: South East | B94: Brighton and Hove | C94: 2290 | D94: 2034.957156 | E94: 2840.969076 | F94: 2029.389399 | G94: 1630.443007 | H94: 2407.942312 | I94: 2128 | J94: 1889 | K94: 2489 | L94: 99 | M94: -337 | N94: 636
A95: South East | B95: Buckinghamshire | C95: 1666 | D95: 1474.573008 | E95: 1984.299171 | F95: 1568 | G95: 1368.408087 | H95: 1830.450435 | I95: 1647 | J95: 940 | K95: 2339 | L95: 79 | M95: -674 | N95: 802
A96: South East | B96: East Sussex | C96: 2264 | D96: 2007.209032 | E96: 2825.878642 | F96: 2152 | G96: 1849.509501 | H96: 2641.107821 | I96: 2296 | J96: 1547 | K96: 2980 | L96: 144 | M96: -803 | N96: 874
A97: South East | B97: Hampshire | C97: 4088.450201 | D97: 2344.14347 | E97: 5815.455034 | F97: 4042.575387 | G97: 2400.171798 | H97: 5562.375729 | I97: 3215 | J97: 2955 | K97: 3633 | L97: -828 | M97: -2315 | N97: 924
A98: South East | B98: Isle of Wight | C98: 697 | D98: 568.7533933 | E98: 913.0682681 | F98: 574 | G98: 463.8172977 | H98: 781.7296273 | I98: 544 | J98: 352 | K98: 733 | L98: -30 | M98: -310 | N98: 189
A99: South East | B99: Kent | C99: 4617 | D99: 4392.807156 | E99: 4947.799033 | F99: 5028 | G99: 4557.661191 | H99: 5851.483396 | I99: 5198 | J99: 3163 | K99: 7156 | L99: 170 | M99: -2168 | N99: 2178
A100: South East | B100: Medway | C100: 1467 | D100: 1305.657385 | E100: 1713.726025 | F100: 1291 | G100: 1155.262544 | H100: 1508.867576 | I100: 1259 | J100: 831 | K100: 1648 | L100: -32 | M100: -513 | N100: 373
A101: South East | B101: Milton Keynes | C101: 932.448397 | D101: 573.8068909 | E101: 1285.784951 | F101: 949.236379 | G101: 612.1168311 | H101: 1255.240245 | I101: 1006 | J101: 608 | K101: 1427 | L101: 57 | M101: -466 | N101: 565
A102: South East | B102: Oxfordshire | C102: 2881.648262 | D102: 2035.860827 | E102: 3798.500597 | F102: 3258 | G102: 2870.748028 | H102: 3947.593302 | I102: 2933 | J102: 1974 | K102: 3948 | L102: -325 | M102: -1467 | N102: 798
A103: South East | B103: Portsmouth | C103: 1283 | D103: 1138.650265 | E103: 1527.270349 | F103: 1549 | G103: 1291.355334 | H103: 1917.287533 | I103: 1427 | J103: 1253 | K103: 1795 | L103: -122 | M103: -512 | N103: 311
A104: South East | B104: Reading | C104: 1363 | D104: 1227.241335 | E104: 1668.253163 | F104: 1259.833096 | G104: 1049.288731 | H104: 1479.481497 | I104: 1332 | J104: 1113 | K104: 1904 | L104: 72 | M104: -209 | N104: 643
A105: South East | B105: Slough | C105: 1066 | D105: 942.2340617 | E105: 1291.859479 | F105: 1044.747623 | G105: 860.7114171 | H105: 1236.204486 | I105: 887 | J105: 688 | K105: 1103 | L105: -158 | M105: -450 | N105: 132
A106: South East | B106: Southampton | C106: 1554.017935 | D106: 1236.347026 | E106: 1919.494178 | F106: 1648.736639 | G106: 1324.17205 | H106: 1969.005894 | I106: 1483 | J106: 1105 | K106: 1872 | L106: -166 | M106: -659 | N106: 332
A107: South East | B107: Surrey | C107: 2962 | D107: 2594.987532 | E107: 3543.79253 | F107: 2610 | G107: 2400.144273 | H107: 2931.505256 | I107: 2966 | J107: 2664 | K107: 3468 | L107: 356 | M107: -92 | N107: 864
A108: South East | B108: West Berkshire | C108: 541 | D108: 455.1728482 | E108: 677.3628942 | F108: 616 | G108: 474.3243894 | H108: 844.8631819 | I108: 524 | J108: 438 | K108: 716 | L108: -92 | M108: -323 | N108: 173
A109: South East | B109: West Sussex | C109: 2336.148463 | D109: 1220.712886 | E109: 3342.705492 | F109: 2139.700166 | G109: 1227 | H109: 3055.783839 | I109: 2646 | J109: 1524 | K109: 3732 | L109: 506 | M109: -989 | N109: 2057
A110: South East | B110: Windsor and Maidenhead | C110: 500 | D110: 431.4125603 | E110: 643.6553728 | F110: 582 | G110: 447.5379658 | H110: 817.9574942 | I110: 531 | J110: 428 | K110: 687 | L110: -51 | M110: -297 | N110: 160
A111: South East | B111: Wokingham | C111: 355.7889664 | D111: 114.1492308 | E111: 571.5156298 | F111: 366 | G111: 257.7887651 | H111: 609.5003692 | I111: 340 | J111: 253 | K111: 644 | L111: -26 | M111: -260 | N111: 301
A112: South West | B112: Bath and North East Somerset | C112: 1032.950897 | D112: 785.494365 | E112: 1274.584758 | F112: 1234 | G112: 997.453056 | H112: 1729.765521 | I112: 1007 | J112: 809 | K112: 1608 | L112: -227 | M112: -741 | N112: 378
A113: South West | B113: Bournemouth | C113: 1921 | D113: 1812.308535 | E113: 2102.266858 | F113: 1893.041136 | G113: 1652.654906 | H113: 2127.883025 | I113: 1854 | J113: 1638 | K113: 2439 | L113: -39 | M113: -373 | N113: 619
A114: South West | B114: Bristol, City of | C114: 4989.153174 | D114: 4264.175831 | E114: 5628.759124 | F114: 5364 | G114: 4913.080528 | H114: 5982.010202 | I114: 4709 | J114: 4006 | K114: 5420 | L114: -655 | M114: -1598 | N114: 207
A115: South West | B115: Cornwall (UA) and Isles of Scilly (UA) | C115: 2260 | D115: 2038.415194 | E115: 2591.554562 | F115: 1882 | G115: 1728.931251 | H115: 2174.279883 | I115: 2111 | J115: 1843 | K115: 2665 | L115: 229 | M115: -146 | N115: 773
A116: South West | B116: Devon | C116: 2117 | D116: 1956.729271 | E116: 2368.266056 | F116: 2200 | G116: 1985.343511 | H116: 2595.736782 | I116: 2147 | J116: 1949 | K116: 2471 | L116: -53 | M116: -469 | N116: 333
A117: South West | B117: Dorset | C117: 1436 | D117: 1296.084613 | E117: 1677.183842 | F117: 1386 | G117: 1225.967501 | H117: 1604.337359 | I117: 1647 | J117: 1415 | K117: 2340 | L117: 261 | M117: -47 | N117: 942
A118: South West | B118: Gloucestershire | C118: 2956.112302 | D118: 2155.572102 | E118: 3763.276358 | F118: 2644.466234 | G118: 1903.757194 | H118: 3357.133056 | I118: 2829 | J118: 1981 | K118: 3658 | L118: 185 | M118: -926 | N118: 1311
A119: South West | B119: North Somerset | C119: 1166 | D119: 1050.306945 | E119: 1410.108017 | F119: 989 | G119: 886.235075 | H119: 1144.718576 | I119: 1267 | J119: 1038 | K119: 1772 | L119: 278 | M119: -8 | N119: 806
A120: South West | B120: Plymouth | C120: 2371.552137 | D120: 2024.966507 | E120: 2702.937987 | F120: 2084 | G120: 1927.525885 | H120: 2284.792232 | I120: 2108 | J120: 1925 | K120: 2530 | L120: 24 | M120: -233 | N120: 472
A121: South West | B121: Poole | C121: 546 | D121: 466.2937615 | E121: 680.639429 | F121: 533 | G121: 426.8772462 | H121: 718.7790878 | I121: 558 | J121: 421 | K121: 1118 | L121: 25 | M121: -190 | N121: 608
A122: South West | B122: Somerset | C122: 2056 | D122: 1874.454738 | E122: 2364.895423 | F122: 1844 | G122: 1689.048192 | H122: 2054.057562 | I122: 1929 | J122: 1730 | K122: 2325 | L122: 85 | M122: -191 | N122: 477
A123: South West | B123: South Gloucestershire | C123: 1250 | D123: 1005.550115 | E123: 1794.927165 | F123: 896.3054989 | G123: 574.5321155 | H123: 1211.950097 | I123: 1043 | J123: 655 | K123: 1429 | L123: 147 | M123: -346 | N123: 664
A124: South West | B124: Swindon | C124: 1017 | D124: 910.4376179 | E124: 1225.715369 | F124: 1147 | G124: 974.2661759 | H124: 1398.224148 | I124: 1153 | J124: 828 | K124: 1492 | L124: 6 | M124: -408 | N124: 385
A125: South West | B125: Torbay | C125: 915 | D125: 832.7438465 | E125: 1044.705408 | F125: 814 | G125: 733.7439645 | H125: 962.8369521 | I125: 775 | J125: 672 | K125: 946 | L125: -39 | M125: -215 | N125: 141
A126: South West | B126: Wiltshire | C126: 1345 | D126: 1174.877283 | E126: 1748.202097 | F126: 1140 | G126: 996.0806799 | H126: 1379.676212 | I126: 1485 | J126: 1236 | K126: 3105 | L126: 345 | M126: 9 | N126: 1957 | O126: *↑
A127: West Midlands | B127: Birmingham | C127: 10262.83384 | D127: 8864.794745 | E127: 11716.29629 | F127: 10743.27704 | G127: 9283.956725 | H127: 12084.78982 | I127: 9705 | J127: 8184 | K127: 11470 | L127: -1038 | M127: -3145 | N127: 1137
A128: West Midlands | B128: Coventry | C128: 2124.483027 | D128: 1724.02612 | E128: 2583.309763 | F128: 1935.143706 | G128: 1502.866908 | H128: 2356.84009 | I128: 1874 | J128: 1698 | K128: 2157 | L128: -61 | M128: -518 | N128: 463
A129: West Midlands | B129: Dudley | C129: 1912.592422 | D129: 1518.528106 | E129: 2278.803971 | F129: 1921 | G129: 1635.722372 | H129: 2379.216723 | I129: 2010 | J129: 1565 | K129: 2450 | L129: 89 | M129: -494 | N129: 622
A130: West Midlands | B130: Herefordshire, County of | C130: 847 | D130: 764.1159862 | E130: 1029.552563 | F130: 719 | G130: 644.3551981 | H130: 851.7432773 | I130: 942 | J130: 776 | K130: 1468 | L130: 223 | M130: -11 | N130: 764
A131: West Midlands | B131: Sandwell | C131: 2046.680579 | D131: 1681.009581 | E131: 2442.297166 | F131: 2141.198319 | G131: 1751.676508 | H131: 2527.943249 | I131: 2151 | J131: 1728 | K131: 2624 | L131: 10 | M131: -560 | N131: 573
A132: West Midlands | B132: Shropshire | C132: 1123 | D132: 1020.144571 | E132: 1274.28666 | F132: 863 | G132: 794.4010462 | H132: 983.5849156 | I132: 1202 | J132: 1059 | K132: 1460 | L132: 339 | M132: 175 | N132: 613 | O132: *↑
A133: West Midlands | B133: Solihull | C133: 897 | D133: 783.9708673 | E133: 1065.843419 | F133: 740 | G133: 671.8065103 | H133: 946.6310559 | I133: 961 | J133: 678 | K133: 1261 | L133: 221 | M133: -115 | N133: 505
A134: West Midlands | B134: Staffordshire | C134: 3023 | D134: 2833.707665 | E134: 3337.959235 | F134: 3239.768939 | G134: 2202.211684 | H134: 4305.836955 | I134: 3446 | J134: 3143 | K134: 3939 | L134: 206 | M134: -869 | N134: 1389
A135: West Midlands | B135: Stoke-on-Trent | C135: 2221 | D135: 2117.290692 | E135: 2381.163518 | F135: 2344 | G135: 2148.674334 | H135: 2718.396681 | I135: 2654 | J135: 2282 | K135: 3036 | L135: 310 | M135: -235 | N135: 707
A136: West Midlands | B136: Telford and Wrekin | C136: 1019.628623 | D136: 784.6924708 | E136: 1238.553477 | F136: 767 | G136: 671.3017291 | H136: 1181.980769 | I136: 929 | J136: 824 | K136: 1202 | L136: 162 | M136: -224 | N136: 436
A137: West Midlands | B137: Walsall | C137: 2106.96177 | D137: 1767.727611 | E137: 2452.736879 | F137: 2186 | G137: 1904.462 | H137: 2649.991072 | I137: 1906 | J137: 1740 | K137: 2227 | L137: -280 | M137: -751 | N137: 136
A138: West Midlands | B138: Warwickshire | C138: 2186 | D138: 2008.506425 | E138: 2516.565354 | F138: 1805 | G138: 1622.017686 | H138: 2115.306518 | I138: 2100 | J138: 1843 | K138: 2574 | L138: 295 | M138: -102 | N138: 805
A139: West Midlands | B139: Wolverhampton | C139: 2135 | D139: 1995.234727 | E139: 2375.545535 | F139: 2281.53838 | G139: 1948.033091 | H139: 2609.352746 | I139: 2172 | J139: 1951 | K139: 2602 | L139: -110 | M139: -507 | N139: 395
A140: West Midlands | B140: Worcestershire | C140: 2592.453044 | D140: 1825.966952 | E140: 3380.637182 | F140: 2643 | G140: 2314.199712 | H140: 3337.985766 | I140: 2770 | J140: 1906 | K140: 3589 | L140: 127 | M140: -978 | N140: 989
A141: Yorkshire and the Humber | B141: Barnsley | C141: 1509 | D141: 1384.587241 | E141: 1746.076513 | F141: 1718 | G141: 1542.565806 | H141: 2117.972453 | I141: 1851 | J141: 1608 | K141: 2247 | L141: 133 | M141: -302 | N141: 543
A142: Yorkshire and the Humber | B142: Bradford | C142: 4682.59333 | D142: 4001.345417 | E142: 5381.919076 | F142: 4441 | G142: 4107.291319 | H142: 4892.152891 | I142: 4785 | J142: 3963 | K142: 5579 | L142: 344 | M142: -578 | N142: 1169
A143: Yorkshire and the Humber | B143: Calderdale | C143: 1115 | D143: 1036.067691 | E143: 1268.269005 | F143: 1058 | G143: 972.463859 | H143: 1181.55972 | I143: 1556 | J143: 1248 | K143: 1848 | L143: 498 | M143: 170 | N143: 803 | O143: *↑
A144: Yorkshire and the Humber | B144: Doncaster | C144: 2443 | D144: 2315.477399 | E144: 2654.186951 | F144: 2276 | G144: 2135.181483 | H144: 2489.257819 | I144: 2337 | J144: 1890 | K144: 2808 | L144: 61 | M144: -438 | N144: 534
A145: Yorkshire and the Humber | B145: East Riding of Yorkshire | C145: 1128 | D145: 973.3383614 | E145: 1339.127091 | F145: 1161 | G145: 975.9054077 | H145: 1589.984795 | I145: 945 | J145: 817 | K145: 1225 | L145: -216 | M145: -624 | N145: 120
A146: Yorkshire and the Humber | B146: Kingston upon Hull, City of | C146: 3315.540412 | D146: 2915.976894 | E146: 3707.970365 | F146: 3228.758459 | G146: 2883.284689 | H146: 3575.815224 | I146: 3309 | J146: 2832 | K146: 3731 | L146: 80 | M146: -529 | N146: 641
A147: Yorkshire and the Humber | B147: Kirklees | C147: 2341 | D147: 2205.128324 | E147: 2538.20567 | F147: 2524.236255 | G147: 1996.454043 | H147: 3052.774901 | I147: 2487 | J147: 2227 | K147: 3022 | L147: -37 | M147: -622 | N147: 704
A148: Yorkshire and the Humber | B148: Leeds | C148: 5215.06295 | D148: 4104.271635 | E148: 6336.09928 | F148: 5476.202287 | G148: 4471.68279 | H148: 6438.516935 | I148: 5517 | J148: 4337 | K148: 6703 | L148: 41 | M148: -1484 | N148: 1574
A149: Yorkshire and the Humber | B149: North East Lincolnshire | C149: 1302 | D149: 1231.005806 | E149: 1440.26958 | F149: 1586.804626 | G149: 1397.40618 | H149: 1774.74081 | I149: 1469 | J149: 1222 | K149: 1693 | L149: -118 | M149: -421 | N149: 159
A150: Yorkshire and the Humber | B150: North Lincolnshire | C150: 1065 | D150: 997.7991948 | E150: 1218.52611 | F150: 1195.813425 | G150: 980.2936922 | H150: 1378.677889 | I150: 1321 | J150: 1066 | K150: 1558 | L150: 125 | M150: -181 | N150: 429
A151: Yorkshire and the Humber | B151: North Yorkshire | C151: 1803 | D151: 1692.501511 | E151: 1990.856798 | F151: 2066.360594 | G151: 1367.089645 | H151: 2776.202876 | I151: 1953 | J151: 1735 | K151: 2295 | L151: -113 | M151: -855 | N151: 666
A152: Yorkshire and the Humber | B152: Rotherham | C152: 1689 | D152: 1587.668295 | E152: 1970.896981 | F152: 1649 | G152: 1470.345613 | H152: 2356.194301 | I152: 1904 | J152: 1699 | K152: 2382 | L152: 255 | M152: -430 | N152: 719
A153: Yorkshire and the Humber | B153: Sheffield | C153: 4017.240209 | D153: 3147.679269 | E153: 4866.210179 | F153: 4266 | G153: 3876.625687 | H153: 4808.302007 | I153: 3668 | J153: 2812 | K153: 4601 | L153: -598 | M153: -1611 | N153: 368
A154: Yorkshire and the Humber | B154: Wakefield | C154: 2767.221793 | D154: 2320.626331 | E154: 3217.546106 | F154: 2501 | G154: 2298.386324 | H154: 2873.68485 | I154: 2634 | J154: 2408 | K154: 3019 | L154: 133 | M154: -293 | N154: 553
A155: Yorkshire and the Humber | B155: York | C155: 915 | D155: 852.1082281 | E155: 1002.343724 | F155: 1122 | G155: 947.6265904 | H155: 1511.664703 | I155: 926 | J155: 835 | K155: 1213 | L155: -196 | M155: -583 | N155: 145
A156: East of England | B156: East of England | C156: 23851.38019 | D156: 21263.55316 | E156: 26737.73188 | F156: 21951.71957 | G156: 20102.78953 | H156: 24378.69208 | I156: 25910 | J156: 23146 | K156: 28708 | L156: 3958 | M156: 270 | N156: 7606 | O156: *↑
A157: East Midlands | B157: East Midlands | C157: 24207.90357 | D157: 22398.19844 | E157: 26054.30644 | F157: 24085.37706 | G157: 22134.28029 | H157: 25947.32318 | I157: 25057 | J157: 23108 | K157: 27064 | L157: 972 | M157: -1741 | N157: 4009
A158: London | B158: London | C158: 52622.784 | D158: 50844.19405 | E158: 54659.70932 | F158: 54984.69765 | G158: 53830.9901 | H158: 57863.87379 | I158: 52487 | J158: 50955 | K158: 55550 | L158: -2498 | M158: -5341 | N158: 634
A159: North East | B159: North East | C159: 18290.14373 | D159: 17729.01533 | E159: 19689.39806 | F159: 16934.89895 | G159: 16467.38421 | H159: 17762.10852 | I159: 17675 | J159: 17116 | K159: 19120 | L159: 740 | M159: -178 | N159: 2152
A160: North West | B160: North West | C160: 49426.19815 | D160: 47464.73121 | E160: 52032.2529 | F160: 46336.99879 | G160: 44528.91789 | H160: 48642.89099 | I160: 48814 | J160: 46661 | K160: 52097 | L160: 2477 | M160: -670 | N160: 6105
A161: South East | B161: South East | C161: 33169.50222 | D161: 30989.7065 | E161: 35950.0927 | F161: 32935.21869 | G161: 30923.33287 | H161: 35390.13452 | I161: 32734 | J161: 30175 | K161: 35974 | L161: -201 | M161: -3744 | N161: 3424
A162: South West | B162: South West | C162: 27378.76851 | D162: 26333.91536 | E162: 29106.4502 | F162: 26050.81287 | G162: 25033.80936 | H162: 27561.00362 | I162: 26622 | J162: 25586 | K162: 29474 | L162: 571 | M162: -1122 | N162: 3638
A163: West Midlands | B163: West Midlands | C163: 34497.6333 | D163: 32692.53368 | E163: 36590.59422 | F163: 34328.92639 | G163: 32486.70672 | H163: 36644.28581 | I163: 34822 | J163: 33090 | K163: 37580 | L163: 493 | M163: -2268 | N163: 3840
A164: Yorkshire and the Humber | B164: Yorkshire and the Humber | C164: 35307.65869 | D164: 33840.67649 | E164: 37294.05038 | F164: 36270.17565 | G164: 34926.01206 | H164: 38300.98078 | I164: 36662 | J164: 34971 | K164: 38800 | L164: 392 | M164: -2269 | N164: 2846
A165: ENGLAND | B165: ENGLAND | C165: 298752 | D165: 294857.8932 | E165: 307224.8096 | F165: 293878.8256 | G165: 291028.756 | H165: 302145.6138 | I165: 300783 | J165: 297986 | K165: 311128 | L165: 6904 | M165: -593 | N165: 16618

Sheet Opiate
A1: National and local estimated number of opiate users with 95% confidence intervals (CI) - 2010 - 2015
A4: Region | B4: Local authority | C4: 2010/11 | F4: 2011/12 | I4: 2014/15 | L4: Difference between 2014/15 and 2011/12
C5: Opiate users | D5: Lower bound 95% CI | E5: Upper bound 95% CI | F5: Opiate users | G5: Lower bound 95% CI | H5: Upper bound 95% CI | I5: Opiate users | J5: Lower bound 95% CI | K5: Upper bound 95% CI | L5: Difference | M5: Lower bound 95% CI | N5: Upper bound 95% CI | O5: Significance
A7: East Midlands | B7: Derby | C7: 1948.034688 | D7: 1693.588813 | E7: 2218.67833 | F7: 2094 | G7: 1941 | H7: 2316 | I7: 1989 | J7: 1828 | K7: 2357 | L7: -105 | M7: -361 | N7: 256
A8: East Midlands | B8: Derbyshire | C8: 3208.061127 | D8: 2431.238807 | E8: 3962.945245 | F8: 3330.974078 | G8: 2490.02521 | H8: 4190.730006 | I8: 3481 | J8: 2628 | K8: 4329 | L8: 150.0259218 | M8: -974 | N8: 1398
A9: East Midlands | B9: Leicester | C9: 2439 | D9: 2174.978077 | E9: 2849.83507 | F9: 2532.593645 | G9: 2125.701924 | H9: 2896.513017 | I9: 2298 | J9: 1869 | K9: 2747 | L9: -234.5936454 | M9: -795 | N9: 326
A10: East Midlands | B10: Leicestershire | C10: 1848 | D10: 1745.517296 | E10: 1991.819747 | F10: 1665 | G10: 1527.029744 | H10: 1877.313997 | I10: 2285 | J10: 1561 | K10: 3047 | L10: 620 | M10: -99 | N10: 1370
A11: East Midlands | B11: Lincolnshire | C11: 2710.425691 | D11: 2029.114836 | E11: 3405.828744 | F11: 2762.02196 | G11: 2036.841215 | H11: 3498.681715 | I11: 2929 | J11: 2664 | K11: 3403 | L11: 166.9780402 | M11: -635 | N11: 1085
A12: East Midlands | B12: Northamptonshire | C12: 2582 | D12: 2437.577968 | E12: 2841.47854 | F12: 2752.777603 | G12: 2002.685575 | H12: 3469.798075 | I12: 2908 | J12: 2158 | K12: 3700 | L12: 155.2223967 | M12: -902 | N12: 1313
A13: East Midlands | B13: Nottingham | C13: 2393.03479 | D13: 2045.232825 | E13: 2769.85741 | F13: 2289.562352 | G13: 1940.643748 | H13: 2664.748839 | I13: 2400 | J13: 2124 | K13: 2937 | L13: 110.4376475 | M13: -349 | N13: 731
A14: East Midlands | B14: Nottinghamshire | C14: 3580 | D14: 3396.212577 | E14: 3843.086679 | F14: 4000.449597 | G14: 3178.559414 | H14: 4793.481465 | I14: 3818 | J14: 3256 | K14: 5214 | L14: -182.4495965 | M14: -1195 | N14: 1419
A15: East Midlands | B15: Rutland | C15: 47.92823431 | D15: 20 | E15: 93.63308661 | F15: 37.79450097 | G15: 15 | H15: 77.02262528 | I15: 55 | J15: 17 | K15: 96 | L15: 17.20549903 | M15: -42 | N15: 72
A16: East of England | B16: Bedfordshire (Bedford UA/Central Bedfordshire UA) | C16: 1787 | D16: 1610.488287 | E16: 2107.801735 | F16: 1534 | G16: 1376.250657 | H16: 2020.880909 | I16: 1829 | J16: 1375 | K16: 2282 | L16: 295 | M16: -360 | N16: 748
A17: East of England | B17: Cambridgeshire | C17: 2035 | D17: 1879.080728 | E17: 2348.014754 | F17: 1687 | G17: 1552.728066 | H17: 1939.979911 | I17: 1954 | J17: 1764 | K17: 2440 | L17: 267 | M17: -44 | N17: 762
A18: East of England | B18: Essex | C18: 3831.41201 | D18: 2266.473194 | E18: 5391.099576 | F18: 3711.175775 | G18: 2281.857425 | H18: 5115.635006 | I18: 4492 | J18: 2879 | K18: 6002 | L18: 780.8242248 | M18: -1495 | N18: 2678
A19: East of England | B19: Hertfordshire | C19: 3124.505258 | D19: 1932.380866 | E19: 4288.463069 | F19: 2814 | G19: 2552.694025 | H19: 3247.407908 | I19: 3418 | J19: 2957 | K19: 4100 | L19: 604 | M19: -22 | N19: 1314
A20: East of England | B20: Luton | C20: 1545 | D20: 1361.63812 | E20: 1911.420226 | F20: 1355 | G20: 1189.124338 | H20: 1629.830201 | I20: 1411 | J20: 1177 | K20: 1652 | L20: 56 | M20: -318 | N20: 343
A21: East of England | B21: Norfolk | C21: 3694.693178 | D21: 2801.469973 | E21: 4563.650808 | F21: 3464.0733 | G21: 2591.649096 | H21: 4338.519989 | I21: 3531 | J21: 3277 | K21: 3965 | L21: 66.92670035 | M21: -802 | N21: 1082
A22: East of England | B22: Peterborough | C22: 1330 | D22: 1244.495681 | E22: 1447.655232 | F22: 1228 | G22: 1136.159208 | H22: 1350.361765 | I22: 1352 | J22: 1160 | K22: 1564 | L22: 124 | M22: -103 | N22: 366
A23: East of England | B23: Southend-on-Sea | C23: 850 | D23: 772.5093712 | E23: 1160.323128 | F23: 925 | G23: 815.1168477 | H23: 1125.427709 | I23: 931 | J23: 810 | K23: 1203 | L23: 6 | M23: -217 | N23: 286
A24: East of England | B24: Suffolk | C24: 2029 | D24: 1893.507931 | E24: 2288.94607 | F24: 2143 | G24: 1936.248953 | H24: 2573.483876 | I24: 2391 | J24: 1633 | K24: 3148 | L24: 248 | M24: -576 | N24: 1011
A25: East of England | B25: Thurrock | C25: 359 | D25: 309.4038403 | E25: 443.4526677 | F25: 401.943359 | G25: 228 | H25: 572.1132182 | I25: 518 | J25: 397 | K25: 767 | L25: 116.056641 | M25: -107 | N25: 446
A26: London | B26: Barking and Dagenham | C26: 820 | D26: 724.49463 | E26: 971.2555621 | F26: 758 | G26: 659.1275493 | H26: 985.1778827 | I26: 861 | J26: 771 | K26: 1088 | L26: 103 | M26: -134 | N26: 352
A27: London | B27: Barnet | C27: 1125 | D27: 1001.534293 | E27: 1332.145801 | F27: 1156 | G27: 979.5063746 | H27: 1586.834364 | I27: 1390 | J27: 1100 | K27: 1850 | L27: 234 | M27: -341 | N27: 681
A28: London | B28: Bexley | C28: 627 | D28: 506.177363 | E28: 944.1679738 | F28: 445 | G28: 366.9650423 | H28: 605.4904573 | I28: 541 | J28: 411 | K28: 825 | L28: 96 | M28: -121 | N28: 378
A29: London | B29: Brent | C29: 1317.089231 | D29: 1036.369477 | E29: 1596.358031 | F29: 1362.159613 | G29: 1017.881072 | H29: 1702.124824 | I29: 1410 | J29: 1042 | K29: 1809 | L29: 47.84038734 | M29: -485 | N29: 552
A30: London | B30: Bromley | C30: 827.8724643 | D30: 519 | E30: 1180.273166 | F30: 814 | G30: 674.7880798 | H30: 1004.915853 | I30: 870 | J30: 687 | K30: 1182 | L30: 56 | M30: -233 | N30: 415
A31: London | B31: Camden | C31: 1963.600701 | D31: 1654.540499 | E31: 2266.045836 | F31: 2055 | G31: 1824.859067 | H31: 2426.852589 | I31: 1718 | J31: 1425 | K31: 2010 | L31: -337 | M31: -793 | N31: 34
A32: London | B32: City of London | C32: 34.83598687 | D32: 23 | E32: 52.06227153 | F32: 25.87551493 | G32: 17.51891926 | H32: 35.17686194 | I32: 23 | J32: 13 | K32: 33 | L32: -2.875514927 | M32: -18 | N32: 10
A33: London | B33: Croydon | C33: 1307.298754 | D33: 918.7986262 | E33: 1694.188222 | F33: 1469.710333 | G33: 1063.407092 | H33: 1855.599783 | I33: 1486 | J33: 1306 | K33: 1772 | L33: 16.28966716 | M33: -407 | N33: 489
A34: London | B34: Ealing | C34: 2060.423795 | D34: 1651.524534 | E34: 2430.965698 | F34: 2236 | G34: 2019.321156 | H34: 2542.80375 | I34: 2029 | J34: 1616 | K34: 2441 | L34: -207 | M34: -722 | N34: 247
A35: London | B35: Enfield | C35: 1360 | D35: 1170.642873 | E35: 1846.470578 | F35: 1343 | G35: 1155.328269 | H35: 1592.852235 | I35: 1368 | J35: 1129 | K35: 2009 | L35: 25 | M35: -312 | N35: 713
A36: London | B36: Greenwich | C36: 1614 | D36: 1376.755677 | E36: 2243.15406 | F36: 1464 | G36: 1276.74935 | H36: 1776.421985 | I36: 1111 | J36: 804 | K36: 1432 | L36: -353 | M36: -770 | N36: 33
A37: London | B37: Hackney | C37: 1792.338334 | D37: 1520.957805 | E37: 2066.831882 | F37: 1984.507033 | G37: 1683.608749 | H37: 2275.396056 | I37: 1989 | J37: 1657 | K37: 2297 | L37: 4.492966566 | M37: -425 | N37: 433
A38: London | B38: Hammersmith and Fulham | C38: 1220.75065 | D38: 1032.196321 | E38: 1422.559645 | F38: 1140.867452 | G38: 933.405567 | H38: 1339.685816 | I38: 1178 | J38: 936 | K38: 1413 | L38: 37.13254776 | M38: -283 | N38: 369
A39: London | B39: Haringey | C39: 1407.350337 | D39: 1148.395743 | E39: 1690.898122 | F39: 1400.16212 | G39: 1098.378287 | H39: 1702.282235 | I39: 1406 | J39: 1067 | K39: 1737 | L39: 5.837880312 | M39: -452 | N39: 432
A40: London | B40: Harrow | C40: 703.1962899 | D40: 463.6023386 | E40: 974.0816494 | F40: 736.9636882 | G40: 476.7141104 | H40: 995.6102102 | I40: 1002 | J40: 792 | K40: 1538 | L40: 265.0363118 | M40: -62 | N40: 864
A41: London | B41: Havering | C41: 620 | D41: 517.0809718 | E41: 770.1723672 | F41: 712 | G41: 547.7395153 | H41: 1496.655085 | I41: 746 | J41: 582 | K41: 1231 | L41: 34 | M41: -640 | N41: 508
A42: London | B42: Hillingdon | C42: 1296 | D42: 1112.035142 | E42: 1755.129268 | F42: 1049.757023 | G42: 729.8331927 | H42: 1336.836077 | I42: 1344 | J42: 1004 | K42: 1689 | L42: 294.2429773 | M42: -177 | N42: 715
A43: London | B43: Hounslow | C43: 1353.176753 | D43: 1074.655522 | E43: 1624.014724 | F43: 1140 | G43: 1033.456091 | H43: 1337.812488 | I43: 1280 | J43: 967 | K43: 1577 | L43: 140 | M43: -230 | N43: 451
A44: London | B44: Islington | C44: 1911.059295 | D44: 1660.949805 | E44: 2157.42378 | F44: 1930.691622 | G44: 1641.680662 | H44: 2200.139102 | I44: 1749 | J44: 1444 | K44: 2019 | L44: -181.6916218 | M44: -564 | N44: 225
A45: London | B45: Kensington and Chelsea | C45: 1166 | D45: 1019.232056 | E45: 1445.199252 | F45: 808.5969488 | G45: 629.967944 | H45: 988.6618767 | I45: 794 | J45: 610 | K45: 972 | L45: -14.59694875 | M45: -279 | N45: 246
A46: London | B46: Kingston upon Thames | C46: 442 | D46: 335.9017512 | E46: 743.5878702 | F46: 439 | G46: 367.6887526 | H46: 612.7739011 | I46: 450 | J46: 365 | K46: 722 | L46: 11 | M46: -170 | N46: 270
A47: London | B47: Lambeth | C47: 2087.923626 | D47: 1743.885067 | E47: 2439.704605 | F47: 2290.113861 | G47: 1925.385102 | H47: 2653.723836 | I47: 1818 | J47: 1406 | K47: 2209 | L47: -472.1138613 | M47: -1018 | N47: 98
A48: London | B48: Lewisham | C48: 1670.903783 | D48: 1357.938224 | E48: 1982.715279 | F48: 1875.059458 | G48: 1526.491971 | H48: 2198.516747 | I48: 1486 | J48: 1107 | K48: 1842 | L48: -389.0594578 | M48: -911 | N48: 67
A49: London | B49: Merton | C49: 640 | D49: 548.2549891 | E49: 806.8574172 | F49: 594 | G49: 492.4031219 | H49: 931.3499938 | I49: 492 | J49: 248 | K49: 731 | L49: -102 | M49: -557 | N49: 146
A50: London | B50: Newham | C50: 2095.086748 | D50: 1778.932748 | E50: 2417.57013 | F50: 2466 | G50: 2173.076094 | H50: 2977.863277 | I50: 1877 | J50: 1481 | K50: 2322 | L50: -589 | M50: -1210 | N50: -30 | O50: *↓
A51: London | B51: Redbridge | C51: 1017 | D51: 900.3328827 | E51: 1185.127978 | F51: 1308 | G51: 1077.422012 | H51: 1958.842049 | I51: 895 | J51: 549 | K51: 1208 | L51: -413 | M51: -1151 | N51: -37 | O51: *↓
A52: London | B52: Richmond upon Thames | C52: 504 | D52: 429.1143647 | E52: 668.2217034 | F52: 520 | G52: 404.746764 | H52: 882.3707773 | I52: 628 | J52: 460 | K52: 1000 | L52: 108 | M52: -284 | N52: 438
A53: London | B53: Southwark | C53: 2052.970128 | D53: 1719.555979 | E53: 2401.143313 | F53: 2239.441407 | G53: 1870.661903 | H53: 2597.439459 | I53: 1791 | J53: 1418 | K53: 2195 | L53: -448.4414069 | M53: -921 | N53: 59
A54: London | B54: Sutton | C54: 733 | D54: 639.4459408 | E54: 943.9821272 | F54: 670 | G54: 541.3517623 | H54: 1015.93474 | I54: 736 | J54: 561 | K54: 1022 | L54: 66 | M54: -292 | N54: 345
A55: London | B55: Tower Hamlets | C55: 2638.99246 | D55: 2320.348619 | E55: 2955.785157 | F55: 3046.690348 | G55: 2656.171388 | H55: 3410.47871 | I55: 2309 | J55: 1937 | K55: 2672 | L55: -737.6903484 | M55: -1286 | N55: -220 | O55: *↓
A56: London | B56: Waltham Forest | C56: 1011.272009 | D56: 743.730249 | E56: 1260.266224 | F56: 1149.240849 | G56: 863.855176 | H56: 1456.810812 | I56: 1330 | J56: 1150 | K56: 1703 | L56: 180.7591513 | M56: -171 | N56: 686
A57: London | B57: Wandsworth | C57: 1290.109343 | D57: 941.0193885 | E57: 1652.872962 | F57: 1261.982643 | G57: 891.6471617 | H57: 1658.515423 | I57: 1140 | J57: 729 | K57: 1510 | L57: -121.9826426 | M57: -678 | N57: 460
A58: London | B58: Westminster | C58: 1877.742084 | D58: 1565.161018 | E58: 2185.383302 | F58: 2026 | G58: 1759.927901 | H58: 2578.23659 | I58: 1503 | J58: 1241 | K58: 1790 | L58: -523 | M58: -1141 | N58: -128 | O58: *↓
A59: North East | B59: County Durham | C59: 2186 | D59: 2047.958931 | E59: 2543.274506 | F59: 1992 | G59: 1876.016461 | H59: 2175.214437 | I59: 2001 | J59: 1886 | K59: 2206 | L59: 9 | M59: -196 | N59: 252
A60: North East | B60: Darlington | C60: 755.4307662 | D60: 641.8597431 | E60: 856.0213044 | F60: 635 | G60: 578.5603792 | H60: 766.2345996 | I60: 656 | J60: 583 | K60: 854 | L60: 21 | M60: -134 | N60: 230
A61: North East | B61: Gateshead | C61: 1456 | D61: 1366.78656 | E61: 1621.919117 | F61: 1656 | G61: 1519.413397 | H61: 1819.38939 | I61: 1615 | J61: 1436 | K61: 1862 | L61: -41 | M61: -296 | N61: 240
A62: North East | B62: Hartlepool | C62: 1043 | D62: 962.7007797 | E62: 1250.665131 | F62: 903 | G62: 845.1305791 | H62: 987.5531046 | I62: 918 | J62: 841 | K62: 1125 | L62: 15 | M62: -94 | N62: 229
A63: North East | B63: Middlesbrough | C63: 2048 | D63: 1887.219988 | E63: 2339.096844 | F63: 1696 | G63: 1600.813661 | H63: 1868.583384 | I63: 1936 | J63: 1756 | K63: 2113 | L63: 240 | M63: -2 | N63: 442
A64: North East | B64: Newcastle upon Tyne | C64: 1993.369573 | D64: 1654.064889 | E64: 2332.197498 | F64: 2021.126506 | G64: 1717.280739 | H64: 2337.744762 | I64: 1783 | J64: 1447 | K64: 2121 | L64: -238.1265057 | M64: -695 | N64: 245
A65: North East | B65: North Tyneside | C65: 961 | D65: 865.5892771 | E65: 1144.128301 | F65: 920 | G65: 824.8818876 | H65: 1205.879179 | I65: 934 | J65: 808 | K65: 1607 | L65: 14 | M65: -255 | N65: 680
A66: North East | B66: Northumberland | C66: 1207 | D66: 1105.051769 | E66: 1400.696551 | F66: 1278 | G66: 1119.631729 | H66: 1620.180402 | I66: 1092 | J66: 995 | K66: 1414 | L66: -186 | M66: -544 | N66: 190
A67: North East | B67: Redcar and Cleveland | C67: 940 | D67: 853.9794294 | E67: 1221.705663 | F67: 923 | G67: 828.2293005 | H67: 1085.24581 | I67: 953 | J67: 826 | K67: 1256 | L67: 30 | M67: -184 | N67: 360
A68: North East | B68: South Tyneside | C68: 745 | D68: 662.0809022 | E68: 861.9670001 | F68: 602 | G68: 555.2663345 | H68: 697.5668311 | I68: 588 | J68: 524 | K68: 699 | L68: -14 | M68: -132 | N68: 109
A69: North East | B69: Stockton-on-Tees | C69: 1890 | D69: 1672.911501 | E69: 2280.953038 | F69: 1563 | G69: 1456.203511 | H69: 1716.498797 | I69: 1657 | J69: 1491 | K69: 1974 | L69: 94 | M69: -123 | N69: 404
A70: North East | B70: Sunderland | C70: 1230 | D70: 1148.071594 | E70: 1360.872953 | F70: 1087 | G70: 1002.894012 | H70: 1306.637655 | I70: 1281 | J70: 963 | K70: 1574 | L70: 194 | M70: -196 | N70: 475
A71: North West | B71: Blackburn with Darwen | C71: 1201 | D71: 1126.350948 | E71: 1330.966595 | F71: 1409 | G71: 1201.062014 | H71: 1917.489776 | I71: 1210 | J71: 1053 | K71: 1376 | L71: -199 | M71: -729 | N71: 66
A72: North West | B72: Blackpool | C72: 1801.656904 | D72: 1646.204829 | E72: 1957.103176 | F72: 1681.701723 | G72: 1524.983615 | H72: 1851.30237 | I72: 1559 | J72: 1406 | K72: 1717 | L72: -122.7017234 | M72: -351 | N72: 96
A73: North West | B73: Bolton | C73: 2001.317679 | D73: 1717.393155 | E73: 2292.776524 | F73: 1874.766157 | G73: 1595.431755 | H73: 2173.876221 | I73: 2546 | J73: 2192 | K73: 3145 | L73: 671.2338431 | M73: 197 | N73: 1344 | O73: *↑
A74: North West | B74: Bury | C74: 831 | D74: 754.3214525 | E74: 956.4673873 | F74: 765.2965974 | G74: 583 | H74: 975.6496223 | I74: 735 | J74: 650 | K74: 871 | L74: -30.29659735 | M74: -246 | N74: 198
A75: North West | B75: Cheshire (Cheshire West, Cheshire East and Cheshire UA) | C75: 2974 | D75: 2769.107533 | E75: 3262.192744 | F75: 2608.752837 | G75: 1995 | H75: 3342.978799 | I75: 2885 | J75: 2185 | K75: 3660 | L75: 276.2471627 | M75: -740 | N75: 1375
A76: North West | B76: Cumbria | C76: 2344.154578 | D76: 1815.611073 | E76: 2840.045116 | F76: 2361 | G76: 2171.731687 | H76: 2592.284258 | I76: 2687 | J76: 2390 | K76: 3295 | L76: 326 | M76: -58 | N76: 947
A77: North West | B77: Halton | C77: 699 | D77: 615.1833531 | E77: 858.5345533 | F77: 621 | G77: 536.8805331 | H77: 776.3623112 | I77: 647 | J77: 483 | K77: 1120 | L77: 26 | M77: -210 | N77: 478
A78: North West | B78: Knowsley | C78: 1228 | D78: 1035.029304 | E78: 3056.063238 | F78: 826.498585 | G78: 669.480038 | H78: 975.9428546 | I78: 949 | J78: 776 | K78: 1108 | L78: 122.501415 | M78: -111 | N78: 358
A79: North West | B79: Lancashire | C79: 5854.397233 | D79: 4559.721162 | E79: 7100.553092 | F79: 5749.448659 | G79: 4550.52213 | H79: 7064.89792 | I79: 5890 | J79: 4602 | K79: 7163 | L79: 140.5513413 | M79: -1680 | N79: 1808
A80: North West | B80: Liverpool | C80: 4902.65701 | D80: 4377.222432 | E80: 5388.264135 | F80: 4853.703692 | G80: 4323.914114 | H80: 5390.291884 | I80: 4594 | J80: 3978 | K80: 5181 | L80: -259.7036919 | M80: -1069 | N80: 491
A81: North West | B81: Manchester | C81: 4322.697245 | D81: 3670.951845 | E81: 4983.501421 | F81: 4229.096523 | G81: 3635.076836 | H81: 4832.568728 | I81: 3754 | J81: 3092 | K81: 4396 | L81: -475.0965231 | M81: -1360 | N81: 414
A82: North West | B82: Oldham | C82: 1198.500567 | D82: 971.3576441 | E82: 1411.340144 | F82: 1125.899393 | G82: 898 | H82: 1358.848958 | I82: 1315 | J82: 1150 | K82: 1834 | L82: 189.1006067 | M82: -101 | N82: 806
A83: North West | B83: Rochdale | C83: 1505.85036 | D83: 1279.821146 | E83: 1740.123243 | F83: 1305.803014 | G83: 1086 | H83: 1538.891787 | I83: 1412 | J83: 1257 | K83: 1686 | L83: 106.1969863 | M83: -170 | N83: 445
A84: North West | B84: Salford | C84: 1417.89333 | D84: 1138.873008 | E84: 1700.175459 | F84: 1415 | G84: 1273.787814 | H84: 1615.466349 | I84: 1207 | J84: 939 | K84: 1471 | L84: -208 | M84: -528 | N84: 109
A85: North West | B85: Sefton | C85: 1733.071216 | D85: 1435.780045 | E85: 2000.785982 | F85: 1708.140968 | G85: 1437.49354 | H85: 1999.069233 | I85: 1615 | J85: 1441 | K85: 2218 | L85: -93.1409678 | M85: -410 | N85: 578
A86: North West | B86: St. Helens | C86: 1000 | D86: 948.9424315 | E86: 1089.880101 | F86: 1154 | G86: 1028.555476 | H86: 1352.373592 | I86: 1138 | J86: 1019 | K86: 1399 | L86: -16 | M86: -233 | N86: 282
A87: North West | B87: Stockport | C87: 1350 | D87: 1201.959822 | E87: 1571.927332 | F87: 1122 | G87: 999.5976466 | H87: 1355.303742 | I87: 1243 | J87: 1056 | K87: 1551 | L87: 121 | M87: -188 | N87: 425
A88: North West | B88: Tameside | C88: 1331 | D88: 1188.72035 | E88: 1591.598308 | F88: 1293.799383 | G88: 1048.556 | H88: 1533.024161 | I88: 1198 | J88: 1104 | K88: 1327 | L88: -95.79938308 | M88: -356 | N88: 183
A89: North West | B89: Trafford | C89: 728 | D89: 617.4907923 | E89: 964.3221603 | F89: 671.7334708 | G89: 453 | H89: 919.6575457 | I89: 732 | J89: 483 | K89: 988 | L89: 60.26652916 | M89: -281 | N89: 405
A90: North West | B90: Warrington | C90: 777 | D90: 712.325055 | E90: 876.3332806 | F90: 732 | G90: 650.5614057 | H90: 908.2901554 | I90: 802 | J90: 705 | K90: 950 | L90: 70 | M90: -114 | N90: 234
A91: North West | B91: Wigan | C91: 1622 | D91: 1531.217702 | E91: 1766.448035 | F91: 1771 | G91: 1528.099592 | H91: 2351.331141 | I91: 1867 | J91: 1527 | K91: 2226 | L91: 96 | M91: -600 | N91: 527
A92: North West | B92: Wirral | C92: 2881 | D92: 2705.245536 | E92: 3144.940251 | F92: 2793 | G92: 2584.983342 | H92: 3083.936557 | I92: 2662 | J92: 2281 | K92: 3020 | L92: -131 | M92: -593 | N92: 263
A93: South East | B93: Bracknell Forest | C93: 260 | D93: 217.2662657 | E93: 341.0235056 | F93: 173 | G93: 145.725324 | H93: 328.8539188 | I93: 236 | J93: 188 | K93: 343 | L93: 63 | M93: -100 | N93: 165
A94: South East | B94: Brighton and Hove | C94: 1884.063086 | D94: 1559.284886 | E94: 2187.670696 | F94: 1795.083682 | G94: 1484.319948 | H94: 2103.471777 | I94: 2098 | J94: 1757 | K94: 3598 | L94: 302.916318 | M94: -148 | N94: 1850
A95: South East | B95: Buckinghamshire | C95: 1420 | D95: 1237.912757 | E95: 1710.000552 | F95: 1248 | G95: 1115.093486 | H95: 1556.179576 | I95: 1394 | J95: 763 | K95: 1914 | L95: 146 | M95: -541 | N95: 675
A96: South East | B96: East Sussex | C96: 1864.548776 | D96: 1365.401332 | E96: 2368.470932 | F96: 1672 | G96: 1529.847123 | H96: 1868.950817 | I96: 1981 | J96: 1434 | K96: 2506 | L96: 309 | M96: -297 | N96: 835
A97: South East | B97: Hampshire | C97: 3540.167526 | D97: 2168.471772 | E97: 4876.502441 | F97: 3509.199886 | G97: 2188.663435 | H97: 4889.501159 | I97: 2828 | J97: 2616 | K97: 3266 | L97: -681.1998858 | M97: -2002 | N97: 799
A98: South East | B98: Isle of Wight | C98: 572 | D98: 476.3604122 | E98: 728.208082 | F98: 483 | G98: 408.2578061 | H98: 621.4731171 | I98: 481 | J98: 342 | K98: 610 | L98: -2 | M98: -205 | N98: 157
A99: South East | B99: Kent | C99: 4290 | D99: 4008.520551 | E99: 4723.899635 | F99: 4101.428134 | G99: 2622.367061 | H99: 5660.285333 | I99: 4401 | J99: 2759 | K99: 6086 | L99: 299.571866 | M99: -2094 | N99: 2535
A100: South East | B100: Medway | C100: 1272 | D100: 1145.264221 | E100: 1428.649688 | F100: 1251.955381 | G100: 954.676998 | H100: 1539.026923 | I100: 1208 | J100: 1038 | K100: 1516 | L100: -43.9553806 | M100: -386 | N100: 382
A101: South East | B101: Milton Keynes | C101: 846 | D101: 693.8905333 | E101: 1140.668504 | F101: 804.7129993 | G101: 528.3070773 | H101: 1068.663236 | I101: 846 | J101: 550 | K101: 1146 | L101: 41.28700068 | M101: -347 | N101: 459
A102: South East | B102: Oxfordshire | C102: 2509.599684 | D102: 1786.078176 | E102: 3211.681157 | F102: 2532.09761 | G102: 1833.114115 | H102: 3209.020972 | I102: 2811 | J102: 2384 | K102: 4128 | L102: 278.9023897 | M102: -499 | N102: 1826
A103: South East | B103: Portsmouth | C103: 1188 | D103: 1049.954743 | E103: 1423.368233 | F103: 1476 | G103: 1248.59449 | H103: 1829.574147 | I103: 1315 | J103: 1043 | K103: 1611 | L103: -161 | M103: -661 | N103: 215
A104: South East | B104: Reading | C104: 1154.745635 | D104: 973.2058642 | E104: 1346.972576 | F104: 1111.13791 | G104: 928.9261127 | H104: 1289.537852 | I104: 1157 | J104: 999 | K104: 1601 | L104: 45.86209042 | M104: -191 | N104: 555
A105: South East | B105: Slough | C105: 989 | D105: 873.886544 | E105: 1213.70611 | F105: 911.2348153 | G105: 744.755139 | H105: 1064.199968 | I105: 758 | J105: 593 | K105: 924 | L105: -153.2348153 | M105: -386 | N105: 85
A106: South East | B106: Southampton | C106: 1505 | D106: 1299.118323 | E106: 1998.900945 | F106: 1441.420054 | G106: 1188.043289 | H106: 1703.662681 | I106: 1273 | J106: 995 | K106: 1592 | L106: -168.4200538 | M106: -556 | N106: 200
A107: South East | B107: Surrey | C107: 2601 | D107: 2306.306376 | E107: 3213.647065 | F107: 2413 | G107: 2205.392815 | H107: 2758.869195 | I107: 2409 | J107: 2183 | K107: 2824 | L107: -4 | M107: -398 | N107: 442
A108: South East | B108: West Berkshire | C108: 489 | D108: 414.9423795 | E108: 607.8149453 | F108: 532 | G108: 424.4766848 | H108: 727.3530646 | I108: 488 | J108: 406 | K108: 643 | L108: -44 | M108: -253 | N108: 142
A109: South East | B109: West Sussex | C109: 2124 | D109: 1787.225131 | E109: 2748.900538 | F109: 1840.48133 | G109: 1172 | H109: 2641.507097 | I109: 2230 | J109: 1336 | K109: 3095 | L109: 389.5186703 | M109: -771 | N109: 1622
A110: South East | B110: Windsor and Maidenhead | C110: 451.9839423 | D110: 288.7977707 | E110: 594.8280293 | F110: 432 | G110: 328.3442187 | H110: 659.4116007 | I110: 448 | J110: 359 | K110: 701 | L110: 16 | M110: -210 | N110: 314
A111: South East | B111: Wokingham | C111: 299 | D111: 236.7764297 | E111: 429.0164303 | F111: 340 | G111: 235.697762 | H111: 554.9385185 | I111: 277 | J111: 203 | K111: 468 | L111: -63 | M111: -293 | N111: 149
A112: South West | B112: Bath and North East Somerset | C112: 904.8348883 | D112: 716.7993365 | E112: 1100.298069 | F112: 839 | G112: 727.3375621 | H112: 1523.618478 | I112: 984 | J112: 782 | K112: 1599 | L112: 145 | M112: -574 | N112: 722
A113: South West | B113: Bournemouth | C113: 1831 | D113: 1675.299238 | E113: 2628.011435 | F113: 1688.982361 | G113: 1472.008163 | H113: 1882.46501 | I113: 1510 | J113: 1393 | K113: 1873 | L113: -178.9823609 | M113: -399 | N113: 253
A114: South West | B114: Bristol, City of | C114: 4449.401516 | D114: 3967.648831 | E114: 4960.654648 | F114: 4238.789608 | G114: 3770.012402 | H114: 4733.199441 | I114: 4116 | J114: 3598 | K114: 4670 | L114: -122.7896077 | M114: -863 | N114: 585
A115: South West | B115: Cornwall (UA) and Isles of Scilly (UA) | C115: 2111 | D115: 1920.177037 | E115: 2367.367518 | F115: 1751 | G115: 1610.682503 | H115: 2016.890294 | I115: 2093 | J115: 1824 | K115: 2608 | L115: 342 | M115: -50 | N115: 876
A116: South West | B116: Devon | C116: 2031 | D116: 1896.028599 | E116: 2256.353281 | F116: 2095 | G116: 1911.023045 | H116: 2446.123741 | I116: 2113 | J116: 1918 | K116: 2414 | L116: 18 | M116: -382 | N116: 389
A117: South West | B117: Dorset | C117: 1334 | D117: 1199.477149 | E117: 1517.852377 | F117: 1281 | G117: 1141.630837 | H117: 1479.321928 | I117: 1389 | J117: 1204 | K117: 1910 | L117: 108 | M117: -169 | N117: 626
A118: South West | B118: Gloucestershire | C118: 2619.056746 | D118: 2014.251452 | E118: 3264.152592 | F118: 2290.018256 | G118: 1635.858295 | H118: 2906.698746 | I118: 2418 | J118: 1743 | K118: 3070 | L118: 127.9817442 | M118: -777 | N118: 1069
A119: South West | B119: North Somerset | C119: 1111 | D119: 989.6837516 | E119: 1419.792077 | F119: 907 | G119: 818.7555188 | H119: 1110.209598 | I119: 1143 | J119: 937 | K119: 1912 | L119: 236 | M119: -42 | N119: 1036
A120: South West | B120: Plymouth | C120: 2161.020918 | D120: 1851.356782 | E120: 2462.652468 | F120: 2063 | G120: 1913.128427 | H120: 2258.279407 | I120: 2019 | J120: 1841 | K120: 2404 | L120: -44 | M120: -303 | N120: 381
A121: South West | B121: Poole | C121: 440 | D121: 380.7747575 | E121: 689.9799915 | F121: 502 | G121: 403.8722588 | H121: 711.8008426 | I121: 432 | J121: 343 | K121: 869 | L121: -70 | M121: -277 | N121: 366
A122: South West | B122: Somerset | C122: 1747 | D122: 1621.678657 | E122: 1988.012445 | F122: 1753 | G122: 1604.212375 | H122: 1952.320202 | I122: 1647 | J122: 1496 | K122: 1960 | L122: -106 | M122: -351 | N122: 261
A123: South West | B123: South Gloucestershire | C123: 819.770156 | D123: 529.4586488 | E123: 1125.125999 | F123: 768.0934137 | G123: 496.6721735 | H123: 1044.887168 | I123: 888 | J123: 603 | K123: 1209 | L123: 119.9065863 | M123: -263 | N123: 569
A124: South West | B124: Swindon | C124: 988 | D124: 862.4574956 | E124: 1390.009775 | F124: 1068 | G124: 906.0840219 | H124: 1328.571261 | I124: 912 | J124: 822 | K124: 1099 | L124: -156 | M124: -417 | N124: 92
A125: South West | B125: Torbay | C125: 888 | D125: 806.9637621 | E125: 1020.932966 | F125: 771 | G125: 696.0299336 | H125: 908.2394807 | I125: 740 | J125: 654 | K125: 1024 | L125: -31 | M125: -184 | N125: 264
A126: South West | B126: Wiltshire | C126: 1197 | D126: 1047.002154 | E126: 1601.242957 | F126: 1066 | G126: 927.6327606 | H126: 1284.0158 | I126: 1141 | J126: 970 | K126: 1491 | L126: 75 | M126: -189 | N126: 471
A127: West Midlands | B127: Birmingham | C127: 9127.91577 | D127: 7964.349112 | E127: 10305.64066 | F127: 9408.120833 | G127: 8167.39926 | H127: 10577.21813 | I127: 8234 | J127: 6933 | K127: 9398 | L127: -1174.120833 | M127: -2954 | N127: 616
A128: West Midlands | B128: Coventry | C128: 1859.601226 | D128: 1517.730463 | E128: 2208.740458 | F128: 1697.659246 | G128: 1344.454031 | H128: 2074.215665 | I128: 1805 | J128: 1605 | K128: 2198 | L128: 107.340754 | M128: -285 | N128: 675
A129: West Midlands | B129: Dudley | C129: 1761 | D129: 1579.715609 | E129: 2132.223066 | F129: 1808 | G129: 1552.709135 | H129: 2179.895016 | I129: 1595 | J129: 1460 | K129: 1846 | L129: -213 | M129: -576 | N129: 146
A130: West Midlands | B130: Herefordshire, County of | C130: 767 | D130: 697.9685458 | E130: 903.2938096 | F130: 684 | G130: 616.0569427 | H130: 809.7772356 | I130: 830 | J130: 711 | K130: 1281 | L130: 146 | M130: -31 | N130: 629
A131: West Midlands | B131: Sandwell | C131: 1852.775236 | D131: 1539.02923 | E131: 2157.823811 | F131: 1895.146113 | G131: 1595.514877 | H131: 2236.136898 | I131: 1807 | J131: 1458 | K131: 2157 | L131: -88.1461126 | M131: -557 | N131: 388
A132: West Midlands | B132: Shropshire | C132: 966 | D132: 882.9161674 | E132: 1083.248383 | F132: 802 | G132: 743.7385821 | H132: 904.1798074 | I132: 1111 | J132: 995 | K132: 1484 | L132: 309 | M132: 164 | N132: 707 | O132: *↑
A133: West Midlands | B133: Solihull | C133: 732 | D133: 663.5368821 | E133: 893.0630682 | F133: 642 | G133: 584.3179232 | H133: 781.1531283 | I133: 936 | J133: 736 | K133: 1310 | L133: 294 | M133: 34 | N133: 662 | O133: *↑
A134: West Midlands | B134: Staffordshire | C134: 2779 | D134: 2571.339622 | E134: 3147.590185 | F134: 2864.299031 | G134: 1930.515115 | H134: 3823.859461 | I134: 2679 | J134: 2506 | K134: 2965 | L134: -185.2990306 | M134: -1157 | N134: 787
A135: West Midlands | B135: Stoke-on-Trent | C135: 2057 | D135: 1965.784232 | E135: 2189.783436 | F135: 2068 | G135: 1944.408693 | H135: 2267.697304 | I135: 2510 | J135: 2258 | K135: 2991 | L135: 442 | M135: 128 | N135: 930 | O135: *↑
A136: West Midlands | B136: Telford and Wrekin | C136: 910.504031 | D136: 720.0638885 | E136: 1079.907028 | F136: 684.7748585 | G136: 521 | H136: 864.0808652 | I136: 765 | J136: 691 | K136: 1002 | L136: 80.22514149 | M136: -112 | N136: 375
A137: West Midlands | B137: Walsall | C137: 1888.504705 | D137: 1588.415428 | E137: 2167.951743 | F137: 2027.367236 | G137: 1740.80431 | H137: 2324.183051 | I137: 1627 | J137: 1491 | K137: 1879 | L137: -400.3672364 | M137: -734 | N137: 0
A138: West Midlands | B138: Warwickshire | C138: 2044 | D138: 1827.267405 | E138: 2457.44166 | F138: 1710 | G138: 1523.198746 | H138: 1995.701652 | I138: 2085 | J138: 1766 | K138: 2552 | L138: 375 | M138: -63 | N138: 883
A139: West Midlands | B139: Wolverhampton | C139: 2012 | D139: 1828.549146 | E139: 2341.84009 | F139: 1986.99547 | G139: 1698.16619 | H139: 2253.70677 | I139: 1904 | J139: 1708 | K139: 2247 | L139: -82.99547043 | M139: -433 | N139: 373
A140: West Midlands | B140: Worcestershire | C140: 2288.482047 | D140: 1686.74018 | E140: 2878.256941 | F140: 2428 | G140: 2135.05346 | H140: 3072.292362 | I140: 2382 | J140: 1752 | K140: 2996 | L140: -46 | M140: -962 | N140: 590
A141: Yorkshire and the Humber | B141: Barnsley | C141: 1391 | D141: 1263.623162 | E141: 1604.468122 | F141: 1603 | G141: 1441.144787 | H141: 1866.218776 | I141: 1534 | J141: 1355 | K141: 1930 | L141: -69 | M141: -371 | N141: 344
A142: Yorkshire and the Humber | B142: Bradford | C142: 4250.968664 | D142: 3655.946768 | E142: 4783.845455 | F142: 4215.433192 | G142: 3656.660371 | H142: 4768.766916 | I142: 4104 | J142: 3512 | K142: 4698 | L142: -111.4331923 | M142: -958 | N142: 738
A143: Yorkshire and the Humber | B143: Calderdale | C143: 1043 | D143: 980.164612 | E143: 1194.221369 | F143: 1038 | G143: 959.7719322 | H143: 1160.103721 | I143: 1352 | J143: 1181 | K143: 1710 | L143: 314 | M143: 110 | N143: 664 | O143: *↑
A144: Yorkshire and the Humber | B144: Doncaster | C144: 2271 | D144: 2160.022284 | E144: 2466.865552 | F144: 2150 | G144: 2040.065175 | H144: 2342.873777 | I144: 2116 | J144: 1777 | K144: 2479 | L144: -34 | M144: -432 | N144: 323
A145: Yorkshire and the Humber | B145: East Riding of Yorkshire | C145: 1026 | D145: 903.0877662 | E145: 1272.17013 | F145: 1012 | G145: 871.2185839 | H145: 1457.698553 | I145: 859 | J145: 751 | K145: 1027 | L145: -153 | M145: -596 | N145: 51
A146: Yorkshire and the Humber | B146: Kingston upon Hull, City of | C146: 2909 | D146: 2757.720567 | E146: 3167.935693 | F146: 2922.277909 | G146: 2624.868898 | H146: 3202.820001 | I146: 2855 | J146: 2499 | K146: 3186 | L146: -67.27790932 | M146: -519 | N146: 389
A147: Yorkshire and the Humber | B147: Kirklees | C147: 2288.078844 | D147: 1847.814502 | E147: 2714.501914 | F147: 2260.637245 | G147: 1788.434226 | H147: 2680.519609 | I147: 2338 | J147: 1875 | K147: 2820 | L147: 77.36275493 | M147: -569 | N147: 761
A148: Yorkshire and the Humber | B148: Leeds | C148: 4644.464759 | D148: 3694.083613 | E148: 5563.73722 | F148: 4898.169061 | G148: 4075.577437 | H148: 5782.14382 | I148: 4739 | J148: 3888 | K148: 5655 | L148: -159.1690608 | M148: -1358 | N148: 985
A149: Yorkshire and the Humber | B149: North East Lincolnshire | C149: 1227 | D149: 1165.426625 | E149: 1366.971881 | F149: 1442.409533 | G149: 1277.716614 | H149: 1617.292825 | I149: 1300 | J149: 1114 | K149: 1482 | L149: -142.4095328 | M149: -393 | N149: 118
A150: Yorkshire and the Humber | B150: North Lincolnshire | C150: 947 | D150: 895.856793 | E150: 1062.867596 | F150: 1084.87129 | G150: 915.9422139 | H150: 1264.101668 | I150: 1166 | J150: 979 | K150: 1340 | L150: 81.1287097 | M150: -175 | N150: 340
A151: Yorkshire and the Humber | B151: North Yorkshire | C151: 1718 | D151: 1602.979779 | E151: 1886.544502 | F151: 1839.956295 | G151: 1214.072536 | H151: 2454.836587 | I151: 1798 | J151: 1622 | K151: 2178 | L151: -41.95629504 | M151: -676 | N151: 644
A152: Yorkshire and the Humber | B152: Rotherham | C152: 1677 | D152: 1540.504048 | E152: 2084.763937 | F152: 1532 | G152: 1424.707138 | H152: 1866.539109 | I152: 1614 | J152: 1466 | K152: 1916 | L152: 82 | M152: -258 | N152: 400
A153: Yorkshire and the Humber | B153: Sheffield | C153: 3972 | D153: 3622.621971 | E153: 4555.480552 | F153: 3004.116366 | G153: 2445 | H153: 3669.323737 | I153: 3245 | J153: 2553 | K153: 3861 | L153: 240.8836344 | M153: -708 | N153: 1161
A154: Yorkshire and the Humber | B154: Wakefield | C154: 2516.181109 | D154: 2171.960151 | E154: 2840.732615 | F154: 2469 | G154: 2250.02014 | H154: 2909.040965 | I154: 2343 | J154: 2167 | K154: 2638 | L154: -126 | M154: -609 | N154: 203
A155: Yorkshire and the Humber | B155: York | C155: 884 | D155: 828.7493705 | E155: 1017.601765 | F155: 840 | G155: 776.9175612 | H155: 968.6018414 | I155: 858 | J155: 780 | K155: 1073 | L155: 18 | M155: -137 | N155: 244
A156: East of England | B156: East of England | C156: 20585.61045 | D156: 18570.52725 | E156: 22915.85418 | F156: 19263.19243 | G156: 17815.05283 | H156: 21344.85143 | I156: 21827 | J156: 20086 | K156: 23861 | L156: 2563.807566 | M156: -40 | N156: 4987
A157: East Midlands | B157: East Midlands | C157: 20756.48453 | D157: 19593.52068 | E157: 22060.02418 | F157: 21465.17374 | G157: 19749.18466 | H157: 23155.45817 | I157: 22163 | J157: 20635 | K157: 24262 | L157: 697.8262633 | M157: -1368 | N157: 3591
A158: London | B158: London | C158: 42587.99277 | D158: 41537.1682 | E158: 44635.22785 | F158: 43917.81991 | G158: 42928.04582 | H158: 46537.9643 | I158: 40750 | J158: 39407 | K158: 42995 | L158: -3167.819913 | M158: -5974 | N158: -1064 | O158: *↓
A159: North East | B159: North East | C159: 16454.80034 | D159: 16042.15218 | E159: 17400.39619 | F159: 15276.12651 | G159: 14868.40216 | H159: 16071.85952 | I159: 15414 | J159: 14945 | K159: 16643 | L159: 137.8734943 | M159: -679 | N159: 1347
A160: North West | B160: North West | C160: 43704.19612 | D160: 42060.98396 | E160: 46042.91296 | F160: 42072.641 | G160: 40550.44514 | H160: 44403.10985 | I160: 42647 | J160: 41029 | K160: 45239 | L160: 574.3589976 | M160: -2134 | N160: 3704
A161: South East | B161: South East | C161: 29260.10865 | D161: 27811.84978 | E161: 31327.63067 | F161: 28067.7518 | G161: 25830.97719 | H161: 30520.70572 | I161: 28639 | J161: 26645 | K161: 32162 | L161: 571.2481995 | M161: -2807 | N161: 4618
A162: South West | B162: South West | C162: 24632.08422 | D162: 23904.78911 | E162: 26379.96228 | F162: 23081.88364 | G162: 22243.57206 | H162: 24551.94619 | I162: 23545 | J162: 22834 | K162: 25830 | L162: 463.1163619 | M162: -907 | N162: 2837
A163: West Midlands | B163: West Midlands | C163: 31045.78302 | D163: 29721.85018 | E163: 32896.89868 | F163: 30706.36279 | G163: 28970.6141 | H163: 32659.21977 | I163: 30270 | J163: 28991 | K163: 32519 | L163: -436.362788 | M163: -2592 | N163: 2479
A164: Yorkshire and the Humber | B164: Yorkshire and the Humber | C164: 32764.69338 | D164: 31700.30275 | E164: 34468.63104 | F164: 32311.87089 | G164: 30942.46506 | H164: 34253.70203 | I164: 32221 | J164: 30834 | K164: 34026 | L164: -90.87089123 | M164: -2277 | N164: 2232
A165: ENGLAND | B165: ENGLAND | C165: 261792 | D165: 259260.2894 | E165: 269025.2325 | F165: 256162.8227 | G165: 253751.0952 | H165: 263500.6718 | I165: 257476 | J165: 255440 | K165: 266643 | L165: 1313.177291 | M165: -5134 | N165: 9419

Sheet Crack
A1: National and local estimated number of crack users with 95% confidence intervals (CI) - 2010 - 2015
A4: Region | B4: Local authority | C4: 2010/11 | F4: 2011/12 | I4: 2014/15 | L4: Difference between 2014/15 and 2011/12
C5: Crack users | D5: Lower bound 95% CI | E5: Upper bound 95% CI | F5: Crack users | G5: Lower bound 95% CI | H5: Upper bound 95% CI | I5: Crack users | J5: Lower bound 95% CI | K5: Upper bound 95% CI | L5: Difference | M5: Lower bound 95% CI | N5: Upper bound 95% CI | O5: Significance
A7: East Midlands | B7: Derby | C7: 919.8245574 | D7: 625.6780067 | E7: 1211.417645 | F7: 1058 | G7: 914.7359361 | H7: 1298.702014 | I7: 1010 | J7: 556 | K7: 1418 | L7: -48 | M7: -549 | N7: 390
A8: East Midlands | B8: Derbyshire | C8: 2026 | D8: 1602.3294 | E8: 2595.85428 | F8: 2347 | G8: 1776.757914 | H8: 3177.438222 | I8: 2342 | J8: 1758 | K8: 3206 | L8: -5 | M8: -1027 | N8: 1054
A9: East Midlands | B9: Leicester | C9: 991 | D9: 872.3396454 | E9: 1142.587008 | F9: 1108.893656 | G9: 722.9758871 | H9: 1537.873248 | I9: 1526 | J9: 1180 | K9: 2121 | L9: 417 | M9: -138 | N9: 1108
A10: East Midlands | B10: Leicestershire | C10: 1177 | D10: 912.1597096 | E10: 1563.103768 | F10: 879 | G10: 677.691607 | H10: 1214.352846 | I10: 1478 | J10: 377 | K10: 2541 | L10: 599 | M10: -567 | N10: 1723
A11: East Midlands | B11: Lincolnshire | C11: 1250.539383 | D11: 487 | E11: 2043.408013 | F11: 1156.661242 | G11: 468 | H11: 1971.21838 | I11: 1438 | J11: 348 | K11: 2588 | L11: 281 | M11: -1131 | N11: 1655
A12: East Midlands | B12: Northamptonshire | C12: 1279.746286 | D12: 585 | E12: 2136.013433 | F12: 919 | G12: 789.2365637 | H12: 1112.051509 | I12: 1146 | J12: 977 | K12: 1368 | L12: 227 | M12: -29 | N12: 486
A13: East Midlands | B13: Nottingham | C13: 2315.219873 | D13: 1896.932222 | E13: 2781.014405 | F13: 2144.116374 | G13: 1721.274444 | H13: 2543.209266 | I13: 1391 | J13: 1268 | K13: 1547 | L13: -753 | M13: -1188 | N13: -334 | O13: *↓
A14: East Midlands | B14: Nottinghamshire | C14: 2119.531987 | D14: 1205.151066 | E14: 3112.740309 | F14: 2050.499761 | G14: 1103.36986 | H14: 2955.473119 | I14: 1946 | J14: 1516 | K14: 2429 | L14: -104 | M14: -1166 | N14: 969
A15: East Midlands | B15: Rutland | C15: 30.89392648 | D15: 2 | E15: 76.57226419 | F15: 23.90933205 | G15: 2 | H15: 70.70407921 | I15: 54 | J15: 5 | K15: 114 | L15: 30 | M15: -46 | N15: 104
A16: East of England | B16: Bedfordshire (Bedford UA/Central Bedfordshire UA) | C16: 1036.78261 | D16: 516.958668 | E16: 1530.992112 | F16: 1262.457449 | G16: 781.9737083 | H16: 1705.896631 | I16: 1690 | J16: 989 | K16: 2470 | L16: 428 | M16: -371 | N16: 1346
A17: East of England | B17: Cambridgeshire | C17: 1195.273984 | D17: 479.0055127 | E17: 2018.994195 | F17: 835 | G17: 664.8668672 | H17: 1143.155802 | I17: 1032 | J17: 764 | K17: 1314 | L17: 197 | M17: -205 | N17: 512
A18: East of England | B18: Essex | C18: 2704.654218 | D18: 1152 | E18: 4502.793494 | F18: 2768.857353 | G18: 1230.612435 | H18: 4314.049646 | I18: 4236 | J18: 1859 | K18: 6429 | L18: 1467 | M18: -1285 | N18: 4283
A19: East of England | B19: Hertfordshire | C19: 2215 | D19: 2019.634387 | E19: 2494.554008 | F19: 2598.21714 | G19: 1226.989207 | H19: 3938.473321 | I19: 3535 | J19: 1585 | K19: 5380 | L19: 937 | M19: -1353 | N19: 3413
A20: East of England | B20: Luton | C20: 1174.939311 | D20: 928.1318263 | E20: 1435.986534 | F20: 1152 | G20: 980.2467739 | H20: 1410.851367 | I20: 1485 | J20: 1238 | K20: 1803 | L20: 333 | M20: -22 | N20: 693
A21: East of England | B21: Norfolk | C21: 1848.379655 | D21: 860.521115 | E21: 2792.227638 | F21: 1750.396693 | G21: 758.5950769 | H21: 2676.55793 | I21: 2279 | J21: 1832 | K21: 2857 | L21: 529 | M21: -506 | N21: 1706
A22: East of England | B22: Peterborough | C22: 619 | D22: 525.7833534 | E22: 755.4676205 | F22: 784 | G22: 578.4553391 | H22: 1183.282903 | I22: 855 | J22: 520 | K22: 1041 | L22: 71 | M22: -528 | N22: 312
A23: East of England | B23: Southend-on-Sea | C23: 868.7756339 | D23: 679.6292333 | E23: 1058.118483 | F23: 712 | G23: 590.649817 | H23: 926.5266112 | I23: 819 | J23: 688 | K23: 1003 | L23: 107 | M23: -134 | N23: 331
A24: East of England | B24: Suffolk | C24: 1229 | D24: 1002.126667 | E24: 1569.628711 | F24: 979 | G24: 770.7918484 | H24: 1316.478548 | I24: 1097 | J24: 930 | K24: 1344 | L24: 118 | M24: -260 | N24: 446
A25: East of England | B25: Thurrock | C25: 201 | D25: 164.7220694 | E25: 282.1541737 | F25: 321.2902957 | G25: 136 | H25: 507.9787128 | I25: 380 | J25: 254 | K25: 633 | L25: 59 | M25: -154 | N25: 360
A26: London | B26: Barking and Dagenham | C26: 665 | D26: 562.5782973 | E26: 810.3509467 | F26: 757 | G26: 622.3066665 | H26: 963.5968436 | I26: 916 | J26: 741 | K26: 1168 | L26: 159 | M26: -108 | N26: 445
A27: London | B27: Barnet | C27: 1059 | D27: 905.7450887 | E27: 1293.016006 | F27: 857 | G27: 716.6519561 | H27: 1083.456809 | I27: 1030 | J27: 822 | K27: 1360 | L27: 173 | M27: -134 | N27: 520
A28: London | B28: Bexley | C28: 540 | D28: 415.9227879 | E28: 739.0232543 | F28: 441.2203095 | G28: 184 | H28: 708.310352 | I28: 636 | J28: 459 | K28: 888 | L28: 195 | M28: -101 | N28: 564
A29: London | B29: Brent | C29: 1573 | D29: 1407.951003 | E29: 1802.055009 | F29: 1547.697516 | G29: 1170.506142 | H29: 1947.463835 | I29: 1487 | J29: 974 | K29: 2076 | L29: -61 | M29: -736 | N29: 655
A30: London | B30: Bromley | C30: 795.9484125 | D30: 424.5644423 | E30: 1167.351531 | F30: 750.055137 | G30: 380.882206 | H30: 1094.695272 | I30: 837 | J30: 599 | K30: 1223 | L30: 87 | M30: -341 | N30: 574
A31: London | B31: Camden | C31: 1847.55409 | D31: 1495.303628 | E31: 2170.388944 | F31: 1860.280455 | G31: 1546.72767 | H31: 2189.638709 | I31: 1552 | J31: 1094 | K31: 1992 | L31: -308 | M31: -851 | N31: 227
A32: London | B32: City of London | C32: 43.23573646 | D32: 25.73930619 | E32: 61.0685758 | F32: 22.65825123 | G32: 13 | H32: 33.57611021 | I32: 21 | J32: 12 | K32: 45 | L32: -2 | M32: -14 | N32: 25
A33: London | B33: Croydon | C33: 1465 | D33: 1265.331364 | E33: 1758.609163 | F33: 1302.064593 | G33: 833.4864532 | H33: 1748.651045 | I33: 1231 | J33: 1013 | K33: 1553 | L33: -71 | M33: -561 | N33: 485
A34: London | B34: Ealing | C34: 1335.377245 | D34: 926.8042842 | E34: 1721.901394 | F34: 1320.387601 | G34: 894.2609455 | H34: 1717.933314 | I34: 1525 | J34: 870 | K34: 2104 | L34: 205 | M34: -581 | N34: 955
A35: London | B35: Enfield | C35: 1002.191447 | D35: 614.8339796 | E35: 1363.937795 | F35: 1102.476511 | G35: 737.0530633 | H35: 1477.949825 | I35: 1182 | J35: 965 | K35: 1507 | L35: 80 | M35: -375 | N35: 554
A36: London | B36: Greenwich | C36: 1231 | D36: 1089.404102 | E36: 1407.804184 | F36: 1328 | G36: 1141.355528 | H36: 1593.002479 | I36: 1161 | J36: 664 | K36: 1700 | L36: -167 | M36: -707 | N36: 415
A37: London | B37: Hackney | C37: 1768.693114 | D37: 1456.139101 | E37: 2074.263348 | F37: 1895.553951 | G37: 1537.34677 | H37: 2242.724256 | I37: 2151 | J37: 1596 | K37: 2686 | L37: 255 | M37: -395 | N37: 921
A38: London | B38: Hammersmith and Fulham | C38: 1090.775798 | D38: 853.0481211 | E38: 1336.276586 | F38: 996.5297379 | G38: 739.685758 | H38: 1252.21294 | I38: 1240 | J38: 1022 | K38: 1597 | L38: 243 | M38: -91 | N38: 676
A39: London | B39: Haringey | C39: 1495.867025 | D39: 1175.839318 | E39: 1806.468556 | F39: 1407.823986 | G39: 1054.116038 | H39: 1750.518866 | I39: 1555 | J39: 1014 | K39: 2077 | L39: 147 | M39: -481 | N39: 791
A40: London | B40: Harrow | C40: 546.9452709 | D40: 271 | E40: 819.5442061 | F40: 627.2267686 | G40: 326.1209689 | H40: 922.3758379 | I40: 760 | J40: 559 | K40: 1069 | L40: 133 | M40: -231 | N40: 553
A41: London | B41: Havering | C41: 680 | D41: 539.4409741 | E41: 910.003843 | F41: 693 | G41: 508.2450717 | H41: 994.1750718 | I41: 601 | J41: 479 | K41: 802 | L41: -92 | M41: -416 | N41: 185
A42: London | B42: Hillingdon | C42: 722.5737622 | D42: 370.0169996 | E42: 1065.675654 | F42: 739.7482754 | G42: 408.5560913 | H42: 1063.745914 | I42: 1174 | J42: 928 | K42: 1572 | L42: 434 | M42: 28 | N42: 926 | O42: *↑
A43: London | B43: Hounslow | C43: 941.6297436 | D43: 641.1506013 | E43: 1246.92292 | F43: 1088 | G43: 813.9974833 | H43: 1574.16953 | I43: 1151 | J43: 875 | K43: 1584 | L43: 63 | M43: -478 | N43: 563
A44: London | B44: Islington | C44: 2008.774718 | D44: 1694.0838 | E44: 2298.726484 | F44: 1823.429424 | G44: 1524.239365 | H44: 2130.95423 | I44: 1642 | J44: 1207 | K44: 2091 | L44: -181 | M44: -723 | N44: 376
A45: London | B45: Kensington and Chelsea | C45: 956.0218144 | D45: 745.6472053 | E45: 1187.143839 | F45: 880.859649 | G45: 663.9692555 | H45: 1089.788292 | I45: 892 | J45: 675 | K45: 1289 | L45: 11 | M45: -304 | N45: 441
A46: London | B46: Kingston upon Thames | C46: 297 | D46: 245.7194271 | E46: 387.7062802 | F46: 377 | G46: 283.3816049 | H46: 564.9016854 | I46: 275 | J46: 209 | K46: 395 | L46: -102 | M46: -301 | N46: 55
A47: London | B47: Lambeth | C47: 2312.791716 | D47: 1915.158227 | E47: 2743.591355 | F47: 2358.098707 | G47: 1916.499426 | H47: 2834.487559 | I47: 2000 | J47: 1385 | K47: 2628 | L47: -358 | M47: -1144 | N47: 432
A48: London | B48: Lewisham | C48: 1562.972836 | D48: 1194.590122 | E48: 1900.330364 | F48: 1823 | G48: 1602.261762 | H48: 2106.857588 | I48: 1593 | J48: 1076 | K48: 2142 | L48: -230 | M48: -852 | N48: 323
A49: London | B49: Merton | C49: 526 | D49: 443.0025113 | E49: 654.8096212 | F49: 643.9516065 | G49: 405.1436088 | H49: 885.8241169 | I49: 518 | J49: 322 | K49: 911 | L49: -126 | M49: -440 | N49: 332
A50: London | B50: Newham | C50: 1587.068488 | D50: 1202.040668 | E50: 1987.762505 | F50: 1884.073224 | G50: 1463.354755 | H50: 2329.83349 | I50: 2089 | J50: 1785 | K50: 2460 | L50: 205 | M50: -315 | N50: 766
A51: London | B51: Redbridge | C51: 1031 | D51: 867.7845509 | E51: 1263.318592 | F51: 903.5648483 | G51: 564.9010135 | H51: 1224.037985 | I51: 784 | J51: 262 | K51: 1331 | L51: -120 | M51: -720 | N51: 519
A52: London | B52: Richmond upon Thames | C52: 444.2064974 | D52: 220.2294054 | E52: 707.4224886 | F52: 336 | G52: 243.9468526 | H52: 507.4363427 | I52: 410 | J52: 269 | K52: 730 | L52: 74 | M52: -153 | N52: 408
A53: London | B53: Southwark | C53: 1995.456266 | D53: 1558.33833 | E53: 2414.487519 | F53: 2150.421602 | G53: 1742.561425 | H53: 2555.753182 | I53: 1904 | J53: 1316 | K53: 2508 | L53: -246 | M53: -959 | N53: 508
A54: London | B54: Sutton | C54: 769 | D54: 591.1327716 | E54: 1049.844025 | F54: 693 | G54: 530.1441748 | H54: 999.7367102 | I54: 506 | J54: 363 | K54: 729 | L54: -187 | M54: -525 | N54: 82
A55: London | B55: Tower Hamlets | C55: 2805.241477 | D55: 2442.831313 | E55: 3169.816394 | F55: 2955.272934 | G55: 2545.545949 | H55: 3334.616245 | I55: 2543 | J55: 1982 | K55: 3169 | L55: -412 | M55: -1126 | N55: 370
A56: London | B56: Waltham Forest | C56: 1189.046523 | D56: 891.3363232 | E56: 1501.152095 | F56: 1181.412526 | G56: 832.1915241 | H56: 1494.397438 | I56: 1172 | J56: 651 | K56: 1668 | L56: -9 | M56: -611 | N56: 606
A57: London | B57: Wandsworth | C57: 1395.72939 | D57: 1013.716362 | E57: 1777.256891 | F57: 1326.253092 | G57: 909.9918304 | H57: 1745.940721 | I57: 1295 | J57: 709 | K57: 1864 | L57: -31 | M57: -769 | N57: 687
A58: London | B58: Westminster | C58: 2250 | D58: 2003.557173 | E58: 2602.612857 | F58: 2007 | G58: 1744.345036 | H58: 2410.962273 | I58: 1393 | J58: 1133 | K58: 1794 | L58: -614 | M58: -1086 | N58: -145 | O58: *↓
A59: North East | B59: County Durham | C59: 525.6803211 | D59: 208 | E59: 1125.761421 | F59: 545.4819185 | G59: 177 | H59: 1165.510741 | I59: 815 | J59: 145 | K59: 1696 | L59: 270 | M59: -870 | N59: 1360
A60: North East | B60: Darlington | C60: 154.5860172 | D60: 80 | E60: 268.9960655 | F60: 144.7907663 | G60: 61 | H60: 265.7672641 | I60: 200 | J60: 43 | K60: 371 | L60: 55 | M60: -141 | N60: 274
A61: North East | B61: Gateshead | C61: 362.5555859 | D61: 165 | E61: 598.8801455 | F61: 320.884837 | G61: 136 | H61: 561.6200928 | I61: 376 | J61: 99 | K61: 718 | L61: 55 | M61: -372 | N61: 467
A62: North East | B62: Hartlepool | C62: 154.9111888 | D62: 97 | E62: 257.5658101 | F62: 191.8785762 | G62: 112 | H62: 303.4815097 | I62: 210 | J62: 71 | K62: 359 | L62: 18 | M62: -167 | N62: 201
A63: North East | B63: Middlesbrough | C63: 1099 | D63: 949.3805956 | E63: 1299.690219 | F63: 1151 | G63: 967.7937617 | H63: 1426.022132 | I63: 734 | J63: 481 | K63: 974 | L63: -417 | M63: -782 | N63: -116 | O63: *↓
A64: North East | B64: Newcastle upon Tyne | C64: 653.2395882 | D64: 312 | E64: 1030.423006 | F64: 596.9354617 | G64: 291 | H64: 935.7470109 | I64: 1076 | J64: 674 | K64: 1894 | L64: 479 | M64: -75 | N64: 1326
A65: North East | B65: North Tyneside | C65: 231.4591913 | D65: 82 | E65: 486.928528 | F65: 217.8714758 | G65: 67 | H65: 442.8841547 | I65: 344 | J65: 71 | K65: 676 | L65: 126 | M65: -286 | N65: 553
A66: North East | B66: Northumberland | C66: 344 | D66: 154.3525895 | E66: 909.7465911 | F66: 266.7577274 | G66: 55 | H66: 633.2178357 | I66: 451 | J66: 51 | K66: 949 | L66: 184 | M66: -470 | N66: 821
A67: North East | B67: Redcar and Cleveland | C67: 345.7771987 | D67: 178 | E67: 515.9356505 | F67: 339.1841283 | G67: 187.8638891 | H67: 500.3799548 | I67: 517 | J67: 242 | K67: 1267 | L67: 178 | M67: -154 | N67: 899
A68: North East | B68: South Tyneside | C68: 198 | D68: 127.8524514 | E68: 358.0225764 | F68: 207.2631315 | G68: 76 | H68: 377.2022156 | I68: 239 | J68: 44 | K68: 491 | L68: 32 | M68: -276 | N68: 345
A69: North East | B69: Stockton-On-Tees | C69: 777 | D69: 660.7287986 | E69: 949.8096814 | F69: 967.473113 | G69: 740.6850111 | H69: 1184.97309 | I69: 917 | J69: 705 | K69: 1248 | L69: -50 | M69: -336 | N69: 346
A70: North East | B70: Sunderland | C70: 721 | D70: 593.6979533 | E70: 916.5869259 | F70: 594.0317112 | G70: 289.5321812 | H70: 925.8498839 | I70: 452 | J70: 332 | K70: 627 | L70: -142 | M70: -491 | N70: 197
A71: North West | B71: Blackburn with Darwen | C71: 590.2412493 | D71: 419.6450339 | E71: 761.9415291 | F71: 641.6864242 | G71: 477.0197557 | H71: 811.6439425 | I71: 712 | J71: 536 | K71: 999 | L71: 70 | M71: -179 | N71: 390
A72: North West | B72: Blackpool | C72: 720.9093231 | D72: 553.7903472 | E72: 891.4486976 | F72: 769.4539889 | G72: 597.7808619 | H72: 931.9963564 | I72: 964 | J72: 748 | K72: 1298 | L72: 195 | M72: -64 | N72: 577
A73: North West | B73: Bolton | C73: 1403 | D73: 1150.599767 | E73: 1722.537096 | F73: 986.6993516 | G73: 675.8697029 | H73: 1303.77519 | I73: 1084 | J73: 880 | K73: 1401 | L73: 97 | M73: -294 | N73: 525
A74: North West | B74: Bury | C74: 601 | D74: 504.0178288 | E74: 746.2295829 | F74: 577 | G74: 461.5176534 | H74: 748.2031798 | I74: 604 | J74: 288 | K74: 916 | L74: 27 | M74: -343 | N74: 361
A75: North West | B75: Cheshire (Cheshire West, Cheshire East and Cheshire UA) | C75: 2228 | D75: 1865.846895 | E75: 2737.172726 | F75: 1580.916889 | G75: 816.5801922 | H75: 2433.309514 | I75: 2023 | J75: 933 | K75: 3240 | L75: 442 | M75: -971 | N75: 1819
A76: North West | B76: Cumbria | C76: 460.5758359 | D76: 113 | E76: 1026.300899 | F76: 430.4003586 | G76: 100 | H76: 992.7613236 | I76: 829 | J76: 376 | K76: 2156 | L76: 399 | M76: -379 | N76: 1843
A77: North West | B77: Halton | C77: 503 | D77: 410.7532662 | E77: 633.001786 | F77: 434.318612 | G77: 281.1095539 | H77: 581.6849438 | I77: 643 | J77: 451 | K77: 1040 | L77: 209 | M77: -38 | N77: 650
A78: North West | B78: Knowsley | C78: 617 | D78: 523.0952161 | E78: 772.670032 | F78: 700.1852912 | G78: 530.4389948 | H78: 885.1527457 | I78: 664 | J78: 432 | K78: 912 | L78: -36 | M78: -322 | N78: 267
A79: North West | B79: Lancashire | C79: 2270.799928 | D79: 1007 | E79: 3602.88539 | F79: 2192.020756 | G79: 974 | H79: 3594.720112 | I79: 2690 | J79: 817 | K79: 4717 | L79: 498 | M79: -1801 | N79: 2990
A80: North West | B80: Liverpool | C80: 4237.499966 | D80: 3634.29536 | E80: 4910.886883 | F80: 3999.355631 | G80: 3323.047837 | H80: 4645.729421 | I80: 3649 | J80: 2702 | K80: 4568 | L80: -350 | M80: -1475 | N80: 729
A81: North West | B81: Manchester | C81: 3692.506664 | D81: 2967.314421 | E81: 4372.692514 | F81: 3433.376082 | G81: 2778.125821 | H81: 4075.856334 | I81: 4037 | J81: 3499 | K81: 4668 | L81: 604 | M81: -224 | N81: 1482
A82: North West | B82: Oldham | C82: 1029 | D82: 811.058137 | E82: 1306.517483 | F82: 1053 | G82: 775.1649091 | H82: 1502.759692 | I82: 1088 | J82: 825 | K82: 1478 | L82: 35 | M82: -503 | N82: 560
A83: North West | B83: Rochdale | C83: 1413.247738 | D83: 1140.387466 | E83: 1675.169027 | F83: 1204.512337 | G83: 938.4575853 | H83: 1486.955469 | I83: 1373 | J83: 1062 | K83: 1879 | L83: 168 | M83: -262 | N83: 716
A84: North West | B84: Salford | C84: 794.7979041 | D84: 514.9207956 | E84: 1064.90249 | F84: 765 | G84: 607.0777172 | H84: 1029.262948 | I84: 1109 | J84: 772 | K84: 1702 | L84: 344 | M84: -108 | N84: 920
A85: North West | B85: Sefton | C85: 1524.360711 | D85: 1204.424945 | E85: 1840.399541 | F85: 1594.415076 | G85: 1269.271977 | H85: 1917.245565 | I85: 1427 | J85: 1224 | K85: 1759 | L85: -167 | M85: -561 | N85: 294
A86: North West | B86: St. Helens | C86: 580 | D86: 504.796306 | E86: 702.0175614 | F86: 600 | G86: 496.0002647 | H86: 772.9687526 | I86: 704 | J86: 414 | K86: 1002 | L86: 104 | M86: -246 | N86: 411
A87: North West | B87: Stockport | C87: 751 | D87: 595.4026681 | E87: 971.3920749 | F87: 666.0168671 | G87: 325.0748237 | H87: 997.808776 | I87: 844 | J87: 412 | K87: 1320 | L87: 178 | M87: -373 | N87: 712
A88: North West | B88: Tameside | C88: 908 | D88: 735.4672678 | E88: 1205.956647 | F88: 797 | G88: 637.2113209 | H88: 1053.700749 | I88: 812 | J88: 680 | K88: 1009 | L88: 15 | M88: -289 | N88: 266
A89: North West | B89: Trafford | C89: 441 | D89: 338.7766759 | E89: 590.6631832 | F89: 495.1990537 | G89: 236.2185241 | H89: 759.0827649 | I89: 559 | J89: 181 | K89: 975 | L89: 64 | M89: -374 | N89: 573
A90: North West | B90: Warrington | C90: 563 | D90: 460.6204843 | E90: 727.4603635 | F90: 587 | G90: 410.2533548 | H90: 930.1242888 | I90: 869 | J90: 599 | K90: 1367 | L90: 282 | M90: -166 | N90: 838
A91: North West | B91: Wigan | C91: 510.4562497 | D91: 237 | E91: 886.4558637 | F91: 592.8029045 | G91: 261 | H91: 958.9537713 | I91: 813 | J91: 280 | K91: 1332 | L91: 220 | M91: -438 | N91: 842
A92: North West | B92: Wirral | C92: 1568 | D92: 1304.603941 | E92: 1921.384832 | F92: 1261 | G92: 1051.160898 | H92: 1586.7356 | I92: 1188 | J92: 1017 | K92: 1474 | L92: -73 | M92: -445 | N92: 268
A93: South East | B93: Bracknell Forest | C93: 258 | D93: 192.6172411 | E93: 396.9955092 | F93: 204 | G93: 148.2829904 | H93: 351.9972781 | I93: 291 | J93: 187 | K93: 542 | L93: 87 | M93: -102 | N93: 340
A94: South East | B94: Brighton and Hove | C94: 901.700603 | D94: 558.4353298 | E94: 1230.758496 | F94: 864.5084657 | G94: 513.7390695 | H94: 1210.059905 | I94: 1210 | J94: 921 | K94: 1680 | L94: 345 | M94: -106 | N94: 911
A95: South East | B95: Buckinghamshire | C95: 966.5186338 | D95: 425 | E95: 1577.132369 | F95: 862 | G95: 706.4764523 | H95: 1117.103979 | I95: 1362 | J95: 956 | K95: 2044 | L95: 500 | M95: 30 | N95: 1201 | O95: *↑
A96: South East | B96: East Sussex | C96: 1209.56472 | D96: 671.2863678 | E96: 1819.227362 | F96: 1121 | G96: 928.5643823 | H96: 1398.83668 | I96: 1232 | J96: 992 | K96: 1564 | L96: 111 | M96: -262 | N96: 493
A97: South East | B97: Hampshire | C97: 1385 | D97: 1230.253055 | E97: 1583.662801 | F97: 1743.027008 | G97: 616 | H97: 3229.033145 | I97: 1775 | J97: 1430 | K97: 2155 | L97: 32 | M97: -1515 | N97: 1550
A98: South East | B98: Isle of Wight | C98: 139.7058675 | D98: 41 | E98: 295.8481339 | F98: 149.967918 | G98: 46 | H98: 290.3385927 | I98: 238 | J98: 51 | K98: 459 | L98: 88 | M98: -165 | N98: 354
A99: South East | B99: Kent | C99: 2862 | D99: 2465.481119 | E99: 3379.003588 | F99: 2422.101624 | G99: 967 | H99: 4041.340257 | I99: 3398 | J99: 2780 | K99: 4206 | L99: 976 | M99: -703 | N99: 2849
A100: South East | B100: Medway | C100: 772.3603907 | D100: 460.1069145 | E100: 1074.697361 | F100: 848 | G100: 642.03528 | H100: 1152.712986 | I100: 848 | J100: 368 | K100: 1360 | L100: 0 | M100: -566 | N100: 579
A101: South East | B101: Milton Keynes | C101: 413 | D101: 345.7759241 | E101: 517.6340776 | F101: 495.959227 | G101: 214 | H101: 804.3503292 | I101: 774 | J101: 319 | K101: 1204 | L101: 278 | M101: -253 | N101: 764
A102: South East | B102: Oxfordshire | C102: 2307.652988 | D102: 1481.941585 | E102: 3081.617318 | F102: 2484.842024 | G102: 1715.936397 | H102: 3256.495832 | I102: 2416 | J102: 1146 | K102: 3521 | L102: -69 | M102: -1613 | N102: 1339
A103: South East | B103: Portsmouth | C103: 620 | D103: 517.7951486 | E103: 780.7738917 | F103: 639 | G103: 531.661463 | H103: 778.0517723 | I103: 845 | J103: 456 | K103: 1233 | L103: 206 | M103: -197 | N103: 594
A104: South East | B104: Reading | C104: 738.707917 | D104: 530.3507394 | E104: 948.3028636 | F104: 757.9832888 | G104: 543.3977026 | H104: 953.3446085 | I104: 881 | J104: 595 | K104: 1171 | L104: 123 | M104: -220 | N104: 489
A105: South East | B105: Slough | C105: 584 | D105: 525.8083103 | E105: 670.6729645 | F105: 704.4402145 | G105: 542.3202626 | H105: 882.6685298 | I105: 689 | J105: 437 | K105: 940 | L105: -15 | M105: -316 | N105: 271
A106: South East | B106: Southampton | C106: 949.8391901 | D106: 628.1680768 | E106: 1260.108163 | F106: 829 | G106: 713.5287545 | H106: 994.6976142 | I106: 1115 | J106: 666 | K106: 1559 | L106: 286 | M106: -185 | N106: 738
A107: South East | B107: Surrey | C107: 2069.02116 | D107: 772 | E107: 3384.931266 | F107: 1996.211985 | G107: 746 | H107: 3215.466199 | I107: 2243 | J107: 1737 | K107: 2741 | L107: 247 | M107: -1151 | N107: 1611
A108: South East | B108: West Berkshire | C108: 199 | D108: 157.4065202 | E108: 280.6469651 | F108: 292.5948948 | G108: 123 | H108: 478.9891976 | I108: 337 | J108: 245 | K108: 510 | L108: 44 | M108: -167 | N108: 298
A109: South East | B109: West Sussex | C109: 1638.304537 | D109: 717.9859422 | E109: 2547.452893 | F109: 1421.614085 | G109: 578 | H109: 2304.98797 | I109: 1927 | J109: 573 | K109: 3259 | L109: 505 | M109: -1193 | N109: 2111
A110: South East | B110: Windsor and Maidenhead | C110: 366 | D110: 282.0041647 | E110: 521.5249391 | F110: 323.3863041 | G110: 143.9302591 | H110: 482.2762913 | I110: 383 | J110: 251 | K110: 647 | L110: 60 | M110: -161 | N110: 366
A111: South East | B111: Wokingham | C111: 202.1485865 | D111: 62 | E111: 395.2258223 | F111: 200 | G111: 101.8071555 | H111: 548.0520305 | I111: 162 | J111: 102 | K111: 337 | L111: -38 | M111: -392 | N111: 174
A112: South West | B112: Bath and North East Somerset | C112: 565.6872351 | D112: 343.0996446 | E112: 777.9421235 | F112: 691 | G112: 445.0467012 | H112: 1288.346637 | I112: 449 | J112: 322 | K112: 750 | L112: -242 | M112: -828 | N112: 146
A113: South West | B113: Bournemouth | C113: 1316 | D113: 1117.747064 | E113: 1578.125695 | F113: 1098 | G113: 916.1911177 | H113: 1395.206257 | I113: 1114 | J113: 889 | K113: 1500 | L113: 16 | M113: -339 | N113: 410
A114: South West | B114: Bristol, City of | C114: 4327.161476 | D114: 3649.774555 | E114: 4950.772874 | F114: 4303.673567 | G114: 3597.916989 | H114: 4944.316674 | I114: 3710 | J114: 2824 | K114: 4584 | L114: -594 | M114: -1691 | N114: 535
A115: South West | B115: Cornwall (UA) and Isles of Scilly (UA) | C115: 682.3024706 | D115: 174 | E115: 1298.950214 | F115: 542.4308595 | G115: 155 | H115: 1140.020225 | I115: 783 | J115: 71 | K115: 1604 | L115: 241 | M115: -850 | N115: 1210
A116: South West | B116: Devon | C116: 987 | D116: 614.1030449 | E116: 1670.385571 | F116: 809 | G116: 485.5539496 | H116: 1500.936107 | I116: 996 | J116: 518 | K116: 1229 | L116: 187 | M116: -803 | N116: 530
A117: South West | B117: Dorset | C117: 564 | D117: 342.4664085 | E117: 1073.220706 | F117: 516.7763884 | G117: 192 | H117: 957.7783572 | I117: 823 | J117: 205 | K117: 1487 | L117: 306 | M117: -452 | N117: 1088
A118: South West | B118: Gloucestershire | C118: 1573.010075 | D118: 933.3547698 | E118: 2284.121312 | F118: 1424.812462 | G118: 728.2647618 | H118: 2113.439456 | I118: 1938 | J118: 900 | K118: 2880 | L118: 513 | M118: -698 | N118: 1695
A119: South West | B119: North Somerset | C119: 746 | D119: 578.6259723 | E119: 1058.896781 | F119: 521 | G119: 421.0186935 | H119: 713.8738058 | I119: 657 | J119: 322 | K119: 977 | L119: 136 | M119: -255 | N119: 469
A120: South West | B120: Plymouth | C120: 552.3690028 | D120: 237.7454229 | E120: 887.5572519 | F120: 526.1275614 | G120: 219 | H120: 852.2283357 | I120: 686 | J120: 435 | K120: 1198 | L120: 160 | M120: -244 | N120: 745
A121: South West | B121: Poole | C121: 235.6236915 | D121: 86 | E121: 398.2651722 | F121: 240 | G121: 136.4509255 | H121: 564.8084272 | I121: 446 | J121: 225 | K121: 1033 | L121: 206 | M121: -199 | N121: 785
A122: South West | B122: Somerset | C122: 774.0882865 | D122: 285 | E122: 1369.802412 | F122: 774.6676431 | G122: 285 | H122: 1364.916225 | I122: 718 | J122: 534 | K122: 1099 | L122: -57 | M122: -714 | N122: 639
A123: South West | B123: South Gloucestershire | C123: 702.4490868 | D123: 375.8410709 | E123: 1016.425794 | F123: 691.8984137 | G123: 391.3987565 | H123: 997.8241253 | I123: 931 | J123: 548 | K123: 1173 | L123: 239 | M123: -315 | N123: 567
A124: South West | B124: Swindon | C124: 552 | D124: 461.3366154 | E124: 697.2245621 | F124: 607 | G124: 466.7123421 | H124: 845.7353948 | I124: 919 | J124: 503 | K124: 1335 | L124: 312 | M124: -138 | N124: 745
A125: South West | B125: Torbay | C125: 172.4727243 | D125: 69 | E125: 317.8518795 | F125: 148.901913 | G125: 53 | H125: 291.7025507 | I125: 232 | J125: 46 | K125: 437 | L125: 83 | M125: -159 | N125: 332
A126: South West | B126: Wiltshire | C126: 636 | D126: 481.0781096 | E126: 892.9032526 | F126: 653.1898698 | G126: 224 | H126: 1160.617212 | I126: 978 | J126: 251 | K126: 1764 | L126: 325 | M126: -685 | N126: 1273
A127: West Midlands | B127: Birmingham | C127: 6926.412006 | D127: 5648.363257 | E127: 8282.552515 | F127: 7264.094491 | G127: 5833.260841 | H127: 8535.318952 | I127: 6689 | J127: 4692 | K127: 8743 | L127: -575 | M127: -2917 | N127: 1972
A128: West Midlands | B128: Coventry | C128: 1579.927835 | D128: 1162.325433 | E128: 1949.190849 | F128: 1340.608828 | G128: 937.9381589 | H128: 1699.543463 | I128: 1234 | J128: 1064 | K128: 1490 | L128: -107 | M128: -494 | N128: 316
A129: West Midlands | B129: Dudley | C129: 1174 | D129: 1023.742947 | E129: 1389.790946 | F129: 1102 | G129: 918.0958704 | H129: 1387.250426 | I129: 1049 | J129: 896 | K129: 1244 | L129: -53 | M129: -373 | N129: 205
A130: West Midlands | B130: Herefordshire, County of | C130: 304.8901432 | D130: 123.7136241 | E130: 506.0427571 | F130: 265.8860177 | G130: 104 | H130: 466.5974454 | I130: 393 | J130: 113 | K130: 706 | L130: 127 | M130: -237 | N130: 540
A131: West Midlands | B131: Sandwell | C131: 1380.32044 | D131: 1027.963438 | E131: 1729.302369 | F131: 1362.743983 | G131: 1003.409209 | H131: 1723.038714 | I131: 1766 | J131: 1469 | K131: 2177 | L131: 403 | M131: -79 | N131: 951
A132: West Midlands | B132: Shropshire | C132: 545.0075378 | D132: 233 | E132: 900.0885277 | F132: 390 | G132: 313.1506504 | H132: 534.2480364 | I132: 556 | J132: 452 | K132: 722 | L132: 166 | M132: -10 | N132: 355
A133: West Midlands | B133: Solihull | C133: 432 | D133: 356.0721449 | E133: 543.2580501 | F133: 456 | G133: 374.7042655 | H133: 601.0721349 | I133: 377 | J133: 315 | K133: 463 | L133: -79 | M133: -231 | N133: 41
A134: West Midlands | B134: Staffordshire | C134: 1588.652567 | D134: 651 | E134: 2600.552903 | F134: 1627.653576 | G134: 675 | H134: 2578.282623 | I134: 1991 | J134: 568 | K134: 3325 | L134: 363 | M134: -1478 | N134: 2098
A135: West Midlands | B135: Stoke-on-Trent | C135: 1123 | D135: 908.9599764 | E135: 1422.254662 | F135: 1049 | G135: 891.5562211 | H135: 1293.949352 | I135: 1434 | J135: 1100 | K135: 1990 | L135: 385 | M135: -12 | N135: 936
A136: West Midlands | B136: Telford and Wrekin | C136: 442 | D136: 363.4445384 | E136: 562.6374378 | F136: 379 | G136: 298.8237658 | H136: 540.2712021 | I136: 644 | J136: 361 | K136: 931 | L136: 265 | M136: -46 | N136: 578
A137: West Midlands | B137: Walsall | C137: 1238.387314 | D137: 924.9838837 | E137: 1559.929834 | F137: 1307.764625 | G137: 975.7095379 | H137: 1606.227634 | I137: 1376 | J137: 1186 | K137: 1630 | L137: 68 | M137: -293 | N137: 508
A138: West Midlands | B138: Warwickshire | C138: 1058.308012 | D138: 466.8697673 | E138: 1663.905917 | F138: 750 | G138: 612.7050008 | H138: 973.8056811 | I138: 1291 | J138: 1024 | K138: 1571 | L138: 541 | M138: 172 | N138: 859 | O138: *↑
A139: West Midlands | B139: Wolverhampton | C139: 1655.406151 | D139: 1339.283828 | E139: 1949.164873 | F139: 1346 | G139: 1212.531159 | H139: 1502.052678 | I139: 1679 | J139: 1264 | K139: 2132 | L139: 333 | M139: -113 | N139: 781
A140: West Midlands | B140: Worcestershire | C140: 1306.142191 | D140: 675.2157776 | E140: 1983.066806 | F140: 1250.307196 | G140: 651.3304459 | H140: 1923.759593 | I140: 1451 | J140: 452 | K140: 2383 | L140: 201 | M140: -1005 | N140: 1315
A141: Yorkshire and the Humber | B141: Barnsley | C141: 648 | D141: 518.069264 | E141: 854.4496363 | F141: 848 | G141: 665.9012938 | H141: 1155.628621 | I141: 782 | J141: 528 | K141: 1225 | L141: -66 | M141: -461 | N141: 402
A142: Yorkshire and the Humber | B142: Bradford | C142: 3700.025953 | D142: 3040.378779 | E142: 4337.116967 | F142: 3637.437227 | G142: 2964.374645 | H142: 4265.872147 | I142: 3308 | J142: 2354 | K142: 4213 | L142: -329 | M142: -1522 | N142: 835
A143: Yorkshire and the Humber | B143: Calderdale | C143: 626 | D143: 566.9442539 | E143: 712.2233213 | F143: 682 | G143: 601.04743 | H143: 800.1570623 | I143: 946 | J143: 608 | K143: 1292 | L143: 264 | M143: -92 | N143: 634
A144: Yorkshire and the Humber | B144: Doncaster | C144: 955 | D144: 786.1478774 | E144: 1231.029146 | F144: 1106 | G144: 865.3826332 | H144: 1554.104516 | I144: 842 | J144: 337 | K144: 1353 | L144: -264 | M144: -916 | N144: 310
A145: Yorkshire and the Humber | B145: East Riding of Yorkshire | C145: 468 | D145: 271.5335051 | E145: 938.7223546 | F145: 422.2537935 | G145: 143 | H145: 822.7707857 | I145: 545 | J145: 88 | K145: 1101 | L145: 123 | M145: -542 | N145: 788
A146: Yorkshire and the Humber | B146: Kingston upon Hull, City of | C146: 1206 | D146: 970.4746461 | E146: 1561.823831 | F146: 1062 | G146: 832.6868748 | H146: 1421.718643 | I146: 902 | J146: 591 | K146: 1429 | L146: -160 | M146: -602 | N146: 430
A147: Yorkshire and the Humber | B147: Kirklees | C147: 1621.596587 | D147: 1124.113613 | E147: 2085.188541 | F147: 1166 | G147: 1032.893075 | H147: 1363.181684 | I147: 1776 | J147: 1016 | K147: 2555 | L147: 610 | M147: -184 | N147: 1352
A148: Yorkshire and the Humber | B148: Leeds | C148: 3307.661936 | D148: 2252.366866 | E148: 4335.315724 | F148: 3398.704422 | G148: 2460.392626 | H148: 4299.045921 | I148: 3274 | J148: 1907 | K148: 4623 | L148: -125 | M148: -1794 | N148: 1586
A149: Yorkshire and the Humber | B149: North East Lincolnshire | C149: 546 | D149: 419.5462942 | E149: 753.3231607 | F149: 560 | G149: 443.8452288 | H149: 792.6406945 | I149: 693 | J149: 472 | K149: 1125 | L149: 133 | M149: -188 | N149: 548
A150: Yorkshire and the Humber | B150: North Lincolnshire | C150: 412 | D150: 352.1620301 | E150: 523.1268176 | F150: 431 | G150: 375.3469455 | H150: 524.3484076 | I150: 579 | J150: 481 | K150: 728 | L150: 148 | M150: 1 | N150: 300 | O150: *↑
A151: Yorkshire and the Humber | B151: North Yorkshire | C151: 406 | D151: 312.6704215 | E151: 586.8231804 | F151: 808.474748 | G151: 290 | H151: 1526.690484 | I151: 1099 | J151: 254 | K151: 2042 | L151: 291 | M151: -934 | N151: 1486
A152: Yorkshire and the Humber | B152: Rotherham | C152: 637.4768016 | D152: 325.8366397 | E152: 951.5527871 | F152: 714 | G152: 495.0547754 | H152: 1172.523506 | I152: 830 | J152: 597 | K152: 1246 | L152: 116 | M152: -382 | N152: 556
A153: Yorkshire and the Humber | B153: Sheffield | C153: 2966.82725 | D153: 2256.163021 | E153: 3681.268058 | F153: 2588.455919 | G153: 1914.256852 | H153: 3289.12182 | I153: 2546 | J153: 2018 | K153: 3207 | L153: -42 | M153: -947 | N153: 868
A154: Yorkshire and the Humber | B154: Wakefield | C154: 894 | D154: 765.057091 | E154: 1066.035443 | F154: 1177.724552 | G154: 802.9566432 | H154: 1557.28333 | I154: 984 | J154: 457 | K154: 1547 | L154: -194 | M154: -865 | N154: 472
A155: Yorkshire and the Humber | B155: York | C155: 398 | D155: 251.420412 | E155: 719.8088153 | F155: 404 | G155: 241.1966635 | H155: 799.0562416 | I155: 305 | J155: 178 | K155: 576 | L155: -99 | M155: -548 | N155: 218
A156: East of England | B156: East of England | C156: 13092.80541 | D156: 10946.86867 | E156: 15304.1226 | F156: 13163.21893 | G156: 10706.68 | H156: 15636.12759 | I156: 17408 | J156: 14005 | K156: 20606 | L156: 4245 | M156: -101 | N156: 8262
A157: East Midlands | B157: East Midlands | C157: 12109.75601 | D157: 10444.03427 | E157: 13854.95755 | F157: 11687.08036 | G157: 10119.05672 | H157: 13531.56086 | I157: 12331 | J157: 10451 | K157: 14255 | L157: 644 | M157: -1897 | N157: 3198
A158: London | B158: London | C158: 39934.10137 | D158: 38375.45898 | E158: 41756.83286 | F158: 40080.0607 | G158: 38300.3 | H158: 41996.58465 | I158: 39226 | J158: 37364 | K158: 41940 | L158: -854 | M158: -3469 | N158: 2499
A159: North East | B159: North East | C159: 5567.209091 | D159: 4630.173258 | E159: 6649.306195 | F159: 5543.552847 | G159: 4600.431462 | H159: 6563.4496 | I159: 6331 | J159: 4965 | K159: 8002 | L159: 787 | M159: -897 | N159: 2834
A160: North West | B160: North West | C160: 27407.39557 | D160: 25432.47257 | E160: 29496.40518 | F160: 25361.35962 | G160: 23219.03049 | H160: 27577.67325 | I160: 28685 | J160: 25980 | K160: 31979 | L160: 3324 | M160: -34 | N160: 7428
A161: South East | B161: South East | C161: 18582.52459 | D161: 16444.29867 | E161: 20758.56251 | F161: 18359.63704 | G161: 15585.25096 | H161: 21356.56239 | I161: 22126 | J161: 20015 | K161: 24583 | L161: 3766 | M161: 77 | N161: 7399 | O161: *↑
A162: South West | B162: South West | C162: 14386.16405 | D162: 12886.22436 | E162: 16092.3292 | F162: 13548.47868 | G162: 12144.68514 | H162: 15342.46426 | I162: 15380 | J162: 13116 | K162: 17255 | L162: 1832 | M162: -1261 | N162: 4033
A163: West Midlands | B163: West Midlands | C163: 20754.4542 | D163: 18822.14594 | E163: 22745.19688 | F163: 19891.05872 | G163: 17795.31437 | H163: 22011.95989 | I163: 21930 | J163: 19184 | K163: 24835 | L163: 2039 | M163: -1482 | N163: 5471
A164: Yorkshire and the Humber | B164: Yorkshire and the Humber | C164: 18792.58853 | D164: 17317.91248 | E164: 20540.56222 | F164: 19006.05066 | G164: 17487.8395 | H164: 20828.43647 | I164: 19411 | J164: 17130 | K164: 21989 | L164: 405 | M164: -2597 | N164: 3564
A165: ENGLAND | B165: ENGLAND | C165: 170626.9988 | D165: 165876.8725 | E165: 176691.7924 | F165: 166640.4976 | G165: 161621.1019 | H165: 173705.7412 | I165: 182828 | J165: 176675 | K165: 190782 | L165: 16188 | M165: 6635 | N165: 25832 | O165: *↑

